{"text_format":"3","workbook":"xlsx","n_sheets":58,"sheets":["Index","GeneralInfo","Declaration","Summary","Shareholding Pattern","IndHUF","SBO","CGAndSG","Banks","OtherIND","Individuals","Government","Institutions","FPIPromoter","OtherForeign","MutuaFund","VentureCap","AIF","FVC","FPI_Insti","Bank_Insti","Insurance","Bodies Corporate","Foreign Companies","Foreign Nationals","Non Resident Indians (NRIs)","Investor Education","Trusts where any person","Relatives of promoters","Key Managerial Personnel","Directors and their relatives","Associate companies_Subsidiar","Shareholding by Companies","State Government_Governor","CG&SG&PI","Other_Insti (Foreign)","Other_Insti","Foreign Portfolio Category II","Sovereign Wealth(Foreign)","Foreign Direct Investment","Other Financial Institutions","Sovereign Wealth(Domestic)","AssetReconstruct","Pension","Indivisual(aI)","Indivisual(aII)","NBFC","EmpTrust","OD","Other_NonInsti","Annexure B","Taxonomy","DRHolder","EBT","Unclaimed_Prom","TextBlock","PAC_Public","Unclaimed_Public"],"not_rendered":{"images":1,"macros":1,"defined_names":6},"read":"whole","date_system":"1900"}

{"sheet":"Index","index":0,"n_rows":60,"n_cols":10,"rows_kept":60,"merged":[[5,4,5,8],[6,5,6,8],[7,5,7,8],[8,5,8,8],[9,5,9,8],[10,5,10,8],[11,5,11,8],[14,3,14,9],[15,3,15,9],[16,3,16,9],[19,3,19,9],[20,3,20,9],[21,3,21,9],[22,3,22,9],[23,3,23,9],[24,3,24,9],[27,3,27,9],[28,4,28,8],[29,4,29,8],[30,4,30,8],[31,4,31,8],[32,4,32,8],[35,3,35,9],[36,3,36,9],[40,3,40,9],[41,3,41,9],[42,3,42,9],[43,3,43,9],[44,3,44,9],[45,3,45,9],[46,3,46,9],[47,3,47,9],[50,3,50,9],[51,3,51,9],[52,3,52,9],[53,3,53,9],[54,3,54,9],[55,3,55,9],[56,3,56,9],[57,3,57,9],[58,3,58,9],[59,3,59,9]]}
[]
[]
[]
[]
[]
[{"$nulls":4},"                                      XBRL Excel Utility"]
[{"$nulls":4},"1.","Overview"]
[{"$nulls":4},"2.","Before you begin"]
[{"$nulls":4},"3.","Index"]
[{"$nulls":4},"4.","Import XBRL file"]
[{"$nulls":4},"5.","Steps for filing Shareholding Pattern"]
[{"$nulls":4},"6.","Fill up the Shareholding Pattern"]
[]
[]
[{"$nulls":3},"1. Overview"]
[{"$nulls":3},"The excel utility can be used for creating the XBRL/XML file for efiling of shareholding pattern. "]
[{"$nulls":3},"Shareholding pattern XBRL filling consists of two processes. Firstly generation of XBRL/XML file of the Shareholding pattern, and upload of generated XBRL/XML file to BSE Listing Center."]
[]
[]
[{"$nulls":3}," 2.  Before you begin"]
[{"$nulls":3},"1. The version of Microsoft Excel in your system should be Microsoft Office Excel 2007 and above."]
[{"$nulls":3},"2. The system should have a file compression software to unzip excel utility file."]
[{"$nulls":3},"3. Make sure that you have downloaded the latest Excel Utility from BSE Website to your local system."]
[{"$nulls":3},"4. Make sure that you have downloaded the Chrome Browser to view report generated from Excel utility"]
[{"$nulls":3},"5. Please enable the Macros (if disabled) as per instructions given in manual, so that all the functionalities of  Excel Utility works fine. Please first go through Enable Macro - Manual attached with zip file."]
[]
[]
[{"$nulls":3},"3. Index "]
[{"$nulls":3},1,"Details of general information about company",{"$nulls":4},"General Info"]
[{"$nulls":3},2,"Declaration",{"$nulls":4},"Declaration"]
[{"$nulls":3},3,"Summary",{"$nulls":4},"Summary"]
[{"$nulls":3},4,"Shareholding Pattern",{"$nulls":4},"Shareholding Pattern"]
[{"$nulls":3},5,"Annexure B",{"$nulls":4},"Annexure B"]
[]
[]
[{"$nulls":3},"4. Import XBRL file"]
[{"$nulls":3},"1. Now you can import and view previously generated XBRL files by clicking Import XBRL button on Genenral information sheet. "]
[]
[]
[]
[{"$nulls":3},"5. Steps for Filing Shareholding Pattern"]
[{"$nulls":3},"I.  Fill up the data: Navigate to each field of every section in the sheet to provide applicable data in correct format.  (Formats will get reflected while filling data.)  \n   - Use paste special command to paste data from other sheet.\n"]
[{"$nulls":3},"II. Validating Sheets:  Click on the ''Validate \"  button to ensure that the sheet has been properly filled and also data has been furnished in proper format. If there are some errors on the sheet, excel utility will prompt you about the same."]
[{"$nulls":3},"III. Validate All Sheets:  Click on the ''Home\"  button. And then click on \"Validate All Sheet\" button to ensure that all sheets has been properly filled and validated successfully. If there are some errors on the sheet, excel utility will prompt you about the same and stop validation at the same time. After correction, once again follow the same procedure to validate all sheets."]
[{"$nulls":3},"Excel Utility will not allow you to generate XBRL/XML until you rectify all errors. "]
[{"$nulls":3},"IV. Generate XML :   Excel Utility will not allow you to generate XBRL/XML unless successful validation of all sheet is completed. Now click on 'Generate XML'' to generate XBRL/XML file. \n    - Save the XBRL/XML file in your desired folder in local system. "]
[{"$nulls":3},"V. Generate Report :   Excel Utility will allow you to generate Report. Now click on 'Generate Report'' to generate html report.   \n     - Save the HTML Report file in your desired folder in local system.     \n     - To view HTML Report open \"Chrome Web Browser\" . \n     - To print report in PDF Format, Click on print button and save as PDF. "]
[{"$nulls":3},"VI. Upload XML file to BSE Listing Center: For uploading the XBRL/XML file generated through  Utility, login to BSE Listing Center and upload generated xml file. On Upload screen provide the required information and browse to select XML file and submit the XML.\n"]
[]
[]
[{"$nulls":3},"6. Fill up the Shareholding Pattern"]
[{"$nulls":3},"1. Cells with red fonts indicate mandatory fields. "]
[{"$nulls":3},"2. If mandatory field is left empty, then Utility will not allow you to proceed further for generating XML."]
[{"$nulls":3},"3. You are not allowed to enter data in the Grey Cells."]
[{"$nulls":3},"4. If fields are not applicable to your company then leave it blank. Do not insert Zero unless it is a mandatory field."]
[{"$nulls":3},"5. Data provided must be in correct format, otherwise Utility will not allow you to proceed further for generating XML."]
[{"$nulls":3},"6. Adding new rows: Sections such as Promoters details allow you to enter as much data in a tabular form. You can Click on  \"Add\" to add more rows.\n\nTo add more than one row you must fill data in the mandatory fields of the previous row."]
[{"$nulls":3},"7. Deleting rows: Rows that has been added can be removed by clicking the button \"Delete\". A popup will ask you to provide the range of rows you want to delete. "]
[{"$nulls":3},"8. Select data from \"Dropdown list\" wherever applicable. "]
[{"$nulls":3},"9. Adding Notes:  Click on \"Add Notes\" button to add notes "]

{"sheet":"GeneralInfo","index":1,"n_rows":17,"n_cols":24,"rows_kept":17,"merged":[[4,4,4,5],[17,4,17,5]]}
[{"$nulls":7}," ",{"$nulls":9},"Equity Shares","Pre-listing","June","Yes",null,"Pre-listing"]
[{"$nulls":17},"Preference Shares","Quarterly","September","No",null,"Capital Restructuring"]
[{"$nulls":17},"Differential Voting Rights","Capital Restructuring","December",null,null,"Half yearly"]
[{"$nulls":18},"Half yearly","March",null,null,"Yearly"]
[{"$nulls":4},"General information about company",{"$nulls":13},"Yearly"]
[{"$nulls":4},"Scrip code","531676"]
[{"$nulls":4},"NSE Symbol",{"$nulls":7},"Regulation 31 (1) (a)",{"$nulls":10},"Yes"]
[{"$nulls":4},"MSEI Symbol",{"$nulls":7},"Regulation 31 (1) (b)",{"$nulls":10},"No"]
[{"$nulls":4},"ISIN","INE554H01021",{"$nulls":6},"Regulation 31 (1) (c)"]
[{"$nulls":4},"Name of the company","VAGHANI TECHNO- BUILD LIMITED",{"$nulls":6},"Regulation 31 (1)"]
[{"$nulls":4},"Whether company is SME","No"]
[{"$nulls":4},"Class of Security","Equity Shares"]
[{"$nulls":4},"Type of report","Quarterly"]
[{"$nulls":4},"Quarter Ended / Half year ended/Date of Report (For Prelisting / Allotment)","30-09-2022"]
[{"$nulls":4},"Date of allotment / extinguishment (in case Capital Restructuring selected) / Listing Date",""]
[{"$nulls":4},"Shareholding pattern filed under",{"$f":"IF(F13=S1,M7,IF(F13=S2,M8,IF(F13=S3,M9,IF(F13=S4,M8,IF(F13=S5,M8,\"\")))))","v":"Regulation 31 (1) (b)"}]
[{"$nulls":4},"Whether the listed entity is Public Sector Undertaking (PSU)?","No"]

{"sheet":"Declaration","index":2,"n_rows":16,"n_cols":21,"rows_kept":16,"merged":[[15,6,15,8]]}
["Micro@213Vista",{"$nulls":18},"Micro@213Vista","Yes"]
[{"$nulls":20},"No"]
[]
[]
[]
[]
[]
[{"$nulls":3},"Sr. No.","Particular","Yes/No","Promoter and Promoter Group","Public shareholder","Non Promoter- Non Public"]
[{"$nulls":3},1,"Whether the Listed Entity has issued any partly paid up shares?","No","No","No","No",{"$nulls":3},1,1,1,1,null,"Partly Paid Up Shares","Partly Paid Up Shares PPG","Partly Paid Up Shares Public","Partly Paid Up Shares NPNP"]
[{"$nulls":3},2,"Whether the Listed Entity has issued any Convertible Securities ?","No","No","No","No",{"$nulls":3},1,1,1,1,null,"Convertible Securities","Convertible Securities PPG","Convertible Securities Public","Convertible Securities NPNP"]
[{"$nulls":3},3,"Whether the Listed Entity has issued any Warrants ?","No","No","No","No",{"$nulls":3},1,1,1,1,null,"Warrants","Warrants PPG","Warrants Public","Warrants NPNP"]
[{"$nulls":3},4,"Whether the Listed Entity has any shares against which depository receipts are issued?","No","No","No","No",{"$nulls":3},1,1,1,1,null,"Depository Receipts","Depository Receipts PPG","Depository Receipts Public","Depository Receipts NPNP"]
[{"$nulls":3},5,"Whether the Listed Entity has any shares in locked-in?","No","No","No","No",{"$nulls":3},1,1,1,1,null,"Locked In","Locked In PPG","Locked In Public","Locked In NPNP"]
[{"$nulls":3},6,"Whether any shares held by promoters are pledge or otherwise encumbered?","No","No",{"$nulls":5},1,1,0,0,null,"Pledge Or Otherwise Encumbered","Pledge Or Otherwise Encumbered PPG","Pledge Or Otherwise Encumbered Public","Pledge Or Otherwise Encumbered NPNP"]
[{"$nulls":3},7,"Whether company has equity shares with differential voting rights?","No","No","No","No",{"$nulls":3},1,1,1,1,null,"Voting Rights","Voting Rights PPG","Voting Rights Public","Voting Rights NPNP"]
[{"$nulls":3},8,"Whether the listed entity has any significant beneficial owner?","No",{"$nulls":11},"Whether the listed entity has any significant beneficial owner?"]

{"sheet":"Summary","index":3,"n_rows":18,"n_cols":28,"rows_kept":18,"merged":[[7,4,7,27],[8,4,8,27],[9,4,11,4],[9,5,11,5],[9,6,11,6],[9,7,11,7],[9,8,11,8],[9,9,11,9],[9,10,11,10],[9,11,11,11],[9,12,9,15],[9,16,11,16],[9,17,11,17],[9,18,11,18],[9,19,11,19],[9,20,10,21],[9,22,10,23],[9,24,11,24],[9,25,9,27],[10,12,10,14],[10,15,11,15],[10,25,10,27]]}
[]
[{"$nulls":6},"Number of shareholders","Number of fully paid up equity shares","Number of partly paid-up equity shares","Number of shares underlying outstanding depository receipts","Total number of shares","Shareholding as a percentage of total number of shares held by promoters and public shareholders and custodians or DR holders","Number of voting rights held by same class of securities","Number of voting rights held by differential voting rights","Total Number of voting rights","Percentage of total number of voting rights","Number of shares underlying outstanding convertible securities","Number of warrant","Total shareholding as a percentage assuming full conversion of convertible securities","Total shareholding as a percentage assuming full conversion of convertible securities","Number of the locked-in-shares ","Locked-in-shares as a percentage of total number of shares","Pledged or encumbered - number of shares","Pledged or encumbered shares held as percentage of total number of shares","Number of equity shares held in dematerialized form","Number of share under sub category one","Number of share under sub category two","Number of share under sub category three"]
[]
[]
[]
[]
[]
[{"$nulls":4},"Table I - Summary Statement holding of specified securities"]
[{"$nulls":4},"Note  : Data will be automatically populated from shareholding pattern sheet -  Data Entry Restricted in this sheet"]
[{"$nulls":4},"Category\n(I)","Category of shareholder\n(II)","Nos. Of shareholders\n(III)","No. of fully paid up equity shares held\n(IV)","No. Of Partly paid-up equity shares held\n(V)","No. Of shares underlying Depository Receipts\n(VI)","Total nos. shares\nheld\n(VII) = (IV)+(V)+ (VI)","Shareholding as a % of total no. of shares (calculated as per SCRR, 1957)\n(VIII)\nAs a % of (A+B+C2)","Number of Voting Rights\nheld in each class of\nsecurities\n(IX)",{"$nulls":3},"No. Of Shares Underlying Outstanding convertible securities\n(X)","No. of Shares Underlying Outstanding Warrants (Xi)","No. Of Shares Underlying Outstanding convertible securities and No. Of Warrants\n(Xi) (a)","Shareholding , as a % assuming full conversion of convertible securities ( as a percentage of diluted share capital)\n(XI)= (VII)+(X)\nAs a % of (A+B+C2)","Number of Locked in shares\n(XII)",null,"Number of Shares pledged or otherwise encumbered\n(XIII)",null,"Number of equity shares held in dematerialized form \n(XIV)","Sub-categorization of shares"]
[{"$nulls":12},"No of Voting  (XIV)  Rights",null,null,"Total as a % of\n(A+B+C)",{"$nulls":9},"Shareholding (No. of shares) under"]
[{"$nulls":12},"Class\neg:\nX","Class\neg:y","Total",{"$nulls":5},"No.\n(a)","As a % of total Shares held\n(b)","No.\n(a)","As a % of total Shares held\n(b)",null,"Sub-category (i)","Sub-category (ii)","Sub-category (iii)"]
[{"$nulls":4},"(A)","Promoter & Promoter Group",{"$f":"+IFERROR(IF(COUNT('Shareholding Pattern'!H26),('Shareholding Pattern'!H26),\"\"),\"\")","v":6},{"$f":"+IFERROR(IF(COUNT('Shareholding Pattern'!I26),('Shareholding Pattern'!I26),\"\"),\"\")","v":3913923},{"$f":"+IFERROR(IF(COUNT('Shareholding Pattern'!J26),('Shareholding Pattern'!J26),\"\"),\"\")","v":""},{"$f":"+IFERROR(IF(COUNT('Shareholding Pattern'!K26),('Shareholding Pattern'!K26),\"\"),\"\")","v":""},{"$f":"+IFERROR(IF(COUNT('Shareholding Pattern'!L26),('Shareholding Pattern'!L26),\"\"),\"\")","v":3913923},{"$f":"+IFERROR(IF(COUNT('Shareholding Pattern'!M26),('Shareholding Pattern'!M26),\"\"),\"\")","v":74.98},{"$f":"+IFERROR(IF(COUNT('Shareholding Pattern'!N26),('Shareholding Pattern'!N26),\"\"),\"\")","v":{"v":3913923,"d":"3,913,923.00"}},{"$f":"+IFERROR(IF(COUNT('Shareholding Pattern'!O26),('Shareholding Pattern'!O26),\"\"),\"\")","v":""},{"$f":"+IFERROR(IF(COUNT('Shareholding Pattern'!P26),('Shareholding Pattern'!P26),\"\"),\"\")","v":{"v":3913923,"d":"3913923.00"}},{"$f":"+IFERROR(IF(COUNT('Shareholding Pattern'!Q26),('Shareholding Pattern'!Q26),\"\"),\"\")","v":74.98},{"$f":"+IFERROR(IF(COUNT('Shareholding Pattern'!R26),('Shareholding Pattern'!R26),\"\"),\"\")","v":""},{"$f":"+IFERROR(IF(COUNT('Shareholding Pattern'!S26),('Shareholding Pattern'!S26),\"\"),\"\")","v":""},{"$f":"+IFERROR(IF(COUNT('Shareholding Pattern'!T26),('Shareholding Pattern'!T26),\"\"),\"\")","v":""},{"$f":"+IFERROR(IF(COUNT('Shareholding Pattern'!U26),('Shareholding Pattern'!U26),\"\"),\"\")","v":74.98},{"$f":"+IFERROR(IF(COUNT('Shareholding Pattern'!V26),('Shareholding Pattern'!V26),\"\"),\"\")","v":""},{"$f":"+IFERROR(IF(COUNT('Shareholding Pattern'!W26),('Shareholding Pattern'!W26),\"\"),\"\")","v":""},{"$f":"+IFERROR(IF(COUNT('Shareholding Pattern'!X26),('Shareholding Pattern'!X26),\"\"),\"\")","v":""},{"$f":"+IFERROR(IF(COUNT('Shareholding Pattern'!Y26),('Shareholding Pattern'!Y26),\"\"),\"\")","v":""},{"$f":"+IFERROR(IF(COUNT('Shareholding Pattern'!Z26),('Shareholding Pattern'!Z26),\"\"),\"\")","v":3913923}]
[{"$nulls":4},"(B)","Public",{"$f":"+IFERROR(IF(COUNT('Shareholding Pattern'!H71),('Shareholding Pattern'!H71),\"\"),\"\")","v":1343},{"$f":"+IFERROR(IF(COUNT('Shareholding Pattern'!I71),('Shareholding Pattern'!I71),\"\"),\"\")","v":1306077},{"$f":"+IFERROR(IF(COUNT('Shareholding Pattern'!J71),('Shareholding Pattern'!J71),\"\"),\"\")","v":""},{"$f":"+IFERROR(IF(COUNT('Shareholding Pattern'!K71),('Shareholding Pattern'!K71),\"\"),\"\")","v":""},{"$f":"+IFERROR(IF(COUNT('Shareholding Pattern'!L71),('Shareholding Pattern'!L71),\"\"),\"\")","v":1306077},{"$f":"+IFERROR(IF(COUNT('Shareholding Pattern'!M71),('Shareholding Pattern'!M71),\"\"),\"\")","v":25.02},{"$f":"+IFERROR(IF(COUNT('Shareholding Pattern'!N71),('Shareholding Pattern'!N71),\"\"),\"\")","v":{"v":1306077,"d":"1306077.00"}},{"$f":"+IFERROR(IF(COUNT('Shareholding Pattern'!O71),('Shareholding Pattern'!O71),\"\"),\"\")","v":""},{"$f":"+IFERROR(IF(COUNT('Shareholding Pattern'!P71),('Shareholding Pattern'!P71),\"\"),\"\")","v":{"v":1306077,"d":"1306077.00"}},{"$f":"+IFERROR(IF(COUNT('Shareholding Pattern'!Q71),('Shareholding Pattern'!Q71),\"\"),\"\")","v":25.02},{"$f":"+IFERROR(IF(COUNT('Shareholding Pattern'!R71),('Shareholding Pattern'!R71),\"\"),\"\")","v":""},{"$f":"+IFERROR(IF(COUNT('Shareholding Pattern'!S71),('Shareholding Pattern'!S71),\"\"),\"\")","v":""},{"$f":"+IFERROR(IF(COUNT('Shareholding Pattern'!T71),('Shareholding Pattern'!T71),\"\"),\"\")","v":""},{"$f":"+IFERROR(IF(COUNT('Shareholding Pattern'!U71),('Shareholding Pattern'!U71),\"\"),\"\")","v":25.02},{"$f":"+IFERROR(IF(COUNT('Shareholding Pattern'!V71),('Shareholding Pattern'!V71),\"\"),\"\")","v":""},{"$f":"+IFERROR(IF(COUNT('Shareholding Pattern'!W71),('Shareholding Pattern'!W71),\"\"),\"\")","v":""},null,null,{"$f":"+IFERROR(IF(COUNT('Shareholding Pattern'!Z71),('Shareholding Pattern'!Z71),\"\"),\"\")","v":1118804},{"$f":"+IFERROR(IF(COUNT('Shareholding Pattern'!AA71),('Shareholding Pattern'!AA71),\"\"),\"\")","v":0},{"$f":"+IFERROR(IF(COUNT('Shareholding Pattern'!AB71),('Shareholding Pattern'!AB71),\"\"),\"\")","v":0},{"$f":"+IFERROR(IF(COUNT('Shareholding Pattern'!AC71),('Shareholding Pattern'!AC71),\"\"),\"\")","v":0}]
[{"$nulls":4},"(C)","Non Promoter- Non Public",{"$f":"+IFERROR(IF(COUNT('Shareholding Pattern'!H77),('Shareholding Pattern'!H77),\"\"),\"\")","v":""},{"$f":"+IFERROR(IF(COUNT('Shareholding Pattern'!I77),('Shareholding Pattern'!I77),\"\"),\"\")","v":""},{"$f":"+IFERROR(IF(COUNT('Shareholding Pattern'!J77),('Shareholding Pattern'!J77),\"\"),\"\")","v":""},{"$f":"+IFERROR(IF(COUNT('Shareholding Pattern'!K77),('Shareholding Pattern'!K77),\"\"),\"\")","v":""},{"$f":"+IFERROR(IF(COUNT('Shareholding Pattern'!L77),('Shareholding Pattern'!L77),\"\"),\"\")","v":""},null,{"$f":"+IFERROR(IF(COUNT('Shareholding Pattern'!N77),('Shareholding Pattern'!N77),\"\"),\"\")","v":""},{"$f":"+IFERROR(IF(COUNT('Shareholding Pattern'!O77),('Shareholding Pattern'!O77),\"\"),\"\")","v":""},{"$f":"+IFERROR(IF(COUNT('Shareholding Pattern'!P77),('Shareholding Pattern'!P77),\"\"),\"\")","v":""},{"$f":"+IFERROR(IF(COUNT('Shareholding Pattern'!Q77),('Shareholding Pattern'!Q77),\"\"),\"\")","v":""},{"$f":"+IFERROR(IF(COUNT('Shareholding Pattern'!R77),('Shareholding Pattern'!R77),\"\"),\"\")","v":""},{"$f":"+IFERROR(IF(COUNT('Shareholding Pattern'!S77),('Shareholding Pattern'!S77),\"\"),\"\")","v":""},{"$f":"+IFERROR(IF(COUNT('Shareholding Pattern'!T77),('Shareholding Pattern'!T77),\"\"),\"\")","v":""},null,{"$f":"+IFERROR(IF(COUNT('Shareholding Pattern'!V77),('Shareholding Pattern'!V77),\"\"),\"\")","v":""},{"$f":"+IFERROR(IF(COUNT('Shareholding Pattern'!W77),('Shareholding Pattern'!W77),\"\"),\"\")","v":""},null,null,{"$f":"+IFERROR(IF(COUNT('Shareholding Pattern'!Z77),('Shareholding Pattern'!Z77),\"\"),\"\")","v":""}]
[{"$nulls":4},"(C1)","Shares underlying DRs",{"$f":"+IFERROR(IF(COUNT('Shareholding Pattern'!H75),('Shareholding Pattern'!H75),\"\"),\"\")","v":""},{"$f":"+IFERROR(IF(COUNT('Shareholding Pattern'!I75),('Shareholding Pattern'!I75),\"\"),\"\")","v":""},{"$f":"+IFERROR(IF(COUNT('Shareholding Pattern'!J75),('Shareholding Pattern'!J75),\"\"),\"\")","v":""},{"$f":"+IFERROR(IF(COUNT('Shareholding Pattern'!K75),('Shareholding Pattern'!K75),\"\"),\"\")","v":""},{"$f":"+IFERROR(IF(COUNT('Shareholding Pattern'!L75),('Shareholding Pattern'!L75),\"\"),\"\")","v":""},null,{"$f":"+IFERROR(IF(COUNT('Shareholding Pattern'!N75),('Shareholding Pattern'!N75),\"\"),\"\")","v":""},{"$f":"+IFERROR(IF(COUNT('Shareholding Pattern'!O75),('Shareholding Pattern'!O75),\"\"),\"\")","v":""},{"$f":"+IFERROR(IF(COUNT('Shareholding Pattern'!P75),('Shareholding Pattern'!P75),\"\"),\"\")","v":""},{"$f":"+IFERROR(IF(COUNT('Shareholding Pattern'!Q75),('Shareholding Pattern'!Q75),\"\"),\"\")","v":""},{"$f":"+IFERROR(IF(COUNT('Shareholding Pattern'!R75),('Shareholding Pattern'!R75),\"\"),\"\")","v":""},{"$f":"+IFERROR(IF(COUNT('Shareholding Pattern'!S75),('Shareholding Pattern'!S75),\"\"),\"\")","v":""},{"$f":"+IFERROR(IF(COUNT('Shareholding Pattern'!T75),('Shareholding Pattern'!T75),\"\"),\"\")","v":""},null,{"$f":"+IFERROR(IF(COUNT('Shareholding Pattern'!V75),('Shareholding Pattern'!V75),\"\"),\"\")","v":""},{"$f":"+IFERROR(IF(COUNT('Shareholding Pattern'!W75),('Shareholding Pattern'!W75),\"\"),\"\")","v":""},null,null,{"$f":"+IFERROR(IF(COUNT('Shareholding Pattern'!Z75),('Shareholding Pattern'!Z75),\"\"),\"\")","v":""}]
[{"$nulls":4},"(C2)","Shares held by Employee Trusts",{"$f":"+IFERROR(IF(COUNT('Shareholding Pattern'!H76),('Shareholding Pattern'!H76),\"\"),\"\")","v":""},{"$f":"+IFERROR(IF(COUNT('Shareholding Pattern'!I76),('Shareholding Pattern'!I76),\"\"),\"\")","v":""},{"$f":"+IFERROR(IF(COUNT('Shareholding Pattern'!J76),('Shareholding Pattern'!J76),\"\"),\"\")","v":""},{"$f":"+IFERROR(IF(COUNT('Shareholding Pattern'!K76),('Shareholding Pattern'!K76),\"\"),\"\")","v":""},{"$f":"+IFERROR(IF(COUNT('Shareholding Pattern'!L76),('Shareholding Pattern'!L76),\"\"),\"\")","v":""},{"$f":"+IFERROR(IF(COUNT('Shareholding Pattern'!M76),('Shareholding Pattern'!M76),\"\"),\"\")","v":""},{"$f":"+IFERROR(IF(COUNT('Shareholding Pattern'!N76),('Shareholding Pattern'!N76),\"\"),\"\")","v":""},{"$f":"+IFERROR(IF(COUNT('Shareholding Pattern'!O76),('Shareholding Pattern'!O76),\"\"),\"\")","v":""},{"$f":"+IFERROR(IF(COUNT('Shareholding Pattern'!P76),('Shareholding Pattern'!P76),\"\"),\"\")","v":""},{"$f":"+IFERROR(IF(COUNT('Shareholding Pattern'!Q76),('Shareholding Pattern'!Q76),\"\"),\"\")","v":""},{"$f":"+IFERROR(IF(COUNT('Shareholding Pattern'!R76),('Shareholding Pattern'!R76),\"\"),\"\")","v":""},{"$f":"+IFERROR(IF(COUNT('Shareholding Pattern'!S76),('Shareholding Pattern'!S76),\"\"),\"\")","v":""},{"$f":"+IFERROR(IF(COUNT('Shareholding Pattern'!T76),('Shareholding Pattern'!T76),\"\"),\"\")","v":""},{"$f":"+IFERROR(IF(COUNT('Shareholding Pattern'!U76),('Shareholding Pattern'!U76),\"\"),\"\")","v":""},{"$f":"+IFERROR(IF(COUNT('Shareholding Pattern'!V76),('Shareholding Pattern'!V76),\"\"),\"\")","v":""},{"$f":"+IFERROR(IF(COUNT('Shareholding Pattern'!W76),('Shareholding Pattern'!W76),\"\"),\"\")","v":""},null,null,{"$f":"+IFERROR(IF(COUNT('Shareholding Pattern'!Z76),('Shareholding Pattern'!Z76),\"\"),\"\")","v":""}]
[{"$nulls":5},"Total",{"$f":"+IFERROR(IF(COUNT('Shareholding Pattern'!H79),('Shareholding Pattern'!H79),\"\"),\"\")","v":1349},{"$f":"+IFERROR(IF(COUNT('Shareholding Pattern'!I79),('Shareholding Pattern'!I79),\"\"),\"\")","v":5220000},{"$f":"+IFERROR(IF(COUNT('Shareholding Pattern'!J79),('Shareholding Pattern'!J79),\"\"),\"\")","v":""},{"$f":"+IFERROR(IF(COUNT('Shareholding Pattern'!K79),('Shareholding Pattern'!K79),\"\"),\"\")","v":""},{"$f":"+IFERROR(IF(COUNT('Shareholding Pattern'!L79),('Shareholding Pattern'!L79),\"\"),\"\")","v":5220000},{"$f":"+IFERROR(IF(COUNT('Shareholding Pattern'!M79),('Shareholding Pattern'!M79),\"\"),\"\")","v":100},{"$f":"+IFERROR(IF(COUNT('Shareholding Pattern'!N79),('Shareholding Pattern'!N79),\"\"),\"\")","v":{"v":5220000,"d":"5220000.00"}},{"$f":"+IFERROR(IF(COUNT('Shareholding Pattern'!O79),('Shareholding Pattern'!O79),\"\"),\"\")","v":""},{"$f":"+IFERROR(IF(COUNT('Shareholding Pattern'!P79),('Shareholding Pattern'!P79),\"\"),\"\")","v":{"v":5220000,"d":"5220000.00"}},{"$f":"+IFERROR(IF(COUNT('Shareholding Pattern'!Q79),('Shareholding Pattern'!Q79),\"\"),\"\")","v":{"v":100,"d":"100.00"}},{"$f":"+IFERROR(IF(COUNT('Shareholding Pattern'!R79),('Shareholding Pattern'!R79),\"\"),\"\")","v":""},{"$f":"+IFERROR(IF(COUNT('Shareholding Pattern'!S79),('Shareholding Pattern'!S79),\"\"),\"\")","v":""},{"$f":"+IFERROR(IF(COUNT('Shareholding Pattern'!T79),('Shareholding Pattern'!T79),\"\"),\"\")","v":""},{"$f":"+IFERROR(IF(COUNT('Shareholding Pattern'!U79),('Shareholding Pattern'!U79),\"\"),\"\")","v":100},{"$f":"+IFERROR(IF(COUNT('Shareholding Pattern'!V79),('Shareholding Pattern'!V79),\"\"),\"\")","v":""},{"$f":"+IFERROR(IF(COUNT('Shareholding Pattern'!W79),('Shareholding Pattern'!W79),\"\"),\"\")","v":""},{"$f":"+IFERROR(IF(COUNT('Shareholding Pattern'!X79),('Shareholding Pattern'!X79),\"\"),\"\")","v":""},{"$f":"+IFERROR(IF(COUNT('Shareholding Pattern'!Y79),('Shareholding Pattern'!Y79),\"\"),\"\")","v":""},{"$f":"+IFERROR(IF(COUNT('Shareholding Pattern'!Z79),('Shareholding Pattern'!Z79),\"\"),\"\")","v":5032727},{"$f":"+IFERROR(IF(COUNT('Shareholding Pattern'!AA79),('Shareholding Pattern'!AA79),\"\"),\"\")","v":0},{"$f":"+IFERROR(IF(COUNT('Shareholding Pattern'!AB79),('Shareholding Pattern'!AB79),\"\"),\"\")","v":0},{"$f":"+IFERROR(IF(COUNT('Shareholding Pattern'!AC79),('Shareholding Pattern'!AC79),\"\"),\"\")","v":0}]

{"sheet":"Shareholding Pattern","index":4,"n_rows":83,"n_cols":58,"rows_kept":83,"merged":[[8,4,10,4],[8,5,10,6],[8,7,10,7],[8,8,10,8],[8,9,10,9],[8,10,10,10],[8,11,10,11],[8,12,10,12],[8,13,8,16],[8,17,10,17],[8,18,10,18],[8,19,10,19],[8,20,10,20],[8,21,9,22],[8,23,9,24],[8,25,10,25],[8,26,8,28],[9,13,9,15],[9,16,10,16],[9,26,9,28],[11,5,11,28],[13,26,25,28],[17,4,17,6],[24,4,24,6],[25,4,25,6],[28,5,28,28],[29,23,40,24],[40,4,40,6],[41,5,41,28],[42,23,49,24],[49,4,49,6],[50,5,50,28],[51,23,70,24],[54,4,54,6],[69,4,69,6],[70,4,70,6],[73,5,73,28],[74,23,77,24],[74,26,76,28],[76,4,76,6],[77,4,77,6],[78,4,78,6],[79,4,79,12],[79,13,79,14],[79,23,79,25],[79,26,79,28],[80,4,80,12],[80,13,80,14],[80,23,80,25],[80,26,80,28],[81,4,81,12],[81,13,81,14],[81,23,81,25],[81,26,81,28],[82,4,82,12],[82,13,82,14],[82,23,82,25],[82,26,82,28]]}
[]
[{"$nulls":7},"Number of shareholders","Number of fully paid up equity shares","Number of partly paid-up equity shares","Number of shares underlying outstanding depository receipts","Total number of shares","Shareholding as a percentage of total number of shares held by promoters and public shareholders and custodians or DR holders","Number of voting rights held by same class of securities","Number of voting rights held by differential voting rights","Total Number of voting rights","Percentage of total number of voting rights","Number of shares underlying outstanding convertible securities","Number of warrant","Number of warrant and convertible securities","Total shareholding as a percentage assuming full conversion of convertible securities","Number of the locked-in-shares ","Locked-in-shares as a percentage of total number of shares","Pledged or encumbered - number of shares","Pledged or encumbered shares held as percentage of total number of shares","Number of equity shares held in dematerialized form","Number of share under sub category one","Number of share under sub category two","Number of share under sub category three"]
[]
[]
[]
[]
[]
[]
[{"$nulls":4},"Sr.","Category & Name\nof the\nShareholders\n(I)",null,"Nos. Of shareholders\n(III)","No. of fully paid up equity shares held\n(IV)","No. Of Partly paid-up equity shares held\n(V)","No. Of shares underlying Depository Receipts\n(VI)","Total nos. shares\nheld\n(VII) = (IV)+(V)+ (VI)","Shareholding as a % of total no. of shares (calculated as per SCRR, 1957)\n(VIII)\nAs a % of (A+B+C2)","Number of Voting Rights held in each class of securities\n(IX)",{"$nulls":3},"No. Of Shares Underlying Outstanding convertible securities\n(X)","No. of Shares Underlying Outstanding Warrants (Xi)","No. Of Shares Underlying Outstanding convertible securities and No. Of Warrants\n(Xi) (a)","Shareholding , as a % assuming full conversion of convertible securities ( as a percentage of diluted share capital)\n(XI)= (VII)+(X)\nAs a % of (A+B+C2)","Number of Locked in shares\n(XII)",null,"Number of Shares pledged or otherwise encumbered\n(XIII)",null,"Number of equity shares held in dematerialized form \n(XIV)","Sub-categorization of shares"]
[{"$nulls":13},"No of Voting (XIV)\nRights",null,null,"Total as\na % of\nTotal\nVoting\nrights",{"$nulls":9},"Shareholding (No. of shares) under"]
[{"$nulls":13},"Class\neg:\nX","Class\neg:y","Total",{"$nulls":5},"No.\n(a)","As a % of total Shares held\n(b)","No.\n(a)","As a % of total Shares held\n(b)",null,"Sub-category (i)","Sub-category (ii)","Sub-category (iii)"]
[{"$nulls":4},"A","Table II - Statement showing shareholding pattern of the Promoter and Promoter Group"]
[{"$nulls":4},"(1)","Indian"]
[{"$nulls":4},"(a)","Individuals/Hindu undivided Family",null,{"$f":"IFERROR(IF(COUNT(IndHUF!$AD$13),IF(IndHUF!$AD$13=0,\"0\",IndHUF!$AD$13),\"\"),\"\")","v":6},{"$f":"+IF(COUNT(IndHUF!H22),IndHUF!H22,\"\")","v":3913923},{"$f":"+IF(COUNT(IndHUF!I22),IndHUF!I22,\"\")","v":""},{"$f":"+IF(COUNT(IndHUF!J22),IndHUF!J22,\"\")","v":""},{"$f":"+IF(COUNT(IndHUF!K22),IndHUF!K22,\"\")","v":3913923},{"$f":"+IFERROR(IF(COUNT(L14),ROUND(L14/'Shareholding Pattern'!$L$78*100,2),\"\"),0)","v":74.98},{"$f":"+IF(COUNT(+IndHUF!M22),SUM(+IndHUF!M22),\"\")","v":{"v":3913923,"d":"3913923.00"}},{"$f":"+IF(COUNT(+IndHUF!N22),SUM(+IndHUF!N22),\"\")","v":""},{"$f":"+IF(COUNT(IndHUF!O22),IndHUF!O22,\"\")","v":3913923},{"$f":"+IF(COUNT(IndHUF!P22),IndHUF!P22,\"\")","v":74.98},{"$f":"+IF(COUNT(IndHUF!Q22),IndHUF!Q22,\"\")","v":""},{"$f":"+IF(COUNT(IndHUF!R22),IndHUF!R22,\"\")","v":""},{"$f":"+IF(COUNT(IndHUF!S22),IndHUF!S22,\"\")","v":""},{"$f":"+IFERROR(IF(COUNT(L14,T14),ROUND(SUM(L14,T14)/SUM('Shareholding Pattern'!$L$78,'Shareholding Pattern'!$T$78)*100,2),\"\"),0)","v":74.98},{"$f":"+IF(COUNT(IndHUF!U22),IndHUF!U22,\"\")","v":""},{"$f":"+IFERROR(IF(COUNT(V14),ROUND(SUM(V14)/SUM(L14)*100,2),\"\"),0)","v":""},{"$f":"+IF(COUNT(IndHUF!W22),IndHUF!W22,\"\")","v":""},{"$f":"+IFERROR(IF(COUNT(X14),ROUND(SUM(X14)/SUM(L14)*100,2),\"\"),0)","v":""},{"$f":"+IF(COUNT(IndHUF!Y22),IndHUF!Y22,\"\")","v":3913923},{"$nulls":7},"IndHUF",{"$nulls":9},"Individuals or Hindu undivided family [Member]",{"$nulls":5},"IndHUF",null,"IndividualsOrHUFDomain",{"$nulls":5},"DetailsSharesHeldByIndividualsOrHUFAxis"]
[{"$nulls":4},"(b)","Central  Government/ State Government(s)",null,{"$f":"IFERROR(IF(COUNT(CGAndSG!$AD$13),IF(CGAndSG!$AD$13=0,\"0\",CGAndSG!$AD$13),\"\"),\"\")","v":""},{"$f":"IFERROR(IF(COUNT(CGAndSG!H16),(CGAndSG!H16),\"\"),\"\")","v":""},{"$f":"IFERROR(IF(COUNT(CGAndSG!I16),(CGAndSG!I16),\"\"),\"\")","v":""},{"$f":"IFERROR(IF(COUNT(CGAndSG!J16),(CGAndSG!J16),\"\"),\"\")","v":""},{"$f":"IFERROR(IF(COUNT(CGAndSG!K16),(CGAndSG!K16),\"\"),\"\")","v":""},{"$f":"+IFERROR(IF(COUNT(L15),ROUND(L15/'Shareholding Pattern'!$L$78*100,2),\"\"),0)","v":""},{"$f":"IFERROR(IF(COUNT(CGAndSG!M16),(CGAndSG!M16),\"\"),\"\")","v":""},{"$f":"IFERROR(IF(COUNT(CGAndSG!N16),(CGAndSG!N16),\"\"),\"\")","v":""},{"$f":"IFERROR(IF(COUNT(CGAndSG!O16),(CGAndSG!O16),\"\"),\"\")","v":""},{"$f":"IFERROR(IF(COUNT(CGAndSG!P16),(CGAndSG!P16),\"\"),0)","v":""},{"$f":"IFERROR(IF(COUNT(CGAndSG!Q16),(CGAndSG!Q16),\"\"),\"\")","v":""},{"$f":"IFERROR(IF(COUNT(CGAndSG!R16),(CGAndSG!R16),\"\"),\"\")","v":""},{"$f":"IFERROR(IF(COUNT(CGAndSG!S16),(CGAndSG!S16),\"\"),\"\")","v":""},{"$f":"+IFERROR(IF(COUNT(L15,T15),ROUND(SUM(L15,T15)/SUM('Shareholding Pattern'!$L$78,'Shareholding Pattern'!$T$78)*100,2),\"\"),0)","v":""},{"$f":"IFERROR(IF(COUNT(CGAndSG!U16),(CGAndSG!U16),\"\"),\"\")","v":""},{"$f":"+IFERROR(IF(COUNT(V15),ROUND(SUM(V15)/SUM(L15)*100,2),\"\"),0)","v":""},{"$f":"IFERROR(IF(COUNT(CGAndSG!W16),(CGAndSG!W16),\"\"),\"\")","v":""},{"$f":"+IFERROR(IF(COUNT(X15),ROUND(SUM(X15)/SUM(L15)*100,2),\"\"),0)","v":""},{"$f":"IFERROR(IF(COUNT(CGAndSG!Y16),(CGAndSG!Y16),\"\"),\"\")","v":""},{"$nulls":7},"CGAndSG",{"$nulls":9},"Central government or State government(s) [Member]",{"$nulls":5},"CGAndSG",null,"CentralGovernmentOrStateGovernmentsDomain",{"$nulls":5},"DetailsOfSharesHeldByCentralGovernmentOrStateGovernmentsAxis"]
[{"$nulls":4},"(c)","Financial  Institutions/ Banks",null,{"$f":"IFERROR(IF(COUNT(Banks!$AD$13),IF(Banks!$AD$13=0,\"0\",Banks!$AD$13),\"\"),\"\")","v":""},{"$f":"IFERROR(IF(COUNT(Banks!H16),(Banks!H16),\"\"),\"\")","v":""},{"$f":"IFERROR(IF(COUNT(Banks!I16),(Banks!I16),\"\"),\"\")","v":""},{"$f":"IFERROR(IF(COUNT(Banks!J16),(Banks!J16),\"\"),\"\")","v":""},{"$f":"IFERROR(IF(COUNT(Banks!K16),(Banks!K16),\"\"),\"\")","v":""},{"$f":"+IFERROR(IF(COUNT(L16),ROUND(L16/'Shareholding Pattern'!$L$78*100,2),\"\"),0)","v":""},{"$f":"IFERROR(IF(COUNT(Banks!M16),(Banks!M16),\"\"),\"\")","v":""},{"$f":"IFERROR(IF(COUNT(Banks!N16),(Banks!N16),\"\"),\"\")","v":""},{"$f":"IFERROR(IF(COUNT(Banks!O16),(Banks!O16),\"\"),\"\")","v":""},{"$f":"IFERROR(IF(COUNT(Banks!P16),(Banks!P16),\"\"),0)","v":""},{"$f":"IFERROR(IF(COUNT(Banks!Q16),(Banks!Q16),\"\"),\"\")","v":""},{"$f":"IFERROR(IF(COUNT(Banks!R16),(Banks!R16),\"\"),\"\")","v":""},{"$f":"IFERROR(IF(COUNT(Banks!S16),(Banks!S16),\"\"),\"\")","v":""},{"$f":"+IFERROR(IF(COUNT(L16,T16),ROUND(SUM(L16,T16)/SUM('Shareholding Pattern'!$L$78,'Shareholding Pattern'!$T$78)*100,2),\"\"),0)","v":""},{"$f":"IFERROR(IF(COUNT(Banks!U16),(Banks!U16),\"\"),\"\")","v":""},"",{"$f":"IFERROR(IF(COUNT(Banks!W16),(Banks!W16),\"\"),\"\")","v":""},"",{"$f":"IFERROR(IF(COUNT(Banks!Y16),(Banks!Y16),\"\"),\"\")","v":""},{"$nulls":7},"Banks",{"$nulls":9},"Indian - financial institutions or banks [Member]",{"$nulls":5},"Banks",null,"IndianFinancialInstitutionsOrBanksDomain",{"$nulls":5},"DetailsOfSharesHeldByIndianFinancialInstitutionsOrBanksAxis"]
[{"$nulls":4},"(d)","Any Other (specify)",null,{"$f":"IFERROR(IF(COUNT(OtherIND!$AG$13),IF(OtherIND!$AG$13=0,\"0\",OtherIND!$AG$13),\"\"),\"\")","v":""},{"$f":"IFERROR(IF(COUNT(OtherIND!J16),(OtherIND!J16),\"\"),\"\")","v":""},{"$f":"IFERROR(IF(COUNT(OtherIND!K16),(OtherIND!K16),\"\"),\"\")","v":""},{"$f":"IFERROR(IF(COUNT(OtherIND!L16),(OtherIND!L16),\"\"),\"\")","v":""},{"$f":"IFERROR(IF(COUNT(OtherIND!M16),(OtherIND!M16),\"\"),\"\")","v":""},{"$f":"+IFERROR(IF(COUNT(L17),ROUND(L17/'Shareholding Pattern'!$L$78*100,2),\"\"),0)","v":""},{"$f":"IFERROR(IF(COUNT(OtherIND!O16),(OtherIND!O16),\"\"),\"\")","v":""},{"$f":"IFERROR(IF(COUNT(OtherIND!P16),(OtherIND!P16),\"\"),\"\")","v":""},{"$f":"IFERROR(IF(COUNT(OtherIND!Q16),(OtherIND!Q16),\"\"),\"\")","v":""},{"$f":"IFERROR(IF(COUNT(OtherIND!R16),(OtherIND!R16),\"\"),0)","v":""},{"$f":"IFERROR(IF(COUNT(OtherIND!S16),(OtherIND!S16),\"\"),\"\")","v":""},{"$f":"IFERROR(IF(COUNT(OtherIND!T16),(OtherIND!T16),\"\"),\"\")","v":""},{"$f":"IFERROR(IF(COUNT(OtherIND!U16),(OtherIND!U16),\"\"),\"\")","v":""},{"$f":"+IFERROR(IF(COUNT(L17,T17),ROUND(SUM(L17,T17)/SUM('Shareholding Pattern'!$L$78,'Shareholding Pattern'!$T$78)*100,2),\"\"),0)","v":""},{"$f":"IFERROR(IF(COUNT(OtherIND!W16),(OtherIND!W16),\"\"),\"\")","v":""},"",{"$f":"IFERROR(IF(COUNT(OtherIND!Y16),(OtherIND!Y16),\"\"),\"\")","v":""},"",{"$f":"IFERROR(IF(COUNT(OtherIND!AA16),(OtherIND!AA16),\"\"),\"\")","v":""},{"$nulls":7},"OtherIND",{"$nulls":9},"Other Indian shareholders [Member]",{"$nulls":5},"OtherIND",null,"OthersIndianShareholdersDomain",{"$nulls":5},"DetailsOfSharesHeldByOthersIndianShareholdersAxis"]
[{"$nulls":4},"Sub-Total (A)(1)",null,null,{"$f":"+IFERROR(IF(COUNT(H14:H17),ROUND(SUM(H14:H17),0),\"\"),\"\")","v":6},{"$f":"+IFERROR(IF(COUNT(I14:I17),ROUND(SUM(I14:I17),0),\"\"),\"\")","v":3913923},"","",3913923,{"$f":"+IFERROR(IF(COUNT(L18),ROUND(L18/'Shareholding Pattern'!$L$78*100,2),\"\"),0)","v":74.98},{"v":3913923,"d":"3913923.00"},"",3913923,{"$f":"IFERROR(IF(COUNT(P18),ROUND(P18/$P$79*100,2),\"\"),0)","v":74.98},"","","",{"$f":"+IFERROR(IF(COUNT(L18,T18),ROUND(SUM(L18,T18)/SUM('Shareholding Pattern'!$L$78,'Shareholding Pattern'!$T$78)*100,2),\"\"),0)","v":74.98},"",{"$f":"+IFERROR(IF(COUNT(V18),ROUND(SUM(V18)/SUM(L18)*100,2),\"\"),0)","v":""},"",{"$f":"+IFERROR(IF(COUNT(X18),ROUND(SUM(X18)/SUM(L18)*100,2),\"\"),0)","v":""},3913923,{"$nulls":17},"Indian [Member]",{"$nulls":5},"Individuals",null,"NonResidentIndividualsOrForeignIndividualsDomain",{"$nulls":5},"DetailsOfSharesHeldByNonResidentIndividualsOrForeignIndividualsAxis"]
[{"$nulls":4},"(2)","Foreign",{"$nulls":43},"Government",null,"ForeignGovernmentDomain",{"$nulls":5},"DetailsOfSharesHeldByForeignGovernmentAxis"]
[{"$nulls":4},"(a)","Individuals (NonResident Individuals/ Foreign Individuals)",null,{"$f":"IFERROR(IF(COUNT(Individuals!$AD$13),IF(Individuals!$AD$13=0,\"0\",Individuals!$AD$13),\"\"),\"\")","v":""},{"$f":"IFERROR(IF(COUNT(Individuals!H16),(Individuals!H16),\"\"),\"\")","v":""},{"$f":"IFERROR(IF(COUNT(Individuals!I16),(Individuals!I16),\"\"),\"\")","v":""},{"$f":"IFERROR(IF(COUNT(Individuals!J16),(Individuals!J16),\"\"),\"\")","v":""},{"$f":"IFERROR(IF(COUNT(Individuals!K16),(Individuals!K16),\"\"),\"\")","v":""},{"$f":"+IFERROR(IF(COUNT(L20),ROUND(L20/'Shareholding Pattern'!$L$78*100,2),\"\"),0)","v":""},{"$f":"IFERROR(IF(COUNT(Individuals!M16),(Individuals!M16),\"\"),\"\")","v":""},{"$f":"IFERROR(IF(COUNT(Individuals!N16),(Individuals!N16),\"\"),\"\")","v":""},{"$f":"IFERROR(IF(COUNT(Individuals!O16),(Individuals!O16),\"\"),\"\")","v":""},{"$f":"IFERROR(IF(COUNT(Individuals!P16),(Individuals!P16),\"\"),0)","v":""},{"$f":"IFERROR(IF(COUNT(Individuals!Q16),(Individuals!Q16),\"\"),\"\")","v":""},{"$f":"IFERROR(IF(COUNT(Individuals!R16),(Individuals!R16),\"\"),\"\")","v":""},{"$f":"IFERROR(IF(COUNT(Individuals!S16),(Individuals!S16),\"\"),\"\")","v":""},{"$f":"+IFERROR(IF(COUNT(L20,T20),ROUND(SUM(L20,T20)/SUM('Shareholding Pattern'!$L$78,'Shareholding Pattern'!$T$78)*100,2),\"\"),0)","v":""},{"$f":"IFERROR(IF(COUNT(Individuals!U16),(Individuals!U16),\"\"),\"\")","v":""},{"$f":"+IFERROR(IF(COUNT(V20),ROUND(SUM(V20)/SUM(L20)*100,2),\"\"),0)","v":""},{"$f":"IFERROR(IF(COUNT(Individuals!W16),(Individuals!W16),\"\"),\"\")","v":""},{"$f":"+IFERROR(IF(COUNT(X20),ROUND(SUM(X20)/SUM(L20)*100,2),\"\"),0)","v":""},{"$f":"IFERROR(IF(COUNT(Individuals!Y16),(Individuals!Y16),\"\"),\"\")","v":""},{"$nulls":7},"Individuals",{"$nulls":9},"Non-resident individuals or foreign individuals [Member]",{"$nulls":5},"Institutions",null,"ForeignInstitutionsDomain",{"$nulls":5},"DetailsOfSharesHeldByForeignInstitutionsAxis"]
[{"$nulls":4},"(b)","Government",null,{"$f":"IFERROR(IF(COUNT(Government!$AD$13),IF(Government!$AD$13=0,\"0\",Government!$AD$13),\"\"),\"\")","v":""},{"$f":"IFERROR(IF(COUNT(Government!H16),(Government!H16),\"\"),\"\")","v":""},{"$f":"IFERROR(IF(COUNT(Government!I16),(Government!I16),\"\"),\"\")","v":""},{"$f":"IFERROR(IF(COUNT(Government!J16),(Government!J16),\"\"),\"\")","v":""},{"$f":"IFERROR(IF(COUNT(Government!K16),(Government!K16),\"\"),\"\")","v":""},{"$f":"+IFERROR(IF(COUNT(L21),ROUND(L21/'Shareholding Pattern'!$L$78*100,2),\"\"),0)","v":""},{"$f":"IFERROR(IF(COUNT(Government!M16),(Government!M16),\"\"),\"\")","v":""},{"$f":"IFERROR(IF(COUNT(Government!N16),(Government!N16),\"\"),\"\")","v":""},{"$f":"IFERROR(IF(COUNT(Government!O16),(Government!O16),\"\"),\"\")","v":""},{"$f":"IFERROR(IF(COUNT(Government!P16),(Government!P16),\"\"),0)","v":""},{"$f":"IFERROR(IF(COUNT(Government!Q16),(Government!Q16),\"\"),\"\")","v":""},{"$f":"IFERROR(IF(COUNT(Government!R16),(Government!R16),\"\"),\"\")","v":""},{"$f":"IFERROR(IF(COUNT(Government!S16),(Government!S16),\"\"),\"\")","v":""},{"$f":"+IFERROR(IF(COUNT(L21,T21),ROUND(SUM(L21,T21)/SUM('Shareholding Pattern'!$L$78,'Shareholding Pattern'!$T$78)*100,2),\"\"),0)","v":""},{"$f":"IFERROR(IF(COUNT(Government!U16),(Government!U16),\"\"),\"\")","v":""},"",{"$f":"IFERROR(IF(COUNT(Government!W16),(Government!W16),\"\"),\"\")","v":""},"",{"$f":"IFERROR(IF(COUNT(Government!Y16),(Government!Y16),\"\"),\"\")","v":""},{"$nulls":7},"Government",{"$nulls":9},"Foreign - Government [Member]",{"$nulls":5},"FPIPromoter",null,"ForeignPortfolioInvestorDomain",{"$nulls":5},"DetailsOfSharesHeldByForeignPortfolioInvestorAxis"]
[{"$nulls":4},"(c)","Institutions",null,{"$f":"IFERROR(IF(COUNT(Institutions!$AD$13),IF(Institutions!$AD$13=0,\"0\",Institutions!$AD$13),\"\"),\"\")","v":""},{"$f":"IFERROR(IF(COUNT(Institutions!H16),(Institutions!H16),\"\"),\"\")","v":""},{"$f":"IFERROR(IF(COUNT(Institutions!I16),(Institutions!I16),\"\"),\"\")","v":""},{"$f":"IFERROR(IF(COUNT(Institutions!J16),(Institutions!J16),\"\"),\"\")","v":""},{"$f":"IFERROR(IF(COUNT(Institutions!K16),(Institutions!K16),\"\"),\"\")","v":""},{"$f":"+IFERROR(IF(COUNT(L22),ROUND(L22/'Shareholding Pattern'!$L$78*100,2),\"\"),0)","v":""},{"$f":"IFERROR(IF(COUNT(Institutions!M16),(Institutions!M16),\"\"),\"\")","v":""},{"$f":"IFERROR(IF(COUNT(Institutions!N16),(Institutions!N16),\"\"),\"\")","v":""},{"$f":"IFERROR(IF(COUNT(Institutions!O16),(Institutions!O16),\"\"),\"\")","v":""},{"$f":"IFERROR(IF(COUNT(Institutions!P16),(Institutions!P16),\"\"),0)","v":""},{"$f":"IFERROR(IF(COUNT(Institutions!Q16),(Institutions!Q16),\"\"),\"\")","v":""},{"$f":"IFERROR(IF(COUNT(Institutions!R16),(Institutions!R16),\"\"),\"\")","v":""},{"$f":"IFERROR(IF(COUNT(Institutions!S16),(Institutions!S16),\"\"),\"\")","v":""},{"$f":"+IFERROR(IF(COUNT(L22,T22),ROUND(SUM(L22,T22)/SUM('Shareholding Pattern'!$L$78,'Shareholding Pattern'!$T$78)*100,2),\"\"),0)","v":""},{"$f":"IFERROR(IF(COUNT(Institutions!U16),(Institutions!U16),\"\"),\"\")","v":""},"",{"$f":"IFERROR(IF(COUNT(Institutions!W16),(Institutions!W16),\"\"),\"\")","v":""},"",{"$f":"IFERROR(IF(COUNT(Institutions!Y16),(Institutions!Y16),\"\"),\"\")","v":""},{"$nulls":7},"Institutions",{"$nulls":9},"Foreign - institutions [Member]",{"$nulls":5},"OtherForeign",null,"OtherForeignShareholdersDomain",{"$nulls":5},"DetailsOfSharesHeldByOtherForeignShareholdersAxis"]
[{"$nulls":4},"(d)","Foreign Portfolio Investor",null,{"$f":"IFERROR(IF(COUNT(FPIPromoter!$AD$13),IF(FPIPromoter!$AD$13=0,\"0\",FPIPromoter!$AD$13),\"\"),\"\")","v":""},{"$f":"IFERROR(IF(COUNT(FPIPromoter!H16),(FPIPromoter!H16),\"\"),\"\")","v":""},{"$f":"IFERROR(IF(COUNT(FPIPromoter!I16),(FPIPromoter!I16),\"\"),\"\")","v":""},{"$f":"IFERROR(IF(COUNT(FPIPromoter!J16),(FPIPromoter!J16),\"\"),\"\")","v":""},{"$f":"IFERROR(IF(COUNT(FPIPromoter!K16),(FPIPromoter!K16),\"\"),\"\")","v":""},{"$f":"+IFERROR(IF(COUNT(L23),ROUND(L23/'Shareholding Pattern'!$L$78*100,2),\"\"),0)","v":""},{"$f":"IFERROR(IF(COUNT(FPIPromoter!M16),(FPIPromoter!M16),\"\"),\"\")","v":""},{"$f":"IFERROR(IF(COUNT(FPIPromoter!N16),(FPIPromoter!N16),\"\"),\"\")","v":""},{"$f":"IFERROR(IF(COUNT(FPIPromoter!O16),(FPIPromoter!O16),\"\"),\"\")","v":""},{"$f":"IFERROR(IF(COUNT(FPIPromoter!P16),(FPIPromoter!P16),\"\"),0)","v":""},{"$f":"IFERROR(IF(COUNT(FPIPromoter!Q16),(FPIPromoter!Q16),\"\"),\"\")","v":""},{"$f":"IFERROR(IF(COUNT(FPIPromoter!R16),(FPIPromoter!R16),\"\"),\"\")","v":""},{"$f":"IFERROR(IF(COUNT(FPIPromoter!S16),(FPIPromoter!S16),\"\"),\"\")","v":""},{"$f":"+IFERROR(IF(COUNT(L23,T23),ROUND(SUM(L23,T23)/SUM('Shareholding Pattern'!$L$78,'Shareholding Pattern'!$T$78)*100,2),\"\"),0)","v":""},{"$f":"IFERROR(IF(COUNT(FPIPromoter!U16),(FPIPromoter!U16),\"\"),\"\")","v":""},"",{"$f":"IFERROR(IF(COUNT(FPIPromoter!W16),(FPIPromoter!W16),\"\"),\"\")","v":""},"",{"$f":"IFERROR(IF(COUNT(FPIPromoter!Y16),(FPIPromoter!Y16),\"\"),\"\")","v":""},{"$nulls":7},"FPIPromoter",{"$nulls":9},"Foreign portfolio investor [Member]"]
[{"$nulls":4},"(e)","Any Other (specify)",null,{"$f":"IFERROR(IF(COUNT(OtherForeign!$AG$13),IF(OtherForeign!$AG$13=0,\"0\",OtherForeign!$AG$13),\"\"),\"\")","v":""},{"$f":"IFERROR(IF(COUNT(OtherForeign!J16),(OtherForeign!J16),\"\"),\"\")","v":""},{"$f":"IFERROR(IF(COUNT(OtherForeign!K16),(OtherForeign!K16),\"\"),\"\")","v":""},{"$f":"IFERROR(IF(COUNT(OtherForeign!L16),(OtherForeign!L16),\"\"),\"\")","v":""},{"$f":"IFERROR(IF(COUNT(OtherForeign!M16),(OtherForeign!M16),\"\"),\"\")","v":""},{"$f":"+IFERROR(IF(COUNT(L24),ROUND(L24/'Shareholding Pattern'!$L$78*100,2),\"\"),0)","v":""},{"$f":"IFERROR(IF(COUNT(OtherForeign!O16),(OtherForeign!O16),\"\"),\"\")","v":""},{"$f":"IFERROR(IF(COUNT(OtherForeign!P16),(OtherForeign!P16),\"\"),\"\")","v":""},{"$f":"IFERROR(IF(COUNT(OtherForeign!Q16),(OtherForeign!Q16),\"\"),\"\")","v":""},{"$f":"IFERROR(IF(COUNT(OtherForeign!R16),(OtherForeign!R16),\"\"),0)","v":""},{"$f":"IFERROR(IF(COUNT(OtherForeign!S16),(OtherForeign!S16),\"\"),\"\")","v":""},{"$f":"IFERROR(IF(COUNT(OtherForeign!T16),(OtherForeign!T16),\"\"),\"\")","v":""},{"$f":"IFERROR(IF(COUNT(OtherForeign!U16),(OtherForeign!U16),\"\"),\"\")","v":""},{"$f":"+IFERROR(IF(COUNT(L24,T24),ROUND(SUM(L24,T24)/SUM('Shareholding Pattern'!$L$78,'Shareholding Pattern'!$T$78)*100,2),\"\"),0)","v":""},{"$f":"IFERROR(IF(COUNT(OtherForeign!W16),(OtherForeign!W16),\"\"),\"\")","v":""},"",{"$f":"IFERROR(IF(COUNT(OtherForeign!Y16),(OtherForeign!Y16),\"\"),\"\")","v":""},"",{"$f":"IFERROR(IF(COUNT(OtherForeign!AA16),(OtherForeign!AA16),\"\"),\"\")","v":""},{"$nulls":7},"OtherForeign",{"$nulls":9},"Other foreign shareholders [Member]"]
[{"$nulls":4},"Sub-Total (A)(2)",null,null,{"$f":"+IFERROR(IF(COUNT(H20:H24),ROUND(SUM(H20:H24),0),\"\"),\"\")","v":""},{"$f":"+IFERROR(IF(COUNT(I20:I24),ROUND(SUM(I20:I24),0),\"\"),\"\")","v":""},"","","",{"$f":"+IFERROR(IF(COUNT(L25),ROUND(L25/'Shareholding Pattern'!$L$78*100,2),\"\"),0)","v":""},"","","",{"$f":"IFERROR(IF(COUNT(P25),ROUND(P25/$P$79*100,2),\"\"),0)","v":""},"","","",{"$f":"+IFERROR(IF(COUNT(L25,T25),ROUND(SUM(L25,T25)/SUM('Shareholding Pattern'!$L$78,'Shareholding Pattern'!$T$78)*100,2),\"\"),0)","v":""},"","","","","",{"$nulls":17},"Foreign [Member]"]
[{"$nulls":4},"Total Shareholding of Promoter and Promoter Group (A)=(A)(1)+(A)(2) ",null,null,{"$f":"+IFERROR(IF(COUNT(H18,H25),ROUND(SUM(H18,H25),0),\"\"),\"\")","v":6},3913923,"","",3913923,{"$f":"+IFERROR(IF(COUNT(L26),ROUND(L26/'Shareholding Pattern'!$L$78*100,2),\"\"),0)","v":74.98},{"v":3913923,"d":"3913923.00"},"",3913923,{"$f":"IFERROR(IF(COUNT(P26),ROUND(P26/$P$79*100,2),\"\"),0)","v":74.98},"","","",{"$f":"+IFERROR(IF(COUNT(L26,T26),ROUND(SUM(L26,T26)/SUM('Shareholding Pattern'!$L$78,'Shareholding Pattern'!$T$78)*100,2),\"\"),0)","v":74.98},"",{"$f":"+IFERROR(IF(COUNT(V26),ROUND(SUM(V26)/SUM(L26)*100,2),\"\"),0)","v":""},"","",3913923,{"$nulls":17},"Shareholding of promoter and promoter group [Member]"]
[{"$nulls":5},"Details of Shares which remain unclaimed for Promoter & Promoter Group"]
[{"$nulls":4},"B","Table III - Statement showing shareholding pattern of the Public shareholder",null,"Note : Kindly show details of shareholders having more than one percentage of total no of shares. Please refer software manual. "]
[{"$nulls":4},"(1)","Institutions (Domestic)"]
[{"$nulls":4},"(a)","Mutual Funds",{"$nulls":5},{"$f":"+IFERROR(IF(COUNT(I30:K30),ROUND(SUM(I30:K30),0),\"\"),\"\")","v":""},{"$f":"+IFERROR(IF(COUNT(L30),ROUND(L30/'Shareholding Pattern'!$L$78*100,2),\"\"),\"\")","v":""},null,null,{"$f":"+IFERROR(IF(COUNT(N30:O30),ROUND(SUM(N30:O30),0),\"\"),\"\")","v":""},{"$f":"+IFERROR(IF(COUNT(P30),ROUND(P30/'Shareholding Pattern'!$P$79*100,2),\"\"),\"\")","v":""},null,null,{"$f":"+IFERROR(IF(COUNT(R30:S30),ROUND(SUM(R30:S30),0),\"\"),\"\")","v":""},{"$f":"+IFERROR(IF(COUNT(L30,T30),ROUND(SUM(L30,T30)/SUM('Shareholding Pattern'!$L$78,'Shareholding Pattern'!$T$78)*100,2),\"\"),\"\")","v":""},null,{"$f":"+IFERROR(IF(COUNT(V30),ROUND(SUM(V30)/SUM(L30)*100,2),\"\"),0)","v":""},{"$nulls":10},"MutuaFund",{"$nulls":9},"Mutual funds or UTI [Member]",{"$nulls":5},"MutuaFund",null,"MutualFundsOrUtiDomain",{"$nulls":5},"DetailsOfSharesHeldByMutualFundsOrUtiAxis"]
[{"$nulls":4},"(b)","Venture Capital Funds",{"$nulls":5},{"$f":"+IFERROR(IF(COUNT(I31:K31),ROUND(SUM(I31:K31),0),\"\"),\"\")","v":""},{"$f":"+IFERROR(IF(COUNT(L31),ROUND(L31/'Shareholding Pattern'!$L$78*100,2),\"\"),\"\")","v":""},null,null,{"$f":"+IFERROR(IF(COUNT(N31:O31),ROUND(SUM(N31:O31),0),\"\"),\"\")","v":""},{"$f":"+IFERROR(IF(COUNT(P31),ROUND(P31/'Shareholding Pattern'!$P$79*100,2),\"\"),\"\")","v":""},null,null,{"$f":"+IFERROR(IF(COUNT(R31:S31),ROUND(SUM(R31:S31),0),\"\"),\"\")","v":""},{"$f":"+IFERROR(IF(COUNT(L31,T31),ROUND(SUM(L31,T31)/SUM('Shareholding Pattern'!$L$78,'Shareholding Pattern'!$T$78)*100,2),\"\"),\"\")","v":""},null,"",{"$nulls":10},"VentureCap",{"$nulls":9},"Venture capital funds [Member]",{"$nulls":5},"VentureCap",null,"VentureCapitalFundsDomain",{"$nulls":5},"DetailsOfSharesHeldByVentureCapitalFundsAxis"]
[{"$nulls":4},"(c)","Alternate Investment Funds",{"$nulls":5},"",{"$f":"+IFERROR(IF(COUNT(L32),ROUND(L32/'Shareholding Pattern'!$L$78*100,2),\"\"),\"\")","v":""},null,null,"",{"$f":"+IFERROR(IF(COUNT(P32),ROUND(P32/'Shareholding Pattern'!$P$79*100,2),\"\"),\"\")","v":""},null,null,"",{"$f":"+IFERROR(IF(COUNT(L32,T32),ROUND(SUM(L32,T32)/SUM('Shareholding Pattern'!$L$78,'Shareholding Pattern'!$T$78)*100,2),\"\"),\"\")","v":""},null,"",{"$nulls":10},"AIF",{"$nulls":9},"Alternative investment funds [Member]",{"$nulls":5},"AIF",null,"AlternativeInvestmentFundsDomain",{"$nulls":5},"DetailsOfSharesHeldByAlternativeInvestmentFundsAxis"]
[{"$nulls":4},"(d)","Banks",{"$nulls":5},"",{"$f":"+IFERROR(IF(COUNT(L33),ROUND(L33/'Shareholding Pattern'!$L$78*100,2),\"\"),\"\")","v":""},null,null,"",{"$f":"+IFERROR(IF(COUNT(P33),ROUND(P33/'Shareholding Pattern'!$P$79*100,2),\"\"),\"\")","v":""},null,null,"",{"$f":"+IFERROR(IF(COUNT(L33,T33),ROUND(SUM(L33,T33)/SUM('Shareholding Pattern'!$L$78,'Shareholding Pattern'!$T$78)*100,2),\"\"),\"\")","v":""},null,"",{"$nulls":10},"Bank_Insti",{"$nulls":9},"Banks [Member]",{"$nulls":5},"Bank_Insti",null,"DetailsOfSharesHeldByBanksDomain",{"$nulls":5},"DetailsOfSharesHeldByBanksAxis"]
[{"$nulls":4},"(e)","Insurance  Companies",{"$nulls":5},"",{"$f":"+IFERROR(IF(COUNT(L34),ROUND(L34/'Shareholding Pattern'!$L$78*100,2),\"\"),\"\")","v":""},null,null,"",{"$f":"+IFERROR(IF(COUNT(P34),ROUND(P34/'Shareholding Pattern'!$P$79*100,2),\"\"),\"\")","v":""},null,null,"",{"$f":"+IFERROR(IF(COUNT(L34,T34),ROUND(SUM(L34,T34)/SUM('Shareholding Pattern'!$L$78,'Shareholding Pattern'!$T$78)*100,2),\"\"),\"\")","v":""},null,"",{"$nulls":10},"Insurance",{"$nulls":9},"Insurance Companies [Member]",{"$nulls":5},"Insurance",null,"InsuranceCompaniesDomain",{"$nulls":5},"DetailsOfSharesHeldByInsuranceCompaniesAxis"]
[{"$nulls":4},"(f)","Provident Funds/ Pension Funds",{"$nulls":5},"",{"$f":"+IFERROR(IF(COUNT(L35),ROUND(L35/'Shareholding Pattern'!$L$78*100,2),\"\"),\"\")","v":""},null,null,"",{"$f":"+IFERROR(IF(COUNT(P35),ROUND(P35/'Shareholding Pattern'!$P$79*100,2),\"\"),\"\")","v":""},null,null,"",{"$f":"+IFERROR(IF(COUNT(L35,T35),ROUND(SUM(L35,T35)/SUM('Shareholding Pattern'!$L$78,'Shareholding Pattern'!$T$78)*100,2),\"\"),\"\")","v":""},null,"",{"$nulls":10},"Pension",{"$nulls":9},"Provident Funds or pension funds [Member]",{"$nulls":5},"Pension",null,"ProvidentFundsOrPensionFundsDomain",{"$nulls":5},"DetailsOfSharesHeldByProvidentFundsOrPensionFundsAxis"]
[{"$nulls":4},"(g)","Asset reconstruction companies",{"$nulls":5},"",{"$f":"+IFERROR(IF(COUNT(L36),ROUND(L36/'Shareholding Pattern'!$L$78*100,2),\"\"),\"\")","v":""},null,null,"",{"$f":"+IFERROR(IF(COUNT(P36),ROUND(P36/'Shareholding Pattern'!$P$79*100,2),\"\"),\"\")","v":""},null,null,"",{"$f":"+IFERROR(IF(COUNT(L36,T36),ROUND(SUM(L36,T36)/SUM('Shareholding Pattern'!$L$78,'Shareholding Pattern'!$T$78)*100,2),\"\"),\"\")","v":""},null,"",{"$nulls":10},"AssetReconstruct",{"$nulls":9},"Asset reconstruction companies [Member]",{"$nulls":5},"AssetReconstruct",null,"DetailsOfSharesHeldByAssetReconstructionCompaniesDomain",{"$nulls":5},"DetailsOfSharesHeldByAssetReconstructionCompaniesAxis"]
[{"$nulls":4},"(h)","Sovereign Wealth Funds",{"$nulls":5},"",{"$f":"+IFERROR(IF(COUNT(L37),ROUND(L37/'Shareholding Pattern'!$L$78*100,2),\"\"),\"\")","v":""},null,null,"",{"$f":"+IFERROR(IF(COUNT(P37),ROUND(P37/'Shareholding Pattern'!$P$79*100,2),\"\"),\"\")","v":""},null,null,"",{"$f":"+IFERROR(IF(COUNT(L37,T37),ROUND(SUM(L37,T37)/SUM('Shareholding Pattern'!$L$78,'Shareholding Pattern'!$T$78)*100,2),\"\"),\"\")","v":""},null,"",{"$nulls":10},"Sovereign Wealth(Domestic)",{"$nulls":9},"Sovereign wealth funds domestic [Member]",{"$nulls":5},"Sovereign Wealth(Domestic)",null,"DetailsOfSharesHeldBySovereignWealthFundsDomesticDomain",{"$nulls":5},"DetailsOfSharesHeldBySovereignWealthFundsDomesticAxis"]
[{"$nulls":4},"(i)","NBFCs registered with RBI",{"$nulls":5},"",{"$f":"+IFERROR(IF(COUNT(L38),ROUND(L38/'Shareholding Pattern'!$L$78*100,2),\"\"),\"\")","v":""},null,null,"",{"$f":"+IFERROR(IF(COUNT(P38),ROUND(P38/'Shareholding Pattern'!$P$79*100,2),\"\"),\"\")","v":""},null,null,"",{"$f":"+IFERROR(IF(COUNT(L38,T38),ROUND(SUM(L38,T38)/SUM('Shareholding Pattern'!$L$78,'Shareholding Pattern'!$T$78)*100,2),\"\"),\"\")","v":""},null,"",{"$nulls":10},"NBFC",{"$nulls":9},"NBFCs registered with RBI [Member]",{"$nulls":5},"NBFC",null,"NBFCsRegisteredWithRbiDomain",{"$nulls":5},"DetailsOfSharesHeldByNBFCsRegisteredWithRbiAxis"]
[{"$nulls":4},"(j)","Other Financial Institutions",{"$nulls":5},"",{"$f":"+IFERROR(IF(COUNT(L39),ROUND(L39/'Shareholding Pattern'!$L$78*100,2),\"\"),\"\")","v":""},null,null,"",{"$f":"+IFERROR(IF(COUNT(P39),ROUND(P39/'Shareholding Pattern'!$P$79*100,2),\"\"),\"\")","v":""},null,null,"",{"$f":"+IFERROR(IF(COUNT(L39,T39),ROUND(SUM(L39,T39)/SUM('Shareholding Pattern'!$L$78,'Shareholding Pattern'!$T$78)*100,2),\"\"),\"\")","v":""},null,"",{"$nulls":10},"Other Financial Institutions",{"$nulls":9},"Other financial institutions [Member]",{"$nulls":5},"Other Financial Institutions",null,"DetailsOfSharesHeldByOtherFinancialInstitutionsDomain",{"$nulls":5},"DetailsOfSharesHeldByOtherFinancialInstitutionsAxis"]
[{"$nulls":4},"(k)","Any Other (specify)",{"$nulls":5},"",{"$f":"+IFERROR(IF(COUNT(L40),ROUND(L40/'Shareholding Pattern'!$L$78*100,2),\"\"),\"\")","v":""},null,null,"",{"$f":"+IFERROR(IF(COUNT(P40),ROUND(P40/'Shareholding Pattern'!$P$79*100,2),\"\"),\"\")","v":""},null,null,"",{"$f":"+IFERROR(IF(COUNT(L40,T40),ROUND(SUM(L40,T40)/SUM('Shareholding Pattern'!$L$78,'Shareholding Pattern'!$T$78)*100,2),\"\"),\"\")","v":""},null,"",{"$nulls":10},"Other_Insti",{"$nulls":9},"Other institutions domestic [Member]",{"$nulls":5},"Other_Insti",null,"DetailsOfSharesHeldByOtherInstitutionsDomesticDomain",{"$nulls":5},"DetailsOfSharesHeldByOtherInstitutionsDomesticAxis"]
[{"$nulls":4},"Sub-Total (B)(1)",null,null,{"$f":"+IFERROR(IF(COUNT(H30:H40),ROUND(SUM(H30:H40),0),\"\"),\"\")","v":""},{"$f":"+IFERROR(IF(COUNT(I30:I40),ROUND(SUM(I30:I40),0),\"\"),\"\")","v":""},"","",{"$f":"+IFERROR(IF(COUNT(I41:K41),ROUND(SUM(I41:K41),0),\"\"),\"\")","v":""},{"$f":"+IFERROR(IF(COUNT(L41),ROUND(L41/'Shareholding Pattern'!$L$78*100,2),\"\"),\"\")","v":""},{"$f":"+IFERROR(IF(COUNT(N30:N40),ROUND(SUM(N30:N40),0),\"\"),\"\")","v":""},{"$f":"+IFERROR(IF(COUNT(O30:O40),ROUND(SUM(O30:O40),0),\"\"),\"\")","v":""},{"$f":"+IFERROR(IF(COUNT(N41:O41),ROUND(SUM(N41:O41),0),\"\"),\"\")","v":""},{"$f":"+IFERROR(IF(COUNT(P41),ROUND(P41/'Shareholding Pattern'!$P$79*100,2),\"\"),\"\")","v":""},{"$f":"+IFERROR(IF(COUNT(R30:R40),ROUND(SUM(R30:R40),0),\"\"),\"\")","v":""},{"$f":"+IFERROR(IF(COUNT(S30:S40),ROUND(SUM(S30:S40),0),\"\"),\"\")","v":""},{"$f":"+IFERROR(IF(COUNT(R41:S41),ROUND(SUM(R41:S41),0),\"\"),\"\")","v":""},{"$f":"+IFERROR(IF(COUNT(L41,T41),ROUND(SUM(L41,T41)/SUM('Shareholding Pattern'!$L$78,'Shareholding Pattern'!$T$78)*100,2),\"\"),\"\")","v":""},{"$f":"+IFERROR(IF(COUNT(V30:V40),ROUND(SUM(V30:V40),0),\"\"),\"\")","v":""},{"$f":"+IFERROR(IF(COUNT(V41),ROUND(SUM(V41)/SUM(L41)*100,2),\"\"),0)","v":""},null,null,{"$f":"+IFERROR(IF(COUNT(Z30:Z40),ROUND(SUM(Z30:Z40),0),\"\"),\"\")","v":""},{"$f":"+IFERROR(IF(COUNT(AA30:AA40),ROUND(SUM(AA30:AA40),0),\"\"),\"\")","v":""},"","",{"$nulls":14},"Institutions domestic [Member]"]
[{"$nulls":4},"(2)","Institutions (Foreign)"]
[{"$nulls":4},"(a)","Foreign Direct Investment",{"$nulls":5},"",{"$f":"+IFERROR(IF(COUNT(L43),ROUND(L43/'Shareholding Pattern'!$L$78*100,2),\"\"),\"\")","v":""},null,null,"",{"$f":"+IFERROR(IF(COUNT(P43),ROUND(P43/'Shareholding Pattern'!$P$79*100,2),\"\"),\"\")","v":""},null,null,{"$f":"+IFERROR(IF(COUNT(R43,S43),ROUND(SUM(R43,S43),0),\"\"),\"\")","v":""},{"$f":"+IFERROR(IF(COUNT(L43,T43),ROUND(SUM(L43,T43)/SUM('Shareholding Pattern'!$L$78,'Shareholding Pattern'!$T$78)*100,2),\"\"),\"\")","v":""},null,"",{"$nulls":10},"Foreign Direct Investment",{"$nulls":9},"Foreign direct investment [Member]",{"$nulls":5},"Foreign Direct Investment",null,"DetailsOfSharesHeldByForeignDirectInvestmentDomain",{"$nulls":5},"DetailsOfSharesHeldByForeignDirectInvestmentAxis"]
[{"$nulls":4},"(b)","Foreign Venture Capital Investors",{"$nulls":5},"",{"$f":"+IFERROR(IF(COUNT(L44),ROUND(L44/'Shareholding Pattern'!$L$78*100,2),\"\"),\"\")","v":""},null,null,"",{"$f":"+IFERROR(IF(COUNT(P44),ROUND(P44/'Shareholding Pattern'!$P$79*100,2),\"\"),\"\")","v":""},null,null,{"$f":"+IFERROR(IF(COUNT(R44,S44),ROUND(SUM(R44,S44),0),\"\"),\"\")","v":""},{"$f":"+IFERROR(IF(COUNT(L44,T44),ROUND(SUM(L44,T44)/SUM('Shareholding Pattern'!$L$78,'Shareholding Pattern'!$T$78)*100,2),\"\"),\"\")","v":""},null,"",{"$nulls":10},"FVC",{"$nulls":9},"Foreign venture capital investors [Member]",{"$nulls":5},"FVC",null,"ForeignVentureCapitalInvestorsDomain",{"$nulls":5},"DetailsOfSharesHeldByForeignVentureCapitalInvestorsAxis"]
[{"$nulls":4},"(c)","Sovereign Wealth Funds",{"$nulls":5},"",{"$f":"+IFERROR(IF(COUNT(L45),ROUND(L45/'Shareholding Pattern'!$L$78*100,2),\"\"),\"\")","v":""},null,null,"",{"$f":"+IFERROR(IF(COUNT(P45),ROUND(P45/'Shareholding Pattern'!$P$79*100,2),\"\"),\"\")","v":""},null,null,"",{"$f":"+IFERROR(IF(COUNT(L45,T45),ROUND(SUM(L45,T45)/SUM('Shareholding Pattern'!$L$78,'Shareholding Pattern'!$T$78)*100,2),\"\"),\"\")","v":""},null,"",{"$nulls":10},"Sovereign Wealth(Foreign)",{"$nulls":9},"Sovereign wealth funds foreign [Member]",{"$nulls":5},"Sovereign Wealth(Foreign)",null,"DetailsOfSharesHeldBySovereignWealthFundsForeignDomain",{"$nulls":5},"DetailsOfSharesHeldBySovereignWealthFundsForeignAxis"]
[{"$nulls":4},"(d)","Foreign Portfolio Investors Category I",{"$nulls":5},"",{"$f":"+IFERROR(IF(COUNT(L46),ROUND(L46/'Shareholding Pattern'!$L$78*100,2),\"\"),\"\")","v":""},null,null,"",{"$f":"+IFERROR(IF(COUNT(P46),ROUND(P46/'Shareholding Pattern'!$P$79*100,2),\"\"),\"\")","v":""},null,null,"",{"$f":"+IFERROR(IF(COUNT(L46,T46),ROUND(SUM(L46,T46)/SUM('Shareholding Pattern'!$L$78,'Shareholding Pattern'!$T$78)*100,2),\"\"),\"\")","v":""},null,"",{"$nulls":10},"FPI_Insti",{"$nulls":9},"Institutions foreign portfolio investor catergory one [Member]",{"$nulls":5},"FPI_Insti",null,"DetailsOfSharesHeldByInstitutionsForeignPortfolioInvestorOneDomain",{"$nulls":5},"DetailsOfSharesHeldByInstitutionsForeignPortfolioInvestorOneAxis"]
[{"$nulls":4},"(e)","Foreign Portfolio Investors Category II",{"$nulls":5},"",{"$f":"+IFERROR(IF(COUNT(L47),ROUND(L47/'Shareholding Pattern'!$L$78*100,2),\"\"),\"\")","v":""},null,null,"",{"$f":"+IFERROR(IF(COUNT(P47),ROUND(P47/'Shareholding Pattern'!$P$79*100,2),\"\"),\"\")","v":""},null,null,"",{"$f":"+IFERROR(IF(COUNT(L47,T47),ROUND(SUM(L47,T47)/SUM('Shareholding Pattern'!$L$78,'Shareholding Pattern'!$T$78)*100,2),\"\"),\"\")","v":""},null,"",{"$nulls":10},"Foreign Portfolio Category II",{"$nulls":9},"Institutions foreign portfolio investor catergory two [Member]",{"$nulls":5},"Foreign Portfolio Category II",null,"DetailsOfSharesHeldByInstitutionsForeignPortfolioInvestorTwoDomain",{"$nulls":5},"DetailsOfSharesHeldByInstitutionsForeignPortfolioInvestorTwoAxis"]
[{"$nulls":4},"(f)","Overseas Depositories (holding DRs) (balancing figure)",{"$nulls":5},"",{"$f":"+IFERROR(IF(COUNT(L48),ROUND(L48/'Shareholding Pattern'!$L$78*100,2),\"\"),\"\")","v":""},null,null,"",{"$f":"+IFERROR(IF(COUNT(P48),ROUND(P48/'Shareholding Pattern'!$P$79*100,2),\"\"),\"\")","v":""},null,null,"",{"$f":"+IFERROR(IF(COUNT(L48,T48),ROUND(SUM(L48,T48)/SUM('Shareholding Pattern'!$L$78,'Shareholding Pattern'!$T$78)*100,2),\"\"),\"\")","v":""},null,"",{"$nulls":10},"OD",{"$nulls":9},"Overseas Depositories [Member]",{"$nulls":5},"OD",null,"OverseasDepositoriesDomain",{"$nulls":5},"DetailsOfSharesHeldByOverseasDepositoriesAxis"]
[{"$nulls":4},"(g)","Any Other (specify)",{"$nulls":5},{"$f":"+IFERROR(IF(COUNT(I49:K49),ROUND(SUM(I49:K49),0),\"\"),\"\")","v":""},{"$f":"+IFERROR(IF(COUNT(L49),ROUND(L49/'Shareholding Pattern'!$L$78*100,2),\"\"),\"\")","v":""},null,null,{"$f":"+IFERROR(IF(COUNT(N49:O49),ROUND(SUM(N49:O49),0),\"\"),\"\")","v":""},{"$f":"+IFERROR(IF(COUNT(P49),ROUND(P49/'Shareholding Pattern'!$P$79*100,2),\"\"),\"\")","v":""},null,null,{"$f":"+IFERROR(IF(COUNT(R49:S49),ROUND(SUM(R49:S49),0),\"\"),\"\")","v":""},{"$f":"+IFERROR(IF(COUNT(L49,T49),ROUND(SUM(L49,T49)/SUM('Shareholding Pattern'!$L$78,'Shareholding Pattern'!$T$78)*100,2),\"\"),\"\")","v":""},null,{"$f":"+IFERROR(IF(COUNT(V49),ROUND(SUM(V49)/SUM(L49)*100,2),\"\"),0)","v":""},{"$nulls":10},"Other_Insti (Foreign)",{"$nulls":9},"Other institutions foreign [Member]",{"$nulls":5},"Other_Insti (Foreign)",null,"DetailsOfSharesHeldByOtherInstitutionsForeignDomain",{"$nulls":5},"DetailsOfSharesHeldByOtherInstitutionsForeignAxis"]
[{"$nulls":4},"Sub-Total (B)(2)",null,null,{"$f":"+IFERROR(IF(COUNT(H43:H49),ROUND(SUM(H43:H49),0),\"\"),\"\")","v":""},{"$f":"+IFERROR(IF(COUNT(I43:I49),ROUND(SUM(I43:I49),0),\"\"),\"\")","v":""},"","",{"$f":"+IFERROR(IF(COUNT(I50:K50),ROUND(SUM(I50:K50),0),\"\"),\"\")","v":""},{"$f":"+IFERROR(IF(COUNT(L50),ROUND(L50/'Shareholding Pattern'!$L$78*100,2),\"\"),\"\")","v":""},{"$f":"+IFERROR(IF(COUNT(N43:N49),ROUND(SUM(N43:N49),0),\"\"),\"\")","v":""},{"$f":"+IFERROR(IF(COUNT(O43:O49),ROUND(SUM(O43:O49),0),\"\"),\"\")","v":""},{"$f":"+IFERROR(IF(COUNT(N50:O50),ROUND(SUM(N50:O50),0),\"\"),\"\")","v":""},{"$f":"+IFERROR(IF(COUNT(P50),ROUND(P50/'Shareholding Pattern'!$P$79*100,2),\"\"),\"\")","v":""},{"$f":"+IFERROR(IF(COUNT(R43:R49),ROUND(SUM(R43:R49),0),\"\"),\"\")","v":""},{"$f":"+IFERROR(IF(COUNT(S43:S49),ROUND(SUM(S43:S49),0),\"\"),\"\")","v":""},{"$f":"+IFERROR(IF(COUNT(R50:S50),ROUND(SUM(R50:S50),0),\"\"),\"\")","v":""},{"$f":"+IFERROR(IF(COUNT(L50,T50),ROUND(SUM(L50,T50)/SUM('Shareholding Pattern'!$L$78,'Shareholding Pattern'!$T$78)*100,2),\"\"),\"\")","v":""},"",{"$f":"+IFERROR(IF(COUNT(V50),ROUND(SUM(V50)/SUM(L50)*100,2),\"\"),0)","v":""},null,null,{"$f":"+IFERROR(IF(COUNT(Z43:Z49),ROUND(SUM(Z43:Z49),0),\"\"),\"\")","v":""},{"$f":"+IFERROR(IF(COUNT(AA43:AA49),ROUND(SUM(AA43:AA49),0),\"\"),\"\")","v":""},{"$f":"+IFERROR(IF(COUNT(AB43:AB49),ROUND(SUM(AB43:AB49),0),\"\"),\"\")","v":""},{"$f":"+IFERROR(IF(COUNT(AC43:AC49),ROUND(SUM(AC43:AC49),0),\"\"),\"\")","v":""},{"$nulls":14},"Institutions foreign [Member]"]
[{"$nulls":4},"(3)","Central Government / State Government(s)"]
[{"$nulls":4},"(a)","Central Government / President of India",{"$nulls":5},{"$f":"+IFERROR(IF(COUNT(I52:K52),ROUND(SUM(I52:K52),0),\"\"),\"\")","v":""},{"$f":"+IFERROR(IF(COUNT(L52),ROUND(L52/'Shareholding Pattern'!$L$78*100,2),\"\"),\"\")","v":""},null,null,{"$f":"+IFERROR(IF(COUNT(N52:O52),ROUND(SUM(N52:O52),0),\"\"),\"\")","v":""},{"$f":"+IFERROR(IF(COUNT(P52),ROUND(P52/'Shareholding Pattern'!$P$79*100,2),\"\"),\"\")","v":""},null,null,{"$f":"+IFERROR(IF(COUNT(R52:S52),ROUND(SUM(R52:S52),0),\"\"),\"\")","v":""},{"$f":"+IFERROR(IF(COUNT(L52,T52),ROUND(SUM(L52,T52)/SUM('Shareholding Pattern'!$L$78,'Shareholding Pattern'!$T$78)*100,2),\"\"),\"\")","v":""},null,{"$f":"+IFERROR(IF(COUNT(V52),ROUND(SUM(V52)/SUM(L52)*100,2),\"\"),0)","v":""},{"$nulls":10},"CG&SG&PI",{"$nulls":9},"Central government or president of india [Member]",{"$nulls":5},"CG&SG&PI",null,"DetailsOfSharesHeldByCentralGovernmentOrPresidentOfIndiaDomain",{"$nulls":5},"DetailsOfSharesHeldByCentralGovernmentOrPresidentOfIndiaAxis"]
[{"$nulls":4},"(b)","State Government / Governor",{"$nulls":5},{"$f":"+IFERROR(IF(COUNT(I53:K53),ROUND(SUM(I53:K53),0),\"\"),\"\")","v":""},{"$f":"+IFERROR(IF(COUNT(L53),ROUND(L53/'Shareholding Pattern'!$L$78*100,2),\"\"),\"\")","v":""},null,null,{"$f":"+IFERROR(IF(COUNT(N53:O53),ROUND(SUM(N53:O53),0),\"\"),\"\")","v":""},{"$f":"+IFERROR(IF(COUNT(P53),ROUND(P53/'Shareholding Pattern'!$P$79*100,2),\"\"),\"\")","v":""},null,null,{"$f":"+IFERROR(IF(COUNT(R53:S53),ROUND(SUM(R53:S53),0),\"\"),\"\")","v":""},{"$f":"+IFERROR(IF(COUNT(L53,T53),ROUND(SUM(L53,T53)/SUM('Shareholding Pattern'!$L$78,'Shareholding Pattern'!$T$78)*100,2),\"\"),\"\")","v":""},null,{"$f":"+IFERROR(IF(COUNT(V53),ROUND(SUM(V53)/SUM(L53)*100,2),\"\"),0)","v":""},{"$nulls":10},"State Government_Governor",{"$nulls":9},"State governments or governors [Member]",{"$nulls":5},"State Government_Governor",null,"DetailsOfSharesHeldByStateGovernmentsOrGovernorsDomain",{"$nulls":5},"DetailsOfSharesHeldByStateGovernmentsOrGovernorsAxis"]
[{"$nulls":4},"(c)","Shareholding by Companies or Bodies Corporate where Central / State Government is a promoter",{"$nulls":5},"",{"$f":"+IFERROR(IF(COUNT(L54),ROUND(L54/'Shareholding Pattern'!$L$78*100,2),\"\"),\"\")","v":""},null,null,"",{"$f":"+IFERROR(IF(COUNT(P54),ROUND(P54/'Shareholding Pattern'!$P$79*100,2),\"\"),\"\")","v":""},null,null,"",{"$f":"+IFERROR(IF(COUNT(L54,T54),ROUND(SUM(L54,T54)/SUM('Shareholding Pattern'!$L$78,'Shareholding Pattern'!$T$78)*100,2),\"\"),\"\")","v":""},null,"",{"$nulls":10},"Shareholding by Companies",{"$nulls":9},"Shareholding by companies or bodies corporatewhere central or state government is promoter [Member]",{"$nulls":5},"Shareholding by Companies",null,"DetailsOfSharesHeldByShareholdingByCompaniesOrBodiesCorporatewhereCentralOrStateGovernmentIsPromoterDomain",{"$nulls":5},"DetailsOfSharesHeldByShareholdingByCompaniesOrBodiesCorporatewhereCentralOrStateGovernmentIsPromoterAxis"]
[{"$nulls":4},"Sub-Total (B)(3)",null,null,{"$f":"+IFERROR(IF(COUNT(H52:H54),ROUND(SUM(H52:H54),0),\"\"),\"\")","v":""},{"$f":"+IFERROR(IF(COUNT(I52:I54),ROUND(SUM(I52:I54),0),\"\"),\"\")","v":""},"","",{"$f":"+IFERROR(IF(COUNT(I55:K55),ROUND(SUM(I55:K55),0),\"\"),\"\")","v":""},{"$f":"+IFERROR(IF(COUNT(L55),ROUND(L55/'Shareholding Pattern'!$L$78*100,2),\"\"),\"\")","v":""},"","",{"$f":"+IFERROR(IF(COUNT(N55:O55),ROUND(SUM(N55:O55),0),\"\"),\"\")","v":""},{"$f":"+IFERROR(IF(COUNT(P55),ROUND(P55/'Shareholding Pattern'!$P$79*100,2),\"\"),\"\")","v":""},{"$f":"+IFERROR(IF(COUNT(R52:R54),ROUND(SUM(R52:R54),0),\"\"),\"\")","v":""},{"$f":"+IFERROR(IF(COUNT(S52:S54),ROUND(SUM(S52:S54),0),\"\"),\"\")","v":""},{"$f":"+IFERROR(IF(COUNT(R55:S55),ROUND(SUM(R55:S55),0),\"\"),\"\")","v":""},{"$f":"+IFERROR(IF(COUNT(L55,T55),ROUND(SUM(L55,T55)/SUM('Shareholding Pattern'!$L$78,'Shareholding Pattern'!$T$78)*100,2),\"\"),\"\")","v":""},"",{"$f":"+IFERROR(IF(COUNT(V55),ROUND(SUM(V55)/SUM(L55)*100,2),\"\"),0)","v":""},null,null,{"$f":"+IFERROR(IF(COUNT(Z52:Z54),ROUND(SUM(Z52:Z54),0),\"\"),\"\")","v":""},{"$f":"+IFERROR(IF(COUNT(AA52:AA54),ROUND(SUM(AA52:AA54),0),\"\"),\"\")","v":""},{"$f":"+IFERROR(IF(COUNT(AB52:AB54),ROUND(SUM(AB52:AB54),0),\"\"),\"\")","v":""},{"$f":"+IFERROR(IF(COUNT(AC52:AC54),ROUND(SUM(AC52:AC54),0),\"\"),\"\")","v":""},{"$nulls":14},"Goverments [Member]"]
[{"$nulls":4},"(4)","Non-institutions"]
[{"$nulls":4},"(a)","Associate companies / Subsidiaries",{"$nulls":5},{"$f":"+IFERROR(IF(COUNT(I57:K57),ROUND(SUM(I57:K57),0),\"\"),\"\")","v":""},{"$f":"+IFERROR(IF(COUNT(L57),ROUND(L57/'Shareholding Pattern'!$L$78*100,2),\"\"),\"\")","v":""},null,null,{"$f":"+IFERROR(IF(COUNT(N57:O57),ROUND(SUM(N57:O57),0),\"\"),\"\")","v":""},{"$f":"+IFERROR(IF(COUNT(P57),ROUND(P57/'Shareholding Pattern'!$P$79*100,2),\"\"),\"\")","v":""},null,null,{"$f":"+IFERROR(IF(COUNT(R57:S57),ROUND(SUM(R57:S57),0),\"\"),\"\")","v":""},{"$f":"+IFERROR(IF(COUNT(L57,T57),ROUND(SUM(L57,T57)/SUM('Shareholding Pattern'!$L$78,'Shareholding Pattern'!$T$78)*100,2),\"\"),\"\")","v":""},null,{"$f":"+IFERROR(IF(COUNT(V57),ROUND(SUM(V57)/SUM(L57)*100,2),\"\"),0)","v":""},{"$nulls":10},"Associate companies_Subsidiar",{"$nulls":9},"Associate companies or subsidiaries [Member]",{"$nulls":5},"Associate companies_Subsidiar",null,"DetailsOfSharesHeldByAssociateCompaniesOrSubsidiariesDomain",{"$nulls":5},"DetailsOfSharesHeldByAssociateCompaniesOrSubsidiariesAxis"]
[{"$nulls":4},"(b)","Directors and their relatives (excluding independent directors and nominee directors)",{"$nulls":5},{"$f":"+IFERROR(IF(COUNT(I58:K58),ROUND(SUM(I58:K58),0),\"\"),\"\")","v":""},{"$f":"+IFERROR(IF(COUNT(L58),ROUND(L58/'Shareholding Pattern'!$L$78*100,2),\"\"),\"\")","v":""},null,null,"",{"$f":"+IFERROR(IF(COUNT(P58),ROUND(P58/'Shareholding Pattern'!$P$79*100,2),\"\"),\"\")","v":""},null,null,{"$f":"+IFERROR(IF(COUNT(R58:S58),ROUND(SUM(R58:S58),0),\"\"),\"\")","v":""},{"$f":"+IFERROR(IF(COUNT(L58,T58),ROUND(SUM(L58,T58)/SUM('Shareholding Pattern'!$L$78,'Shareholding Pattern'!$T$78)*100,2),\"\"),\"\")","v":""},null,"",{"$nulls":10},"Directors and their relatives",{"$nulls":9},"Directors and directors relatives [Member]",{"$nulls":5},"Directors and their relatives",null,"DetailsOfSharesHeldByDirectorsAndDirectorsRelativesDomain",{"$nulls":5},"DetailsOfSharesHeldByDirectorsAndDirectorsRelativesAxis"]
[{"$nulls":4},"(c)","Key Managerial Personnel",{"$nulls":5},"",{"$f":"+IFERROR(IF(COUNT(L59),ROUND(L59/'Shareholding Pattern'!$L$78*100,2),\"\"),\"\")","v":""},null,null,"",{"$f":"+IFERROR(IF(COUNT(P59),ROUND(P59/'Shareholding Pattern'!$P$79*100,2),\"\"),\"\")","v":""},null,null,"",{"$f":"+IFERROR(IF(COUNT(L59,T59),ROUND(SUM(L59,T59)/SUM('Shareholding Pattern'!$L$78,'Shareholding Pattern'!$T$78)*100,2),\"\"),\"\")","v":""},null,"",{"$nulls":10},"Key Managerial Personnel",{"$nulls":9},"Key managerial personnel [Member]",{"$nulls":5},"Key Managerial Personnel",null,"DetailsOfSharesHeldByKeyManagerialPersonnelDomain",{"$nulls":5},"DetailsOfSharesHeldByKeyManagerialPersonnelAxis"]
[{"$nulls":4},"(d)","Relatives of promoters (other than ‘immediate relatives’ of promoters disclosed under ‘Promoter and Promoter Group’ category)",{"$nulls":5},"",{"$f":"+IFERROR(IF(COUNT(L60),ROUND(L60/'Shareholding Pattern'!$L$78*100,2),\"\"),\"\")","v":""},null,null,"",{"$f":"+IFERROR(IF(COUNT(P60),ROUND(P60/'Shareholding Pattern'!$P$79*100,2),\"\"),\"\")","v":""},null,null,"",{"$f":"+IFERROR(IF(COUNT(L60,T60),ROUND(SUM(L60,T60)/SUM('Shareholding Pattern'!$L$78,'Shareholding Pattern'!$T$78)*100,2),\"\"),\"\")","v":""},null,"",{"$nulls":10},"Relatives of promoters",{"$nulls":9},"Relatives of promoters other than promoter group [Member]",{"$nulls":5},"Relatives of promoters",null,"DetailsOfSharesHeldByRelativesOfPromotersOtherThanPromoterGroupDomain",{"$nulls":5},"DetailsOfSharesHeldByRelativesOfPromotersOtherThanPromoterGroupAxis"]
[{"$nulls":4},"(e)","Trusts where any person belonging to 'Promoter and Promoter Group' category is 'trustee', 'beneficiary', or 'author of the trust'",{"$nulls":5},"",{"$f":"+IFERROR(IF(COUNT(L61),ROUND(L61/'Shareholding Pattern'!$L$78*100,2),\"\"),\"\")","v":""},null,null,"",{"$f":"+IFERROR(IF(COUNT(P61),ROUND(P61/'Shareholding Pattern'!$P$79*100,2),\"\"),\"\")","v":""},null,null,"",{"$f":"+IFERROR(IF(COUNT(L61,T61),ROUND(SUM(L61,T61)/SUM('Shareholding Pattern'!$L$78,'Shareholding Pattern'!$T$78)*100,2),\"\"),\"\")","v":""},null,"",{"$nulls":10},"Trusts where any person",{"$nulls":9},"Trusts where any person belonging to promoter and promoter group isis trustee or beneficiary or author of trust [Member]",{"$nulls":5},"Trusts where any person",null,"DetailsOfSharesHeldByTrustsWhereAnyPersonBelongingToPromoterAndPromoterGroupIsisTrusteeOrBeneficiaryOrAuthorOfTrustDomain",{"$nulls":5},"DetailsOfSharesHeldByTrustsWhereAnyPersonBelongingToPromoterAndPromoterGroupIsisTrusteeOrBeneficiaryOrAuthorOfTrustAxis"]
[{"$nulls":4},"(f)","Investor Education and Protection Fund (IEPF)",{"$nulls":5},"",{"$f":"+IFERROR(IF(COUNT(L62),ROUND(L62/'Shareholding Pattern'!$L$78*100,2),\"\"),\"\")","v":""},null,null,"",{"$f":"+IFERROR(IF(COUNT(P62),ROUND(P62/'Shareholding Pattern'!$P$79*100,2),\"\"),\"\")","v":""},null,null,"",{"$f":"+IFERROR(IF(COUNT(L62,T62),ROUND(SUM(L62,T62)/SUM('Shareholding Pattern'!$L$78,'Shareholding Pattern'!$T$78)*100,2),\"\"),\"\")","v":""},null,"",{"$nulls":10},"Investor Education",{"$nulls":9},"Investor education and protection fund [Member]",{"$nulls":5},"Investor Education",null,"DetailsOfSharesHeldByInvestorEducationAndProtectionFundDomain",{"$nulls":5},"DetailsOfSharesHeldByInvestorEducationAndProtectionFundAxis"]
[{"$nulls":4},"(g)","Resident Individuals holding nominal share capital up to Rs. 2 lakhs",null,1294,691990,null,null,691990,{"$f":"+IFERROR(IF(COUNT(L63),ROUND(L63/'Shareholding Pattern'!$L$78*100,2),\"\"),\"\")","v":13.26},691990,null,691990,{"$f":"+IFERROR(IF(COUNT(P63),ROUND(P63/'Shareholding Pattern'!$P$79*100,2),\"\"),\"\")","v":13.26},null,null,"",{"$f":"+IFERROR(IF(COUNT(L63,T63),ROUND(SUM(L63,T63)/SUM('Shareholding Pattern'!$L$78,'Shareholding Pattern'!$T$78)*100,2),\"\"),\"\")","v":13.26},null,"",null,null,506277,0,0,0,{"$nulls":4},"Indivisual(aI)",{"$nulls":9},"Resident individual shareholders holding nominal share capital up to rs two lakh [Member]",{"$nulls":5},"Indivisual(aI)",null,"DetailsOfSharesHeldByResidentIndividualShareholdersHoldingNominalShareCapitalUpToRsTwoLakhDomain",{"$nulls":5},"DetailsOfSharesHeldByResidentIndividualShareholdersHoldingNominalShareCapitalUpToRsTwoLakhAxis"]
[{"$nulls":4},"(h)","Resident Individuals holding nominal share capital in excess of Rs. 2 lakhs",null,5,402329,null,null,402329,{"$f":"+IFERROR(IF(COUNT(L64),ROUND(L64/'Shareholding Pattern'!$L$78*100,2),\"\"),\"\")","v":7.71},402329,null,402329,{"$f":"+IFERROR(IF(COUNT(P64),ROUND(P64/'Shareholding Pattern'!$P$79*100,2),\"\"),\"\")","v":7.71},null,null,"",{"$f":"+IFERROR(IF(COUNT(L64,T64),ROUND(SUM(L64,T64)/SUM('Shareholding Pattern'!$L$78,'Shareholding Pattern'!$T$78)*100,2),\"\"),\"\")","v":7.71},null,"",null,null,402329,0,0,0,{"$nulls":4},"Indivisual(aII)",{"$nulls":9},"Resident individual shareholders holding nominal share capital in excess of rs two lakh [Member]",{"$nulls":5},"Indivisual(aII)",null,"DetailsOfSharesHeldByResidentIndividualShareholdersHoldingNominalShareCapitalInExcessOfRsTwoLakhDomain",{"$nulls":5},"DetailsOfSharesHeldByResidentIndividualShareholdersHoldingNominalShareCapitalInExcessOfRsTwoLakhAxis"]
[{"$nulls":4},"(i)","Non Resident Indians (NRIs)",null,3,1526,null,null,1526,{"$f":"+IFERROR(IF(COUNT(L65),ROUND(L65/'Shareholding Pattern'!$L$78*100,2),\"\"),\"\")","v":0.03},1526,null,1526,{"$f":"+IFERROR(IF(COUNT(P65),ROUND(P65/'Shareholding Pattern'!$P$79*100,2),\"\"),\"\")","v":0.03},null,null,"",{"$f":"+IFERROR(IF(COUNT(L65,T65),ROUND(SUM(L65,T65)/SUM('Shareholding Pattern'!$L$78,'Shareholding Pattern'!$T$78)*100,2),\"\"),\"\")","v":0.03},null,"",null,null,1526,0,0,0,{"$nulls":4},"Non Resident Indians (NRIs)",{"$nulls":9},"Non resident indians [Member]",{"$nulls":5},"Non Resident Indians (NRIs)",null,"DetailsOfSharesHeldByNonResidentIndiansDomain",{"$nulls":5},"DetailsOfSharesHeldByNonResidentIndiansAxis"]
[{"$nulls":4},"(j)","Foreign Nationals",{"$nulls":5},"",{"$f":"+IFERROR(IF(COUNT(L66),ROUND(L66/'Shareholding Pattern'!$L$78*100,2),\"\"),\"\")","v":""},null,null,"",{"$f":"+IFERROR(IF(COUNT(P66),ROUND(P66/'Shareholding Pattern'!$P$79*100,2),\"\"),\"\")","v":""},null,null,"",{"$f":"+IFERROR(IF(COUNT(L66,T66),ROUND(SUM(L66,T66)/SUM('Shareholding Pattern'!$L$78,'Shareholding Pattern'!$T$78)*100,2),\"\"),\"\")","v":""},null,"",{"$nulls":10},"Foreign Nationals",{"$nulls":9},"Foreign nationals [Member]",{"$nulls":5},"Foreign Nationals",null,"DetailsOfSharesHeldByForeignNationalsDomain",{"$nulls":5},"DetailsOfSharesHeldByForeignNationalsAxis"]
[{"$nulls":4},"(k)","Foreign Companies",{"$nulls":5},"",{"$f":"+IFERROR(IF(COUNT(L67),ROUND(L67/'Shareholding Pattern'!$L$78*100,2),\"\"),\"\")","v":""},null,null,"",{"$f":"+IFERROR(IF(COUNT(P67),ROUND(P67/'Shareholding Pattern'!$P$79*100,2),\"\"),\"\")","v":""},null,null,"",{"$f":"+IFERROR(IF(COUNT(L67,T67),ROUND(SUM(L67,T67)/SUM('Shareholding Pattern'!$L$78,'Shareholding Pattern'!$T$78)*100,2),\"\"),\"\")","v":""},null,"",{"$nulls":10},"Foreign Companies",{"$nulls":9},"Foreign companies [Member]",{"$nulls":5},"Foreign Companies",null,"DetailsOfSharesHeldByForeignCompaniesDomain",{"$nulls":5},"DetailsOfSharesHeldByForeignCompaniesAxis"]
[{"$nulls":4},"(l)","Bodies Corporate",{"$nulls":5},"",{"$f":"+IFERROR(IF(COUNT(L68),ROUND(L68/'Shareholding Pattern'!$L$78*100,2),\"\"),\"\")","v":""},null,null,"",{"$f":"+IFERROR(IF(COUNT(P68),ROUND(P68/'Shareholding Pattern'!$P$79*100,2),\"\"),\"\")","v":""},null,null,"",{"$f":"+IFERROR(IF(COUNT(L68,T68),ROUND(SUM(L68,T68)/SUM('Shareholding Pattern'!$L$78,'Shareholding Pattern'!$T$78)*100,2),\"\"),\"\")","v":""},null,"",{"$nulls":10},"Bodies Corporate",{"$nulls":9},"Bodies corporate [Member]",{"$nulls":5},"Bodies Corporate",null,"DetailsOfSharesHeldByBodiesCorporateDomain",{"$nulls":5},"DetailsOfSharesHeldByBodiesCorporateAxis"]
[{"$nulls":4},"(m)","Any Other (specify)",null,41,210232,null,null,210232,{"$f":"+IFERROR(IF(COUNT(L69),ROUND(L69/'Shareholding Pattern'!$L$78*100,2),\"\"),\"\")","v":4.03},210232,null,210232,{"$f":"+IFERROR(IF(COUNT(P69),ROUND(P69/'Shareholding Pattern'!$P$79*100,2),\"\"),\"\")","v":4.03},null,null,"",{"$f":"+IFERROR(IF(COUNT(L69,T69),ROUND(SUM(L69,T69)/SUM('Shareholding Pattern'!$L$78,'Shareholding Pattern'!$T$78)*100,2),\"\"),\"\")","v":4.03},null,"",null,null,208672,0,0,0,{"$nulls":4},"Other_NonInsti",{"$nulls":9},"Other non-institutions [Member]",{"$nulls":5},"Other_NonInsti",null,"OtherNonInstitutionsDomain",{"$nulls":5},"DetailsOfSharesHeldByOtherNonInstitutionsAxis"]
[{"$nulls":4},"Sub-Total (B)(4)",null,null,{"$f":"+IFERROR(IF(COUNT(H57:H69),ROUND(SUM(H57:H69),0),\"\"),\"\")","v":1343},{"$f":"+IFERROR(IF(COUNT(I57:I69),ROUND(SUM(I57:I69),0),\"\"),\"\")","v":1306077},{"$f":"+IFERROR(IF(COUNT(J57:J69),ROUND(SUM(J57:J69),0),\"\"),\"\")","v":""},{"$f":"+IFERROR(IF(COUNT(K57:K69),ROUND(SUM(K57:K69),0),\"\"),\"\")","v":""},{"$f":"+IFERROR(IF(COUNT(I70:K70),ROUND(SUM(I70:K70),0),\"\"),\"\")","v":1306077},{"$f":"+IFERROR(IF(COUNT(L70),ROUND(L70/'Shareholding Pattern'!$L$78*100,2),\"\"),\"\")","v":25.02},{"$f":"+IFERROR(IF(COUNT(N57:N69),ROUND(SUM(N57:N69),0),\"\"),\"\")","v":{"v":1306077,"d":"1306077.00"}},{"$f":"+IFERROR(IF(COUNT(O57:O69),ROUND(SUM(O57:O69),0),\"\"),\"\")","v":""},{"$f":"+IFERROR(IF(COUNT(N70:O70),ROUND(SUM(N70:O70),0),\"\"),\"\")","v":1306077},{"$f":"+IFERROR(IF(COUNT(P70),ROUND(P70/'Shareholding Pattern'!$P$79*100,2),\"\"),\"\")","v":25.02},{"$f":"+IFERROR(IF(COUNT(R57:R69),ROUND(SUM(R57:R69),0),\"\"),\"\")","v":""},{"$f":"+IFERROR(IF(COUNT(S57:S69),ROUND(SUM(S57:S69),0),\"\"),\"\")","v":""},{"$f":"+IFERROR(IF(COUNT(R70:S70),ROUND(SUM(R70:S70),0),\"\"),\"\")","v":""},{"$f":"+IFERROR(IF(COUNT(L70,T70),ROUND(SUM(L70,T70)/SUM('Shareholding Pattern'!$L$78,'Shareholding Pattern'!$T$78)*100,2),\"\"),\"\")","v":25.02},{"$f":"+IFERROR(IF(COUNT(V57:V69),ROUND(SUM(V57:V69),0),\"\"),\"\")","v":""},"",null,null,{"$f":"+IFERROR(IF(COUNT(Z57:Z69),ROUND(SUM(Z57:Z69),0),\"\"),\"\")","v":1118804},{"$f":"+IFERROR(IF(COUNT(AA57:AA69),ROUND(SUM(AA57:AA69),0),\"\"),\"\")","v":0},0,0,{"$nulls":14},"Non-institutions [Member]"]
[{"$nulls":4},"Total Public Shareholding (B)=(B)(1)+(B)(2)+(B)(3)+(B)(4)",null,null,{"$f":"+IFERROR(IF(COUNT(H41,H50,H55,H70),ROUND(SUM(H41,H50,H55,H70),0),\"\"),\"\")","v":1343},{"$f":"+IFERROR(IF(COUNT(I41,I50,I55,I70),ROUND(SUM(I41,I50,I55,I70),0),\"\"),\"\")","v":1306077},"","",1306077,{"$f":"+IFERROR(IF(COUNT(L71),ROUND(L71/'Shareholding Pattern'!$L$78*100,2),\"\"),\"\")","v":25.02},{"$f":"+IFERROR(IF(COUNT(N41,N50,N55,N70),ROUND(SUM(N41,N50,N55,N70),0),\"\"),\"\")","v":1306077},{"$f":"+IFERROR(IF(COUNT(O41,O50,O55,O70),ROUND(SUM(O41,O50,O55,O70),0),\"\"),\"\")","v":""},1306077,{"$f":"+IFERROR(IF(COUNT(P71),ROUND(P71/'Shareholding Pattern'!$P$79*100,2),\"\"),\"\")","v":25.02},{"$f":"+IFERROR(IF(COUNT(R41,R50,R55,R70),ROUND(SUM(R41,R50,R55,R70),0),\"\"),\"\")","v":""},{"$f":"+IFERROR(IF(COUNT(S41,S50,S55,S70),ROUND(SUM(S41,S50,S55,S70),0),\"\"),\"\")","v":""},{"$f":"+IFERROR(IF(COUNT(R71:S71),ROUND(SUM(R71:S71),0),\"\"),\"\")","v":""},{"$f":"+IFERROR(IF(COUNT(L71,T71),ROUND(SUM(L71,T71)/SUM('Shareholding Pattern'!$L$78,'Shareholding Pattern'!$T$78)*100,2),\"\"),\"\")","v":25.02},{"$f":"+IFERROR(IF(COUNT(V41,V50,V55,V70),ROUND(SUM(V41,V50,V55,V70),0),\"\"),\"\")","v":""},"",null,null,{"$f":"+IFERROR(IF(COUNT(Z41,Z50,Z55,Z70),ROUND(SUM(Z41,Z50,Z55,Z70),0),\"\"),\"\")","v":1118804},{"$f":"+IFERROR(IF(COUNT(AA41,AA50,AA55,AA70),ROUND(SUM(AA41,AA50,AA55,AA70),0),\"\"),\"\")","v":0},{"$f":"+IFERROR(IF(COUNT(AB41,AB50,AB55,AB70),ROUND(SUM(AB41,AB50,AB55,AB70),0),\"\"),\"\")","v":0},{"$f":"+IFERROR(IF(COUNT(AC41,AC50,AC55,AC70),ROUND(SUM(AC41,AC50,AC55,AC70),0),\"\"),\"\")","v":0},{"$nulls":14},"Public shareholding [Member]"]
[{"$nulls":5},"Details of the shareholders acting as persons in Concert for Public"]
[{"$nulls":5},"Details of Shares which remain unclaimed for Public"]
[{"$nulls":4},"C","Table IV - Statement showing shareholding pattern of the Non Promoter- Non Public shareholder"]
[{"$nulls":4},"( 1 )","Custodian/DR  Holder - Name of DR Holders  (If Available)",{"$nulls":5},{"$f":"+IFERROR(IF(COUNT(I75:K75),ROUND(SUM(I75:K75),2),\"\"),\"\")","v":""},{"$nulls":3},{"$f":"+IFERROR(IF(COUNT(N75:O75),ROUND(SUM(N75:O75),2),\"\"),\"\")","v":""},{"$f":"+IFERROR(IF(COUNT(P75),ROUND(P75/'Shareholding Pattern'!$P$79*100,2),\"\"),\"\")","v":""},null,null,{"$f":"+IFERROR(IF(COUNT(R75:S75),ROUND(SUM(R75:S75),2),\"\"),\"\")","v":""},null,null,{"$f":"+IFERROR(IF(COUNT(V75),ROUND(SUM(V75)/SUM(L75)*100,2),\"\"),0)","v":""},{"$nulls":10},"DRHolder",{"$nulls":9},"Custodian or DR holder [Member]",{"$nulls":5},"DRHolder",null,"CustodianOrDRHolderDomain",{"$nulls":5},"DetailsOfSharesHeldByCustodianOrDRHolderAxis"]
[{"$nulls":4},"( 2 )","Employee Benefit Trust / Employee Welfare Trust under SEBI (Share Based Employee Benefits and Sweat Equity) Regulations, 2021",{"$nulls":5},{"$f":"+IFERROR(IF(COUNT(I76:K76),ROUND(SUM(I76:K76),2),\"\"),\"\")","v":""},{"$f":"+IFERROR(IF(COUNT(L76),ROUND(L76/'Shareholding Pattern'!$L$78*100,2),\"\"),\"\")","v":""},null,null,{"$f":"+IFERROR(IF(COUNT(N76:O76),ROUND(SUM(N76:O76),2),\"\"),\"\")","v":""},{"$f":"+IFERROR(IF(COUNT(P76),ROUND(P76/'Shareholding Pattern'!$P$79*100,2),\"\"),\"\")","v":""},null,null,{"$f":"+IFERROR(IF(COUNT(R76:S76),ROUND(SUM(R76:S76),2),\"\"),\"\")","v":""},{"$f":"+IFERROR(IF(COUNT(L76,T76),ROUND(SUM(L76,T76)/SUM('Shareholding Pattern'!$L$78,'Shareholding Pattern'!$T$78)*100,2),\"\"),\"\")","v":""},null,"",{"$nulls":10},"EBT",{"$nulls":9},"Employee benefits trusts [Member]",{"$nulls":5},"EBT",null,"EmployeeBenefitsTrustsDomain",{"$nulls":5},"DetailsOfSharesHeldByEmployeeBenefitsTrustsAxis"]
[{"$nulls":4},"Total NonPromoter- Non Public  Shareholding \n(C)= (C)(1)+(C)(2)",null,null,{"$f":"IFERROR(IF(COUNT(H75:H76),ROUND(SUM(H75:H76),0),\"\"),\"\")","v":""},{"$f":"IFERROR(IF(COUNT(I75:I76),ROUND(SUM(I75:I76),0),\"\"),\"\")","v":""},"","","",null,"","","",{"$f":"+IFERROR(IF(COUNT(P77),ROUND(P77/'Shareholding Pattern'!$P$79*100,2),\"\"),\"\")","v":""},"","","",null,"","",null,null,"",{"$nulls":17},"Shares held by non-promoter non-public shareholders [Member]"]
[{"$nulls":4},"Total ( A+B+C2 )",null,null,{"$f":"+IFERROR(IF(COUNT(H26,H71,H76),ROUND(SUM(H26,H71,H76),0),\"\"),\"\")","v":1349},{"$f":"+IFERROR(IF(COUNT(I26,I71,I76),ROUND(SUM(I26,I71,I76),0),\"\"),\"\")","v":5220000},{"$f":"+IFERROR(IF(COUNT(J26,J71,J76),ROUND(SUM(J26,J71,J76),0),\"\"),\"\")","v":""},{"$f":"+IFERROR(IF(COUNT(K26,K71,K76),ROUND(SUM(K26,K71,K76),0),\"\"),\"\")","v":""},{"$f":"+IFERROR(IF(COUNT(L26,L71,L76),ROUND(SUM(L26,L71,L76),0),\"\"),\"\")","v":5220000},{"$f":"+IFERROR(IF(COUNT(L78),ROUND(L78/'Shareholding Pattern'!$L$78*100,2),\"\"),0)","v":{"v":100,"d":"100.00"}},{"$f":"+IFERROR(IF(COUNT(N26,N71,N76),ROUND(SUM(N26,N71,N76),0),\"\"),\"\")","v":{"v":5220000,"d":"5220000.00"}},{"$f":"+IFERROR(IF(COUNT(O26,O71,O76),ROUND(SUM(O26,O71,O76),0),\"\"),\"\")","v":""},{"$f":"+IFERROR(IF(COUNT(P26,P71,P76),ROUND(SUM(P26,P71,P76),0),\"\"),\"\")","v":5220000},{"$f":"+IFERROR(IF(COUNT(P78),ROUND(P78/'Shareholding Pattern'!$P$79*100,2),\"\"),0)","v":{"v":100,"d":"100.00"}},{"$f":"+IFERROR(IF(COUNT(R26,R71,R76),ROUND(SUM(R26,R71,R76),0),\"\"),\"\")","v":""},{"$f":"+IFERROR(IF(COUNT(S26,S71,S76),ROUND(SUM(S26,S71,S76),0),\"\"),\"\")","v":""},{"$f":"+IFERROR(IF(COUNT(T26,T71,T76),ROUND(SUM(T26,T71,T76),0),\"\"),\"\")","v":""},{"$f":"+IFERROR(IF(COUNT(L78,T78),ROUND(SUM(L78,T78)/SUM('Shareholding Pattern'!$L$78,'Shareholding Pattern'!$T$78)*100,2),\"\"),0)","v":{"v":100,"d":"100.00"}},{"$f":"+IFERROR(IF(COUNT(V26,V71,V76),ROUND(SUM(V26,V71,V76),0),\"\"),\"\")","v":""},"",null,null,{"$f":"+IFERROR(IF(COUNT(Z26,Z71,Z76),ROUND(SUM(Z26,Z71,Z76),0),\"\"),\"\")","v":5032727},{"$f":"+IFERROR(IF(COUNT(AA26,AA71,AA76),ROUND(SUM(AA26,AA71,AA76),0),\"\"),\"\")","v":0},0,0]
[{"$nulls":4},"Total (A+B+C )",null,null,{"$f":"+IFERROR(IF(COUNT(H26,H71,H77),ROUND(SUM(H26,H71,H77),0),\"\"),\"\")","v":1349},{"$f":"+IFERROR(IF(COUNT(I26,I71,I77),ROUND(SUM(I26,I71,I77),0),\"\"),\"\")","v":5220000},{"$f":"+IFERROR(IF(COUNT(J26,J71,J77),ROUND(SUM(J26,J71,J77),0),\"\"),\"\")","v":""},{"$f":"+IFERROR(IF(COUNT(K26,K71,K77),ROUND(SUM(K26,K71,K77),0),\"\"),\"\")","v":""},{"$f":"+IFERROR(IF(COUNT(L26,L71,L77),ROUND(SUM(L26,L71,L77),0),\"\"),\"\")","v":5220000},{"$f":"+IFERROR(IF(COUNT(L78),ROUND(L78/'Shareholding Pattern'!$L$78*100,2),\"\"),\"\")","v":{"v":100,"d":"100.00"}},{"$f":"+IFERROR(IF(COUNT(N26,N71,N77),ROUND(SUM(N26,N71,N77),0),\"\"),\"\")","v":{"v":5220000,"d":"5220000.00"}},{"$f":"+IFERROR(IF(COUNT(O26,O71,O77),ROUND(SUM(O26,O71,O77),0),\"\"),\"\")","v":""},{"$f":"+IFERROR(IF(COUNT(P26,P71,P77),ROUND(SUM(P26,P71,P77),0),\"\"),\"\")","v":5220000},{"$f":"+IFERROR(IF(COUNT(P79),ROUND(P79/'Shareholding Pattern'!$P$79*100,2),\"\"),\"\")","v":{"v":100,"d":"100.00"}},{"$f":"+IFERROR(IF(COUNT(R26,R71,R77),ROUND(SUM(R26,R71,R77),0),\"\"),\"\")","v":""},{"$f":"+IFERROR(IF(COUNT(S26,S71,S77),ROUND(SUM(S26,S71,S77),0),\"\"),\"\")","v":""},{"$f":"+IFERROR(IF(COUNT(T26,T71,T77),ROUND(SUM(T26,T71,T77),0),\"\"),\"\")","v":""},{"$f":"+IFERROR(IF(COUNT(U26,U71,U77),ROUND(SUM(U26,U71,U77),0),\"\"),\"\")","v":{"v":100,"d":"100.00"}},{"$f":"+IFERROR(IF(COUNT(V26,V71,V77),ROUND(SUM(V26,V71,V77),0),\"\"),\"\")","v":""},"",{"$f":"+IFERROR(IF(COUNT(X26,X71,X77),ROUND(SUM(X26,X71,X77),0),\"\"),\"\")","v":""},{"$f":"+IFERROR(IF(COUNT(X79),ROUND(SUM(X79)/SUM(L79)*100,2),\"\"),0)","v":""},{"$f":"+IFERROR(IF(COUNT(Z26,Z71,Z77),ROUND(SUM(Z26,Z71,Z77),0),\"\"),\"\")","v":5032727},{"$f":"+IFERROR(IF(COUNT(AA26,AA71,AA77),ROUND(SUM(AA26,AA71,AA77),0),\"\"),\"\")","v":0},0,0,{"$nulls":14},"Shareholding pattern [Member]"]
[{"$nulls":4},"Disclosure of notes on shareholding pattern"]
[{"$nulls":4},"Disclosure of notes in case of promoter holiding in dematerialsed form is less than 100 percentage"]
[{"$nulls":4},"Disclosure of notes in case of public share holding is less than 25 percentage"]
[{"$nulls":4},"Disclosure of notes on shareholding pattern for company remarks explanatory"]

{"sheet":"IndHUF","index":5,"n_rows":22,"n_cols":45,"rows_kept":22,"hidden":true,"merged":[[8,4,10,4],[8,5,10,5],[8,6,10,6],[8,7,10,7],[8,8,10,8],[8,9,10,9],[8,10,10,10],[8,11,10,11],[8,12,8,15],[8,16,10,16],[8,17,10,17],[8,18,10,18],[8,19,10,19],[8,20,9,21],[8,22,9,23],[8,24,10,24],[8,25,10,25],[8,26,10,26],[9,12,9,14],[9,15,10,15]]}
[{"$nulls":8},6]
[{"$nulls":5},"Name of shareholder","Permanent account number of shareholder","Number of fully paid up equity shares","Number of partly paid-up equity shares","Number of shares underlying outstanding depository receipts","Total number of shares","Shareholding as a percentage of total number of shares held by promoters and public shareholders and custodians or DR holders","Number of voting rights held by same class of securities","Number of voting rights held by differential voting rights","Total Number of voting rights","Percentage of total number of voting rights","Number of shares underlying outstanding convertible securities","Number of warrant","Number of warrant and convertible securities","Total shareholding as a percentage assuming full conversion of convertible securities","Number of the locked-in-shares ","Locked-in-shares as a percentage of total number of shares","Pledged or encumbered - number of shares","Pledged or encumbered shares held as percentage of total number of shares","Number of equity shares held in dematerialized form","Reason for not providing PAN","Shareholder type",{"$nulls":16},"Promoter","Promoter Group"]
[]
[]
[]
[]
[]
[]
[{"$nulls":4},"Searial No.","Name\nof the \nShareholders\n     (I)","PAN \n(II)","No. of fully paid up equity shares held\n(IV)","No. Of Partly paid-up equity shares held\n(V)","No. Of shares underlying Depository Receipts\n(VI)","Total nos. shares\nheld\n(VII) = (IV)+(V)+ (VI)","Shareholding as a % of total no. of shares (calculated as per SCRR, 1957)\n(VIII)\nAs a % of (A+B+C2)","Number of Voting Rights held in each class of securities\n(IX)",{"$nulls":3},"No. Of Shares Underlying Outstanding convertible securities\n(X)","No. of Shares Underlying Outstanding Warrants (Xi)","No. Of Shares Underlying Outstanding convertible securities and No. Of Warrants\n(Xi) (a)","Shareholding , as a % assuming full conversion of convertible securities (as a percentage of diluted share capital)\n(XI)= (VII)+(Xi)(a)\nAs a % of (A+B+C2)","Number of Locked in shares\n(XII)",null,"Number of Shares pledged or otherwise encumbered\n(XIII)",null,"Number of equity shares held in dematerialized form \n(XIV)","Reason for not providing PAN","Shareholder type"]
[{"$nulls":12},"No of Voting (XIV) Rights",null,null,"Total as\na % of\nTotal\nVoting\nrights"]
[{"$nulls":12},"Class\neg:X","Class\neg:y","Total",{"$nulls":5},"No.\n(a)","As a % of total Shares held\n(b)","No.\n(a)","As a % of total Shares held\n(b)"]
[{"$nulls":4},"A1(a)","Individuals/Hindu undivided Family"]
[{"$nulls":10},{"$f":"+IFERROR(IF(COUNT(H13:J13),ROUND(SUM(H13:J13),0),\"\"),\"\")","v":""},{"$f":"+IFERROR(IF(COUNT(K13),ROUND(K13/'Shareholding Pattern'!$L$78*100,2),\"\"),0)","v":""},{"$f":"IF(H13=\"\",\"\",H13)","v":""},null,{"$f":"+IFERROR(IF(COUNT(M13:N13),ROUND(SUM(M13,N13),2),\"\"),\"\")","v":""},{"$f":"+IFERROR(IF(COUNT(O13),ROUND(O13/('Shareholding Pattern'!$P$79)*100,2),\"\"),0)","v":""},null,null,{"$f":"+IFERROR(IF(COUNT(Q13:R13),ROUND(SUM(Q13:R13),0),\"\"),\"\")","v":""},{"$f":"+IFERROR(IF(COUNT(K13,S13),ROUND(SUM(S13,K13)/SUM('Shareholding Pattern'!$L$78,'Shareholding Pattern'!$T$78)*100,2),\"\"),0)","v":""},null,{"$f":"+IFERROR(IF(COUNT(U13),ROUND(SUM(U13)/SUM(K13)*100,2),\"\"),0)","v":""},null,{"$f":"+IFERROR(IF(COUNT(W13),ROUND(SUM(W13)/SUM(K13)*100,2),\"\"),0)","v":""},{"$nulls":4},{"$f":"IF(SUM(H13:Y13)>0,1,0)","v":0},{"$f":"IF(COUNT(H21:$Y$15006)=0,\"\",SUM(AC1:AC65538))","v":6}]
[]
[{"$nulls":4},1,"GOVIND JIVRAJBHAI VAGHANI","AAWPV3231A",1595886,null,null,{"$f":"+IFERROR(IF(COUNT(H15:J15),ROUND(SUM(H15:J15),0),\"\"),\"\")","v":1595886},{"$f":"+IFERROR(IF(COUNT(K15),ROUND(K15/'Shareholding Pattern'!$L$78*100,2),\"\"),0)","v":30.57},{"$f":"IF(H15=\"\",\"\",H15)","v":{"v":1595886,"d":"1595886.00"}},null,{"$f":"+IFERROR(IF(COUNT(M15:N15),ROUND(SUM(M15,N15),2),\"\"),\"\")","v":{"v":1595886,"d":"1595886.00"}},{"$f":"+IFERROR(IF(COUNT(O15),ROUND(O15/('Shareholding Pattern'!$P$79)*100,2),\"\"),0)","v":30.57},null,null,{"$f":"+IFERROR(IF(COUNT(Q15:R15),ROUND(SUM(Q15:R15),0),\"\"),\"\")","v":""},{"$f":"+IFERROR(IF(COUNT(K15,S15),ROUND(SUM(S15,K15)/SUM('Shareholding Pattern'!$L$78,'Shareholding Pattern'!$T$78)*100,2),\"\"),0)","v":30.57},null,{"$f":"+IFERROR(IF(COUNT(U15),ROUND(SUM(U15)/SUM(K15)*100,2),\"\"),0)","v":""},null,{"$f":"+IFERROR(IF(COUNT(W15),ROUND(SUM(W15)/SUM(K15)*100,2),\"\"),0)","v":""},1595886,null,"Promoter",null,{"$f":"IF(SUM(H15:Y15)>0,1,0)","v":1}]
[{"$nulls":4},2,"KANTILAL MANILAL SAVLA","AADPS8593H",978760,null,null,978760,{"$f":"+IFERROR(IF(COUNT(K16),ROUND(K16/'Shareholding Pattern'!$L$78*100,2),\"\"),0)","v":18.75},{"v":978760,"d":"978760.00"},null,{"v":978760,"d":"978760.00"},{"$f":"+IFERROR(IF(COUNT(O16),ROUND(O16/('Shareholding Pattern'!$P$79)*100,2),\"\"),0)","v":18.75},null,null,"",{"$f":"+IFERROR(IF(COUNT(K16,S16),ROUND(SUM(S16,K16)/SUM('Shareholding Pattern'!$L$78,'Shareholding Pattern'!$T$78)*100,2),\"\"),0)","v":18.75},null,"",null,"",978760,null,"Promoter",null,1]
[{"$nulls":4},3,"Gunvanti Popatlal Gala","AEWPG7368B",489380,null,null,489380,{"$f":"+IFERROR(IF(COUNT(K17),ROUND(K17/'Shareholding Pattern'!$L$78*100,2),\"\"),0)","v":9.38},{"v":489380,"d":"489380.00"},null,{"v":489380,"d":"489380.00"},{"$f":"+IFERROR(IF(COUNT(O17),ROUND(O17/('Shareholding Pattern'!$P$79)*100,2),\"\"),0)","v":9.38},null,null,"",{"$f":"+IFERROR(IF(COUNT(K17,S17),ROUND(SUM(S17,K17)/SUM('Shareholding Pattern'!$L$78,'Shareholding Pattern'!$T$78)*100,2),\"\"),0)","v":9.38},null,"",null,"",489380,null,"Promoter Group",null,1]
[{"$nulls":4},4,"Kartik Popatlal Gala","AEWPG7372P",489380,null,null,489380,{"$f":"+IFERROR(IF(COUNT(K18),ROUND(K18/'Shareholding Pattern'!$L$78*100,2),\"\"),0)","v":9.38},{"v":489380,"d":"489380.00"},null,{"v":489380,"d":"489380.00"},{"$f":"+IFERROR(IF(COUNT(O18),ROUND(O18/('Shareholding Pattern'!$P$79)*100,2),\"\"),0)","v":9.38},null,null,"",{"$f":"+IFERROR(IF(COUNT(K18,S18),ROUND(SUM(S18,K18)/SUM('Shareholding Pattern'!$L$78,'Shareholding Pattern'!$T$78)*100,2),\"\"),0)","v":9.38},null,"",null,"",489380,null,"Promoter Group",null,1]
[{"$nulls":4},5,"MEET GOVIND VAGHANI","AJQPV1536K",242400,null,null,242400,{"$f":"+IFERROR(IF(COUNT(K19),ROUND(K19/'Shareholding Pattern'!$L$78*100,2),\"\"),0)","v":4.64},{"v":242400,"d":"242400.00"},null,{"v":242400,"d":"242400.00"},{"$f":"+IFERROR(IF(COUNT(O19),ROUND(O19/('Shareholding Pattern'!$P$79)*100,2),\"\"),0)","v":4.64},null,null,"",{"$f":"+IFERROR(IF(COUNT(K19,S19),ROUND(SUM(S19,K19)/SUM('Shareholding Pattern'!$L$78,'Shareholding Pattern'!$T$78)*100,2),\"\"),0)","v":4.64},null,"",null,"",242400,null,"Promoter Group",null,1]
[{"$nulls":4},6,"KIRTI GOVIND VAGHANI","ACHPV8174F",118117,null,null,118117,{"$f":"+IFERROR(IF(COUNT(K20),ROUND(K20/'Shareholding Pattern'!$L$78*100,2),\"\"),0)","v":2.26},{"v":118117,"d":"118117.00"},null,{"v":118117,"d":"118117.00"},{"$f":"+IFERROR(IF(COUNT(O20),ROUND(O20/('Shareholding Pattern'!$P$79)*100,2),\"\"),0)","v":2.26},null,null,"",{"$f":"+IFERROR(IF(COUNT(K20,S20),ROUND(SUM(S20,K20)/SUM('Shareholding Pattern'!$L$78,'Shareholding Pattern'!$T$78)*100,2),\"\"),0)","v":2.26},null,"",null,"",118117,null,"Promoter Group",null,1]
[]
[{"$nulls":5},"Click here to go back","Total",{"$f":"+IFERROR(IF(COUNT(H14:H21),ROUND(SUM(H14:H21),0),\"\"),\"\")","v":3913923},{"$f":"+IFERROR(IF(COUNT(I14:I21),ROUND(SUM(I14:I21),0),\"\"),\"\")","v":""},{"$f":"+IFERROR(IF(COUNT(J14:J21),ROUND(SUM(J14:J21),0),\"\"),\"\")","v":""},{"$f":"+IFERROR(IF(COUNT(K14:K21),ROUND(SUM(K14:K21),0),\"\"),\"\")","v":3913923},{"$f":"+IFERROR(IF(COUNT(K22),ROUND(K22/'Shareholding Pattern'!$L$78*100,2),\"\"),0)","v":74.98},{"$f":"+IFERROR(IF(COUNT(M14:M21),ROUND(SUM(M14:M21),0),\"\"),\"\")","v":{"v":3913923,"d":"3913923.00"}},{"$f":"+IFERROR(IF(COUNT(N14:N21),ROUND(SUM(N14:N21),0),\"\"),\"\")","v":""},{"$f":"+IFERROR(IF(COUNT(O14:O21),ROUND(SUM(O14:O21),0),\"\"),\"\")","v":{"v":3913923,"d":"3913923.00"}},{"$f":"+IFERROR(IF(COUNT(O22),ROUND(O22/('Shareholding Pattern'!$P$79)*100,2),\"\"),0)","v":74.98},{"$f":"+IFERROR(IF(COUNT(Q14:Q21),ROUND(SUM(Q14:Q21),0),\"\"),\"\")","v":""},{"$f":"+IFERROR(IF(COUNT(R14:R21),ROUND(SUM(R14:R21),0),\"\"),\"\")","v":""},{"$f":"+IFERROR(IF(COUNT(S14:S21),ROUND(SUM(S14:S21),0),\"\"),\"\")","v":""},{"$f":"+IFERROR(IF(COUNT(K22,S22),ROUND(SUM(S22,K22)/SUM('Shareholding Pattern'!$L$78,'Shareholding Pattern'!$T$78)*100,2),\"\"),0)","v":74.98},{"$f":"+IFERROR(IF(COUNT(U14:U21),ROUND(SUM(U14:U21),0),\"\"),\"\")","v":""},{"$f":"+IFERROR(IF(COUNT(U22),ROUND(SUM(U22)/SUM(K22)*100,2),\"\"),0)","v":""},{"$f":"+IFERROR(IF(COUNT(W14:W21),ROUND(SUM(W14:W21),0),\"\"),\"\")","v":""},{"$f":"+IFERROR(IF(COUNT(W22),ROUND(SUM(W22)/SUM(K22)*100,2),\"\"),0)","v":""},{"$f":"+IFERROR(IF(COUNT(Y14:Y21),ROUND(SUM(Y14:Y21),0),\"\"),\"\")","v":3913923}]

{"sheet":"SBO","index":6,"n_rows":12,"n_cols":27,"rows_kept":12,"hidden":true,"merged":[[6,5,7,7],[8,4,10,4],[8,5,8,10],[8,11,8,15],[8,16,8,20],[8,21,10,21],[9,5,10,5],[9,6,10,6],[9,7,10,7],[9,9,10,9],[9,10,10,10],[9,11,10,11],[9,12,10,12],[9,13,10,13],[9,14,10,14],[9,15,10,15],[9,16,9,20],[11,5,11,6],[13,5,13,7]]}
[{"$nulls":8},0,null,null,"Yes","No","NA"]
[{"$nulls":5},"Name of SBO","PAN of SBO","Passport No. in case of a foreign national of SBO",null,"Nationality of SBO","Nationality (Applicable in case of Any other is selected) of SBO","Name of RegisteredOwner","PAN of RegisteredOwner","Passport No. in case of a foreign national of RegisteredOwner","Nationality of RegisteredOwner","Nationality (Applicable in case of Any other is selected) of RegisteredOwner","Shares","Voting rights SBO","Rights on distributable dividend or any other distribution","Exercise of control","Exercise of significant influence","Date of creation / acquisition of significant beneficial interest"]
[{"$nulls":26},"India"]
[{"$nulls":26},"United Kingdom"]
[{"$nulls":26},"Hong Kong"]
[{"$nulls":26},"China"]
[{"$nulls":26},"Mauritius"]
[{"$nulls":26},"Singapore"]
[{"$nulls":4},"Sr. No.","Details of the SBO",{"$nulls":5},"Details of the registered owner",{"$nulls":4},"Details of holding/ exercise of right of the SBO in the reporting company, whether direct or indirect*:",{"$nulls":4},"Date of creation / acquisition of significant beneficial interest",{"$nulls":4},"Japan"]
[{"$nulls":5},"Name","PAN ","Passport No. in case of a foreign national",null,"Nationality","Nationality (Applicable in case of Any other is selected)","Name","PAN ","Passport No. in case of a foreign national","Nationality","Nationality (Applicable in case of Any other is selected)","Whether by virtue of:",{"$nulls":9},"United States of America"]
[{"$nulls":16},"Shares","Voting rights","Rights on distributable dividend or any other distribution","Exercise of control","Exercise of significant influence",{"$nulls":5},"Any other"]
[{"$nulls":5},"significant beneficial owners"]

{"sheet":"CGAndSG","index":7,"n_rows":16,"n_cols":45,"rows_kept":16,"hidden":true,"merged":[[8,4,10,4],[8,5,10,5],[8,6,10,6],[8,7,10,7],[8,8,10,8],[8,9,10,9],[8,10,10,10],[8,11,10,11],[8,12,8,15],[8,16,10,16],[8,17,10,17],[8,18,10,18],[8,19,10,19],[8,20,9,21],[8,22,9,23],[8,24,10,24],[8,25,10,25],[8,26,10,26],[9,12,9,14],[9,15,10,15],[11,5,11,6]]}
[{"$nulls":8},0,{"$nulls":20},{"$f":"SUM(AC1:AC65531)","v":0}]
[{"$nulls":5},"Name of shareholder","Permanent account number of shareholder","Number of fully paid up equity shares","Number of partly paid-up equity shares","Number of shares underlying outstanding depository receipts","Total number of shares","Shareholding as a percentage of total number of shares held by promoters and public shareholders and custodians or DR holders","Number of voting rights held by same class of securities","Number of voting rights held by differential voting rights","Total Number of voting rights","Percentage of total number of voting rights","Number of shares underlying outstanding convertible securities","Number of warrant","Number of warrant and convertible securities","Total shareholding as a percentage assuming full conversion of convertible securities","Number of the locked-in-shares ","Locked-in-shares as a percentage of total number of shares","Pledged or encumbered - number of shares","Pledged or encumbered shares held as percentage of total number of shares","Number of equity shares held in dematerialized form","Reason for not providing PAN","Shareholder type",{"$nulls":16},"Promoter","Promoter Group"]
[]
[]
[]
[]
[]
[]
[{"$nulls":4},"Searial No.","Name\nof the \nShareholders\n     (I)","PAN \n(II)","No. of fully paid up equity shares held\n(IV)","No. Of Partly paid-up equity shares held\n(V)","No. Of shares underlying Depository Receipts\n(VI)","Total nos. shares\nheld\n(VII) = (IV)+(V)+ (VI)","Shareholding as a % of total no. of shares (calculated as per SCRR, 1957)\n(VIII)\nAs a % of (A+B+C2)","Number of Voting Rights held in each class of securities\n(IX)",{"$nulls":3},"No. Of Shares Underlying Outstanding convertible securities\n(X)","No. of Shares Underlying Outstanding Warrants (Xi)","No. Of Shares Underlying Outstanding convertible securities and warrants\n(X)","Shareholding , as a % assuming full conversion of convertible securities (as a percentage of diluted share capital)\n(XI)= (VII)+(X)\nAs a % of (A+B+C2)","Number of Locked in shares\n(XII)",null,"Number of Shares pledged or otherwise encumbered\n(XIII)",null,"Number of equity shares held in dematerialized form \n(XIV)","Reason for not providing PAN","Shareholder type"]
[{"$nulls":12},"No of Voting (XIV)\nRights",null,null,"Total as\na % of\nTotal\nVoting\nrights"]
[{"$nulls":12},"Class\neg:\nX","Class\neg:y","Total",{"$nulls":5},"No.\n(a)","As a % of total Shares held\n(b)","No.\n(a)","As a % of total Shares held\n(b)"]
[{"$nulls":4},"A1(b)","Central  Government/ State Government(s)"]
[{"$nulls":10},{"$f":"+IFERROR(IF(COUNT(H13:J13),ROUND(SUM(H13:J13),0),\"\"),\"\")","v":""},{"$f":"+IFERROR(IF(COUNT(K13),ROUND(K13/'Shareholding Pattern'!$L$78*100,2),\"\"),0)","v":""},{"$f":"IF(H13=\"\",\"\",H13)","v":""},null,{"$f":"+IFERROR(IF(COUNT(M13:N13),ROUND(SUM(M13,N13),2),\"\"),\"\")","v":""},{"$f":"+IFERROR(IF(COUNT(O13),ROUND(O13/('Shareholding Pattern'!$P$79)*100,2),\"\"),0)","v":""},null,null,{"$f":"+IFERROR(IF(COUNT(Q13:R13),ROUND(SUM(Q13:R13),0),\"\"),\"\")","v":""},{"$f":"+IFERROR(IF(COUNT(K13,S13),ROUND(SUM(S13,K13)/SUM('Shareholding Pattern'!$L$78,'Shareholding Pattern'!$T$78)*100,2),\"\"),0)","v":""},null,{"$f":"+IFERROR(IF(COUNT(U13),ROUND(SUM(U13)/SUM(K13)*100,2),\"\"),0)","v":""},null,{"$f":"+IFERROR(IF(COUNT(W13),ROUND(SUM(W13)/SUM(K13)*100,2),\"\"),0)","v":""},{"$nulls":4},{"$f":"IF(SUM(H13:Y13)>0,1,0)","v":0},{"$f":"IF(COUNT(H15:$Y$14995)=0,\"\",SUM(AC1:AC65533))","v":""}]
[]
[]
[{"$nulls":5},"Click here to go back","Total",{"$f":"+IFERROR(IF(COUNT(H14:H15),ROUND(SUM(H14:H15),0),\"\"),\"\")","v":""},{"$f":"+IFERROR(IF(COUNT(I14:I15),ROUND(SUM(I14:I15),0),\"\"),\"\")","v":""},{"$f":"+IFERROR(IF(COUNT(J14:J15),ROUND(SUM(J14:J15),0),\"\"),\"\")","v":""},{"$f":"+IFERROR(IF(COUNT(H16:J16),ROUND(SUM(H16:J16),0),\"\"),\"\")","v":""},{"$f":"+IFERROR(IF(COUNT(K16),ROUND(K16/'Shareholding Pattern'!$L$78*100,2),\"\"),0)","v":""},{"$f":"+IFERROR(IF(COUNT(M14:M15),ROUND(SUM(M14:M15),0),\"\"),\"\")","v":""},{"$f":"+IFERROR(IF(COUNT(N14:N15),ROUND(SUM(N14:N15),0),\"\"),\"\")","v":""},{"$f":"+IFERROR(IF(COUNT(M16:N16),ROUND(SUM(M16,N16),2),\"\"),\"\")","v":""},{"$f":"+IFERROR(IF(COUNT(O16),ROUND(O16/('Shareholding Pattern'!$P$79)*100,2),\"\"),0)","v":""},{"$f":"+IFERROR(IF(COUNT(Q14:Q15),ROUND(SUM(Q14:Q15),0),\"\"),\"\")","v":""},{"$f":"+IFERROR(IF(COUNT(R14:R15),ROUND(SUM(R14:R15),0),\"\"),\"\")","v":""},{"$f":"+IFERROR(IF(COUNT(Q16:R16),ROUND(SUM(Q16:R16),0),\"\"),\"\")","v":""},{"$f":"+IFERROR(IF(COUNT(K16,S16),ROUND(SUM(S16,K16)/SUM('Shareholding Pattern'!$L$78,'Shareholding Pattern'!$T$78)*100,2),\"\"),0)","v":""},{"$f":"+IFERROR(IF(COUNT(U14:U15),ROUND(SUM(U14:U15),0),\"\"),\"\")","v":""},{"$f":"+IFERROR(IF(COUNT(U16),ROUND(SUM(U16)/SUM(K16)*100,2),\"\"),0)","v":""},{"$f":"+IFERROR(IF(COUNT(W14:W15),ROUND(SUM(W14:W15),0),\"\"),\"\")","v":""},{"$f":"+IFERROR(IF(COUNT(W16),ROUND(SUM(W16)/SUM(K16)*100,2),\"\"),0)","v":""},{"$f":"+IFERROR(IF(COUNT(Y14:Y15),ROUND(SUM(Y14:Y15),0),\"\"),\"\")","v":""}]

{"sheet":"Banks","index":8,"n_rows":16,"n_cols":45,"rows_kept":16,"hidden":true,"merged":[[8,4,10,4],[8,5,10,5],[8,6,10,6],[8,7,10,7],[8,8,10,8],[8,9,10,9],[8,10,10,10],[8,11,10,11],[8,12,8,15],[8,16,10,16],[8,17,10,17],[8,18,10,18],[8,19,10,19],[8,20,9,21],[8,22,9,23],[8,24,10,24],[8,25,10,25],[8,26,10,26],[9,12,9,14],[9,15,10,15]]}
[{"$nulls":8},0]
[{"$nulls":5},"Name of shareholder","Permanent account number of shareholder","Number of fully paid up equity shares","Number of partly paid-up equity shares","Number of shares underlying outstanding depository receipts","Total number of shares","Shareholding as a percentage of total number of shares held by promoters and public shareholders and custodians or DR holders","Number of voting rights held by same class of securities","Number of voting rights held by differential voting rights","Total Number of voting rights","Percentage of total number of voting rights","Number of shares underlying outstanding convertible securities","Number of warrant","Number of warrant and convertible securities","Total shareholding as a percentage assuming full conversion of convertible securities","Number of the locked-in-shares ","Locked-in-shares as a percentage of total number of shares","Pledged or encumbered - number of shares","Pledged or encumbered shares held as percentage of total number of shares","Number of equity shares held in dematerialized form","Reason for not providing PAN","Shareholder type",{"$nulls":16},"Promoter","Promoter Group"]
[]
[]
[]
[]
[{"$nulls":43},"Trusts"]
[{"$nulls":43},"HUF"]
[{"$nulls":4},"Searial No.","Name\nof the \nShareholders\n     (I)","PAN \n(II)","No. of fully paid up equity shares held\n(IV)","No. Of Partly paid-up equity shares held\n(V)","No. Of shares underlying Depository Receipts\n(VI)","Total nos. shares\nheld\n(VII) = (IV)+(V)+ (VI)","Shareholding as a % of total no. of shares (calculated as per SCRR, 1957)\n(VIII)\nAs a % of (A+B+C2)","Number of Voting Rights held in each class of securities\n(IX)",{"$nulls":3},"No. Of Shares Underlying Outstanding convertible securities\n(X)","No. of Shares Underlying Outstanding Warrants (Xi)","No. Of Shares Underlying Outstanding convertible securities and No. Of Warrants\n(Xi) (a)","Shareholding , as a % assuming full conversion of convertible securities (as a percentage of diluted share capital)\n(XI)= (VII)+(X)\nAs a % of (A+B+C2)","Number of Locked in shares\n(XII)",null,"Number of Shares pledged or otherwise encumbered\n(XIII)",null,"Number of equity shares held in dematerialized form \n(XIV)","Reason for not providing PAN","Shareholder type",{"$nulls":16},"Societies"]
[{"$nulls":12},"No of Voting (XIV)\nRights",null,null,"Total as\na % of\nTotal\nVoting\nrights",{"$nulls":27},"ESOP or ESOS or ESPS"]
[{"$nulls":12},"Class\neg:\nX","Class\neg:y","Total",{"$nulls":5},"No.\n(a)","As a % of total Shares held\n(b)","No.\n(a)","As a % of total Shares held\n(b)",{"$nulls":19},"Employee welfare fund"]
[{"$nulls":4},"A1(c)","Financial  Institutions/ Banks",{"$nulls":37},"Venture capital funds"]
[{"$nulls":10},{"$f":"+IFERROR(IF(COUNT(H13:J13),ROUND(SUM(H13:J13),0),\"\"),\"\")","v":""},{"$f":"+IFERROR(IF(COUNT(K13),ROUND(K13/'Shareholding Pattern'!$L$78*100,2),\"\"),0)","v":""},{"$f":"IF(H13=\"\",\"\",H13)","v":""},null,{"$f":"+IFERROR(IF(COUNT(M13:N13),ROUND(SUM(M13,N13),2),\"\"),\"\")","v":""},{"$f":"+IFERROR(IF(COUNT(O13),ROUND(O13/('Shareholding Pattern'!$P$79)*100,2),\"\"),0)","v":""},null,null,{"$f":"+IFERROR(IF(COUNT(Q13:R13),ROUND(SUM(Q13:R13),0),\"\"),\"\")","v":""},{"$f":"+IFERROR(IF(COUNT(K13,S13),ROUND(SUM(S13,K13)/SUM('Shareholding Pattern'!$L$78,'Shareholding Pattern'!$T$78)*100,2),\"\"),0)","v":""},null,{"$f":"+IFERROR(IF(COUNT(U13),ROUND(SUM(U13)/SUM(K13)*100,2),\"\"),0)","v":""},null,{"$f":"+IFERROR(IF(COUNT(W13),ROUND(SUM(W13)/SUM(K13)*100,2),\"\"),0)","v":""},{"$nulls":4},{"$f":"IF(SUM(H13:Y13)>0,1,0)","v":0},{"$f":"IF(COUNT(H15:$Y$14999)=0,\"\",SUM(AC1:AC65533))","v":""},{"$nulls":13},"Angel Investors"]
[{"$nulls":43},"Private Equity Fund"]
[]
[{"$nulls":5},"Click here to go back","Total",{"$f":"+IFERROR(IF(COUNT(H14:H15),ROUND(SUM(H14:H15),0),\"\"),\"\")","v":""},{"$f":"+IFERROR(IF(COUNT(I14:I15),ROUND(SUM(I14:I15),0),\"\"),\"\")","v":""},{"$f":"+IFERROR(IF(COUNT(J14:J15),ROUND(SUM(J14:J15),0),\"\"),\"\")","v":""},{"$f":"+IFERROR(IF(COUNT(K14:K15),ROUND(SUM(K14:K15),0),\"\"),\"\")","v":""},{"$f":"+IFERROR(IF(COUNT(K16),ROUND(K16/'Shareholding Pattern'!$L$78*100,2),\"\"),0)","v":""},{"$f":"+IFERROR(IF(COUNT(M14:M15),ROUND(SUM(M14:M15),0),\"\"),\"\")","v":""},{"$f":"+IFERROR(IF(COUNT(N14:N15),ROUND(SUM(N14:N15),0),\"\"),\"\")","v":""},{"$f":"+IFERROR(IF(COUNT(O14:O15),ROUND(SUM(O14:O15),0),\"\"),\"\")","v":""},{"$f":"+IFERROR(IF(COUNT(O16),ROUND(O16/('Shareholding Pattern'!$P$79)*100,2),\"\"),0)","v":""},{"$f":"+IFERROR(IF(COUNT(Q14:Q15),ROUND(SUM(Q14:Q15),0),\"\"),\"\")","v":""},{"$f":"+IFERROR(IF(COUNT(R14:R15),ROUND(SUM(R14:R15),0),\"\"),\"\")","v":""},{"$f":"+IFERROR(IF(COUNT(S14:S15),ROUND(SUM(S14:S15),0),\"\"),\"\")","v":""},{"$f":"+IFERROR(IF(COUNT(K16,S16),ROUND(SUM(S16,K16)/SUM('Shareholding Pattern'!$L$78,'Shareholding Pattern'!$T$78)*100,2),\"\"),0)","v":""},{"$f":"+IFERROR(IF(COUNT(U14:U15),ROUND(SUM(U14:U15),0),\"\"),\"\")","v":""},{"$f":"+IFERROR(IF(COUNT(U16),ROUND(SUM(U16)/SUM(K16)*100,2),\"\"),0)","v":""},{"$f":"+IFERROR(IF(COUNT(W14:W15),ROUND(SUM(W14:W15),0),\"\"),\"\")","v":""},{"$f":"+IFERROR(IF(COUNT(W16),ROUND(SUM(W16)/SUM(K16)*100,2),\"\"),0)","v":""},{"$f":"+IFERROR(IF(COUNT(Y14:Y15),ROUND(SUM(Y14:Y15),0),\"\"),\"\")","v":""}]

{"sheet":"OtherIND","index":9,"n_rows":16,"n_cols":53,"rows_kept":16,"hidden":true,"merged":[[8,3,10,3],[8,4,10,4],[8,5,10,5],[8,6,10,6],[8,7,10,7],[8,8,10,8],[8,9,10,9],[8,10,10,10],[8,11,10,11],[8,12,10,12],[8,13,10,13],[8,14,8,17],[8,18,10,18],[8,19,10,19],[8,20,10,20],[8,21,10,21],[8,22,9,23],[8,24,9,25],[8,26,10,26],[8,27,10,27],[8,28,10,28],[9,14,9,16],[9,17,10,17]]}
[{"$nulls":8},0,{"$nulls":34},"Director or Director's Relatives"]
[{"$nulls":4},"Category of other indian shareholders","Category or more than one percentage","Name of shareholder","Permanent account number of shareholder","Number of shareholders","Number of fully paid up equity shares","Number of partly paid-up equity shares","Number of shares underlying outstanding depository receipts","Total number of shares","Shareholding as a percentage of total number of shares held by promoters and public shareholders and custodians or DR holders","Number of voting rights held by same class of securities","Number of voting rights held by differential voting rights","Total Number of voting rights","Percentage of total number of voting rights","Number of shares underlying outstanding convertible securities","Number of warrant","Number of warrant and convertible securities","Total shareholding as a percentage assuming full conversion of convertible securities","Number of the locked-in-shares ","Locked-in-shares as a percentage of total number of shares","Pledged or encumbered - number of shares","Pledged or encumbered shares held as percentage of total number of shares","Number of equity shares held in dematerialized form","Reason for not providing PAN","Shareholder type",{"$nulls":14},"Bodies Corporate",{"$nulls":7},"Promoter","Promoter Group"]
[{"$nulls":43},"Partnership Firms"]
[{"$nulls":43},"Trusts"]
[{"$nulls":43},"Person Acting in Concert"]
[{"$nulls":43},"Other"]
[]
[]
[{"$nulls":3},"Searial No.","Category",null,"Name\nof the \nShareholders\n     (I)","PAN \n(II)","No.\nof the \nShareholders\n     (I)","No. of fully paid up equity shares held\n(IV)","No. Of Partly paid-up equity shares held\n(V)","No. Of shares underlying Depository Receipts\n(VI)","Total nos. shares\nheld\n(VII) = (IV)+(V)+ (VI)","Shareholding as a % of total no. of shares (calculated as per SCRR, 1957)\n(VIII)\nAs a % of (A+B+C2)","Number of Voting Rights held in each class of securities\n(IX)",{"$nulls":3},"No. Of Shares Underlying Outstanding convertible securities\n(X)","No. of Shares Underlying Outstanding Warrants (Xi)","No. Of Shares Underlying Outstanding convertible securities and No. Of Warrants\n(Xi) (a)","Shareholding , as a % assuming full conversion of convertible securities (as a percentage of diluted share capital)\n(XI)= (VII)+(X)\nAs a % of (A+B+C2)","Number of Locked in shares\n(XII)",null,"Number of Shares pledged or otherwise encumbered\n(XIII)",null,"Number of equity shares held in dematerialized form \n(XIV)","Reason for not providing PAN","Shareholder type",{"$nulls":18},"Category"]
[{"$nulls":14},"No of Voting (XIV)\nRights",null,null,"Total as\na % of\nTotal\nVoting\nrights",{"$nulls":29},"More than 1 percentage of shareholding"]
[{"$nulls":14},"Class\neg:\nX","Class\neg:y","Total",{"$nulls":5},"No.\n(a)","As a % of total Shares held\n(b)","No.\n(a)","As a % of total Shares held\n(b)"]
[{"$nulls":3},"A1(d)","Any Other (specify)"]
[{"$nulls":12},{"$f":"+IFERROR(IF(COUNT(J13:L13),ROUND(SUM(J13:L13),0),\"\"),\"\")","v":""},{"$f":"+IFERROR(IF(COUNT(M13),ROUND(M13/'Shareholding Pattern'!$L$78*100,2),\"\"),0)","v":""},{"$f":"IF(J13=\"\",\"\",J13)","v":""},null,{"$f":"+IFERROR(IF(COUNT(O13:P13),ROUND(SUM(O13,P13),2),\"\"),\"\")","v":""},{"$f":"+IFERROR(IF(COUNT(Q13),ROUND(Q13/('Shareholding Pattern'!$P$79)*100,2),\"\"),0)","v":""},null,null,{"$f":"+IFERROR(IF(COUNT(S13:T13),ROUND(SUM(S13:T13),0),\"\"),\"\")","v":""},{"$f":"+IFERROR(IF(COUNT(M13,U13),ROUND(SUM(U13,M13)/SUM('Shareholding Pattern'!$L$78,'Shareholding Pattern'!$T$78)*100,2),\"\"),0)","v":""},null,{"$f":"+IFERROR(IF(COUNT(W13),ROUND(SUM(W13)/SUM(M13)*100,2),\"\"),0)","v":""},null,{"$f":"+IFERROR(IF(COUNT(Y13),ROUND(SUM(Y13)/SUM(M13)*100,2),\"\"),0)","v":""},{"$nulls":3},{"$f":"IF(COUNT(H15:$AA$14999)=0,\"\",SUM(AC1:AC65533))","v":""},null,{"$f":"IF(SUM(I13:AA13)>0,1,0)","v":0},{"$f":"IF(COUNT(H15:$AA$14993)=0,\"\",SUM(AF1:AF65527))","v":""}]
[]
[]
[{"$nulls":4},"Click here to go back",null,null,"Total",{"$f":"+IFERROR(IF(COUNT(I14:I15),ROUND(SUM(I14:I15),0),\"\"),\"\")","v":""},{"$f":"+IFERROR(IF(COUNT(J14:J15),ROUND(SUM(J14:J15),0),\"\"),\"\")","v":""},{"$f":"+IFERROR(IF(COUNT(K14:K15),ROUND(SUM(K14:K15),0),\"\"),\"\")","v":""},{"$f":"+IFERROR(IF(COUNT(L14:L15),ROUND(SUM(L14:L15),0),\"\"),\"\")","v":""},{"$f":"+IFERROR(IF(COUNT(M14:M15),ROUND(SUM(M14:M15),0),\"\"),\"\")","v":""},{"$f":"+IFERROR(IF(COUNT(M16),ROUND(M16/'Shareholding Pattern'!$L$78*100,2),\"\"),0)","v":""},{"$f":"+IFERROR(IF(COUNT(O14:O15),ROUND(SUM(O14:O15),0),\"\"),\"\")","v":""},{"$f":"+IFERROR(IF(COUNT(P14:P15),ROUND(SUM(P14:P15),0),\"\"),\"\")","v":""},{"$f":"+IFERROR(IF(COUNT(Q14:Q15),ROUND(SUM(Q14:Q15),0),\"\"),\"\")","v":""},{"$f":"+IFERROR(IF(COUNT(Q16),ROUND(Q16/('Shareholding Pattern'!$P$79)*100,2),\"\"),0)","v":""},{"$f":"+IFERROR(IF(COUNT(S14:S15),ROUND(SUM(S14:S15),0),\"\"),\"\")","v":""},{"$f":"+IFERROR(IF(COUNT(T14:T15),ROUND(SUM(T14:T15),0),\"\"),\"\")","v":""},{"$f":"+IFERROR(IF(COUNT(U14:U15),ROUND(SUM(U14:U15),0),\"\"),\"\")","v":""},{"$f":"+IFERROR(IF(COUNT(M16,U16),ROUND(SUM(U16,M16)/SUM('Shareholding Pattern'!$L$78,'Shareholding Pattern'!$T$78)*100,2),\"\"),0)","v":""},{"$f":"+IFERROR(IF(COUNT(W14:W15),ROUND(SUM(W14:W15),0),\"\"),\"\")","v":""},{"$f":"+IFERROR(IF(COUNT(W16),ROUND(SUM(W16)/SUM(M16)*100,2),\"\"),0)","v":""},{"$f":"+IFERROR(IF(COUNT(Y14:Y15),ROUND(SUM(Y14:Y15),0),\"\"),\"\")","v":""},{"$f":"+IFERROR(IF(COUNT(Y16),ROUND(SUM(Y16)/SUM(M16)*100,2),\"\"),0)","v":""},{"$f":"+IFERROR(IF(COUNT(AA14:AA15),ROUND(SUM(AA14:AA15),0),\"\"),\"\")","v":""}]

{"sheet":"Individuals","index":10,"n_rows":16,"n_cols":45,"rows_kept":16,"hidden":true,"merged":[[8,4,10,4],[8,5,10,5],[8,6,10,6],[8,7,10,7],[8,8,10,8],[8,9,10,9],[8,10,10,10],[8,11,10,11],[8,12,8,15],[8,16,10,16],[8,17,10,17],[8,18,10,18],[8,19,10,19],[8,20,9,21],[8,22,9,23],[8,24,10,24],[8,25,10,25],[8,26,10,26],[9,12,9,14],[9,15,10,15]]}
[null,"060068073086032105100061084069088084066076079067075032099111110116101110116069100105116097098108101061116114117101032115116121108101061034072069073071072084058032049048048037059032087073068084072058032049048048037034062013010060068073086062116114101115100102098106100104098060047068073086062060047068073086062",null,null,1,{"$nulls":3},0]
[{"$nulls":5},"Name of shareholder","Permanent account number of shareholder","Number of fully paid up equity shares","Number of partly paid-up equity shares","Number of shares underlying outstanding depository receipts","Total number of shares","Shareholding as a percentage of total number of shares held by promoters and public shareholders and custodians or DR holders","Number of voting rights held by same class of securities","Number of voting rights held by differential voting rights","Total Number of voting rights","Percentage of total number of voting rights","Number of shares underlying outstanding convertible securities","Number of warrant","Number of warrant and convertible securities","Total shareholding as a percentage assuming full conversion of convertible securities","Number of the locked-in-shares ","Locked-in-shares as a percentage of total number of shares","Pledged or encumbered - number of shares","Pledged or encumbered shares held as percentage of total number of shares","Number of equity shares held in dematerialized form","Reason for not providing PAN","Shareholder type",{"$nulls":16},"Promoter","Promoter Group"]
[]
[]
[]
[]
[]
[]
[{"$nulls":4},"Searial No.","Name\nof the \nShareholders\n     (I)","PAN \n(II)","No. of fully paid up equity shares held\n(IV)","No. Of Partly paid-up equity shares held\n(V)","No. Of shares underlying Depository Receipts\n(VI)","Total nos. shares\nheld\n(VII) = (IV)+(V)+ (VI)","Shareholding as a % of total no. of shares (calculated as per SCRR, 1957)\n(VIII)\nAs a % of (A+B+C2)","Number of Voting Rights held in each class of securities\n(IX)",{"$nulls":3},"No. Of Shares Underlying Outstanding convertible securities\n(X)","No. of Shares Underlying Outstanding Warrants (Xi)","No. Of Shares Underlying Outstanding convertible securities and No. Of Warrants\n(Xi) (a)","Shareholding , as a % assuming full conversion of convertible securities (as a percentage of diluted share capital)\n(XI)= (VII)+(X)\nAs a % of (A+B+C2)","Number of Locked in shares\n(XII)",null,"Number of Shares pledged or otherwise encumbered\n(XIII)",null,"Number of equity shares held in dematerialized form \n(XIV)","Reason for not providing PAN","Shareholder type"]
[{"$nulls":12},"No of Voting (XIV)\nRights",null,null,"Total as\na % of\nTotal\nVoting\nrights"]
[{"$nulls":12},"Class\neg:\nX","Class\neg:y","Total",{"$nulls":5},"No.\n(a)","As a % of total Shares held\n(b)","No.\n(a)","As a % of total Shares held\n(b)"]
[{"$nulls":4},"A2(a)","Individuals (NonResident Individuals/ Foreign Individuals)"]
[{"$nulls":10},{"$f":"+IFERROR(IF(COUNT(H13:J13),ROUND(SUM(H13:J13),0),\"\"),\"\")","v":""},{"$f":"+IFERROR(IF(COUNT(K13),ROUND(K13/'Shareholding Pattern'!$L$78*100,2),\"\"),0)","v":""},{"$f":"IF(H13=\"\",\"\",H13)","v":""},null,{"$f":"+IFERROR(IF(COUNT(M13:N13),ROUND(SUM(M13,N13),2),\"\"),\"\")","v":""},{"$f":"+IFERROR(IF(COUNT(O13),ROUND(O13/('Shareholding Pattern'!$P$79)*100,2),\"\"),0)","v":""},null,null,{"$f":"+IFERROR(IF(COUNT(Q13:R13),ROUND(SUM(Q13:R13),0),\"\"),\"\")","v":""},{"$f":"+IFERROR(IF(COUNT(K13,S13),ROUND(SUM(S13,K13)/SUM('Shareholding Pattern'!$L$78,'Shareholding Pattern'!$T$78)*100,2),\"\"),0)","v":""},null,{"$f":"+IFERROR(IF(COUNT(U13),ROUND(SUM(U13)/SUM(K13)*100,2),\"\"),0)","v":""},null,{"$f":"+IFERROR(IF(COUNT(W13),ROUND(SUM(W13)/SUM(K13)*100,2),\"\"),0)","v":""},{"$nulls":4},{"$f":"IF(SUM(H13:Y13)>0,1,0)","v":0},{"$f":"IF(COUNT(H15:$Y$15000)=0,\"\",SUM(AC1:AC65533))","v":""}]
[]
[]
[{"$nulls":5},"Click here to go back","Total",{"$f":"+IFERROR(IF(COUNT(H14:H15),ROUND(SUM(H14:H15),0),\"\"),\"\")","v":""},{"$f":"+IFERROR(IF(COUNT(I14:I15),ROUND(SUM(I14:I15),0),\"\"),\"\")","v":""},{"$f":"+IFERROR(IF(COUNT(J14:J15),ROUND(SUM(J14:J15),0),\"\"),\"\")","v":""},{"$f":"+IFERROR(IF(COUNT(K14:K15),ROUND(SUM(K14:K15),0),\"\"),\"\")","v":""},{"$f":"+IFERROR(IF(COUNT(K16),ROUND(K16/'Shareholding Pattern'!$L$78*100,2),\"\"),0)","v":""},{"$f":"+IFERROR(IF(COUNT(M14:M15),ROUND(SUM(M14:M15),0),\"\"),\"\")","v":""},{"$f":"+IFERROR(IF(COUNT(N14:N15),ROUND(SUM(N14:N15),0),\"\"),\"\")","v":""},{"$f":"+IFERROR(IF(COUNT(O14:O15),ROUND(SUM(O14:O15),0),\"\"),\"\")","v":""},{"$f":"+IFERROR(IF(COUNT(O16),ROUND(O16/('Shareholding Pattern'!$P$79)*100,2),\"\"),0)","v":""},{"$f":"+IFERROR(IF(COUNT(Q14:Q15),ROUND(SUM(Q14:Q15),0),\"\"),\"\")","v":""},{"$f":"+IFERROR(IF(COUNT(R14:R15),ROUND(SUM(R14:R15),0),\"\"),\"\")","v":""},{"$f":"+IFERROR(IF(COUNT(S14:S15),ROUND(SUM(S14:S15),0),\"\"),\"\")","v":""},{"$f":"+IFERROR(IF(COUNT(K16,S16),ROUND(SUM(S16,K16)/SUM('Shareholding Pattern'!$L$78,'Shareholding Pattern'!$T$78)*100,2),\"\"),0)","v":""},{"$f":"+IFERROR(IF(COUNT(U14:U15),ROUND(SUM(U14:U15),0),\"\"),\"\")","v":""},{"$f":"+IFERROR(IF(COUNT(U16),ROUND(SUM(U16)/SUM(K16)*100,2),\"\"),0)","v":""},{"$f":"+IFERROR(IF(COUNT(W14:W15),ROUND(SUM(W14:W15),0),\"\"),\"\")","v":""},{"$f":"+IFERROR(IF(COUNT(W16),ROUND(SUM(W16)/SUM(K16)*100,2),\"\"),0)","v":""},{"$f":"+IFERROR(IF(COUNT(Y14:Y15),ROUND(SUM(Y14:Y15),0),\"\"),\"\")","v":""}]

{"sheet":"Government","index":11,"n_rows":23,"n_cols":45,"rows_kept":23,"hidden":true,"merged":[[8,4,10,4],[8,5,10,5],[8,6,10,6],[8,7,10,7],[8,8,10,8],[8,9,10,9],[8,10,10,10],[8,11,10,11],[8,12,8,15],[8,16,10,16],[8,17,10,17],[8,18,10,18],[8,19,10,19],[8,20,9,21],[8,22,9,23],[8,24,10,24],[8,25,10,25],[8,26,10,26],[9,12,9,14],[9,15,10,15]]}
[{"$nulls":8},0]
[{"$nulls":5},"Name of shareholder","Permanent account number of shareholder","Number of fully paid up equity shares","Number of partly paid-up equity shares","Number of shares underlying outstanding depository receipts","Total number of shares","Shareholding as a percentage of total number of shares held by promoters and public shareholders and custodians or DR holders","Number of voting rights held by same class of securities","Number of voting rights held by differential voting rights","Total Number of voting rights","Percentage of total number of voting rights","Number of shares underlying outstanding convertible securities","Number of warrant","Number of warrant and convertible securities","Total shareholding as a percentage assuming full conversion of convertible securities","Number of the locked-in-shares ","Locked-in-shares as a percentage of total number of shares","Pledged or encumbered - number of shares","Pledged or encumbered shares held as percentage of total number of shares","Number of equity shares held in dematerialized form","Reason for not providing PAN","Shareholder type",{"$nulls":16},"Promoter","Promoter Group"]
[]
[]
[]
[]
[]
[]
[{"$nulls":4},"Searial No.","Name\nof the \nShareholders\n     (I)","PAN \n(II)","No. of fully paid up equity shares held\n(IV)","No. Of Partly paid-up equity shares held\n(V)","No. Of shares underlying Depository Receipts\n(VI)","Total nos. shares\nheld\n(VII) = (IV)+(V)+ (VI)","Shareholding as a % of total no. of shares (calculated as per SCRR, 1957)\n(VIII)\nAs a % of (A+B+C2)","Number of Voting Rights held in each class of securities\n(IX)",{"$nulls":3},"No. Of Shares Underlying Outstanding convertible securities\n(X)","No. of Shares Underlying Outstanding Warrants (Xi)","No. Of Shares Underlying Outstanding convertible securities and No. Of Warrants\n(Xi) (a)","Shareholding , as a % assuming full conversion of convertible securities (as a percentage of diluted share capital)\n(XI)= (VII)+(X)\nAs a % of (A+B+C2)","Number of Locked in shares\n(XII)",null,"Number of Shares pledged or otherwise encumbered\n(XIII)",null,"Number of equity shares held in dematerialized form \n(XIV)","Reason for not providing PAN","Shareholder type"]
[{"$nulls":12},"No of Voting (XIV)\nRights",null,null,"Total as\na % of\nTotal\nVoting\nrights"]
[{"$nulls":12},"Class\neg:\nX","Class\neg:y","Total",{"$nulls":5},"No.\n(a)","As a % of total Shares held\n(b)","No.\n(a)","As a % of total Shares held\n(b)"]
[{"$nulls":4},"A2(a)","Government"]
[{"$nulls":10},{"$f":"+IFERROR(IF(COUNT(H13:J13),ROUND(SUM(H13:J13),0),\"\"),\"\")","v":""},{"$f":"+IFERROR(IF(COUNT(K13),ROUND(K13/'Shareholding Pattern'!$L$78*100,2),\"\"),0)","v":""},{"$f":"IF(H13=\"\",\"\",H13)","v":""},null,{"$f":"+IFERROR(IF(COUNT(M13:N13),ROUND(SUM(M13,N13),2),\"\"),\"\")","v":""},{"$f":"+IFERROR(IF(COUNT(O13),ROUND(O13/('Shareholding Pattern'!$P$79)*100,2),\"\"),0)","v":""},null,null,{"$f":"+IFERROR(IF(COUNT(Q13:R13),ROUND(SUM(Q13:R13),0),\"\"),\"\")","v":""},{"$f":"+IFERROR(IF(COUNT(K13,S13),ROUND(SUM(S13,K13)/SUM('Shareholding Pattern'!$L$78,'Shareholding Pattern'!$T$78)*100,2),\"\"),0)","v":""},null,{"$f":"+IFERROR(IF(COUNT(U13),ROUND(SUM(U13)/SUM(K13)*100,2),\"\"),0)","v":""},null,{"$f":"+IFERROR(IF(COUNT(W13),ROUND(SUM(W13)/SUM(K13)*100,2),\"\"),0)","v":""},{"$nulls":4},{"$f":"IF(SUM(H13:I13)>0,1,0)","v":0},{"$f":"IF(COUNT(H15:$Y$15000)=0,\"\",SUM(AC1:AC65533))","v":""}]
[]
[]
[{"$nulls":5},"Click here to go back","Total",{"$f":"+IFERROR(IF(COUNT(H14:H15),ROUND(SUM(H14:H15),0),\"\"),\"\")","v":""},{"$f":"+IFERROR(IF(COUNT(I14:I15),ROUND(SUM(I14:I15),0),\"\"),\"\")","v":""},{"$f":"+IFERROR(IF(COUNT(J14:J15),ROUND(SUM(J14:J15),0),\"\"),\"\")","v":""},{"$f":"+IFERROR(IF(COUNT(K14:K15),ROUND(SUM(K14:K15),0),\"\"),\"\")","v":""},{"$f":"+IFERROR(IF(COUNT(K16),ROUND(K16/'Shareholding Pattern'!$L$78*100,2),\"\"),0)","v":""},{"$f":"+IFERROR(IF(COUNT(M14:M15),ROUND(SUM(M14:M15),0),\"\"),\"\")","v":""},{"$f":"+IFERROR(IF(COUNT(N14:N15),ROUND(SUM(N14:N15),0),\"\"),\"\")","v":""},{"$f":"+IFERROR(IF(COUNT(O14:O15),ROUND(SUM(O14:O15),0),\"\"),\"\")","v":""},{"$f":"+IFERROR(IF(COUNT(O16),ROUND(O16/('Shareholding Pattern'!$P$79)*100,2),\"\"),0)","v":""},{"$f":"+IFERROR(IF(COUNT(Q14:Q15),ROUND(SUM(Q14:Q15),0),\"\"),\"\")","v":""},{"$f":"+IFERROR(IF(COUNT(R14:R15),ROUND(SUM(R14:R15),0),\"\"),\"\")","v":""},{"$f":"+IFERROR(IF(COUNT(S14:S15),ROUND(SUM(S14:S15),0),\"\"),\"\")","v":""},{"$f":"+IFERROR(IF(COUNT(K16,S16),ROUND(SUM(S16,K16)/SUM('Shareholding Pattern'!$L$78,'Shareholding Pattern'!$T$78)*100,2),\"\"),0)","v":""},{"$f":"+IFERROR(IF(COUNT(U14:U15),ROUND(SUM(U14:U15),0),\"\"),\"\")","v":""},{"$f":"+IFERROR(IF(COUNT(U16),ROUND(SUM(U16)/SUM(K16)*100,2),\"\"),0)","v":""},{"$f":"+IFERROR(IF(COUNT(W14:W15),ROUND(SUM(W14:W15),0),\"\"),\"\")","v":""},{"$f":"+IFERROR(IF(COUNT(W16),ROUND(SUM(W16)/SUM(K16)*100,2),\"\"),0)","v":""},{"$f":"+IFERROR(IF(COUNT(Y14:Y15),ROUND(SUM(Y14:Y15),0),\"\"),\"\")","v":""}]
[]
[]
[]
[]
[]
[]
[{"$nulls":8}," "]

{"sheet":"Institutions","index":12,"n_rows":16,"n_cols":45,"rows_kept":16,"hidden":true,"merged":[[8,4,10,4],[8,5,10,5],[8,6,10,6],[8,7,10,7],[8,8,10,8],[8,9,10,9],[8,10,10,10],[8,11,10,11],[8,12,8,15],[8,16,10,16],[8,17,10,17],[8,18,10,18],[8,19,10,19],[8,20,9,21],[8,22,9,23],[8,24,10,24],[8,25,10,25],[8,26,10,26],[9,12,9,14],[9,15,10,15]]}
[{"$nulls":8},0]
[{"$nulls":5},"Name of shareholder","Permanent account number of shareholder","Number of fully paid up equity shares","Number of partly paid-up equity shares","Number of shares underlying outstanding depository receipts","Total number of shares","Shareholding as a percentage of total number of shares held by promoters and public shareholders and custodians or DR holders","Number of voting rights held by same class of securities","Number of voting rights held by differential voting rights","Total Number of voting rights","Percentage of total number of voting rights","Number of shares underlying outstanding convertible securities","Number of warrant","Number of warrant and convertible securities","Total shareholding as a percentage assuming full conversion of convertible securities","Number of the locked-in-shares ","Locked-in-shares as a percentage of total number of shares","Pledged or encumbered - number of shares","Pledged or encumbered shares held as percentage of total number of shares","Number of equity shares held in dematerialized form","Reason for not providing PAN","Shareholder type",{"$nulls":16},"Promoter","Promoter Group"]
[]
[]
[]
[]
[{"$nulls":43},"Trusts"]
[{"$nulls":43},"Societies"]
[{"$nulls":4},"Searial No.","Name\nof the \nShareholders\n     (I)","PAN \n(II)","No. of fully paid up equity shares held\n(IV)","No. Of Partly paid-up equity shares held\n(V)","No. Of shares underlying Depository Receipts\n(VI)","Total nos. shares\nheld\n(VII) = (IV)+(V)+ (VI)","Shareholding as a % of total no. of shares (calculated as per SCRR, 1957)\n(VIII)\nAs a % of (A+B+C2)","Number of Voting Rights held in each class of securities\n(IX)",{"$nulls":3},"No. Of Shares Underlying Outstanding convertible securities\n(X)","No. of Shares Underlying Outstanding Warrants (Xi)","No. Of Shares Underlying Outstanding convertible securities and No. Of Warrants\n(Xi) (a)","Shareholding , as a % assuming full conversion of convertible securities (as a percentage of diluted share capital)\n(XI)= (VII)+(X)\nAs a % of (A+B+C2)","Number of Locked in shares\n(XII)",null,"Number of Shares pledged or otherwise encumbered\n(XIII)",null,"Number of equity shares held in dematerialized form \n(XIV)","Reason for not providing PAN","Shareholder type",{"$nulls":16},"ESOP or ESOS or ESPS"]
[{"$nulls":12},"No of Voting (XIV)\nRights",null,null,"Total as\na % of\nTotal\nVoting\nrights",{"$nulls":27},"Employee welfare fund"]
[{"$nulls":12},"Class\neg:\nX","Class\neg:y","Total",{"$nulls":5},"No.\n(a)","As a % of total Shares held\n(b)","No.\n(a)","As a % of total Shares held\n(b)",{"$nulls":19},"Overseas corporate bodies"]
[{"$nulls":4},"A2(c)","Institutions",{"$nulls":37},"Venture capital funds"]
[{"$nulls":10},{"$f":"+IFERROR(IF(COUNT(H13:J13),ROUND(SUM(H13:J13),0),\"\"),\"\")","v":""},{"$f":"+IFERROR(IF(COUNT(K13),ROUND(K13/'Shareholding Pattern'!$L$78*100,2),\"\"),0)","v":""},{"$f":"IF(H13=\"\",\"\",H13)","v":""},null,{"$f":"+IFERROR(IF(COUNT(M13:N13),ROUND(SUM(M13,N13),2),\"\"),\"\")","v":""},{"$f":"+IFERROR(IF(COUNT(O13),ROUND(O13/('Shareholding Pattern'!$P$79)*100,2),\"\"),0)","v":""},null,null,{"$f":"+IFERROR(IF(COUNT(Q13:R13),ROUND(SUM(Q13:R13),0),\"\"),\"\")","v":""},{"$f":"+IFERROR(IF(COUNT(K13,S13),ROUND(SUM(S13,K13)/SUM('Shareholding Pattern'!$L$78,'Shareholding Pattern'!$T$78)*100,2),\"\"),0)","v":""},null,{"$f":"+IFERROR(IF(COUNT(U13),ROUND(SUM(U13)/SUM(K13)*100,2),\"\"),0)","v":""},null,{"$f":"+IFERROR(IF(COUNT(W13),ROUND(SUM(W13)/SUM(K13)*100,2),\"\"),0)","v":""},{"$nulls":4},{"$f":"IF(SUM(H13:Y13)>0,1,0)","v":0},{"$f":"IF(COUNT(H15:$Y$15000)=0,\"\",SUM(AC1:AC65533))","v":""},{"$nulls":13},"Angel Investors"]
[{"$nulls":43},"Private Equity Fund"]
[]
[{"$nulls":5},"Click here to go back","Total",{"$f":"+IFERROR(IF(COUNT(H14:H15),ROUND(SUM(H14:H15),0),\"\"),\"\")","v":""},{"$f":"+IFERROR(IF(COUNT(I14:I15),ROUND(SUM(I14:I15),0),\"\"),\"\")","v":""},{"$f":"+IFERROR(IF(COUNT(J14:J15),ROUND(SUM(J14:J15),0),\"\"),\"\")","v":""},{"$f":"+IFERROR(IF(COUNT(K14:K15),ROUND(SUM(K14:K15),0),\"\"),\"\")","v":""},{"$f":"+IFERROR(IF(COUNT(K16),ROUND(K16/'Shareholding Pattern'!$L$78*100,2),\"\"),0)","v":""},{"$f":"+IFERROR(IF(COUNT(M14:M15),ROUND(SUM(M14:M15),0),\"\"),\"\")","v":""},{"$f":"+IFERROR(IF(COUNT(N14:N15),ROUND(SUM(N14:N15),0),\"\"),\"\")","v":""},{"$f":"+IFERROR(IF(COUNT(O14:O15),ROUND(SUM(O14:O15),0),\"\"),\"\")","v":""},{"$f":"+IFERROR(IF(COUNT(O16),ROUND(O16/('Shareholding Pattern'!$P$79)*100,2),\"\"),0)","v":""},{"$f":"+IFERROR(IF(COUNT(Q14:Q15),ROUND(SUM(Q14:Q15),0),\"\"),\"\")","v":""},{"$f":"+IFERROR(IF(COUNT(R14:R15),ROUND(SUM(R14:R15),0),\"\"),\"\")","v":""},{"$f":"+IFERROR(IF(COUNT(S14:S15),ROUND(SUM(S14:S15),0),\"\"),\"\")","v":""},{"$f":"+IFERROR(IF(COUNT(K16,S16),ROUND(SUM(S16,K16)/SUM('Shareholding Pattern'!$L$78,'Shareholding Pattern'!$T$78)*100,2),\"\"),0)","v":""},{"$f":"+IFERROR(IF(COUNT(U14:U15),ROUND(SUM(U14:U15),0),\"\"),\"\")","v":""},{"$f":"+IFERROR(IF(COUNT(U16),ROUND(SUM(U16)/SUM(K16)*100,2),\"\"),0)","v":""},{"$f":"+IFERROR(IF(COUNT(W14:W15),ROUND(SUM(W14:W15),0),\"\"),\"\")","v":""},{"$f":"+IFERROR(IF(COUNT(W16),ROUND(SUM(W16)/SUM(K16)*100,2),\"\"),0)","v":""},{"$f":"+IFERROR(IF(COUNT(Y14:Y15),ROUND(SUM(Y14:Y15),0),\"\"),\"\")","v":""}]

{"sheet":"FPIPromoter","index":13,"n_rows":16,"n_cols":45,"rows_kept":16,"hidden":true,"merged":[[8,4,10,4],[8,5,10,5],[8,6,10,6],[8,7,10,7],[8,8,10,8],[8,9,10,9],[8,10,10,10],[8,11,10,11],[8,12,8,15],[8,16,10,16],[8,17,10,17],[8,18,10,18],[8,19,10,19],[8,20,9,21],[8,22,9,23],[8,24,10,24],[8,25,10,25],[8,26,10,26],[9,12,9,14],[9,15,10,15]]}
[{"$nulls":8},0]
[{"$nulls":5},"Name of shareholder","Permanent account number of shareholder","Number of fully paid up equity shares","Number of partly paid-up equity shares","Number of shares underlying outstanding depository receipts","Total number of shares","Shareholding as a percentage of total number of shares held by promoters and public shareholders and custodians or DR holders","Number of voting rights held by same class of securities","Number of voting rights held by differential voting rights","Total Number of voting rights","Percentage of total number of voting rights","Number of shares underlying outstanding convertible securities","Number of warrant","Number of warrant and convertible securities","Total shareholding as a percentage assuming full conversion of convertible securities","Number of the locked-in-shares ","Locked-in-shares as a percentage of total number of shares","Pledged or encumbered - number of shares","Pledged or encumbered shares held as percentage of total number of shares","Number of equity shares held in dematerialized form","Reason for not providing PAN","Shareholder type",{"$nulls":16},"Promoter","Promoter Group"]
[]
[]
[]
[]
[{"$nulls":43},"Trusts"]
[{"$nulls":43},"Societies"]
[{"$nulls":4},"Searial No.","Name\nof the \nShareholders\n     (I)","PAN \n(II)","No. of fully paid up equity shares held\n(IV)","No. Of Partly paid-up equity shares held\n(V)","No. Of shares underlying Depository Receipts\n(VI)","Total nos. shares\nheld\n(VII) = (IV)+(V)+ (VI)","Shareholding as a % of total no. of shares (calculated as per SCRR, 1957)\n(VIII)\nAs a % of (A+B+C2)","Number of Voting Rights held in each class of securities\n(IX)",{"$nulls":3},"No. Of Shares Underlying Outstanding convertible securities\n(X)","No. of Shares Underlying Outstanding Warrants (Xi)","No. Of Shares Underlying Outstanding convertible securities and No. Of Warrants\n(Xi) (a)","Shareholding , as a % assuming full conversion of convertible securities (as a percentage of diluted share capital)\n(XI)= (VII)+(X)\nAs a % of (A+B+C2)","Number of Locked in shares\n(XII)",null,"Number of Shares pledged or otherwise encumbered\n(XIII)",null,"Number of equity shares held in dematerialized form \n(XIV)","Reason for not providing PAN","Shareholder type",{"$nulls":16},"ESOP or ESOS or ESPS"]
[{"$nulls":12},"No of Voting (XIV)\nRights",null,null,"Total as\na % of\nTotal\nVoting\nrights",{"$nulls":27},"Employee welfare fund"]
[{"$nulls":12},"Class\neg:\nX","Class\neg:y","Total",{"$nulls":5},"No.\n(a)","As a % of total Shares held\n(b)","No.\n(a)","As a % of total Shares held\n(b)",{"$nulls":19},"Overseas corporate bodies"]
[{"$nulls":4},"A2(d)","Foreign Portfolio Investor",{"$nulls":37},"Venture capital funds"]
[{"$nulls":10},{"$f":"+IFERROR(IF(COUNT(H13:J13),ROUND(SUM(H13:J13),0),\"\"),\"\")","v":""},{"$f":"+IFERROR(IF(COUNT(K13),ROUND(K13/'Shareholding Pattern'!$L$78*100,2),\"\"),0)","v":""},{"$f":"IF(H13=\"\",\"\",H13)","v":""},null,{"$f":"+IFERROR(IF(COUNT(M13:N13),ROUND(SUM(M13,N13),2),\"\"),\"\")","v":""},{"$f":"+IFERROR(IF(COUNT(O13),ROUND(O13/('Shareholding Pattern'!$P$79)*100,2),\"\"),0)","v":""},null,null,{"$f":"+IFERROR(IF(COUNT(Q13:R13),ROUND(SUM(Q13:R13),0),\"\"),\"\")","v":""},{"$f":"+IFERROR(IF(COUNT(K13,S13),ROUND(SUM(S13,K13)/SUM('Shareholding Pattern'!$L$78,'Shareholding Pattern'!$T$78)*100,2),\"\"),0)","v":""},null,{"$f":"+IFERROR(IF(COUNT(U13),ROUND(SUM(U13)/SUM(K13)*100,2),\"\"),0)","v":""},null,{"$f":"+IFERROR(IF(COUNT(W13),ROUND(SUM(W13)/SUM(K13)*100,2),\"\"),0)","v":""},{"$nulls":4},{"$f":"IF(SUM(H13:Y13)>0,1,0)","v":0},{"$f":"IF(COUNT(H15:$Y$15000)=0,\"\",SUM(AC1:AC65533))","v":""},{"$nulls":13},"Angel Investors"]
[{"$nulls":43},"Private Equity Fund"]
[]
[{"$nulls":5},"Click here to go back ","Total",{"$f":"+IFERROR(IF(COUNT(H14:H15),ROUND(SUM(H14:H15),0),\"\"),\"\")","v":""},{"$f":"+IFERROR(IF(COUNT(I14:I15),ROUND(SUM(I14:I15),0),\"\"),\"\")","v":""},{"$f":"+IFERROR(IF(COUNT(J14:J15),ROUND(SUM(J14:J15),0),\"\"),\"\")","v":""},{"$f":"+IFERROR(IF(COUNT(K14:K15),ROUND(SUM(K14:K15),0),\"\"),\"\")","v":""},{"$f":"+IFERROR(IF(COUNT(K16),ROUND(K16/'Shareholding Pattern'!$L$78*100,2),\"\"),0)","v":""},{"$f":"+IFERROR(IF(COUNT(M14:M15),ROUND(SUM(M14:M15),0),\"\"),\"\")","v":""},{"$f":"+IFERROR(IF(COUNT(N14:N15),ROUND(SUM(N14:N15),0),\"\"),\"\")","v":""},{"$f":"+IFERROR(IF(COUNT(O14:O15),ROUND(SUM(O14:O15),0),\"\"),\"\")","v":""},{"$f":"+IFERROR(IF(COUNT(O16),ROUND(O16/('Shareholding Pattern'!$P$79)*100,2),\"\"),0)","v":""},{"$f":"+IFERROR(IF(COUNT(Q14:Q15),ROUND(SUM(Q14:Q15),0),\"\"),\"\")","v":""},{"$f":"+IFERROR(IF(COUNT(R14:R15),ROUND(SUM(R14:R15),0),\"\"),\"\")","v":""},{"$f":"+IFERROR(IF(COUNT(S14:S15),ROUND(SUM(S14:S15),0),\"\"),\"\")","v":""},{"$f":"+IFERROR(IF(COUNT(K16,S16),ROUND(SUM(S16,K16)/SUM('Shareholding Pattern'!$L$78,'Shareholding Pattern'!$T$78)*100,2),\"\"),0)","v":""},{"$f":"+IFERROR(IF(COUNT(U14:U15),ROUND(SUM(U14:U15),0),\"\"),\"\")","v":""},{"$f":"+IFERROR(IF(COUNT(U16),ROUND(SUM(U16)/SUM(K16)*100,2),\"\"),0)","v":""},{"$f":"+IFERROR(IF(COUNT(W14:W15),ROUND(SUM(W14:W15),0),\"\"),\"\")","v":""},{"$f":"+IFERROR(IF(COUNT(W16),ROUND(SUM(W16)/SUM(K16)*100,2),\"\"),0)","v":""},{"$f":"+IFERROR(IF(COUNT(Y14:Y15),ROUND(SUM(Y14:Y15),0),\"\"),\"\")","v":""}]

{"sheet":"OtherForeign","index":14,"n_rows":16,"n_cols":53,"rows_kept":16,"hidden":true,"merged":[[8,3,10,3],[8,4,10,4],[8,5,10,5],[8,6,10,6],[8,7,10,7],[8,8,10,8],[8,9,10,9],[8,10,10,10],[8,11,10,11],[8,12,10,12],[8,13,10,13],[8,14,8,17],[8,18,10,18],[8,19,10,19],[8,20,10,20],[8,21,10,21],[8,22,9,23],[8,24,9,25],[8,26,10,26],[8,27,10,27],[8,28,10,28],[9,14,9,16],[9,17,10,17]]}
[{"$nulls":8},0]
[{"$nulls":4},"Category of other foreign shareholders","Category or more than one percentage","Name of shareholder","Permanent account number of shareholder","Number of shareholders","Number of fully paid up equity shares","Number of partly paid-up equity shares","Number of shares underlying outstanding depository receipts","Total number of shares","Shareholding as a percentage of total number of shares held by promoters and public shareholders and custodians or DR holders","Number of voting rights held by same class of securities","Number of voting rights held by differential voting rights","Total Number of voting rights","Percentage of total number of voting rights","Number of shares underlying outstanding convertible securities","Number of warrant","Number of warrant and convertible securities","Total shareholding as a percentage assuming full conversion of convertible securities","Number of the locked-in-shares ","Locked-in-shares as a percentage of total number of shares","Pledged or encumbered - number of shares","Pledged or encumbered shares held as percentage of total number of shares","Number of equity shares held in dematerialized form","Reason for not providing PAN","Shareholder type",{"$nulls":14},"Promoter","Promoter Group"]
[{"$nulls":43},"Bodies Corporate","Clearing Member","Employee Welfare Fund","Firms","Other","Overseas Corporate Bodies","Private Equity Fund","Societies","Trust","Venture Capital Fund"]
[]
[]
[]
[]
[]
[{"$nulls":3},"Searial No.","Category",null,"Name\nof the \nShareholders\n     (I)","PAN \n(II)","No.\nof the \nShareholders\n     (I)","No. of fully paid up equity shares held\n(IV)","No. Of Partly paid-up equity shares held\n(V)","No. Of shares underlying Depository Receipts\n(VI)","Total nos. shares\nheld\n(VII) = (IV)+(V)+ (VI)","Shareholding as a % of total no. of shares (calculated as per SCRR, 1957)\n(VIII)\nAs a % of (A+B+C2)","Number of Voting Rights held in each class of securities\n(IX)",{"$nulls":3},"No. Of Shares Underlying Outstanding convertible securities\n(X)","No. of Shares Underlying Outstanding Warrants (Xi)","No. Of Shares Underlying Outstanding convertible securities and No. Of Warrants\n(Xi) (a)","Shareholding , as a % assuming full conversion of convertible securities (as a percentage of diluted share capital)\n(XI)= (VII)+(X)\nAs a % of (A+B+C2)","Number of Locked in shares\n(XII)",null,"Number of Shares pledged or otherwise encumbered\n(XIII)",null,"Number of equity shares held in dematerialized form \n(XIV)","Reason for not providing PAN","Shareholder type",{"$nulls":18},"Category"]
[{"$nulls":14},"No of Voting (XIV)\nRights",null,null,"Total as\na % of\nTotal\nVoting\nrights",{"$nulls":29},"More than 1 percentage of shareholding"]
[{"$nulls":14},"Class\neg:\nX","Class\neg:y","Total",{"$nulls":5},"No.\n(a)","As a % of total Shares held\n(b)","No.\n(a)","As a % of total Shares held\n(b)"]
[{"$nulls":3},"A2(d)","Any Other (specify)"]
[{"$nulls":12},{"$f":"+IFERROR(IF(COUNT(J13:L13),ROUND(SUM(J13:L13),0),\"\"),\"\")","v":""},{"$f":"+IFERROR(IF(COUNT(M13),ROUND(M13/'Shareholding Pattern'!$L$78*100,2),\"\"),0)","v":""},{"$f":"IF(J13=\"\",\"\",J13)","v":""},null,{"$f":"+IFERROR(IF(COUNT(O13:P13),ROUND(SUM(O13,P13),0),\"\"),\"\")","v":""},{"$f":"+IFERROR(IF(COUNT(Q13),ROUND(Q13/('Shareholding Pattern'!$P$79)*100,2),\"\"),0)","v":""},null,null,{"$f":"+IFERROR(IF(COUNT(S13:T13),ROUND(SUM(S13:T13),0),\"\"),\"\")","v":""},{"$f":"+IFERROR(IF(COUNT(M13,U13),ROUND(SUM(U13,M13)/SUM('Shareholding Pattern'!$L$78,'Shareholding Pattern'!$T$78)*100,2),\"\"),0)","v":""},null,{"$f":"+IFERROR(IF(W13=\"\",\"\",(IF(COUNT(W13,M13),ROUND(SUM(W13)/SUM(M13)*100,2),\"\"))),0)","v":""},null,{"$f":"+IFERROR(IF(Y13=\"\",\"\",(IF(COUNT(Y13,M13),ROUND(SUM(Y13)/SUM(M13)*100,2),\"\"))),0)","v":""},{"$nulls":5},{"$f":"IF(SUM(I13:AA13),1,0)","v":0},{"$f":"IF(COUNT(H15:$Y$14998)=0,\"\",SUM(AF1:AF65531))","v":""}]
[]
[]
[{"$nulls":6},"Click here to go back","Total",{"$f":"+IFERROR(IF(COUNT(I14:I15),ROUND(SUM(I14:I15),0),\"\"),\"\")","v":""},{"$f":"+IFERROR(IF(COUNT(J14:J15),ROUND(SUM(J14:J15),0),\"\"),\"\")","v":""},{"$f":"+IFERROR(IF(COUNT(K14:K15),ROUND(SUM(K14:K15),0),\"\"),\"\")","v":""},{"$f":"+IFERROR(IF(COUNT(L14:L15),ROUND(SUM(L14:L15),0),\"\"),\"\")","v":""},{"$f":"+IFERROR(IF(COUNT(M14:M15),ROUND(SUM(M14:M15),0),\"\"),\"\")","v":""},{"$f":"+IFERROR(IF(COUNT(M16),ROUND(M16/'Shareholding Pattern'!$L$78*100,2),\"\"),0)","v":""},{"$f":"+IFERROR(IF(COUNT(O14:O15),ROUND(SUM(O14:O15),0),\"\"),\"\")","v":""},{"$f":"+IFERROR(IF(COUNT(P14:P15),ROUND(SUM(P14:P15),0),\"\"),\"\")","v":""},{"$f":"+IFERROR(IF(COUNT(Q14:Q15),ROUND(SUM(Q14:Q15),0),\"\"),\"\")","v":""},{"$f":"+IFERROR(IF(COUNT(Q16),ROUND(Q16/('Shareholding Pattern'!$P$79)*100,2),\"\"),0)","v":""},{"$f":"+IFERROR(IF(COUNT(S14:S15),ROUND(SUM(S14:S15),0),\"\"),\"\")","v":""},{"$f":"+IFERROR(IF(COUNT(T14:T15),ROUND(SUM(T14:T15),0),\"\"),\"\")","v":""},{"$f":"+IFERROR(IF(COUNT(U14:U15),ROUND(SUM(U14:U15),0),\"\"),\"\")","v":""},{"$f":"+IFERROR(IF(COUNT(M16,U16),ROUND(SUM(U16,M16)/SUM('Shareholding Pattern'!$L$78,'Shareholding Pattern'!$T$78)*100,2),\"\"),0)","v":""},{"$f":"+IFERROR(IF(COUNT(W14:W15),ROUND(SUM(W14:W15),0),\"\"),\"\")","v":""},{"$f":"+IFERROR(IF(COUNT(W16,J16),ROUND(SUM(W16)/SUM(M16)*100,2),\"\"),0)","v":""},{"$f":"+IFERROR(IF(COUNT(Y14:Y15),ROUND(SUM(Y14:Y15),0),\"\"),\"\")","v":""},{"$f":"+IFERROR(IF(COUNT(Y16,J16),ROUND(SUM(Y16)/SUM(M16)*100,2),\"\"),0)","v":""},{"$f":"+IFERROR(IF(COUNT(AA14:AA15),ROUND(SUM(AA14:AA15),0),\"\"),\"\")","v":""}]

{"sheet":"MutuaFund","index":15,"n_rows":16,"n_cols":44,"rows_kept":16,"hidden":true,"merged":[[8,4,10,4],[8,5,10,5],[8,6,10,6],[8,7,10,7],[8,8,10,8],[8,9,10,9],[8,10,10,10],[8,11,10,11],[8,12,8,15],[8,16,10,16],[8,17,10,17],[8,18,10,18],[8,19,10,19],[8,20,9,21],[8,22,10,22],[8,23,10,23],[8,24,8,26],[9,12,9,14],[9,15,10,15],[9,24,9,26]]}
[{"$nulls":8},0]
[{"$nulls":5},"Name of shareholder","Permanent account number of shareholder","Number of fully paid up equity shares","Number of partly paid-up equity shares","Number of shares underlying outstanding depository receipts","Total number of shares","Shareholding as a percentage of total number of shares held by promoters and public shareholders and custodians or DR holders","Number of voting rights held by same class of securities","Number of voting rights held by differential voting rights","Total Number of voting rights","Percentage of total number of voting rights","Number of shares underlying outstanding convertible securities","Number of warrant","Number of warrant and convertible securities","Total shareholding as a percentage assuming full conversion of convertible securities","Number of the locked-in-shares ","Locked-in-shares as a percentage of total number of shares","Number of equity shares held in dematerialized form","Reason for not providing PAN","Number of share under sub category one","Number of share under sub category two","Number of share under sub category three"]
[]
[]
[]
[]
[{"$nulls":43},"NRI"]
[{"$nulls":43},"Trusts"]
[{"$nulls":4},"Searial No.","Name\nof the \nShareholders\n     (I)","PAN \n(II)","No. of fully paid up equity shares held\n(IV)","No. Of Partly paid-up equity shares held\n(V)","No. Of shares underlying Depository Receipts\n(VI)","Total nos. shares\nheld\n(VII) = (IV)+(V)+ (VI)","Shareholding as a % of total no. of shares (calculated as per SCRR, 1957)\n(VIII)\nAs a % of (A+B+C2)","Number of Voting Rights held in each class of securities\n(IX)",{"$nulls":3},"No. Of Shares Underlying Outstanding convertible securities\n(X)","No. of Shares Underlying Outstanding Warrants (Xi)","No. Of Shares Underlying Outstanding convertible securities and No. Of Warrants\n(Xi) (a)","Shareholding , as a % assuming full conversion of convertible securities (as a percentage of diluted share capital)\n(XI)= (VII)+(X)\nAs a % of (A+B+C2)","Number of Locked in shares\n(XII)",null,"Number of equity shares held in dematerialized form \n(XIV)","Reason for not providing PAN","Sub-categorization of shares",{"$nulls":18},"Market Maker"]
[{"$nulls":12},"No of Voting (XIV)\nRights",null,null,"Total as\na % of\nTotal\nVoting\nrights",{"$nulls":8},"Shareholding (No. of shares) under",{"$nulls":18},"HUF"]
[{"$nulls":12},"Class\neg:\nX","Class\neg:y","Total",{"$nulls":5},"No.\n(a)","As a % of total Shares held\n(b)",null,null,"Sub-category (i)","Sub-category (ii)","Sub-category (iii)",{"$nulls":16},"Clearing Members"]
[{"$nulls":4},"B1(a)","Mutual Funds",{"$nulls":37},"NSDL or CDSL transit"]
[{"$nulls":10},{"$f":"+IFERROR(IF(COUNT(H13:J13),ROUND(SUM(H13:J13),0),\"\"),\"\")","v":""},{"$f":"+IFERROR(IF(COUNT(K13),ROUND(K13/'Shareholding Pattern'!$L$78*100,2),\"\"),\"\")","v":""},{"$f":"IF(H13=\"\",\"\",H13)","v":""},null,{"$f":"+IFERROR(IF(COUNT(M13:N13),ROUND(SUM(M13,N13),2),\"\"),\"\")","v":""},{"$f":"+IFERROR(IF(COUNT(O13),ROUND(O13/('Shareholding Pattern'!$P$79)*100,2),\"\"),\"\")","v":""},null,null,{"$f":"+IFERROR(IF(COUNT(Q13:R13),ROUND(SUM(Q13:R13),0),\"\"),\"\")","v":""},{"$f":"+IFERROR(IF(COUNT(K13,S13),ROUND(SUM(S13,K13)/SUM('Shareholding Pattern'!$L$78,'Shareholding Pattern'!$T$78)*100,2),\"\"),\"\")","v":""},null,{"$f":"+IFERROR(IF(COUNT(U13),ROUND(SUM(U13)/SUM(K13)*100,2),\"\"),0)","v":""},{"$nulls":6},{"$f":"IF(SUM(H13:W13)>0,1,0)","v":0},{"$f":"SUM(AC15:AC65535)","v":0},{"$nulls":13},"Employee welfare fund"]
[{"$nulls":6},"Disclosure of shareholder holding more than 1% of total number of shares",{"$nulls":36},"Overseas corporate bodies"]
[]
[{"$nulls":5},"Click here to go back","Total",{"$f":"+IFERROR(IF(COUNT(H14:H15),ROUND(SUM(H14:H15),0),\"\"),\"\")","v":""},{"$f":"+IFERROR(IF(COUNT(I14:I15),ROUND(SUM(I14:I15),0),\"\"),\"\")","v":""},{"$f":"+IFERROR(IF(COUNT(J14:J15),ROUND(SUM(J14:J15),0),\"\"),\"\")","v":""},{"$f":"+IFERROR(IF(COUNT(K14:K15),ROUND(SUM(K14:K15),0),\"\"),\"\")","v":""},{"$f":"+IFERROR(IF(COUNT(K16),ROUND(K16/'Shareholding Pattern'!$L$78*100,2),\"\"),\"\")","v":""},{"$f":"+IFERROR(IF(COUNT(M14:M15),ROUND(SUM(M14:M15),0),\"\"),\"\")","v":""},{"$f":"+IFERROR(IF(COUNT(N14:N15),ROUND(SUM(N14:N15),0),\"\"),\"\")","v":""},{"$f":"+IFERROR(IF(COUNT(O14:O15),ROUND(SUM(O14:O15),0),\"\"),\"\")","v":""},{"$f":"+IFERROR(IF(COUNT(O16),ROUND(O16/('Shareholding Pattern'!$P$79)*100,2),\"\"),\"\")","v":""},{"$f":"+IFERROR(IF(COUNT(Q14:Q15),ROUND(SUM(Q14:Q15),0),\"\"),\"\")","v":""},{"$f":"+IFERROR(IF(COUNT(R14:R15),ROUND(SUM(R14:R15),0),\"\"),\"\")","v":""},{"$f":"+IFERROR(IF(COUNT(S14:S15),ROUND(SUM(S14:S15),0),\"\"),\"\")","v":""},{"$f":"+IFERROR(IF(COUNT(K16,S16),ROUND(SUM(S16,K16)/SUM('Shareholding Pattern'!$L$78,'Shareholding Pattern'!$T$78)*100,2),\"\"),\"\")","v":""},{"$f":"+IFERROR(IF(COUNT(U14:U15),ROUND(SUM(U14:U15),0),\"\"),\"\")","v":""},{"$f":"+IFERROR(IF(COUNT(U16),ROUND(SUM(U16)/SUM(K16)*100,2),\"\"),0)","v":""},{"$f":"+IFERROR(IF(COUNT(W14:W15),ROUND(SUM(W14:W15),0),\"\"),\"\")","v":""},null,{"$f":"+IFERROR(IF(COUNT(Y14:Y15),ROUND(SUM(Y14:Y15),0),\"\"),\"\")","v":""},{"$f":"+IFERROR(IF(COUNT(Z14:Z15),ROUND(SUM(Z14:Z15),0),\"\"),\"\")","v":""},{"$f":"+IFERROR(IF(COUNT(AA14:AA15),ROUND(SUM(AA14:AA15),0),\"\"),\"\")","v":""}]

{"sheet":"VentureCap","index":16,"n_rows":16,"n_cols":44,"rows_kept":16,"hidden":true,"merged":[[8,4,10,4],[8,5,10,5],[8,6,10,6],[8,7,10,7],[8,8,10,8],[8,9,10,9],[8,10,10,10],[8,11,10,11],[8,12,8,15],[8,16,10,16],[8,17,10,17],[8,18,10,18],[8,19,10,19],[8,20,9,21],[8,22,10,22],[8,23,10,23],[8,24,8,26],[9,12,9,14],[9,15,10,15],[9,24,9,26]]}
[{"$nulls":8},0]
[{"$nulls":5},"Name of shareholder","Permanent account number of shareholder","Number of fully paid up equity shares","Number of partly paid-up equity shares","Number of shares underlying outstanding depository receipts","Total number of shares","Shareholding as a percentage of total number of shares held by promoters and public shareholders and custodians or DR holders","Number of voting rights held by same class of securities","Number of voting rights held by differential voting rights","Total Number of voting rights","Percentage of total number of voting rights","Number of shares underlying outstanding convertible securities","Number of warrant","Number of warrant and convertible securities","Total shareholding as a percentage assuming full conversion of convertible securities","Number of the locked-in-shares ","Locked-in-shares as a percentage of total number of shares","Number of equity shares held in dematerialized form","Reason for not providing PAN","Number of share under sub category one","Number of share under sub category two","Number of share under sub category three"]
[]
[]
[]
[]
[{"$nulls":43},"NRI"]
[{"$nulls":43},"Trusts"]
[{"$nulls":4},"Searial No.","Name\nof the \nShareholders\n     (I)","PAN \n(II)","No. of fully paid up equity shares held\n(IV)","No. Of Partly paid-up equity shares held\n(V)","No. Of shares underlying Depository Receipts\n(VI)","Total nos. shares\nheld\n(VII) = (IV)+(V)+ (VI)","Shareholding as a % of total no. of shares (calculated as per SCRR, 1957)\n(VIII)\nAs a % of (A+B+C2)","Number of Voting Rights held in each class of securities\n(IX)",{"$nulls":3},"No. Of Shares Underlying Outstanding convertible securities\n(X)","No. of Shares Underlying Outstanding Warrants (Xi)","No. Of Shares Underlying Outstanding convertible securities and No. Of Warrants\n(Xi) (a)","Shareholding , as a % assuming full conversion of convertible securities (as a percentage of diluted share capital)\n(XI)= (VII)+(X)\nAs a % of (A+B+C2)","Number of Locked in shares\n(XII)",null,"Number of equity shares held in dematerialized form \n(XIV)","Reason for not providing PAN","Sub-categorization of shares",{"$nulls":18},"Market Maker"]
[{"$nulls":12},"No of Voting (XIV)\nRights",null,null,"Total as\na % of\nTotal\nVoting\nrights",{"$nulls":8},"Shareholding (No. of shares) under",{"$nulls":18},"HUF"]
[{"$nulls":12},"Class\neg:\nX","Class\neg:y","Total",{"$nulls":5},"No.\n(a)","As a % of total Shares held\n(b)",null,null,"Sub-category (i)","Sub-category (ii)","Sub-category (iii)",{"$nulls":16},"Clearing Members"]
[{"$nulls":4},"B1(b)","Venture Capital Funds",{"$nulls":37},"NSDL or CDSL transit"]
[{"$nulls":10},{"$f":"+IFERROR(IF(COUNT(H13:J13),ROUND(SUM(H13:J13),0),\"\"),\"\")","v":""},{"$f":"+IFERROR(IF(COUNT(K13),ROUND(K13/'Shareholding Pattern'!$L$78*100,2),\"\"),\"\")","v":""},{"$f":"IF(H13=\"\",\"\",H13)","v":""},null,{"$f":"+IFERROR(IF(COUNT(M13:N13),ROUND(SUM(M13,N13),2),\"\"),\"\")","v":""},{"$f":"+IFERROR(IF(COUNT(O13),ROUND(O13/('Shareholding Pattern'!$P$79)*100,2),\"\"),\"\")","v":""},null,null,{"$f":"+IFERROR(IF(COUNT(Q13:R13),ROUND(SUM(Q13:R13),0),\"\"),\"\")","v":""},{"$f":"+IFERROR(IF(COUNT(K13,S13),ROUND(SUM(S13,K13)/SUM('Shareholding Pattern'!$L$78,'Shareholding Pattern'!$T$78)*100,2),\"\"),\"\")","v":""},null,{"$f":"+IFERROR(IF(COUNT(U13),ROUND(SUM(U13)/SUM(K13)*100,2),\"\"),0)","v":""},{"$nulls":6},{"$f":"IF(SUM(H13:W13)>0,1,0)","v":0},{"$f":"SUM(AC15:AC65535)","v":0},{"$nulls":13},"Employee welfare fund"]
[{"$nulls":6},"\nDisclosure of shareholder holding more than 1% of total number of shares",{"$nulls":36},"Overseas corporate bodies"]
[{"$nulls":43},"Private equity fund"]
[{"$nulls":5},"Click here to go back","Total",{"$f":"+IFERROR(IF(COUNT(H14:H15),ROUND(SUM(H14:H15),0),\"\"),\"\")","v":""},{"$f":"+IFERROR(IF(COUNT(I14:I15),ROUND(SUM(I14:I15),0),\"\"),\"\")","v":""},{"$f":"+IFERROR(IF(COUNT(J14:J15),ROUND(SUM(J14:J15),0),\"\"),\"\")","v":""},{"$f":"+IFERROR(IF(COUNT(K14:K15),ROUND(SUM(K14:K15),0),\"\"),\"\")","v":""},{"$f":"+IFERROR(IF(COUNT(K16),ROUND(K16/'Shareholding Pattern'!$L$78*100,2),\"\"),\"\")","v":""},{"$f":"+IFERROR(IF(COUNT(M14:M15),ROUND(SUM(M14:M15),0),\"\"),\"\")","v":""},{"$f":"+IFERROR(IF(COUNT(N14:N15),ROUND(SUM(N14:N15),0),\"\"),\"\")","v":""},{"$f":"+IFERROR(IF(COUNT(O14:O15),ROUND(SUM(O14:O15),0),\"\"),\"\")","v":""},{"$f":"+IFERROR(IF(COUNT(O16),ROUND(O16/('Shareholding Pattern'!$P$79)*100,2),\"\"),\"\")","v":""},{"$f":"+IFERROR(IF(COUNT(Q14:Q15),ROUND(SUM(Q14:Q15),0),\"\"),\"\")","v":""},{"$f":"+IFERROR(IF(COUNT(R14:R15),ROUND(SUM(R14:R15),0),\"\"),\"\")","v":""},{"$f":"+IFERROR(IF(COUNT(S14:S15),ROUND(SUM(S14:S15),0),\"\"),\"\")","v":""},{"$f":"+IFERROR(IF(COUNT(K16,S16),ROUND(SUM(S16,K16)/SUM('Shareholding Pattern'!$L$78,'Shareholding Pattern'!$T$78)*100,2),\"\"),\"\")","v":""},{"$f":"+IFERROR(IF(COUNT(U14:U15),ROUND(SUM(U14:U15),0),\"\"),\"\")","v":""},{"$f":"+IFERROR(IF(COUNT(U16),ROUND(SUM(U16)/SUM(K16)*100,2),\"\"),0)","v":""},{"$f":"+IFERROR(IF(COUNT(W14:W15),ROUND(SUM(W14:W15),0),\"\"),\"\")","v":""},null,{"$f":"+IFERROR(IF(COUNT(Y14:Y15),ROUND(SUM(Y14:Y15),0),\"\"),\"\")","v":""},{"$f":"+IFERROR(IF(COUNT(Z14:Z15),ROUND(SUM(Z14:Z15),0),\"\"),\"\")","v":""},{"$f":"+IFERROR(IF(COUNT(AA14:AA15),ROUND(SUM(AA14:AA15),0),\"\"),\"\")","v":""},{"$nulls":16},"Other"]

{"sheet":"AIF","index":17,"n_rows":16,"n_cols":44,"rows_kept":16,"hidden":true,"merged":[[8,4,10,4],[8,5,10,5],[8,6,10,6],[8,7,10,7],[8,8,10,8],[8,9,10,9],[8,10,10,10],[8,11,10,11],[8,12,8,15],[8,16,10,16],[8,17,10,17],[8,18,10,18],[8,19,10,19],[8,20,9,21],[8,22,10,22],[8,23,10,23],[8,24,8,26],[9,12,9,14],[9,15,10,15],[9,24,9,26]]}
[{"$nulls":8},0]
[{"$nulls":5},"Name of shareholder","Permanent account number of shareholder","Number of fully paid up equity shares","Number of partly paid-up equity shares","Number of shares underlying outstanding depository receipts","Total number of shares","Shareholding as a percentage of total number of shares held by promoters and public shareholders and custodians or DR holders","Number of voting rights held by same class of securities","Number of voting rights held by differential voting rights","Total Number of voting rights","Percentage of total number of voting rights","Number of shares underlying outstanding convertible securities","Number of warrant","Number of warrant and convertible securities","Total shareholding as a percentage assuming full conversion of convertible securities","Number of the locked-in-shares ","Locked-in-shares as a percentage of total number of shares","Number of equity shares held in dematerialized form","Reason for not providing PAN","Number of share under sub category one","Number of share under sub category two","Number of share under sub category three"]
[]
[]
[]
[]
[{"$nulls":43},"NRI"]
[{"$nulls":43},"Trusts"]
[{"$nulls":4},"Searial No.","Name\nof the \nShareholders\n     (I)","PAN \n(II)","No. of fully paid up equity shares held\n(IV)","No. Of Partly paid-up equity shares held\n(V)","No. Of shares underlying Depository Receipts\n(VI)","Total nos. shares\nheld\n(VII) = (IV)+(V)+ (VI)","Shareholding as a % of total no. of shares (calculated as per SCRR, 1957)\n(VIII)\nAs a % of (A+B+C2)","Number of Voting Rights held in each class of securities\n(IX)",{"$nulls":3},"No. Of Shares Underlying Outstanding convertible securities\n(X)","No. of Shares Underlying Outstanding Warrants (Xi)","No. Of Shares Underlying Outstanding convertible securities and No. Of Warrants\n(Xi) (a)","Shareholding , as a % assuming full conversion of convertible securities (as a percentage of diluted share capital)\n(XI)= (VII)+(X)\nAs a % of (A+B+C2)","Number of Locked in shares\n(XII)",null,"Number of equity shares held in dematerialized form \n(XIV)","Reason for not providing PAN","Sub-categorization of shares",{"$nulls":18},"Market Maker"]
[{"$nulls":12},"No of Voting (XIV)\nRights",null,null,"Total as\na % of\nTotal\nVoting\nrights",{"$nulls":8},"Shareholding (No. of shares) under",{"$nulls":18},"HUF"]
[{"$nulls":12},"Class\neg:\nX","Class\neg:y","Total",{"$nulls":5},"No.\n(a)","As a % of total Shares held\n(b)",null,null,"Sub-category (i)","Sub-category (ii)","Sub-category (iii)",{"$nulls":16},"Clearing Members"]
[{"$nulls":4},"B1(c)","Alternate Investment Funds",{"$nulls":37},"NSDL or CDSL transit"]
[{"$nulls":10},{"$f":"+IFERROR(IF(COUNT(H13:J13),ROUND(SUM(H13:J13),0),\"\"),\"\")","v":""},{"$f":"+IFERROR(IF(COUNT(K13),ROUND(K13/'Shareholding Pattern'!$L$78*100,2),\"\"),\"\")","v":""},{"$f":"IF(H13=\"\",\"\",H13)","v":""},null,{"$f":"+IFERROR(IF(COUNT(M13:N13),ROUND(SUM(M13,N13),2),\"\"),\"\")","v":""},{"$f":"+IFERROR(IF(COUNT(O13),ROUND(O13/('Shareholding Pattern'!$P$79)*100,2),\"\"),\"\")","v":""},null,null,{"$f":"+IFERROR(IF(COUNT(Q13:R13),ROUND(SUM(Q13:R13),0),\"\"),\"\")","v":""},{"$f":"+IFERROR(IF(COUNT(K13,S13),ROUND(SUM(S13,K13)/SUM('Shareholding Pattern'!$L$78,'Shareholding Pattern'!$T$78)*100,2),\"\"),\"\")","v":""},null,{"$f":"+IFERROR(IF(COUNT(U13),ROUND(SUM(U13)/SUM(K13)*100,2),\"\"),0)","v":""},{"$nulls":6},{"$f":"IF(SUM(H13:W13)>0,1,0)","v":0},{"$f":"SUM(AC15:AC65535)","v":0},{"$nulls":13},"Employee welfare fund"]
[{"$nulls":6},"Disclosure of shareholder holding more than 1% of total number of shares",{"$nulls":36},"Overseas corporate bodies"]
[{"$nulls":43},"Private equity fund"]
[{"$nulls":5},"Click here to go back","Total",{"$f":"+IFERROR(IF(COUNT(H14:H15),ROUND(SUM(H14:H15),0),\"\"),\"\")","v":""},{"$f":"+IFERROR(IF(COUNT(I14:I15),ROUND(SUM(I14:I15),0),\"\"),\"\")","v":""},{"$f":"+IFERROR(IF(COUNT(J14:J15),ROUND(SUM(J14:J15),0),\"\"),\"\")","v":""},{"$f":"+IFERROR(IF(COUNT(K14:K15),ROUND(SUM(K14:K15),0),\"\"),\"\")","v":""},{"$f":"+IFERROR(IF(COUNT(K16),ROUND(K16/'Shareholding Pattern'!$L$78*100,2),\"\"),\"\")","v":""},{"$f":"+IFERROR(IF(COUNT(M14:M15),ROUND(SUM(M14:M15),0),\"\"),\"\")","v":""},{"$f":"+IFERROR(IF(COUNT(N14:N15),ROUND(SUM(N14:N15),0),\"\"),\"\")","v":""},{"$f":"+IFERROR(IF(COUNT(O14:O15),ROUND(SUM(O14:O15),0),\"\"),\"\")","v":""},{"$f":"+IFERROR(IF(COUNT(O16),ROUND(O16/('Shareholding Pattern'!$P$79)*100,2),\"\"),\"\")","v":""},{"$f":"+IFERROR(IF(COUNT(Q14:Q15),ROUND(SUM(Q14:Q15),0),\"\"),\"\")","v":""},{"$f":"+IFERROR(IF(COUNT(R14:R15),ROUND(SUM(R14:R15),0),\"\"),\"\")","v":""},{"$f":"+IFERROR(IF(COUNT(S14:S15),ROUND(SUM(S14:S15),0),\"\"),\"\")","v":""},{"$f":"+IFERROR(IF(COUNT(K16,S16),ROUND(SUM(S16,K16)/SUM('Shareholding Pattern'!$L$78,'Shareholding Pattern'!$T$78)*100,2),\"\"),\"\")","v":""},{"$f":"+IFERROR(IF(COUNT(U14:U15),ROUND(SUM(U14:U15),0),\"\"),\"\")","v":""},{"$f":"+IFERROR(IF(COUNT(U16),ROUND(SUM(U16)/SUM(K16)*100,2),\"\"),0)","v":""},{"$f":"+IFERROR(IF(COUNT(W14:W15),ROUND(SUM(W14:W15),0),\"\"),\"\")","v":""},null,{"$f":"+IFERROR(IF(COUNT(Y14:Y15),ROUND(SUM(Y14:Y15),0),\"\"),\"\")","v":""},{"$f":"+IFERROR(IF(COUNT(Z14:Z15),ROUND(SUM(Z14:Z15),0),\"\"),\"\")","v":""},{"$f":"+IFERROR(IF(COUNT(AA14:AA15),ROUND(SUM(AA14:AA15),0),\"\"),\"\")","v":""},{"$nulls":16},"Other"]

{"sheet":"FVC","index":18,"n_rows":16,"n_cols":43,"rows_kept":16,"hidden":true,"merged":[[8,4,10,4],[8,5,10,5],[8,6,10,6],[8,7,10,7],[8,8,10,8],[8,9,10,9],[8,10,10,10],[8,11,10,11],[8,12,8,15],[8,16,10,16],[8,17,10,17],[8,18,10,18],[8,19,10,19],[8,20,9,21],[8,22,10,22],[8,23,10,23],[8,24,8,26],[9,12,9,14],[9,15,10,15],[9,24,9,26]]}
[{"$nulls":8},0]
[{"$nulls":5},"Name of shareholder","Permanent account number of shareholder","Number of fully paid up equity shares","Number of partly paid-up equity shares","Number of shares underlying outstanding depository receipts","Total number of shares","Shareholding as a percentage of total number of shares held by promoters and public shareholders and custodians or DR holders","Number of voting rights held by same class of securities","Number of voting rights held by differential voting rights","Total Number of voting rights","Percentage of total number of voting rights","Number of shares underlying outstanding convertible securities","Number of warrant","Number of warrant and convertible securities","Total shareholding as a percentage assuming full conversion of convertible securities","Number of the locked-in-shares ","Locked-in-shares as a percentage of total number of shares","Number of equity shares held in dematerialized form","Reason for not providing PAN","Number of share under sub category one","Number of share under sub category two","Number of share under sub category three"]
[]
[]
[]
[]
[{"$nulls":42},"NRI"]
[{"$nulls":42},"Trusts"]
[{"$nulls":4},"Searial No.","Name\nof the \nShareholders\n     (I)","PAN \n(II)","No. of fully paid up equity shares held\n(IV)","No. Of Partly paid-up equity shares held\n(V)","No. Of shares underlying Depository Receipts\n(VI)","Total nos. shares\nheld\n(VII) = (IV)+(V)+ (VI)","Shareholding as a % of total no. of shares (calculated as per SCRR, 1957)\n(VIII)\nAs a % of (A+B+C2)","Number of Voting Rights held in each class of securities\n(IX)",{"$nulls":3},"No. Of Shares Underlying Outstanding convertible securities\n(X)","No. of Shares Underlying Outstanding Warrants (Xi)","No. Of Shares Underlying Outstanding convertible securities and No. Of Warrants\n(Xi) (a)","Shareholding , as a % assuming full conversion of convertible securities (as a percentage of diluted share capital)\n(XI)= (VII)+(X)\nAs a % of (A+B+C2)","Number of Locked in shares\n(XII)",null,"Number of equity shares held in dematerialized form \n(XIV)","Reason for not providing PAN","Sub-categorization of shares",{"$nulls":17},"Market Maker"]
[{"$nulls":12},"No of Voting (XIV)\nRights",null,null,"Total as\na % of\nTotal\nVoting\nrights",{"$nulls":8},"Shareholding (No. of shares) under",{"$nulls":17},"HUF"]
[{"$nulls":12},"Class\neg:\nX","Class\neg:y","Total",{"$nulls":5},"No.\n(a)","As a % of total Shares held\n(b)",null,null,"Sub-category (i)","Sub-category (ii)","Sub-category (iii)",{"$nulls":15},"Clearing Members"]
[{"$nulls":4},"B2(b)","Foreign Venture Capital Investors",{"$nulls":36},"NSDL or CDSL transit"]
[{"$nulls":10},{"$f":"+IFERROR(IF(COUNT(H13:J13),ROUND(SUM(H13:J13),0),\"\"),\"\")","v":""},{"$f":"+IFERROR(IF(COUNT(K13),ROUND(K13/'Shareholding Pattern'!$L$78*100,2),\"\"),\"\")","v":""},{"$f":"IF(H13=\"\",\"\",H13)","v":""},null,{"$f":"+IFERROR(IF(COUNT(M13:N13),ROUND(SUM(M13,N13),2),\"\"),\"\")","v":""},{"$f":"+IFERROR(IF(COUNT(O13),ROUND(O13/('Shareholding Pattern'!$P$79)*100,2),\"\"),\"\")","v":""},null,null,{"$f":"+IFERROR(IF(COUNT(Q13:R13),ROUND(SUM(Q13:R13),0),\"\"),\"\")","v":""},{"$f":"+IFERROR(IF(COUNT(K13,S13),ROUND(SUM(S13,K13)/SUM('Shareholding Pattern'!$L$78,'Shareholding Pattern'!$T$78)*100,2),\"\"),\"\")","v":""},null,{"$f":"+IFERROR(IF(COUNT(U13),ROUND(SUM(U13)/SUM(K13)*100,2),\"\"),0)","v":""},{"$nulls":6},{"$f":"SUM(#REF!)","v":{"$error":"#REF!"}},{"$nulls":13},"Employee welfare fund"]
[{"$nulls":6},"Disclosure of shareholder holding more than 1% of total number of shares",{"$nulls":35},"Overseas corporate bodies"]
[{"$nulls":42},"Private equity fund"]
[{"$nulls":5},"Click here to go back","Total",{"$f":"+IFERROR(IF(COUNT(H14:H15),ROUND(SUM(H14:H15),0),\"\"),\"\")","v":""},{"$f":"+IFERROR(IF(COUNT(I14:I15),ROUND(SUM(I14:I15),0),\"\"),\"\")","v":""},{"$f":"+IFERROR(IF(COUNT(J14:J15),ROUND(SUM(J14:J15),0),\"\"),\"\")","v":""},{"$f":"+IFERROR(IF(COUNT(K14:K15),ROUND(SUM(K14:K15),0),\"\"),\"\")","v":""},{"$f":"+IFERROR(IF(COUNT(K16),ROUND(K16/'Shareholding Pattern'!$L$78*100,2),\"\"),\"\")","v":""},{"$f":"+IFERROR(IF(COUNT(M14:M15),ROUND(SUM(M14:M15),0),\"\"),\"\")","v":""},{"$f":"+IFERROR(IF(COUNT(N14:N15),ROUND(SUM(N14:N15),0),\"\"),\"\")","v":""},{"$f":"+IFERROR(IF(COUNT(O14:O15),ROUND(SUM(O14:O15),0),\"\"),\"\")","v":""},{"$f":"+IFERROR(IF(COUNT(O16),ROUND(O16/('Shareholding Pattern'!$P$79)*100,2),\"\"),\"\")","v":""},{"$f":"+IFERROR(IF(COUNT(Q14:Q15),ROUND(SUM(Q14:Q15),0),\"\"),\"\")","v":""},{"$f":"+IFERROR(IF(COUNT(R14:R15),ROUND(SUM(R14:R15),0),\"\"),\"\")","v":""},{"$f":"+IFERROR(IF(COUNT(S14:S15),ROUND(SUM(S14:S15),0),\"\"),\"\")","v":""},{"$f":"+IFERROR(IF(COUNT(K16,S16),ROUND(SUM(S16,K16)/SUM('Shareholding Pattern'!$L$78,'Shareholding Pattern'!$T$78)*100,2),\"\"),\"\")","v":""},{"$f":"+IFERROR(IF(COUNT(U14:U15),ROUND(SUM(U14:U15),0),\"\"),\"\")","v":""},{"$f":"+IFERROR(IF(COUNT(U16),ROUND(SUM(U16)/SUM(K16)*100,2),\"\"),0)","v":""},{"$f":"+IFERROR(IF(COUNT(W14:W15),ROUND(SUM(W14:W15),0),\"\"),\"\")","v":""},null,{"$f":"+IFERROR(IF(COUNT(Y14:Y15),ROUND(SUM(Y14:Y15),0),\"\"),\"\")","v":""},{"$f":"+IFERROR(IF(COUNT(Z14:Z15),ROUND(SUM(Z14:Z15),0),\"\"),\"\")","v":""},{"$f":"+IFERROR(IF(COUNT(AA14:AA15),ROUND(SUM(AA14:AA15),0),\"\"),\"\")","v":""},{"$nulls":15},"Other"]

{"sheet":"FPI_Insti","index":19,"n_rows":16,"n_cols":43,"rows_kept":16,"hidden":true,"merged":[[8,4,10,4],[8,5,10,5],[8,6,10,6],[8,7,10,7],[8,8,10,8],[8,9,10,9],[8,10,10,10],[8,11,10,11],[8,12,8,15],[8,16,10,16],[8,17,10,17],[8,18,10,18],[8,19,10,19],[8,20,9,21],[8,22,10,22],[8,23,10,23],[8,24,8,26],[9,12,9,14],[9,15,10,15],[9,24,9,26]]}
[{"$nulls":8},0]
[{"$nulls":5},"Name of shareholder","Permanent account number of shareholder","Number of fully paid up equity shares","Number of partly paid-up equity shares","Number of shares underlying outstanding depository receipts","Total number of shares","Shareholding as a percentage of total number of shares held by promoters and public shareholders and custodians or DR holders","Number of voting rights held by same class of securities","Number of voting rights held by differential voting rights","Total Number of voting rights","Percentage of total number of voting rights","Number of shares underlying outstanding convertible securities","Number of warrant","Number of warrant and convertible securities","Total shareholding as a percentage assuming full conversion of convertible securities","Number of the locked-in-shares ","Locked-in-shares as a percentage of total number of shares","Number of equity shares held in dematerialized form","Reason for not providing PAN","Number of share under sub category one","Number of share under sub category two","Number of share under sub category three"]
[]
[]
[]
[]
[{"$nulls":42},"NRI"]
[{"$nulls":42},"Trusts"]
[{"$nulls":4},"Searial No.","Name\nof the \nShareholders\n     (I)","PAN \n(II)","No. of fully paid up equity shares held\n(IV)","No. Of Partly paid-up equity shares held\n(V)","No. Of shares underlying Depository Receipts\n(VI)","Total nos. shares\nheld\n(VII) = (IV)+(V)+ (VI)","Shareholding as a % of total no. of shares (calculated as per SCRR, 1957)\n(VIII)\nAs a % of (A+B+C2)","Number of Voting Rights held in each class of securities\n(IX)",{"$nulls":3},"No. Of Shares Underlying Outstanding convertible securities\n(X)","No. of Shares Underlying Outstanding Warrants (Xi)","No. Of Shares Underlying Outstanding convertible securities and No. Of Warrants\n(Xi) (a)","Shareholding , as a % assuming full conversion of convertible securities (as a percentage of diluted share capital)\n(XI)= (VII)+(X)\nAs a % of (A+B+C2)","Number of Locked in shares\n(XII)",null,"Number of equity shares held in dematerialized form \n(XIV)","Reason for not providing PAN","Sub-categorization of shares",{"$nulls":17},"Market Maker"]
[{"$nulls":12},"No of Voting (XIV)\nRights",null,null,"Total as\na % of\nTotal\nVoting\nrights",{"$nulls":8},"Shareholding (No. of shares) under",{"$nulls":17},"HUF"]
[{"$nulls":12},"Class\neg:\nX","Class\neg:y","Total",{"$nulls":5},"No.\n(a)","As a % of total Shares held\n(b)",null,null,"Sub-category (i)","Sub-category (ii)","Sub-category (iii)",{"$nulls":15},"Clearing Members"]
[{"$nulls":4},"B2(d)","Foreign Portfolio Investors Category I",{"$nulls":36},"NSDL or CDSL transit"]
[{"$nulls":10},{"$f":"+IFERROR(IF(COUNT(H13:J13),ROUND(SUM(H13:J13),0),\"\"),\"\")","v":""},{"$f":"+IFERROR(IF(COUNT(K13),ROUND(K13/'Shareholding Pattern'!$L$78*100,2),\"\"),\"\")","v":""},{"$f":"IF(H13=\"\",\"\",H13)","v":""},null,{"$f":"+IFERROR(IF(COUNT(M13:N13),ROUND(SUM(M13,N13),2),\"\"),\"\")","v":""},{"$f":"+IFERROR(IF(COUNT(O13),ROUND(O13/('Shareholding Pattern'!$P$79)*100,2),\"\"),\"\")","v":""},null,null,{"$f":"+IFERROR(IF(COUNT(Q13:R13),ROUND(SUM(Q13:R13),0),\"\"),\"\")","v":""},{"$f":"+IFERROR(IF(COUNT(K13,S13),ROUND(SUM(S13,K13)/SUM('Shareholding Pattern'!$L$78,'Shareholding Pattern'!$T$78)*100,2),\"\"),\"\")","v":""},null,{"$f":"+IFERROR(IF(COUNT(U13),ROUND(SUM(U13)/SUM(K13)*100,2),\"\"),0)","v":""},{"$nulls":6},{"$f":"SUM(#REF!)","v":{"$error":"#REF!"}},{"$nulls":13},"Employee welfare fund"]
[{"$nulls":6},"Disclosure of shareholder holding more than 1% of total number of shares",{"$nulls":35},"Overseas corporate bodies"]
[{"$nulls":42},"Private equity fund"]
[{"$nulls":5},"Click here to go back","Total",{"$f":"+IFERROR(IF(COUNT(H14:H15),ROUND(SUM(H14:H15),0),\"\"),\"\")","v":""},{"$f":"+IFERROR(IF(COUNT(I14:I15),ROUND(SUM(I14:I15),0),\"\"),\"\")","v":""},{"$f":"+IFERROR(IF(COUNT(J14:J15),ROUND(SUM(J14:J15),0),\"\"),\"\")","v":""},{"$f":"+IFERROR(IF(COUNT(K14:K15),ROUND(SUM(K14:K15),0),\"\"),\"\")","v":""},{"$f":"+IFERROR(IF(COUNT(K16),ROUND(K16/'Shareholding Pattern'!$L$78*100,2),\"\"),\"\")","v":""},{"$f":"+IFERROR(IF(COUNT(M14:M15),ROUND(SUM(M14:M15),0),\"\"),\"\")","v":""},{"$f":"+IFERROR(IF(COUNT(N14:N15),ROUND(SUM(N14:N15),0),\"\"),\"\")","v":""},{"$f":"+IFERROR(IF(COUNT(O14:O15),ROUND(SUM(O14:O15),0),\"\"),\"\")","v":""},{"$f":"+IFERROR(IF(COUNT(O16),ROUND(O16/('Shareholding Pattern'!$P$79)*100,2),\"\"),\"\")","v":""},{"$f":"+IFERROR(IF(COUNT(Q14:Q15),ROUND(SUM(Q14:Q15),0),\"\"),\"\")","v":""},{"$f":"+IFERROR(IF(COUNT(R14:R15),ROUND(SUM(R14:R15),0),\"\"),\"\")","v":""},{"$f":"+IFERROR(IF(COUNT(S14:S15),ROUND(SUM(S14:S15),0),\"\"),\"\")","v":""},{"$f":"+IFERROR(IF(COUNT(K16,S16),ROUND(SUM(S16,K16)/SUM('Shareholding Pattern'!$L$78,'Shareholding Pattern'!$T$78)*100,2),\"\"),\"\")","v":""},{"$f":"+IFERROR(IF(COUNT(U14:U15),ROUND(SUM(U14:U15),0),\"\"),\"\")","v":""},{"$f":"+IFERROR(IF(COUNT(U16),ROUND(SUM(U16)/SUM(K16)*100,2),\"\"),0)","v":""},{"$f":"+IFERROR(IF(COUNT(W14:W15),ROUND(SUM(W14:W15),0),\"\"),\"\")","v":""},null,{"$f":"+IFERROR(IF(COUNT(Y14:Y15),ROUND(SUM(Y14:Y15),0),\"\"),\"\")","v":""},{"$f":"+IFERROR(IF(COUNT(Z14:Z15),ROUND(SUM(Z14:Z15),0),\"\"),\"\")","v":""},{"$f":"+IFERROR(IF(COUNT(AA14:AA15),ROUND(SUM(AA14:AA15),0),\"\"),\"\")","v":""},{"$nulls":15},"Other"]

{"sheet":"Bank_Insti","index":20,"n_rows":16,"n_cols":44,"rows_kept":16,"hidden":true,"merged":[[8,4,10,4],[8,5,10,5],[8,6,10,6],[8,7,10,7],[8,8,10,8],[8,9,10,9],[8,10,10,10],[8,11,10,11],[8,12,8,15],[8,16,10,16],[8,17,10,17],[8,18,10,18],[8,19,10,19],[8,20,9,21],[8,22,10,22],[8,23,10,23],[8,24,8,26],[9,12,9,14],[9,15,10,15],[9,24,9,26]]}
[{"$nulls":8},0]
[{"$nulls":5},"Name of shareholder","Permanent account number of shareholder","Number of fully paid up equity shares","Number of partly paid-up equity shares","Number of shares underlying outstanding depository receipts","Total number of shares","Shareholding as a percentage of total number of shares held by promoters and public shareholders and custodians or DR holders","Number of voting rights held by same class of securities","Number of voting rights held by differential voting rights","Total Number of voting rights","Percentage of total number of voting rights","Number of shares underlying outstanding convertible securities","Number of warrant","Number of warrant and convertible securities","Total shareholding as a percentage assuming full conversion of convertible securities","Number of the locked-in-shares ","Locked-in-shares as a percentage of total number of shares","Number of equity shares held in dematerialized form","Reason for not providing PAN","Number of share under sub category one","Number of share under sub category two","Number of share under sub category three"]
[]
[]
[]
[]
[{"$nulls":43},"NRI"]
[{"$nulls":43},"Trusts"]
[{"$nulls":4},"Searial No.","Name\nof the \nShareholders\n     (I)","PAN \n(II)","No. of fully paid up equity shares held\n(IV)","No. Of Partly paid-up equity shares held\n(V)","No. Of shares underlying Depository Receipts\n(VI)","Total nos. shares\nheld\n(VII) = (IV)+(V)+ (VI)","Shareholding as a % of total no. of shares (calculated as per SCRR, 1957)\n(VIII)\nAs a % of (A+B+C2)","Number of Voting Rights held in each class of securities\n(IX)",{"$nulls":3},"No. Of Shares Underlying Outstanding convertible securities\n(X)","No. of Shares Underlying Outstanding Warrants (Xi)","No. Of Shares Underlying Outstanding convertible securities and No. Of Warrants\n(Xi) (a)","Shareholding , as a % assuming full conversion of convertible securities (as a percentage of diluted share capital)\n(XI)= (VII)+(X)\nAs a % of (A+B+C2)","Number of Locked in shares\n(XII)",null,"Number of equity shares held in dematerialized form \n(XIV)","Reason for not providing PAN","Sub-categorization of shares",{"$nulls":18},"Market Maker"]
[{"$nulls":12},"No of Voting (XIV)\nRights",null,null,"Total as\na % of\nTotal\nVoting\nrights",{"$nulls":8},"Shareholding (No. of shares) under",{"$nulls":18},"HUF"]
[{"$nulls":12},"Class\neg:\nX","Class\neg:y","Total",{"$nulls":5},"No.\n(a)","As a % of total Shares held\n(b)",null,null,"Sub-category (i)","Sub-category (ii)","Sub-category (iii)",{"$nulls":16},"Clearing Members"]
[{"$nulls":4},"B1(d)","Banks",{"$nulls":37},"NSDL or CDSL transit"]
[{"$nulls":10},{"$f":"+IFERROR(IF(COUNT(H13:J13),ROUND(SUM(H13:J13),0),\"\"),\"\")","v":""},{"$f":"+IFERROR(IF(COUNT(K13),ROUND(K13/'Shareholding Pattern'!$L$78*100,2),\"\"),\"\")","v":""},{"$f":"IF(H13=\"\",\"\",H13)","v":""},null,{"$f":"+IFERROR(IF(COUNT(M13:N13),ROUND(SUM(M13,N13),2),\"\"),\"\")","v":""},{"$f":"+IFERROR(IF(COUNT(O13),ROUND(O13/('Shareholding Pattern'!$P$79)*100,2),\"\"),\"\")","v":""},null,null,{"$f":"+IFERROR(IF(COUNT(Q13:R13),ROUND(SUM(Q13:R13),0),\"\"),\"\")","v":""},{"$f":"+IFERROR(IF(COUNT(K13,S13),ROUND(SUM(S13,K13)/SUM('Shareholding Pattern'!$L$78,'Shareholding Pattern'!$T$78)*100,2),\"\"),\"\")","v":""},null,{"$f":"+IFERROR(IF(COUNT(U13),ROUND(SUM(U13)/SUM(K13)*100,2),\"\"),0)","v":""},{"$nulls":6},{"$f":"IF(SUM(H13:W13)>0,1,0)","v":0},{"$f":"SUM(AC15:AC65535)","v":0},{"$nulls":13},"Employee welfare fund"]
[{"$nulls":6},"Disclosure of shareholder holding more than 1% of total number of shares",{"$nulls":36},"Overseas corporate bodies"]
[{"$nulls":43},"Private equity fund"]
[{"$nulls":5},"Click here to go back","Total",{"$f":"+IFERROR(IF(COUNT(H14:H15),ROUND(SUM(H14:H15),0),\"\"),\"\")","v":""},{"$f":"+IFERROR(IF(COUNT(I14:I15),ROUND(SUM(I14:I15),0),\"\"),\"\")","v":""},{"$f":"+IFERROR(IF(COUNT(J14:J15),ROUND(SUM(J14:J15),0),\"\"),\"\")","v":""},{"$f":"+IFERROR(IF(COUNT(K14:K15),ROUND(SUM(K14:K15),0),\"\"),\"\")","v":""},{"$f":"+IFERROR(IF(COUNT(K16),ROUND(K16/'Shareholding Pattern'!$L$78*100,2),\"\"),\"\")","v":""},{"$f":"+IFERROR(IF(COUNT(M14:M15),ROUND(SUM(M14:M15),0),\"\"),\"\")","v":""},{"$f":"+IFERROR(IF(COUNT(N14:N15),ROUND(SUM(N14:N15),0),\"\"),\"\")","v":""},{"$f":"+IFERROR(IF(COUNT(O14:O15),ROUND(SUM(O14:O15),0),\"\"),\"\")","v":""},{"$f":"+IFERROR(IF(COUNT(O16),ROUND(O16/('Shareholding Pattern'!$P$79)*100,2),\"\"),\"\")","v":""},{"$f":"+IFERROR(IF(COUNT(Q14:Q15),ROUND(SUM(Q14:Q15),0),\"\"),\"\")","v":""},{"$f":"+IFERROR(IF(COUNT(R14:R15),ROUND(SUM(R14:R15),0),\"\"),\"\")","v":""},{"$f":"+IFERROR(IF(COUNT(S14:S15),ROUND(SUM(S14:S15),0),\"\"),\"\")","v":""},{"$f":"+IFERROR(IF(COUNT(K16,S16),ROUND(SUM(S16,K16)/SUM('Shareholding Pattern'!$L$78,'Shareholding Pattern'!$T$78)*100,2),\"\"),\"\")","v":""},{"$f":"+IFERROR(IF(COUNT(U14:U15),ROUND(SUM(U14:U15),0),\"\"),\"\")","v":""},{"$f":"+IFERROR(IF(COUNT(U16),ROUND(SUM(U16)/SUM(K16)*100,2),\"\"),0)","v":""},{"$f":"+IFERROR(IF(COUNT(W14:W15),ROUND(SUM(W14:W15),0),\"\"),\"\")","v":""},null,{"$f":"+IFERROR(IF(COUNT(Y14:Y15),ROUND(SUM(Y14:Y15),0),\"\"),\"\")","v":""},{"$f":"+IFERROR(IF(COUNT(Z14:Z15),ROUND(SUM(Z14:Z15),0),\"\"),\"\")","v":""},{"$f":"+IFERROR(IF(COUNT(AA14:AA15),ROUND(SUM(AA14:AA15),0),\"\"),\"\")","v":""},{"$nulls":16},"Other"]

{"sheet":"Insurance","index":21,"n_rows":16,"n_cols":44,"rows_kept":16,"hidden":true,"merged":[[8,4,10,4],[8,5,10,5],[8,6,10,6],[8,7,10,7],[8,8,10,8],[8,9,10,9],[8,10,10,10],[8,11,10,11],[8,12,8,15],[8,16,10,16],[8,17,10,17],[8,18,10,18],[8,19,10,19],[8,20,9,21],[8,22,10,22],[8,23,10,23],[8,24,8,26],[9,12,9,14],[9,15,10,15],[9,24,9,26]]}
[{"$nulls":8},0]
[{"$nulls":5},"Name of shareholder","Permanent account number of shareholder","Number of fully paid up equity shares","Number of partly paid-up equity shares","Number of shares underlying outstanding depository receipts","Total number of shares","Shareholding as a percentage of total number of shares held by promoters and public shareholders and custodians or DR holders","Number of voting rights held by same class of securities","Number of voting rights held by differential voting rights","Total Number of voting rights","Percentage of total number of voting rights","Number of shares underlying outstanding convertible securities","Number of warrant","Number of warrant and convertible securities","Total shareholding as a percentage assuming full conversion of convertible securities","Number of the locked-in-shares ","Locked-in-shares as a percentage of total number of shares","Number of equity shares held in dematerialized form","Reason for not providing PAN","Number of share under sub category one","Number of share under sub category two","Number of share under sub category three"]
[]
[]
[]
[]
[{"$nulls":43},"NRI"]
[{"$nulls":43},"Trusts"]
[{"$nulls":4},"Searial No.","Name\nof the \nShareholders\n     (I)","PAN \n(II)","No. of fully paid up equity shares held\n(IV)","No. Of Partly paid-up equity shares held\n(V)","No. Of shares underlying Depository Receipts\n(VI)","Total nos. shares\nheld\n(VII) = (IV)+(V)+ (VI)","Shareholding as a % of total no. of shares (calculated as per SCRR, 1957)\n(VIII)\nAs a % of (A+B+C2)","Number of Voting Rights held in each class of securities\n(IX)",{"$nulls":3},"No. Of Shares Underlying Outstanding convertible securities\n(X)","No. of Shares Underlying Outstanding Warrants (Xi)","No. Of Shares Underlying Outstanding convertible securities and No. Of Warrants\n(Xi) (a)","Shareholding , as a % assuming full conversion of convertible securities (as a percentage of diluted share capital)\n(XI)= (VII)+(X)\nAs a % of (A+B+C2)","Number of Locked in shares\n(XII)",null,"Number of equity shares held in dematerialized form \n(XIV)","Reason for not providing PAN","Sub-categorization of shares",{"$nulls":18},"Market Maker"]
[{"$nulls":12},"No of Voting (XIV)\nRights",null,null,"Total as\na % of\nTotal\nVoting\nrights",{"$nulls":8},"Shareholding (No. of shares) under",{"$nulls":18},"HUF"]
[{"$nulls":12},"Class\neg:\nX","Class\neg:y","Total",{"$nulls":5},"No.\n(a)","As a % of total Shares held\n(b)",null,null,"Sub-category (i)","Sub-category (ii)","Sub-category (iii)",{"$nulls":16},"Clearing Members"]
[{"$nulls":4},"B1(e)","Insurance  Companies",{"$nulls":37},"NSDL or CDSL transit"]
[{"$nulls":10},{"$f":"+IFERROR(IF(COUNT(H13:J13),ROUND(SUM(H13:J13),0),\"\"),\"\")","v":""},{"$f":"+IFERROR(IF(COUNT(K13),ROUND(K13/'Shareholding Pattern'!$L$78*100,2),\"\"),\"\")","v":""},{"$f":"IF(H13=\"\",\"\",H13)","v":""},null,{"$f":"+IFERROR(IF(COUNT(M13:N13),ROUND(SUM(M13,N13),2),\"\"),\"\")","v":""},{"$f":"+IFERROR(IF(COUNT(O13),ROUND(O13/('Shareholding Pattern'!$P$79)*100,2),\"\"),\"\")","v":""},null,null,{"$f":"+IFERROR(IF(COUNT(Q13:R13),ROUND(SUM(Q13:R13),0),\"\"),\"\")","v":""},{"$f":"+IFERROR(IF(COUNT(K13,S13),ROUND(SUM(S13,K13)/SUM('Shareholding Pattern'!$L$78,'Shareholding Pattern'!$T$78)*100,2),\"\"),\"\")","v":""},null,{"$f":"+IFERROR(IF(COUNT(U13),ROUND(SUM(U13)/SUM(K13)*100,2),\"\"),0)","v":""},{"$nulls":6},{"$f":"IF(SUM(H13:W13)>0,1,0)","v":0},{"$f":"SUM(AC15:AC65535)","v":0},{"$nulls":13},"Employee welfare fund"]
[{"$nulls":6},"\nDisclosure of shareholder holding more than 1% of total number of shares",{"$nulls":36},"Overseas corporate bodies"]
[{"$nulls":43},"Private equity fund"]
[{"$nulls":5},"Click here to go back","Total",{"$f":"+IFERROR(IF(COUNT(H14:H15),ROUND(SUM(H14:H15),0),\"\"),\"\")","v":""},{"$f":"+IFERROR(IF(COUNT(I14:I15),ROUND(SUM(I14:I15),0),\"\"),\"\")","v":""},{"$f":"+IFERROR(IF(COUNT(J14:J15),ROUND(SUM(J14:J15),0),\"\"),\"\")","v":""},{"$f":"+IFERROR(IF(COUNT(K14:K15),ROUND(SUM(K14:K15),0),\"\"),\"\")","v":""},{"$f":"+IFERROR(IF(COUNT(K16),ROUND(K16/'Shareholding Pattern'!$L$78*100,2),\"\"),\"\")","v":""},{"$f":"+IFERROR(IF(COUNT(M14:M15),ROUND(SUM(M14:M15),0),\"\"),\"\")","v":""},{"$f":"+IFERROR(IF(COUNT(N14:N15),ROUND(SUM(N14:N15),0),\"\"),\"\")","v":""},{"$f":"+IFERROR(IF(COUNT(O14:O15),ROUND(SUM(O14:O15),0),\"\"),\"\")","v":""},{"$f":"+IFERROR(IF(COUNT(O16),ROUND(O16/('Shareholding Pattern'!$P$79)*100,2),\"\"),\"\")","v":""},{"$f":"+IFERROR(IF(COUNT(Q14:Q15),ROUND(SUM(Q14:Q15),0),\"\"),\"\")","v":""},{"$f":"+IFERROR(IF(COUNT(R14:R15),ROUND(SUM(R14:R15),0),\"\"),\"\")","v":""},{"$f":"+IFERROR(IF(COUNT(S14:S15),ROUND(SUM(S14:S15),0),\"\"),\"\")","v":""},{"$f":"+IFERROR(IF(COUNT(K16,S16),ROUND(SUM(S16,K16)/SUM('Shareholding Pattern'!$L$78,'Shareholding Pattern'!$T$78)*100,2),\"\"),\"\")","v":""},{"$f":"+IFERROR(IF(COUNT(U14:U15),ROUND(SUM(U14:U15),0),\"\"),\"\")","v":""},{"$f":"+IFERROR(IF(COUNT(U16),ROUND(SUM(U16)/SUM(K16)*100,2),\"\"),0)","v":""},{"$f":"+IFERROR(IF(COUNT(W14:W15),ROUND(SUM(W14:W15),0),\"\"),\"\")","v":""},null,{"$f":"+IFERROR(IF(COUNT(Y14:Y15),ROUND(SUM(Y14:Y15),0),\"\"),\"\")","v":""},{"$f":"+IFERROR(IF(COUNT(Z14:Z15),ROUND(SUM(Z14:Z15),0),\"\"),\"\")","v":""},{"$f":"+IFERROR(IF(COUNT(AA14:AA15),ROUND(SUM(AA14:AA15),0),\"\"),\"\")","v":""},{"$nulls":16},"Other"]

{"sheet":"Bodies Corporate","index":22,"n_rows":16,"n_cols":29,"rows_kept":16,"hidden":true,"merged":[[8,4,10,4],[8,5,10,5],[8,6,10,6],[8,7,10,7],[8,8,10,8],[8,9,10,9],[8,10,10,10],[8,11,10,11],[8,12,8,15],[8,16,10,16],[8,17,10,17],[8,18,10,18],[8,19,10,19],[8,20,9,21],[8,22,10,22],[8,23,10,23],[8,24,8,26],[9,12,9,14],[9,15,10,15],[9,24,9,26]]}
[{"$nulls":8},0]
[{"$nulls":5},"Name of shareholder","Permanent account number of shareholder","Number of fully paid up equity shares","Number of partly paid-up equity shares","Number of shares underlying outstanding depository receipts","Total number of shares","Shareholding as a percentage of total number of shares held by promoters and public shareholders and custodians or DR holders","Number of voting rights held by same class of securities","Number of voting rights held by differential voting rights","Total Number of voting rights","Percentage of total number of voting rights","Number of shares underlying outstanding convertible securities","Number of warrant","Number of warrant and convertible securities","Total shareholding as a percentage assuming full conversion of convertible securities","Number of the locked-in-shares ","Locked-in-shares as a percentage of total number of shares","Number of equity shares held in dematerialized form","Reason for not providing PAN","Number of share under sub category one","Number of share under sub category two","Number of share under sub category three"]
[]
[]
[]
[]
[]
[]
[{"$nulls":4},"Searial No.","Name\nof the \nShareholders\n     (I)","PAN \n(II)","No. of fully paid up equity shares held\n(IV)","No. Of Partly paid-up equity shares held\n(V)","No. Of shares underlying Depository Receipts\n(VI)","Total nos. shares\nheld\n(VII) = (IV)+(V)+ (VI)","Shareholding as a % of total no. of shares (calculated as per SCRR, 1957)\n(VIII)\nAs a % of (A+B+C2)","Number of Voting Rights held in each class of securities\n(IX)",{"$nulls":3},"No. Of Shares Underlying Outstanding convertible securities\n(X)","No. of Shares Underlying Outstanding Warrants (Xi)","No. Of Shares Underlying Outstanding convertible securities and No. Of Warrants\n(Xi) (a)","Shareholding , as a % assuming full conversion of convertible securities (as a percentage of diluted share capital)\n(XI)= (VII)+(X)\nAs a % of (A+B+C2)","Number of Locked in shares\n(XII)",null,"Number of equity shares held in dematerialized form \n(XIV)","Reason for not providing PAN","Sub-categorization of shares"]
[{"$nulls":12},"No of Voting (XIV)\nRights",null,null,"Total as\na % of\nTotal\nVoting\nrights",{"$nulls":8},"Shareholding (No. of shares) under"]
[{"$nulls":12},"Class\neg:\nX","Class\neg:y","Total",{"$nulls":5},"No.\n(a)","As a % of total Shares held\n(b)",null,null,"Sub-category (i)","Sub-category (ii)","Sub-category (iii)"]
[{"$nulls":4},"B4(l)","Bodies Corporate"]
[{"$nulls":10},{"$f":"+IFERROR(IF(COUNT(H13:J13),ROUND(SUM(H13:J13),0),\"\"),\"\")","v":""},{"$f":"+IFERROR(IF(COUNT(K13),ROUND(K13/'Shareholding Pattern'!$L$78*100,2),\"\"),\"\")","v":""},{"$f":"IF(H13=\"\",\"\",H13)","v":""},null,{"$f":"+IFERROR(IF(COUNT(M13:N13),ROUND(SUM(M13,N13),2),\"\"),\"\")","v":""},{"$f":"+IFERROR(IF(COUNT(O13),ROUND(O13/('Shareholding Pattern'!$P$79)*100,2),\"\"),\"\")","v":""},null,null,{"$f":"+IFERROR(IF(COUNT(Q13:R13),ROUND(SUM(Q13:R13),0),\"\"),\"\")","v":""},{"$f":"+IFERROR(IF(COUNT(K13,S13),ROUND(SUM(S13,K13)/SUM('Shareholding Pattern'!$L$78,'Shareholding Pattern'!$T$78)*100,2),\"\"),\"\")","v":""},null,{"$f":"+IFERROR(IF(COUNT(U13),ROUND(SUM(U13)/SUM(K13)*100,2),\"\"),0)","v":""},{"$nulls":6},{"$f":"SUM(#REF!)","v":{"$error":"#REF!"}}]
[{"$nulls":6},"Disclosure of shareholder holding more than 1% of total number of shares"]
[]
[{"$nulls":5},"Click here to go back","Total",{"$f":"+IFERROR(IF(COUNT(H14:H15),ROUND(SUM(H14:H15),0),\"\"),\"\")","v":""},{"$f":"+IFERROR(IF(COUNT(I14:I15),ROUND(SUM(I14:I15),0),\"\"),\"\")","v":""},{"$f":"+IFERROR(IF(COUNT(J14:J15),ROUND(SUM(J14:J15),0),\"\"),\"\")","v":""},{"$f":"+IFERROR(IF(COUNT(K14:K15),ROUND(SUM(K14:K15),0),\"\"),\"\")","v":""},{"$f":"+IFERROR(IF(COUNT(K16),ROUND(K16/'Shareholding Pattern'!$L$78*100,2),\"\"),\"\")","v":""},{"$f":"+IFERROR(IF(COUNT(M14:M15),ROUND(SUM(M14:M15),0),\"\"),\"\")","v":""},{"$f":"+IFERROR(IF(COUNT(N14:N15),ROUND(SUM(N14:N15),0),\"\"),\"\")","v":""},{"$f":"+IFERROR(IF(COUNT(O14:O15),ROUND(SUM(O14:O15),0),\"\"),\"\")","v":""},{"$f":"+IFERROR(IF(COUNT(O16),ROUND(O16/('Shareholding Pattern'!$P$79)*100,2),\"\"),\"\")","v":""},{"$f":"+IFERROR(IF(COUNT(Q14:Q15),ROUND(SUM(Q14:Q15),0),\"\"),\"\")","v":""},{"$f":"+IFERROR(IF(COUNT(R14:R15),ROUND(SUM(R14:R15),0),\"\"),\"\")","v":""},{"$f":"+IFERROR(IF(COUNT(S14:S15),ROUND(SUM(S14:S15),0),\"\"),\"\")","v":""},{"$f":"+IFERROR(IF(COUNT(K16,S16),ROUND(SUM(S16,K16)/SUM('Shareholding Pattern'!$L$78,'Shareholding Pattern'!$T$78)*100,2),\"\"),\"\")","v":""},{"$f":"+IFERROR(IF(COUNT(U14:U15),ROUND(SUM(U14:U15),0),\"\"),\"\")","v":""},{"$f":"+IFERROR(IF(COUNT(U16),ROUND(SUM(U16)/SUM(K16)*100,2),\"\"),0)","v":""},{"$f":"+IFERROR(IF(COUNT(W14:W15),ROUND(SUM(W14:W15),0),\"\"),\"\")","v":""},null,{"$f":"+IFERROR(IF(COUNT(Y14:Y15),ROUND(SUM(Y14:Y15),0),\"\"),\"\")","v":""},{"$f":"+IFERROR(IF(COUNT(Z14:Z15),ROUND(SUM(Z14:Z15),0),\"\"),\"\")","v":""},{"$f":"+IFERROR(IF(COUNT(AA14:AA15),ROUND(SUM(AA14:AA15),0),\"\"),\"\")","v":""}]

{"sheet":"Foreign Companies","index":23,"n_rows":16,"n_cols":29,"rows_kept":16,"hidden":true,"merged":[[8,4,10,4],[8,5,10,5],[8,6,10,6],[8,7,10,7],[8,8,10,8],[8,9,10,9],[8,10,10,10],[8,11,10,11],[8,12,8,15],[8,16,10,16],[8,17,10,17],[8,18,10,18],[8,19,10,19],[8,20,9,21],[8,22,10,22],[8,23,10,23],[8,24,8,26],[9,12,9,14],[9,15,10,15],[9,24,9,26]]}
[{"$nulls":8},0]
[{"$nulls":5},"Name of shareholder","Permanent account number of shareholder","Number of fully paid up equity shares","Number of partly paid-up equity shares","Number of shares underlying outstanding depository receipts","Total number of shares","Shareholding as a percentage of total number of shares held by promoters and public shareholders and custodians or DR holders","Number of voting rights held by same class of securities","Number of voting rights held by differential voting rights","Total Number of voting rights","Percentage of total number of voting rights","Number of shares underlying outstanding convertible securities","Number of warrant","Number of warrant and convertible securities","Total shareholding as a percentage assuming full conversion of convertible securities","Number of the locked-in-shares ","Locked-in-shares as a percentage of total number of shares","Number of equity shares held in dematerialized form","Reason for not providing PAN","Number of share under sub category one","Number of share under sub category two","Number of share under sub category three"]
[]
[]
[]
[]
[]
[]
[{"$nulls":4},"Searial No.","Name\nof the \nShareholders\n     (I)","PAN \n(II)","No. of fully paid up equity shares held\n(IV)","No. Of Partly paid-up equity shares held\n(V)","No. Of shares underlying Depository Receipts\n(VI)","Total nos. shares\nheld\n(VII) = (IV)+(V)+ (VI)","Shareholding as a % of total no. of shares (calculated as per SCRR, 1957)\n(VIII)\nAs a % of (A+B+C2)","Number of Voting Rights held in each class of securities\n(IX)",{"$nulls":3},"No. Of Shares Underlying Outstanding convertible securities\n(X)","No. of Shares Underlying Outstanding Warrants (Xi)","No. Of Shares Underlying Outstanding convertible securities and No. Of Warrants\n(Xi) (a)","Shareholding , as a % assuming full conversion of convertible securities (as a percentage of diluted share capital)\n(XI)= (VII)+(X)\nAs a % of (A+B+C2)","Number of Locked in shares\n(XII)",null,"Number of equity shares held in dematerialized form \n(XIV)","Reason for not providing PAN","Sub-categorization of shares"]
[{"$nulls":12},"No of Voting (XIV)\nRights",null,null,"Total as\na % of\nTotal\nVoting\nrights",{"$nulls":8},"Shareholding (No. of shares) under"]
[{"$nulls":12},"Class\neg:\nX","Class\neg:y","Total",{"$nulls":5},"No.\n(a)","As a % of total Shares held\n(b)",null,null,"Sub-category (i)","Sub-category (ii)","Sub-category (iii)"]
[{"$nulls":4},"B4(k)","Foreign Companies"]
[{"$nulls":10},{"$f":"+IFERROR(IF(COUNT(H13:J13),ROUND(SUM(H13:J13),0),\"\"),\"\")","v":""},{"$f":"+IFERROR(IF(COUNT(K13),ROUND(K13/'Shareholding Pattern'!$L$78*100,2),\"\"),\"\")","v":""},{"$f":"IF(H13=\"\",\"\",H13)","v":""},null,{"$f":"+IFERROR(IF(COUNT(M13:N13),ROUND(SUM(M13,N13),2),\"\"),\"\")","v":""},{"$f":"+IFERROR(IF(COUNT(O13),ROUND(O13/('Shareholding Pattern'!$P$79)*100,2),\"\"),\"\")","v":""},null,null,{"$f":"+IFERROR(IF(COUNT(Q13:R13),ROUND(SUM(Q13:R13),0),\"\"),\"\")","v":""},{"$f":"+IFERROR(IF(COUNT(K13,S13),ROUND(SUM(S13,K13)/SUM('Shareholding Pattern'!$L$78,'Shareholding Pattern'!$T$78)*100,2),\"\"),\"\")","v":""},null,{"$f":"+IFERROR(IF(COUNT(U13),ROUND(SUM(U13)/SUM(K13)*100,2),\"\"),0)","v":""},{"$nulls":6},{"$f":"SUM(#REF!)","v":{"$error":"#REF!"}}]
[{"$nulls":6},"Disclosure of shareholder holding more than 1% of total number of shares"]
[]
[{"$nulls":5},"Click here to go back","Total",{"$f":"+IFERROR(IF(COUNT(H14:H15),ROUND(SUM(H14:H15),0),\"\"),\"\")","v":""},{"$f":"+IFERROR(IF(COUNT(I14:I15),ROUND(SUM(I14:I15),0),\"\"),\"\")","v":""},{"$f":"+IFERROR(IF(COUNT(J14:J15),ROUND(SUM(J14:J15),0),\"\"),\"\")","v":""},{"$f":"+IFERROR(IF(COUNT(K14:K15),ROUND(SUM(K14:K15),0),\"\"),\"\")","v":""},{"$f":"+IFERROR(IF(COUNT(K16),ROUND(K16/'Shareholding Pattern'!$L$78*100,2),\"\"),\"\")","v":""},{"$f":"+IFERROR(IF(COUNT(M14:M15),ROUND(SUM(M14:M15),0),\"\"),\"\")","v":""},{"$f":"+IFERROR(IF(COUNT(N14:N15),ROUND(SUM(N14:N15),0),\"\"),\"\")","v":""},{"$f":"+IFERROR(IF(COUNT(O14:O15),ROUND(SUM(O14:O15),0),\"\"),\"\")","v":""},{"$f":"+IFERROR(IF(COUNT(O16),ROUND(O16/('Shareholding Pattern'!$P$79)*100,2),\"\"),\"\")","v":""},{"$f":"+IFERROR(IF(COUNT(Q14:Q15),ROUND(SUM(Q14:Q15),0),\"\"),\"\")","v":""},{"$f":"+IFERROR(IF(COUNT(R14:R15),ROUND(SUM(R14:R15),0),\"\"),\"\")","v":""},{"$f":"+IFERROR(IF(COUNT(S14:S15),ROUND(SUM(S14:S15),0),\"\"),\"\")","v":""},{"$f":"+IFERROR(IF(COUNT(K16,S16),ROUND(SUM(S16,K16)/SUM('Shareholding Pattern'!$L$78,'Shareholding Pattern'!$T$78)*100,2),\"\"),\"\")","v":""},{"$f":"+IFERROR(IF(COUNT(U14:U15),ROUND(SUM(U14:U15),0),\"\"),\"\")","v":""},{"$f":"+IFERROR(IF(COUNT(U16),ROUND(SUM(U16)/SUM(K16)*100,2),\"\"),0)","v":""},{"$f":"+IFERROR(IF(COUNT(W14:W15),ROUND(SUM(W14:W15),0),\"\"),\"\")","v":""},null,{"$f":"+IFERROR(IF(COUNT(Y14:Y15),ROUND(SUM(Y14:Y15),0),\"\"),\"\")","v":""},{"$f":"+IFERROR(IF(COUNT(Z14:Z15),ROUND(SUM(Z14:Z15),0),\"\"),\"\")","v":""},{"$f":"+IFERROR(IF(COUNT(AA14:AA15),ROUND(SUM(AA14:AA15),0),\"\"),\"\")","v":""}]

{"sheet":"Foreign Nationals","index":24,"n_rows":16,"n_cols":30,"rows_kept":16,"hidden":true,"merged":[[8,4,10,4],[8,5,10,5],[8,6,10,6],[8,7,10,7],[8,8,10,8],[8,9,10,9],[8,10,10,10],[8,11,10,11],[8,12,8,15],[8,16,10,16],[8,17,10,17],[8,18,10,18],[8,19,10,19],[8,20,9,21],[8,22,10,22],[8,23,10,23],[8,24,8,26],[9,12,9,14],[9,15,10,15],[9,24,9,26]]}
[{"$nulls":8},0]
[{"$nulls":5},"Name of shareholder","Permanent account number of shareholder","Number of fully paid up equity shares","Number of partly paid-up equity shares","Number of shares underlying outstanding depository receipts","Total number of shares","Shareholding as a percentage of total number of shares held by promoters and public shareholders and custodians or DR holders","Number of voting rights held by same class of securities","Number of voting rights held by differential voting rights","Total Number of voting rights","Percentage of total number of voting rights","Number of shares underlying outstanding convertible securities","Number of warrant","Number of warrant and convertible securities","Total shareholding as a percentage assuming full conversion of convertible securities","Number of the locked-in-shares ","Locked-in-shares as a percentage of total number of shares","Number of equity shares held in dematerialized form","Reason for not providing PAN","Number of share under sub category one","Number of share under sub category two","Number of share under sub category three"]
[]
[]
[]
[]
[]
[]
[{"$nulls":4},"Searial No.","Name\nof the \nShareholders\n     (I)","PAN \n(II)","No. of fully paid up equity shares held\n(IV)","No. Of Partly paid-up equity shares held\n(V)","No. Of shares underlying Depository Receipts\n(VI)","Total nos. shares\nheld\n(VII) = (IV)+(V)+ (VI)","Shareholding as a % of total no. of shares (calculated as per SCRR, 1957)\n(VIII)\nAs a % of (A+B+C2)","Number of Voting Rights held in each class of securities\n(IX)",{"$nulls":3},"No. Of Shares Underlying Outstanding convertible securities\n(X)","No. of Shares Underlying Outstanding Warrants (Xi)","No. Of Shares Underlying Outstanding convertible securities and No. Of Warrants\n(Xi) (a)","Shareholding , as a % assuming full conversion of convertible securities (as a percentage of diluted share capital)\n(XI)= (VII)+(X)\nAs a % of (A+B+C2)","Number of Locked in shares\n(XII)",null,"Number of equity shares held in dematerialized form \n(XIV)","Reason for not providing PAN","Sub-categorization of shares"]
[{"$nulls":12},"No of Voting (XIV)\nRights",null,null,"Total as\na % of\nTotal\nVoting\nrights",{"$nulls":8},"Shareholding (No. of shares) under"]
[{"$nulls":12},"Class\neg:\nX","Class\neg:y","Total",{"$nulls":5},"No.\n(a)","As a % of total Shares held\n(b)",null,null,"Sub-category (i)","Sub-category (ii)","Sub-category (iii)"]
[{"$nulls":4},"B4(j)","Foreign Nationals"]
[{"$nulls":10},{"$f":"+IFERROR(IF(COUNT(H13:J13),ROUND(SUM(H13:J13),0),\"\"),\"\")","v":""},{"$f":"+IFERROR(IF(COUNT(K13),ROUND(K13/'Shareholding Pattern'!$L$78*100,2),\"\"),\"\")","v":""},{"$f":"IF(H13=\"\",\"\",H13)","v":""},null,{"$f":"+IFERROR(IF(COUNT(M13:N13),ROUND(SUM(M13,N13),2),\"\"),\"\")","v":""},{"$f":"+IFERROR(IF(COUNT(O13),ROUND(O13/('Shareholding Pattern'!$P$79)*100,2),\"\"),\"\")","v":""},null,null,{"$f":"+IFERROR(IF(COUNT(Q13:R13),ROUND(SUM(Q13:R13),0),\"\"),\"\")","v":""},{"$f":"+IFERROR(IF(COUNT(K13,S13),ROUND(SUM(S13,K13)/SUM('Shareholding Pattern'!$L$78,'Shareholding Pattern'!$T$78)*100,2),\"\"),\"\")","v":""},null,{"$f":"+IFERROR(IF(COUNT(U13),ROUND(SUM(U13)/SUM(K13)*100,2),\"\"),0)","v":""},{"$nulls":6},{"$f":"IF(SUM(H13:W13)>0,1,0)","v":0},{"$f":"SUM(AC15:AC65535)","v":0}]
[{"$nulls":6},"Disclosure of shareholder holding more than 1% of total number of shares"]
[]
[{"$nulls":5},"Click here to go back","Total",{"$f":"+IFERROR(IF(COUNT(H14:H15),ROUND(SUM(H14:H15),0),\"\"),\"\")","v":""},{"$f":"+IFERROR(IF(COUNT(I14:I15),ROUND(SUM(I14:I15),0),\"\"),\"\")","v":""},{"$f":"+IFERROR(IF(COUNT(J14:J15),ROUND(SUM(J14:J15),0),\"\"),\"\")","v":""},{"$f":"+IFERROR(IF(COUNT(K14:K15),ROUND(SUM(K14:K15),0),\"\"),\"\")","v":""},{"$f":"+IFERROR(IF(COUNT(K16),ROUND(K16/'Shareholding Pattern'!$L$78*100,2),\"\"),\"\")","v":""},{"$f":"+IFERROR(IF(COUNT(M14:M15),ROUND(SUM(M14:M15),0),\"\"),\"\")","v":""},{"$f":"+IFERROR(IF(COUNT(N14:N15),ROUND(SUM(N14:N15),0),\"\"),\"\")","v":""},{"$f":"+IFERROR(IF(COUNT(O14:O15),ROUND(SUM(O14:O15),0),\"\"),\"\")","v":""},{"$f":"+IFERROR(IF(COUNT(O16),ROUND(O16/('Shareholding Pattern'!$P$79)*100,2),\"\"),\"\")","v":""},{"$f":"+IFERROR(IF(COUNT(Q14:Q15),ROUND(SUM(Q14:Q15),0),\"\"),\"\")","v":""},{"$f":"+IFERROR(IF(COUNT(R14:R15),ROUND(SUM(R14:R15),0),\"\"),\"\")","v":""},{"$f":"+IFERROR(IF(COUNT(S14:S15),ROUND(SUM(S14:S15),0),\"\"),\"\")","v":""},{"$f":"+IFERROR(IF(COUNT(K16,S16),ROUND(SUM(S16,K16)/SUM('Shareholding Pattern'!$L$78,'Shareholding Pattern'!$T$78)*100,2),\"\"),\"\")","v":""},{"$f":"+IFERROR(IF(COUNT(U14:U15),ROUND(SUM(U14:U15),0),\"\"),\"\")","v":""},{"$f":"+IFERROR(IF(COUNT(U16),ROUND(SUM(U16)/SUM(K16)*100,2),\"\"),0)","v":""},{"$f":"+IFERROR(IF(COUNT(W14:W15),ROUND(SUM(W14:W15),0),\"\"),\"\")","v":""},null,{"$f":"+IFERROR(IF(COUNT(Y14:Y15),ROUND(SUM(Y14:Y15),0),\"\"),\"\")","v":""},{"$f":"+IFERROR(IF(COUNT(Z14:Z15),ROUND(SUM(Z14:Z15),0),\"\"),\"\")","v":""},{"$f":"+IFERROR(IF(COUNT(AA14:AA15),ROUND(SUM(AA14:AA15),0),\"\"),\"\")","v":""}]

{"sheet":"Non Resident Indians (NRIs)","index":25,"n_rows":16,"n_cols":29,"rows_kept":16,"hidden":true,"merged":[[8,4,10,4],[8,5,10,5],[8,6,10,6],[8,7,10,7],[8,8,10,8],[8,9,10,9],[8,10,10,10],[8,11,10,11],[8,12,8,15],[8,16,10,16],[8,17,10,17],[8,18,10,18],[8,19,10,19],[8,20,9,21],[8,22,10,22],[8,23,10,23],[8,24,8,26],[9,12,9,14],[9,15,10,15],[9,24,9,26]]}
[{"$nulls":8},0]
[{"$nulls":5},"Name of shareholder","Permanent account number of shareholder","Number of fully paid up equity shares","Number of partly paid-up equity shares","Number of shares underlying outstanding depository receipts","Total number of shares","Shareholding as a percentage of total number of shares held by promoters and public shareholders and custodians or DR holders","Number of voting rights held by same class of securities","Number of voting rights held by differential voting rights","Total Number of voting rights","Percentage of total number of voting rights","Number of shares underlying outstanding convertible securities","Number of warrant","Number of warrant and convertible securities","Total shareholding as a percentage assuming full conversion of convertible securities","Number of the locked-in-shares ","Locked-in-shares as a percentage of total number of shares","Number of equity shares held in dematerialized form","Reason for not providing PAN","Number of share under sub category one","Number of share under sub category two","Number of share under sub category three"]
[]
[]
[]
[]
[]
[]
[{"$nulls":4},"Searial No.","Name\nof the \nShareholders\n     (I)","PAN \n(II)","No. of fully paid up equity shares held\n(IV)","No. Of Partly paid-up equity shares held\n(V)","No. Of shares underlying Depository Receipts\n(VI)","Total nos. shares\nheld\n(VII) = (IV)+(V)+ (VI)","Shareholding as a % of total no. of shares (calculated as per SCRR, 1957)\n(VIII)\nAs a % of (A+B+C2)","Number of Voting Rights held in each class of securities\n(IX)",{"$nulls":3},"No. Of Shares Underlying Outstanding convertible securities\n(X)","No. of Shares Underlying Outstanding Warrants (Xi)","No. Of Shares Underlying Outstanding convertible securities and No. Of Warrants\n(Xi) (a)","Shareholding , as a % assuming full conversion of convertible securities (as a percentage of diluted share capital)\n(XI)= (VII)+(X)\nAs a % of (A+B+C2)","Number of Locked in shares\n(XII)",null,"Number of equity shares held in dematerialized form \n(XIV)","Reason for not providing PAN","Sub-categorization of shares"]
[{"$nulls":12},"No of Voting (XIV)\nRights",null,null,"Total as\na % of\nTotal\nVoting\nrights",{"$nulls":8},"Shareholding (No. of shares) under"]
[{"$nulls":12},"Class\neg:\nX","Class\neg:y","Total",{"$nulls":5},"No.\n(a)","As a % of total Shares held\n(b)",null,null,"Sub-category (i)","Sub-category (ii)","Sub-category (iii)"]
[{"$nulls":4},"B4(i)","Non Resident Indians (NRIs)"]
[{"$nulls":10},{"$f":"+IFERROR(IF(COUNT(H13:J13),ROUND(SUM(H13:J13),0),\"\"),\"\")","v":""},{"$f":"+IFERROR(IF(COUNT(K13),ROUND(K13/'Shareholding Pattern'!$L$78*100,2),\"\"),\"\")","v":""},{"$f":"IF(H13=\"\",\"\",H13)","v":""},null,{"$f":"+IFERROR(IF(COUNT(M13:N13),ROUND(SUM(M13,N13),2),\"\"),\"\")","v":""},{"$f":"+IFERROR(IF(COUNT(O13),ROUND(O13/('Shareholding Pattern'!$P$79)*100,2),\"\"),\"\")","v":""},null,null,{"$f":"+IFERROR(IF(COUNT(Q13:R13),ROUND(SUM(Q13:R13),0),\"\"),\"\")","v":""},{"$f":"+IFERROR(IF(COUNT(K13,S13),ROUND(SUM(S13,K13)/SUM('Shareholding Pattern'!$L$78,'Shareholding Pattern'!$T$78)*100,2),\"\"),\"\")","v":""},null,{"$f":"+IFERROR(IF(COUNT(U13),ROUND(SUM(U13)/SUM(K13)*100,2),\"\"),0)","v":""},{"$nulls":6},{"$f":"SUM(#REF!)","v":{"$error":"#REF!"}}]
[{"$nulls":6},"Disclosure of shareholder holding more than 1% of total number of shares"]
[]
[{"$nulls":5},"Click here to go back","Total",{"$f":"+IFERROR(IF(COUNT(H14:H15),ROUND(SUM(H14:H15),0),\"\"),\"\")","v":""},{"$f":"+IFERROR(IF(COUNT(I14:I15),ROUND(SUM(I14:I15),0),\"\"),\"\")","v":""},{"$f":"+IFERROR(IF(COUNT(J14:J15),ROUND(SUM(J14:J15),0),\"\"),\"\")","v":""},{"$f":"+IFERROR(IF(COUNT(K14:K15),ROUND(SUM(K14:K15),0),\"\"),\"\")","v":""},{"$f":"+IFERROR(IF(COUNT(K16),ROUND(K16/'Shareholding Pattern'!$L$78*100,2),\"\"),\"\")","v":""},{"$f":"+IFERROR(IF(COUNT(M14:M15),ROUND(SUM(M14:M15),0),\"\"),\"\")","v":""},{"$f":"+IFERROR(IF(COUNT(N14:N15),ROUND(SUM(N14:N15),0),\"\"),\"\")","v":""},{"$f":"+IFERROR(IF(COUNT(O14:O15),ROUND(SUM(O14:O15),0),\"\"),\"\")","v":""},{"$f":"+IFERROR(IF(COUNT(O16),ROUND(O16/('Shareholding Pattern'!$P$79)*100,2),\"\"),\"\")","v":""},{"$f":"+IFERROR(IF(COUNT(Q14:Q15),ROUND(SUM(Q14:Q15),0),\"\"),\"\")","v":""},{"$f":"+IFERROR(IF(COUNT(R14:R15),ROUND(SUM(R14:R15),0),\"\"),\"\")","v":""},{"$f":"+IFERROR(IF(COUNT(S14:S15),ROUND(SUM(S14:S15),0),\"\"),\"\")","v":""},{"$f":"+IFERROR(IF(COUNT(K16,S16),ROUND(SUM(S16,K16)/SUM('Shareholding Pattern'!$L$78,'Shareholding Pattern'!$T$78)*100,2),\"\"),\"\")","v":""},{"$f":"+IFERROR(IF(COUNT(U14:U15),ROUND(SUM(U14:U15),0),\"\"),\"\")","v":""},{"$f":"+IFERROR(IF(COUNT(U16),ROUND(SUM(U16)/SUM(K16)*100,2),\"\"),0)","v":""},{"$f":"+IFERROR(IF(COUNT(W14:W15),ROUND(SUM(W14:W15),0),\"\"),\"\")","v":""},null,{"$f":"+IFERROR(IF(COUNT(Y14:Y15),ROUND(SUM(Y14:Y15),0),\"\"),\"\")","v":""},{"$f":"+IFERROR(IF(COUNT(Z14:Z15),ROUND(SUM(Z14:Z15),0),\"\"),\"\")","v":""},{"$f":"+IFERROR(IF(COUNT(AA14:AA15),ROUND(SUM(AA14:AA15),0),\"\"),\"\")","v":""}]

{"sheet":"Investor Education","index":26,"n_rows":16,"n_cols":29,"rows_kept":16,"hidden":true,"merged":[[8,4,10,4],[8,5,10,5],[8,6,10,6],[8,7,10,7],[8,8,10,8],[8,9,10,9],[8,10,10,10],[8,11,10,11],[8,12,8,15],[8,16,10,16],[8,17,10,17],[8,18,10,18],[8,19,10,19],[8,20,9,21],[8,22,10,22],[8,23,10,23],[8,24,8,26],[9,12,9,14],[9,15,10,15],[9,24,9,26]]}
[{"$nulls":8},0]
[{"$nulls":5},"Name of shareholder","Permanent account number of shareholder","Number of fully paid up equity shares","Number of partly paid-up equity shares","Number of shares underlying outstanding depository receipts","Total number of shares","Shareholding as a percentage of total number of shares held by promoters and public shareholders and custodians or DR holders","Number of voting rights held by same class of securities","Number of voting rights held by differential voting rights","Total Number of voting rights","Percentage of total number of voting rights","Number of shares underlying outstanding convertible securities","Number of warrant","Number of warrant and convertible securities","Total shareholding as a percentage assuming full conversion of convertible securities","Number of the locked-in-shares ","Locked-in-shares as a percentage of total number of shares","Number of equity shares held in dematerialized form","Reason for not providing PAN","Number of share under sub category one","Number of share under sub category two","Number of share under sub category three"]
[]
[]
[]
[]
[]
[]
[{"$nulls":4},"Searial No.","Name\nof the \nShareholders\n     (I)","PAN \n(II)","No. of fully paid up equity shares held\n(IV)","No. Of Partly paid-up equity shares held\n(V)","No. Of shares underlying Depository Receipts\n(VI)","Total nos. shares\nheld\n(VII) = (IV)+(V)+ (VI)","Shareholding as a % of total no. of shares (calculated as per SCRR, 1957)\n(VIII)\nAs a % of (A+B+C2)","Number of Voting Rights held in each class of securities\n(IX)",{"$nulls":3},"No. Of Shares Underlying Outstanding convertible securities\n(X)","No. of Shares Underlying Outstanding Warrants (Xi)","No. Of Shares Underlying Outstanding convertible securities and No. Of Warrants\n(Xi) (a)","Shareholding , as a % assuming full conversion of convertible securities (as a percentage of diluted share capital)\n(XI)= (VII)+(X)\nAs a % of (A+B+C2)","Number of Locked in shares\n(XII)",null,"Number of equity shares held in dematerialized form \n(XIV)","Reason for not providing PAN","Sub-categorization of shares"]
[{"$nulls":12},"No of Voting (XIV)\nRights",null,null,"Total as\na % of\nTotal\nVoting\nrights",{"$nulls":8},"Shareholding (No. of shares) under"]
[{"$nulls":12},"Class\neg:\nX","Class\neg:y","Total",{"$nulls":5},"No.\n(a)","As a % of total Shares held\n(b)",null,null,"Sub-category (i)","Sub-category (ii)","Sub-category (iii)"]
[{"$nulls":4},"B4(f)","Investor Education and Protection Fund (IEPF)"]
[{"$nulls":10},{"$f":"+IFERROR(IF(COUNT(H13:J13),ROUND(SUM(H13:J13),0),\"\"),\"\")","v":""},{"$f":"+IFERROR(IF(COUNT(K13),ROUND(K13/'Shareholding Pattern'!$L$78*100,2),\"\"),\"\")","v":""},{"$f":"IF(H13=\"\",\"\",H13)","v":""},null,{"$f":"+IFERROR(IF(COUNT(M13:N13),ROUND(SUM(M13,N13),2),\"\"),\"\")","v":""},{"$f":"+IFERROR(IF(COUNT(O13),ROUND(O13/('Shareholding Pattern'!$P$79)*100,2),\"\"),\"\")","v":""},null,null,{"$f":"+IFERROR(IF(COUNT(Q13:R13),ROUND(SUM(Q13:R13),0),\"\"),\"\")","v":""},{"$f":"+IFERROR(IF(COUNT(K13,S13),ROUND(SUM(S13,K13)/SUM('Shareholding Pattern'!$L$78,'Shareholding Pattern'!$T$78)*100,2),\"\"),\"\")","v":""},null,{"$f":"+IFERROR(IF(COUNT(U13),ROUND(SUM(U13)/SUM(K13)*100,2),\"\"),0)","v":""},{"$nulls":6},{"$f":"SUM(#REF!)","v":{"$error":"#REF!"}}]
[{"$nulls":6},"Disclosure of shareholder holding more than 1% of total number of shares"]
[]
[{"$nulls":5},"Click here to go back","Total",{"$f":"+IFERROR(IF(COUNT(H14:H15),ROUND(SUM(H14:H15),0),\"\"),\"\")","v":""},{"$f":"+IFERROR(IF(COUNT(I14:I15),ROUND(SUM(I14:I15),0),\"\"),\"\")","v":""},{"$f":"+IFERROR(IF(COUNT(J14:J15),ROUND(SUM(J14:J15),0),\"\"),\"\")","v":""},{"$f":"+IFERROR(IF(COUNT(K14:K15),ROUND(SUM(K14:K15),0),\"\"),\"\")","v":""},{"$f":"+IFERROR(IF(COUNT(K16),ROUND(K16/'Shareholding Pattern'!$L$78*100,2),\"\"),\"\")","v":""},{"$f":"+IFERROR(IF(COUNT(M14:M15),ROUND(SUM(M14:M15),0),\"\"),\"\")","v":""},{"$f":"+IFERROR(IF(COUNT(N14:N15),ROUND(SUM(N14:N15),0),\"\"),\"\")","v":""},{"$f":"+IFERROR(IF(COUNT(O14:O15),ROUND(SUM(O14:O15),0),\"\"),\"\")","v":""},{"$f":"+IFERROR(IF(COUNT(O16),ROUND(O16/('Shareholding Pattern'!$P$79)*100,2),\"\"),\"\")","v":""},{"$f":"+IFERROR(IF(COUNT(Q14:Q15),ROUND(SUM(Q14:Q15),0),\"\"),\"\")","v":""},{"$f":"+IFERROR(IF(COUNT(R14:R15),ROUND(SUM(R14:R15),0),\"\"),\"\")","v":""},{"$f":"+IFERROR(IF(COUNT(S14:S15),ROUND(SUM(S14:S15),0),\"\"),\"\")","v":""},{"$f":"+IFERROR(IF(COUNT(K16,S16),ROUND(SUM(S16,K16)/SUM('Shareholding Pattern'!$L$78,'Shareholding Pattern'!$T$78)*100,2),\"\"),\"\")","v":""},{"$f":"+IFERROR(IF(COUNT(U14:U15),ROUND(SUM(U14:U15),0),\"\"),\"\")","v":""},{"$f":"+IFERROR(IF(COUNT(U16),ROUND(SUM(U16)/SUM(K16)*100,2),\"\"),0)","v":""},{"$f":"+IFERROR(IF(COUNT(W14:W15),ROUND(SUM(W14:W15),0),\"\"),\"\")","v":""},null,{"$f":"+IFERROR(IF(COUNT(Y14:Y15),ROUND(SUM(Y14:Y15),0),\"\"),\"\")","v":""},{"$f":"+IFERROR(IF(COUNT(Z14:Z15),ROUND(SUM(Z14:Z15),0),\"\"),\"\")","v":""},{"$f":"+IFERROR(IF(COUNT(AA14:AA15),ROUND(SUM(AA14:AA15),0),\"\"),\"\")","v":""}]

{"sheet":"Trusts where any person","index":27,"n_rows":16,"n_cols":30,"rows_kept":16,"hidden":true,"merged":[[8,4,10,4],[8,5,10,5],[8,6,10,6],[8,7,10,7],[8,8,10,8],[8,9,10,9],[8,10,10,10],[8,11,10,11],[8,12,8,15],[8,16,10,16],[8,17,10,17],[8,18,10,18],[8,19,10,19],[8,20,9,21],[8,22,10,22],[8,23,10,23],[8,24,8,26],[9,12,9,14],[9,15,10,15],[9,24,9,26]]}
[{"$nulls":8},0]
[{"$nulls":5},"Name of shareholder","Permanent account number of shareholder","Number of fully paid up equity shares","Number of partly paid-up equity shares","Number of shares underlying outstanding depository receipts","Total number of shares","Shareholding as a percentage of total number of shares held by promoters and public shareholders and custodians or DR holders","Number of voting rights held by same class of securities","Number of voting rights held by differential voting rights","Total Number of voting rights","Percentage of total number of voting rights","Number of shares underlying outstanding convertible securities","Number of warrant","Number of warrant and convertible securities","Total shareholding as a percentage assuming full conversion of convertible securities","Number of the locked-in-shares ","Locked-in-shares as a percentage of total number of shares","Number of equity shares held in dematerialized form","Reason for not providing PAN","Number of share under sub category one","Number of share under sub category two","Number of share under sub category three"]
[]
[]
[]
[]
[]
[]
[{"$nulls":4},"Searial No.","Name\nof the \nShareholders\n     (I)","PAN \n(II)","No. of fully paid up equity shares held\n(IV)","No. Of Partly paid-up equity shares held\n(V)","No. Of shares underlying Depository Receipts\n(VI)","Total nos. shares\nheld\n(VII) = (IV)+(V)+ (VI)","Shareholding as a % of total no. of shares (calculated as per SCRR, 1957)\n(VIII)\nAs a % of (A+B+C2)","Number of Voting Rights held in each class of securities\n(IX)",{"$nulls":3},"No. Of Shares Underlying Outstanding convertible securities\n(X)","No. of Shares Underlying Outstanding Warrants (Xi)","No. Of Shares Underlying Outstanding convertible securities and No. Of Warrants\n(Xi) (a)","Shareholding , as a % assuming full conversion of convertible securities (as a percentage of diluted share capital)\n(XI)= (VII)+(X)\nAs a % of (A+B+C2)","Number of Locked in shares\n(XII)",null,"Number of equity shares held in dematerialized form \n(XIV)","Reason for not providing PAN","Sub-categorization of shares"]
[{"$nulls":12},"No of Voting (XIV)\nRights",null,null,"Total as\na % of\nTotal\nVoting\nrights",{"$nulls":8},"Shareholding (No. of shares) under"]
[{"$nulls":12},"Class\neg:\nX","Class\neg:y","Total",{"$nulls":5},"No.\n(a)","As a % of total Shares held\n(b)",null,null,"Sub-category (i)","Sub-category (ii)","Sub-category (iii)"]
[{"$nulls":4},"B4(e)","Trusts where any person belonging to 'Promoter and Promoter Group' category is 'trustee', 'beneficiary', or 'author of the trust'"]
[{"$nulls":10},{"$f":"+IFERROR(IF(COUNT(H13:J13),ROUND(SUM(H13:J13),0),\"\"),\"\")","v":""},{"$f":"+IFERROR(IF(COUNT(K13),ROUND(K13/'Shareholding Pattern'!$L$78*100,2),\"\"),\"\")","v":""},{"$f":"IF(H13=\"\",\"\",H13)","v":""},null,{"$f":"+IFERROR(IF(COUNT(M13:N13),ROUND(SUM(M13,N13),2),\"\"),\"\")","v":""},{"$f":"+IFERROR(IF(COUNT(O13),ROUND(O13/('Shareholding Pattern'!$P$79)*100,2),\"\"),\"\")","v":""},null,null,{"$f":"+IFERROR(IF(COUNT(Q13:R13),ROUND(SUM(Q13:R13),0),\"\"),\"\")","v":""},{"$f":"+IFERROR(IF(COUNT(K13,S13),ROUND(SUM(S13,K13)/SUM('Shareholding Pattern'!$L$78,'Shareholding Pattern'!$T$78)*100,2),\"\"),\"\")","v":""},null,{"$f":"+IFERROR(IF(COUNT(U13),ROUND(SUM(U13)/SUM(K13)*100,2),\"\"),0)","v":""},{"$nulls":6},{"$f":"IF(SUM(H13:W13)>0,1,0)","v":0},{"$f":"SUM(AC15:AC65535)","v":0}]
[{"$nulls":6},"Disclosure of shareholder holding more than 1% of total number of shares"]
[]
[{"$nulls":5},"Click here to go back","Total",{"$f":"+IFERROR(IF(COUNT(H14:H15),ROUND(SUM(H14:H15),0),\"\"),\"\")","v":""},{"$f":"+IFERROR(IF(COUNT(I14:I15),ROUND(SUM(I14:I15),0),\"\"),\"\")","v":""},{"$f":"+IFERROR(IF(COUNT(J14:J15),ROUND(SUM(J14:J15),0),\"\"),\"\")","v":""},{"$f":"+IFERROR(IF(COUNT(K14:K15),ROUND(SUM(K14:K15),0),\"\"),\"\")","v":""},{"$f":"+IFERROR(IF(COUNT(K16),ROUND(K16/'Shareholding Pattern'!$L$78*100,2),\"\"),\"\")","v":""},{"$f":"+IFERROR(IF(COUNT(M14:M15),ROUND(SUM(M14:M15),0),\"\"),\"\")","v":""},{"$f":"+IFERROR(IF(COUNT(N14:N15),ROUND(SUM(N14:N15),0),\"\"),\"\")","v":""},{"$f":"+IFERROR(IF(COUNT(O14:O15),ROUND(SUM(O14:O15),0),\"\"),\"\")","v":""},{"$f":"+IFERROR(IF(COUNT(O16),ROUND(O16/('Shareholding Pattern'!$P$79)*100,2),\"\"),\"\")","v":""},{"$f":"+IFERROR(IF(COUNT(Q14:Q15),ROUND(SUM(Q14:Q15),0),\"\"),\"\")","v":""},{"$f":"+IFERROR(IF(COUNT(R14:R15),ROUND(SUM(R14:R15),0),\"\"),\"\")","v":""},{"$f":"+IFERROR(IF(COUNT(S14:S15),ROUND(SUM(S14:S15),0),\"\"),\"\")","v":""},{"$f":"+IFERROR(IF(COUNT(K16,S16),ROUND(SUM(S16,K16)/SUM('Shareholding Pattern'!$L$78,'Shareholding Pattern'!$T$78)*100,2),\"\"),\"\")","v":""},{"$f":"+IFERROR(IF(COUNT(U14:U15),ROUND(SUM(U14:U15),0),\"\"),\"\")","v":""},{"$f":"+IFERROR(IF(COUNT(U16),ROUND(SUM(U16)/SUM(K16)*100,2),\"\"),0)","v":""},{"$f":"+IFERROR(IF(COUNT(W14:W15),ROUND(SUM(W14:W15),0),\"\"),\"\")","v":""},null,{"$f":"+IFERROR(IF(COUNT(Y14:Y15),ROUND(SUM(Y14:Y15),0),\"\"),\"\")","v":""},{"$f":"+IFERROR(IF(COUNT(Z14:Z15),ROUND(SUM(Z14:Z15),0),\"\"),\"\")","v":""},{"$f":"+IFERROR(IF(COUNT(AA14:AA15),ROUND(SUM(AA14:AA15),0),\"\"),\"\")","v":""}]

{"sheet":"Relatives of promoters","index":28,"n_rows":16,"n_cols":30,"rows_kept":16,"hidden":true,"merged":[[8,4,10,4],[8,5,10,5],[8,6,10,6],[8,7,10,7],[8,8,10,8],[8,9,10,9],[8,10,10,10],[8,11,10,11],[8,12,8,15],[8,16,10,16],[8,17,10,17],[8,18,10,18],[8,19,10,19],[8,20,9,21],[8,22,10,22],[8,23,10,23],[8,24,8,26],[9,12,9,14],[9,15,10,15],[9,24,9,26]]}
[{"$nulls":8},0]
[{"$nulls":5},"Name of shareholder","Permanent account number of shareholder","Number of fully paid up equity shares","Number of partly paid-up equity shares","Number of shares underlying outstanding depository receipts","Total number of shares","Shareholding as a percentage of total number of shares held by promoters and public shareholders and custodians or DR holders","Number of voting rights held by same class of securities","Number of voting rights held by differential voting rights","Total Number of voting rights","Percentage of total number of voting rights","Number of shares underlying outstanding convertible securities","Number of warrant","Number of warrant and convertible securities","Total shareholding as a percentage assuming full conversion of convertible securities","Number of the locked-in-shares ","Locked-in-shares as a percentage of total number of shares","Number of equity shares held in dematerialized form","Reason for not providing PAN","Number of share under sub category one","Number of share under sub category two","Number of share under sub category three"]
[]
[]
[]
[]
[]
[]
[{"$nulls":4},"Searial No.","Name\nof the \nShareholders\n     (I)","PAN \n(II)","No. of fully paid up equity shares held\n(IV)","No. Of Partly paid-up equity shares held\n(V)","No. Of shares underlying Depository Receipts\n(VI)","Total nos. shares\nheld\n(VII) = (IV)+(V)+ (VI)","Shareholding as a % of total no. of shares (calculated as per SCRR, 1957)\n(VIII)\nAs a % of (A+B+C2)","Number of Voting Rights held in each class of securities\n(IX)",{"$nulls":3},"No. Of Shares Underlying Outstanding convertible securities\n(X)","No. of Shares Underlying Outstanding Warrants (Xi)","No. Of Shares Underlying Outstanding convertible securities and No. Of Warrants\n(Xi) (a)","Shareholding , as a % assuming full conversion of convertible securities (as a percentage of diluted share capital)\n(XI)= (VII)+(X)\nAs a % of (A+B+C2)","Number of Locked in shares\n(XII)",null,"Number of equity shares held in dematerialized form \n(XIV)","Reason for not providing PAN","Sub-categorization of shares"]
[{"$nulls":12},"No of Voting (XIV)\nRights",null,null,"Total as\na % of\nTotal\nVoting\nrights",{"$nulls":8},"Shareholding (No. of shares) under"]
[{"$nulls":12},"Class\neg:\nX","Class\neg:y","Total",{"$nulls":5},"No.\n(a)","As a % of total Shares held\n(b)",null,null,"Sub-category (i)","Sub-category (ii)","Sub-category (iii)"]
[{"$nulls":4},"B4(d)","Relatives of promoters (other than ‘immediate relatives’ of promoters disclosed under ‘Promoter and Promoter Group’ category)"]
[{"$nulls":10},{"$f":"+IFERROR(IF(COUNT(H13:J13),ROUND(SUM(H13:J13),0),\"\"),\"\")","v":""},{"$f":"+IFERROR(IF(COUNT(K13),ROUND(K13/'Shareholding Pattern'!$L$78*100,2),\"\"),\"\")","v":""},{"$f":"IF(H13=\"\",\"\",H13)","v":""},null,{"$f":"+IFERROR(IF(COUNT(M13:N13),ROUND(SUM(M13,N13),2),\"\"),\"\")","v":""},{"$f":"+IFERROR(IF(COUNT(O13),ROUND(O13/('Shareholding Pattern'!$P$79)*100,2),\"\"),\"\")","v":""},null,null,{"$f":"+IFERROR(IF(COUNT(Q13:R13),ROUND(SUM(Q13:R13),0),\"\"),\"\")","v":""},{"$f":"+IFERROR(IF(COUNT(K13,S13),ROUND(SUM(S13,K13)/SUM('Shareholding Pattern'!$L$78,'Shareholding Pattern'!$T$78)*100,2),\"\"),\"\")","v":""},null,{"$f":"+IFERROR(IF(COUNT(U13),ROUND(SUM(U13)/SUM(K13)*100,2),\"\"),0)","v":""},{"$nulls":6},{"$f":"IF(SUM(H13:W13)>0,1,0)","v":0},{"$f":"SUM(AC15:AC65535)","v":0}]
[{"$nulls":6},"Disclosure of shareholder holding more than 1% of total number of shares"]
[]
[{"$nulls":5},"Click here to go back","Total",{"$f":"+IFERROR(IF(COUNT(H14:H15),ROUND(SUM(H14:H15),0),\"\"),\"\")","v":""},{"$f":"+IFERROR(IF(COUNT(I14:I15),ROUND(SUM(I14:I15),0),\"\"),\"\")","v":""},{"$f":"+IFERROR(IF(COUNT(J14:J15),ROUND(SUM(J14:J15),0),\"\"),\"\")","v":""},{"$f":"+IFERROR(IF(COUNT(K14:K15),ROUND(SUM(K14:K15),0),\"\"),\"\")","v":""},{"$f":"+IFERROR(IF(COUNT(K16),ROUND(K16/'Shareholding Pattern'!$L$78*100,2),\"\"),\"\")","v":""},{"$f":"+IFERROR(IF(COUNT(M14:M15),ROUND(SUM(M14:M15),0),\"\"),\"\")","v":""},{"$f":"+IFERROR(IF(COUNT(N14:N15),ROUND(SUM(N14:N15),0),\"\"),\"\")","v":""},{"$f":"+IFERROR(IF(COUNT(O14:O15),ROUND(SUM(O14:O15),0),\"\"),\"\")","v":""},{"$f":"+IFERROR(IF(COUNT(O16),ROUND(O16/('Shareholding Pattern'!$P$79)*100,2),\"\"),\"\")","v":""},{"$f":"+IFERROR(IF(COUNT(Q14:Q15),ROUND(SUM(Q14:Q15),0),\"\"),\"\")","v":""},{"$f":"+IFERROR(IF(COUNT(R14:R15),ROUND(SUM(R14:R15),0),\"\"),\"\")","v":""},{"$f":"+IFERROR(IF(COUNT(S14:S15),ROUND(SUM(S14:S15),0),\"\"),\"\")","v":""},{"$f":"+IFERROR(IF(COUNT(K16,S16),ROUND(SUM(S16,K16)/SUM('Shareholding Pattern'!$L$78,'Shareholding Pattern'!$T$78)*100,2),\"\"),\"\")","v":""},{"$f":"+IFERROR(IF(COUNT(U14:U15),ROUND(SUM(U14:U15),0),\"\"),\"\")","v":""},{"$f":"+IFERROR(IF(COUNT(U16),ROUND(SUM(U16)/SUM(K16)*100,2),\"\"),0)","v":""},{"$f":"+IFERROR(IF(COUNT(W14:W15),ROUND(SUM(W14:W15),0),\"\"),\"\")","v":""},null,{"$f":"+IFERROR(IF(COUNT(Y14:Y15),ROUND(SUM(Y14:Y15),0),\"\"),\"\")","v":""},{"$f":"+IFERROR(IF(COUNT(Z14:Z15),ROUND(SUM(Z14:Z15),0),\"\"),\"\")","v":""},{"$f":"+IFERROR(IF(COUNT(AA14:AA15),ROUND(SUM(AA14:AA15),0),\"\"),\"\")","v":""}]

{"sheet":"Key Managerial Personnel","index":29,"n_rows":16,"n_cols":29,"rows_kept":16,"hidden":true,"merged":[[8,4,10,4],[8,5,10,5],[8,6,10,6],[8,7,10,7],[8,8,10,8],[8,9,10,9],[8,10,10,10],[8,11,10,11],[8,12,8,15],[8,16,10,16],[8,17,10,17],[8,18,10,18],[8,19,10,19],[8,20,9,21],[8,22,10,22],[8,23,10,23],[8,24,8,26],[9,12,9,14],[9,15,10,15],[9,24,9,26]]}
[{"$nulls":8},0]
[{"$nulls":5},"Name of shareholder","Permanent account number of shareholder","Number of fully paid up equity shares","Number of partly paid-up equity shares","Number of shares underlying outstanding depository receipts","Total number of shares","Shareholding as a percentage of total number of shares held by promoters and public shareholders and custodians or DR holders","Number of voting rights held by same class of securities","Number of voting rights held by differential voting rights","Total Number of voting rights","Percentage of total number of voting rights","Number of shares underlying outstanding convertible securities","Number of warrant","Number of warrant and convertible securities","Total shareholding as a percentage assuming full conversion of convertible securities","Number of the locked-in-shares ","Locked-in-shares as a percentage of total number of shares","Number of equity shares held in dematerialized form","Reason for not providing PAN","Number of share under sub category one","Number of share under sub category two","Number of share under sub category three"]
[]
[]
[]
[]
[]
[]
[{"$nulls":4},"Searial No.","Name\nof the \nShareholders\n     (I)","PAN \n(II)","No. of fully paid up equity shares held\n(IV)","No. Of Partly paid-up equity shares held\n(V)","No. Of shares underlying Depository Receipts\n(VI)","Total nos. shares\nheld\n(VII) = (IV)+(V)+ (VI)","Shareholding as a % of total no. of shares (calculated as per SCRR, 1957)\n(VIII)\nAs a % of (A+B+C2)","Number of Voting Rights held in each class of securities\n(IX)",{"$nulls":3},"No. Of Shares Underlying Outstanding convertible securities\n(X)","No. of Shares Underlying Outstanding Warrants (Xi)","No. Of Shares Underlying Outstanding convertible securities and No. Of Warrants\n(Xi) (a)","Shareholding , as a % assuming full conversion of convertible securities (as a percentage of diluted share capital)\n(XI)= (VII)+(X)\nAs a % of (A+B+C2)","Number of Locked in shares\n(XII)",null,"Number of equity shares held in dematerialized form \n(XIV)","Reason for not providing PAN","Sub-categorization of shares"]
[{"$nulls":12},"No of Voting (XIV)\nRights",null,null,"Total as\na % of\nTotal\nVoting\nrights",{"$nulls":8},"Shareholding (No. of shares) under"]
[{"$nulls":12},"Class\neg:\nX","Class\neg:y","Total",{"$nulls":5},"No.\n(a)","As a % of total Shares held\n(b)",null,null,"Sub-category (i)","Sub-category (ii)","Sub-category (iii)"]
[{"$nulls":4},"B4(c)","Key Managerial Personnel"]
[{"$nulls":10},{"$f":"+IFERROR(IF(COUNT(H13:J13),ROUND(SUM(H13:J13),0),\"\"),\"\")","v":""},{"$f":"+IFERROR(IF(COUNT(K13),ROUND(K13/'Shareholding Pattern'!$L$78*100,2),\"\"),\"\")","v":""},{"$f":"IF(H13=\"\",\"\",H13)","v":""},null,{"$f":"+IFERROR(IF(COUNT(M13:N13),ROUND(SUM(M13,N13),2),\"\"),\"\")","v":""},{"$f":"+IFERROR(IF(COUNT(O13),ROUND(O13/('Shareholding Pattern'!$P$79)*100,2),\"\"),\"\")","v":""},null,null,{"$f":"+IFERROR(IF(COUNT(Q13:R13),ROUND(SUM(Q13:R13),0),\"\"),\"\")","v":""},{"$f":"+IFERROR(IF(COUNT(K13,S13),ROUND(SUM(S13,K13)/SUM('Shareholding Pattern'!$L$78,'Shareholding Pattern'!$T$78)*100,2),\"\"),\"\")","v":""},null,{"$f":"+IFERROR(IF(COUNT(U13),ROUND(SUM(U13)/SUM(K13)*100,2),\"\"),0)","v":""},{"$nulls":6},{"$f":"SUM(#REF!)","v":{"$error":"#REF!"}}]
[{"$nulls":6},"Disclosure of shareholder holding more than 1% of total number of shares"]
[]
[{"$nulls":5},"Click here to go back","Total",{"$f":"+IFERROR(IF(COUNT(H14:H15),ROUND(SUM(H14:H15),0),\"\"),\"\")","v":""},{"$f":"+IFERROR(IF(COUNT(I14:I15),ROUND(SUM(I14:I15),0),\"\"),\"\")","v":""},{"$f":"+IFERROR(IF(COUNT(J14:J15),ROUND(SUM(J14:J15),0),\"\"),\"\")","v":""},{"$f":"+IFERROR(IF(COUNT(K14:K15),ROUND(SUM(K14:K15),0),\"\"),\"\")","v":""},{"$f":"+IFERROR(IF(COUNT(K16),ROUND(K16/'Shareholding Pattern'!$L$78*100,2),\"\"),\"\")","v":""},{"$f":"+IFERROR(IF(COUNT(M14:M15),ROUND(SUM(M14:M15),0),\"\"),\"\")","v":""},{"$f":"+IFERROR(IF(COUNT(N14:N15),ROUND(SUM(N14:N15),0),\"\"),\"\")","v":""},{"$f":"+IFERROR(IF(COUNT(O14:O15),ROUND(SUM(O14:O15),0),\"\"),\"\")","v":""},{"$f":"+IFERROR(IF(COUNT(O16),ROUND(O16/('Shareholding Pattern'!$P$79)*100,2),\"\"),\"\")","v":""},{"$f":"+IFERROR(IF(COUNT(Q14:Q15),ROUND(SUM(Q14:Q15),0),\"\"),\"\")","v":""},{"$f":"+IFERROR(IF(COUNT(R14:R15),ROUND(SUM(R14:R15),0),\"\"),\"\")","v":""},{"$f":"+IFERROR(IF(COUNT(S14:S15),ROUND(SUM(S14:S15),0),\"\"),\"\")","v":""},{"$f":"+IFERROR(IF(COUNT(K16,S16),ROUND(SUM(S16,K16)/SUM('Shareholding Pattern'!$L$78,'Shareholding Pattern'!$T$78)*100,2),\"\"),\"\")","v":""},{"$f":"+IFERROR(IF(COUNT(U14:U15),ROUND(SUM(U14:U15),0),\"\"),\"\")","v":""},{"$f":"+IFERROR(IF(COUNT(U16),ROUND(SUM(U16)/SUM(K16)*100,2),\"\"),0)","v":""},{"$f":"+IFERROR(IF(COUNT(W14:W15),ROUND(SUM(W14:W15),0),\"\"),\"\")","v":""},null,{"$f":"+IFERROR(IF(COUNT(Y14:Y15),ROUND(SUM(Y14:Y15),0),\"\"),\"\")","v":""},{"$f":"+IFERROR(IF(COUNT(Z14:Z15),ROUND(SUM(Z14:Z15),0),\"\"),\"\")","v":""},{"$f":"+IFERROR(IF(COUNT(AA14:AA15),ROUND(SUM(AA14:AA15),0),\"\"),\"\")","v":""}]

{"sheet":"Directors and their relatives","index":30,"n_rows":16,"n_cols":29,"rows_kept":16,"hidden":true,"merged":[[8,4,10,4],[8,5,10,5],[8,6,10,6],[8,7,10,7],[8,8,10,8],[8,9,10,9],[8,10,10,10],[8,11,10,11],[8,12,8,15],[8,16,10,16],[8,17,10,17],[8,18,10,18],[8,19,10,19],[8,20,9,21],[8,22,10,22],[8,23,10,23],[8,24,8,26],[9,12,9,14],[9,15,10,15],[9,24,9,26]]}
[{"$nulls":8},0]
[{"$nulls":5},"Name of shareholder","Permanent account number of shareholder","Number of fully paid up equity shares","Number of partly paid-up equity shares","Number of shares underlying outstanding depository receipts","Total number of shares","Shareholding as a percentage of total number of shares held by promoters and public shareholders and custodians or DR holders","Number of voting rights held by same class of securities","Number of voting rights held by differential voting rights","Total Number of voting rights","Percentage of total number of voting rights","Number of shares underlying outstanding convertible securities","Number of warrant","Number of warrant and convertible securities","Total shareholding as a percentage assuming full conversion of convertible securities","Number of the locked-in-shares ","Locked-in-shares as a percentage of total number of shares","Number of equity shares held in dematerialized form","Reason for not providing PAN","Number of share under sub category one","Number of share under sub category two","Number of share under sub category three"]
[]
[]
[]
[]
[]
[]
[{"$nulls":4},"Searial No.","Name\nof the \nShareholders\n     (I)","PAN \n(II)","No. of fully paid up equity shares held\n(IV)","No. Of Partly paid-up equity shares held\n(V)","No. Of shares underlying Depository Receipts\n(VI)","Total nos. shares\nheld\n(VII) = (IV)+(V)+ (VI)","Shareholding as a % of total no. of shares (calculated as per SCRR, 1957)\n(VIII)\nAs a % of (A+B+C2)","Number of Voting Rights held in each class of securities\n(IX)",{"$nulls":3},"No. Of Shares Underlying Outstanding convertible securities\n(X)","No. of Shares Underlying Outstanding Warrants (Xi)","No. Of Shares Underlying Outstanding convertible securities and No. Of Warrants\n(Xi) (a)","Shareholding , as a % assuming full conversion of convertible securities (as a percentage of diluted share capital)\n(XI)= (VII)+(X)\nAs a % of (A+B+C2)","Number of Locked in shares\n(XII)",null,"Number of equity shares held in dematerialized form \n(XIV)","Reason for not providing PAN","Sub-categorization of shares"]
[{"$nulls":12},"No of Voting (XIV)\nRights",null,null,"Total as\na % of\nTotal\nVoting\nrights",{"$nulls":8},"Shareholding (No. of shares) under"]
[{"$nulls":12},"Class\neg:\nX","Class\neg:y","Total",{"$nulls":5},"No.\n(a)","As a % of total Shares held\n(b)",null,null,"Sub-category (i)","Sub-category (ii)","Sub-category (iii)"]
[{"$nulls":4},"B4(b)","Directors and their relatives (excluding independent directors and nominee directors)"]
[{"$nulls":10},{"$f":"+IFERROR(IF(COUNT(H13:J13),ROUND(SUM(H13:J13),0),\"\"),\"\")","v":""},{"$f":"+IFERROR(IF(COUNT(K13),ROUND(K13/'Shareholding Pattern'!$L$78*100,2),\"\"),\"\")","v":""},{"$f":"IF(H13=\"\",\"\",H13)","v":""},null,{"$f":"+IFERROR(IF(COUNT(M13:N13),ROUND(SUM(M13,N13),2),\"\"),\"\")","v":""},{"$f":"+IFERROR(IF(COUNT(O13),ROUND(O13/('Shareholding Pattern'!$P$79)*100,2),\"\"),\"\")","v":""},null,null,{"$f":"+IFERROR(IF(COUNT(Q13:R13),ROUND(SUM(Q13:R13),0),\"\"),\"\")","v":""},{"$f":"+IFERROR(IF(COUNT(K13,S13),ROUND(SUM(S13,K13)/SUM('Shareholding Pattern'!$L$78,'Shareholding Pattern'!$T$78)*100,2),\"\"),\"\")","v":""},null,{"$f":"+IFERROR(IF(COUNT(U13),ROUND(SUM(U13)/SUM(K13)*100,2),\"\"),0)","v":""},{"$nulls":6},{"$f":"SUM(#REF!)","v":{"$error":"#REF!"}}]
[{"$nulls":6},"Disclosure of shareholder holding more than 1% of total number of shares"]
[]
[{"$nulls":5},"Click here to go back","Total",{"$f":"+IFERROR(IF(COUNT(H14:H15),ROUND(SUM(H14:H15),0),\"\"),\"\")","v":""},{"$f":"+IFERROR(IF(COUNT(I14:I15),ROUND(SUM(I14:I15),0),\"\"),\"\")","v":""},{"$f":"+IFERROR(IF(COUNT(J14:J15),ROUND(SUM(J14:J15),0),\"\"),\"\")","v":""},{"$f":"+IFERROR(IF(COUNT(K14:K15),ROUND(SUM(K14:K15),0),\"\"),\"\")","v":""},{"$f":"+IFERROR(IF(COUNT(K16),ROUND(K16/'Shareholding Pattern'!$L$78*100,2),\"\"),\"\")","v":""},{"$f":"+IFERROR(IF(COUNT(M14:M15),ROUND(SUM(M14:M15),0),\"\"),\"\")","v":""},{"$f":"+IFERROR(IF(COUNT(N14:N15),ROUND(SUM(N14:N15),0),\"\"),\"\")","v":""},{"$f":"+IFERROR(IF(COUNT(O14:O15),ROUND(SUM(O14:O15),0),\"\"),\"\")","v":""},{"$f":"+IFERROR(IF(COUNT(O16),ROUND(O16/('Shareholding Pattern'!$P$79)*100,2),\"\"),\"\")","v":""},{"$f":"+IFERROR(IF(COUNT(Q14:Q15),ROUND(SUM(Q14:Q15),0),\"\"),\"\")","v":""},{"$f":"+IFERROR(IF(COUNT(R14:R15),ROUND(SUM(R14:R15),0),\"\"),\"\")","v":""},{"$f":"+IFERROR(IF(COUNT(S14:S15),ROUND(SUM(S14:S15),0),\"\"),\"\")","v":""},{"$f":"+IFERROR(IF(COUNT(K16,S16),ROUND(SUM(S16,K16)/SUM('Shareholding Pattern'!$L$78,'Shareholding Pattern'!$T$78)*100,2),\"\"),\"\")","v":""},{"$f":"+IFERROR(IF(COUNT(U14:U15),ROUND(SUM(U14:U15),0),\"\"),\"\")","v":""},{"$f":"+IFERROR(IF(COUNT(U16),ROUND(SUM(U16)/SUM(K16)*100,2),\"\"),0)","v":""},{"$f":"+IFERROR(IF(COUNT(W14:W15),ROUND(SUM(W14:W15),0),\"\"),\"\")","v":""},null,{"$f":"+IFERROR(IF(COUNT(Y14:Y15),ROUND(SUM(Y14:Y15),0),\"\"),\"\")","v":""},{"$f":"+IFERROR(IF(COUNT(Z14:Z15),ROUND(SUM(Z14:Z15),0),\"\"),\"\")","v":""},{"$f":"+IFERROR(IF(COUNT(AA14:AA15),ROUND(SUM(AA14:AA15),0),\"\"),\"\")","v":""}]

{"sheet":"Associate companies_Subsidiar","index":31,"n_rows":16,"n_cols":29,"rows_kept":16,"hidden":true,"merged":[[8,4,10,4],[8,5,10,5],[8,6,10,6],[8,7,10,7],[8,8,10,8],[8,9,10,9],[8,10,10,10],[8,11,10,11],[8,12,8,15],[8,16,10,16],[8,17,10,17],[8,18,10,18],[8,19,10,19],[8,20,9,21],[8,22,10,22],[8,23,10,23],[8,24,8,26],[9,12,9,14],[9,15,10,15],[9,24,9,26]]}
[{"$nulls":8},0]
[{"$nulls":5},"Name of shareholder","Permanent account number of shareholder","Number of fully paid up equity shares","Number of partly paid-up equity shares","Number of shares underlying outstanding depository receipts","Total number of shares","Shareholding as a percentage of total number of shares held by promoters and public shareholders and custodians or DR holders","Number of voting rights held by same class of securities","Number of voting rights held by differential voting rights","Total Number of voting rights","Percentage of total number of voting rights","Number of shares underlying outstanding convertible securities","Number of warrant","Number of warrant and convertible securities","Total shareholding as a percentage assuming full conversion of convertible securities","Number of the locked-in-shares ","Locked-in-shares as a percentage of total number of shares","Number of equity shares held in dematerialized form","Reason for not providing PAN","Number of share under sub category one","Number of share under sub category two","Number of share under sub category three"]
[]
[]
[]
[]
[]
[]
[{"$nulls":4},"Searial No.","Name\nof the \nShareholders\n     (I)","PAN \n(II)","No. of fully paid up equity shares held\n(IV)","No. Of Partly paid-up equity shares held\n(V)","No. Of shares underlying Depository Receipts\n(VI)","Total nos. shares\nheld\n(VII) = (IV)+(V)+ (VI)","Shareholding as a % of total no. of shares (calculated as per SCRR, 1957)\n(VIII)\nAs a % of (A+B+C2)","Number of Voting Rights held in each class of securities\n(IX)",{"$nulls":3},"No. Of Shares Underlying Outstanding convertible securities\n(X)","No. of Shares Underlying Outstanding Warrants (Xi)","No. Of Shares Underlying Outstanding convertible securities and No. Of Warrants\n(Xi) (a)","Shareholding , as a % assuming full conversion of convertible securities (as a percentage of diluted share capital)\n(XI)= (VII)+(X)\nAs a % of (A+B+C2)","Number of Locked in shares\n(XII)",null,"Number of equity shares held in dematerialized form \n(XIV)","Reason for not providing PAN","Sub-categorization of shares"]
[{"$nulls":12},"No of Voting (XIV)\nRights",null,null,"Total as\na % of\nTotal\nVoting\nrights",{"$nulls":8},"Shareholding (No. of shares) under"]
[{"$nulls":12},"Class\neg:\nX","Class\neg:y","Total",{"$nulls":5},"No.\n(a)","As a % of total Shares held\n(b)",null,null,"Sub-category (i)","Sub-category (ii)","Sub-category (iii)"]
[{"$nulls":4},"B4(a)","Associate companies / Subsidiaries"]
[{"$nulls":10},{"$f":"+IFERROR(IF(COUNT(H13:J13),ROUND(SUM(H13:J13),0),\"\"),\"\")","v":""},{"$f":"+IFERROR(IF(COUNT(K13),ROUND(K13/'Shareholding Pattern'!$L$78*100,2),\"\"),\"\")","v":""},{"$f":"IF(H13=\"\",\"\",H13)","v":""},null,{"$f":"+IFERROR(IF(COUNT(M13:N13),ROUND(SUM(M13,N13),2),\"\"),\"\")","v":""},{"$f":"+IFERROR(IF(COUNT(O13),ROUND(O13/('Shareholding Pattern'!$P$79)*100,2),\"\"),\"\")","v":""},null,null,{"$f":"+IFERROR(IF(COUNT(Q13:R13),ROUND(SUM(Q13:R13),0),\"\"),\"\")","v":""},{"$f":"+IFERROR(IF(COUNT(K13,S13),ROUND(SUM(S13,K13)/SUM('Shareholding Pattern'!$L$78,'Shareholding Pattern'!$T$78)*100,2),\"\"),\"\")","v":""},null,{"$f":"+IFERROR(IF(COUNT(U13),ROUND(SUM(U13)/SUM(K13)*100,2),\"\"),0)","v":""},{"$nulls":6},{"$f":"SUM(#REF!)","v":{"$error":"#REF!"}}]
[{"$nulls":6},"Disclosure of shareholder holding more than 1% of total number of shares"]
[]
[{"$nulls":5},"Click here to go back","Total",{"$f":"+IFERROR(IF(COUNT(H14:H15),ROUND(SUM(H14:H15),0),\"\"),\"\")","v":""},{"$f":"+IFERROR(IF(COUNT(I14:I15),ROUND(SUM(I14:I15),0),\"\"),\"\")","v":""},{"$f":"+IFERROR(IF(COUNT(J14:J15),ROUND(SUM(J14:J15),0),\"\"),\"\")","v":""},{"$f":"+IFERROR(IF(COUNT(K14:K15),ROUND(SUM(K14:K15),0),\"\"),\"\")","v":""},{"$f":"+IFERROR(IF(COUNT(K16),ROUND(K16/'Shareholding Pattern'!$L$78*100,2),\"\"),\"\")","v":""},{"$f":"+IFERROR(IF(COUNT(M14:M15),ROUND(SUM(M14:M15),0),\"\"),\"\")","v":""},{"$f":"+IFERROR(IF(COUNT(N14:N15),ROUND(SUM(N14:N15),0),\"\"),\"\")","v":""},{"$f":"+IFERROR(IF(COUNT(O14:O15),ROUND(SUM(O14:O15),0),\"\"),\"\")","v":""},{"$f":"+IFERROR(IF(COUNT(O16),ROUND(O16/('Shareholding Pattern'!$P$79)*100,2),\"\"),\"\")","v":""},{"$f":"+IFERROR(IF(COUNT(Q14:Q15),ROUND(SUM(Q14:Q15),0),\"\"),\"\")","v":""},{"$f":"+IFERROR(IF(COUNT(R14:R15),ROUND(SUM(R14:R15),0),\"\"),\"\")","v":""},{"$f":"+IFERROR(IF(COUNT(S14:S15),ROUND(SUM(S14:S15),0),\"\"),\"\")","v":""},{"$f":"+IFERROR(IF(COUNT(K16,S16),ROUND(SUM(S16,K16)/SUM('Shareholding Pattern'!$L$78,'Shareholding Pattern'!$T$78)*100,2),\"\"),\"\")","v":""},{"$f":"+IFERROR(IF(COUNT(U14:U15),ROUND(SUM(U14:U15),0),\"\"),\"\")","v":""},{"$f":"+IFERROR(IF(COUNT(U16),ROUND(SUM(U16)/SUM(K16)*100,2),\"\"),0)","v":""},{"$f":"+IFERROR(IF(COUNT(W14:W15),ROUND(SUM(W14:W15),0),\"\"),\"\")","v":""},null,{"$f":"+IFERROR(IF(COUNT(Y14:Y15),ROUND(SUM(Y14:Y15),0),\"\"),\"\")","v":""},{"$f":"+IFERROR(IF(COUNT(Z14:Z15),ROUND(SUM(Z14:Z15),0),\"\"),\"\")","v":""},{"$f":"+IFERROR(IF(COUNT(AA14:AA15),ROUND(SUM(AA14:AA15),0),\"\"),\"\")","v":""}]

{"sheet":"Shareholding by Companies","index":32,"n_rows":16,"n_cols":29,"rows_kept":16,"hidden":true,"merged":[[8,4,10,4],[8,5,10,5],[8,6,10,6],[8,7,10,7],[8,8,10,8],[8,9,10,9],[8,10,10,10],[8,11,10,11],[8,12,8,15],[8,16,10,16],[8,17,10,17],[8,18,10,18],[8,19,10,19],[8,20,9,21],[8,22,10,22],[8,23,10,23],[8,24,8,26],[9,12,9,14],[9,15,10,15],[9,24,9,26]]}
[{"$nulls":8},0]
[{"$nulls":5},"Name of shareholder","Permanent account number of shareholder","Number of fully paid up equity shares","Number of partly paid-up equity shares","Number of shares underlying outstanding depository receipts","Total number of shares","Shareholding as a percentage of total number of shares held by promoters and public shareholders and custodians or DR holders","Number of voting rights held by same class of securities","Number of voting rights held by differential voting rights","Total Number of voting rights","Percentage of total number of voting rights","Number of shares underlying outstanding convertible securities","Number of warrant","Number of warrant and convertible securities","Total shareholding as a percentage assuming full conversion of convertible securities","Number of the locked-in-shares ","Locked-in-shares as a percentage of total number of shares","Number of equity shares held in dematerialized form","Reason for not providing PAN","Number of share under sub category one","Number of share under sub category two","Number of share under sub category three"]
[]
[]
[]
[]
[]
[]
[{"$nulls":4},"Searial No.","Name\nof the \nShareholders\n     (I)","PAN \n(II)","No. of fully paid up equity shares held\n(IV)","No. Of Partly paid-up equity shares held\n(V)","No. Of shares underlying Depository Receipts\n(VI)","Total nos. shares\nheld\n(VII) = (IV)+(V)+ (VI)","Shareholding as a % of total no. of shares (calculated as per SCRR, 1957)\n(VIII)\nAs a % of (A+B+C2)","Number of Voting Rights held in each class of securities\n(IX)",{"$nulls":3},"No. Of Shares Underlying Outstanding convertible securities\n(X)","No. of Shares Underlying Outstanding Warrants (Xi)","No. Of Shares Underlying Outstanding convertible securities and No. Of Warrants\n(Xi) (a)","Shareholding , as a % assuming full conversion of convertible securities (as a percentage of diluted share capital)\n(XI)= (VII)+(X)\nAs a % of (A+B+C2)","Number of Locked in shares\n(XII)",null,"Number of equity shares held in dematerialized form \n(XIV)","Reason for not providing PAN","Sub-categorization of shares"]
[{"$nulls":12},"No of Voting (XIV)\nRights",null,null,"Total as\na % of\nTotal\nVoting\nrights",{"$nulls":8},"Shareholding (No. of shares) under"]
[{"$nulls":12},"Class\neg:\nX","Class\neg:y","Total",{"$nulls":5},"No.\n(a)","As a % of total Shares held\n(b)",null,null,"Sub-category (i)","Sub-category (ii)","Sub-category (iii)"]
[{"$nulls":4},"B3(c)","Shareholding by Companies or Bodies Corporate where Central / State Government is a promoter"]
[{"$nulls":10},{"$f":"+IFERROR(IF(COUNT(H13:J13),ROUND(SUM(H13:J13),0),\"\"),\"\")","v":""},{"$f":"+IFERROR(IF(COUNT(K13),ROUND(K13/'Shareholding Pattern'!$L$78*100,2),\"\"),\"\")","v":""},{"$f":"IF(H13=\"\",\"\",H13)","v":""},null,{"$f":"+IFERROR(IF(COUNT(M13:N13),ROUND(SUM(M13,N13),2),\"\"),\"\")","v":""},{"$f":"+IFERROR(IF(COUNT(O13),ROUND(O13/('Shareholding Pattern'!$P$79)*100,2),\"\"),\"\")","v":""},null,null,{"$f":"+IFERROR(IF(COUNT(Q13:R13),ROUND(SUM(Q13:R13),0),\"\"),\"\")","v":""},{"$f":"+IFERROR(IF(COUNT(K13,S13),ROUND(SUM(S13,K13)/SUM('Shareholding Pattern'!$L$78,'Shareholding Pattern'!$T$78)*100,2),\"\"),\"\")","v":""},null,{"$f":"+IFERROR(IF(COUNT(U13),ROUND(SUM(U13)/SUM(K13)*100,2),\"\"),0)","v":""},{"$nulls":6},{"$f":"SUM(#REF!)","v":{"$error":"#REF!"}}]
[{"$nulls":6},"Disclosure of shareholder holding more than 1% of total number of shares"]
[]
[{"$nulls":5},"Click here to go back","Total",{"$f":"+IFERROR(IF(COUNT(H14:H15),ROUND(SUM(H14:H15),0),\"\"),\"\")","v":""},{"$f":"+IFERROR(IF(COUNT(I14:I15),ROUND(SUM(I14:I15),0),\"\"),\"\")","v":""},{"$f":"+IFERROR(IF(COUNT(J14:J15),ROUND(SUM(J14:J15),0),\"\"),\"\")","v":""},{"$f":"+IFERROR(IF(COUNT(K14:K15),ROUND(SUM(K14:K15),0),\"\"),\"\")","v":""},{"$f":"+IFERROR(IF(COUNT(K16),ROUND(K16/'Shareholding Pattern'!$L$78*100,2),\"\"),\"\")","v":""},{"$f":"+IFERROR(IF(COUNT(M14:M15),ROUND(SUM(M14:M15),0),\"\"),\"\")","v":""},{"$f":"+IFERROR(IF(COUNT(N14:N15),ROUND(SUM(N14:N15),0),\"\"),\"\")","v":""},{"$f":"+IFERROR(IF(COUNT(O14:O15),ROUND(SUM(O14:O15),0),\"\"),\"\")","v":""},{"$f":"+IFERROR(IF(COUNT(O16),ROUND(O16/('Shareholding Pattern'!$P$79)*100,2),\"\"),\"\")","v":""},{"$f":"+IFERROR(IF(COUNT(Q14:Q15),ROUND(SUM(Q14:Q15),0),\"\"),\"\")","v":""},{"$f":"+IFERROR(IF(COUNT(R14:R15),ROUND(SUM(R14:R15),0),\"\"),\"\")","v":""},{"$f":"+IFERROR(IF(COUNT(S14:S15),ROUND(SUM(S14:S15),0),\"\"),\"\")","v":""},{"$f":"+IFERROR(IF(COUNT(K16,S16),ROUND(SUM(S16,K16)/SUM('Shareholding Pattern'!$L$78,'Shareholding Pattern'!$T$78)*100,2),\"\"),\"\")","v":""},{"$f":"+IFERROR(IF(COUNT(U14:U15),ROUND(SUM(U14:U15),0),\"\"),\"\")","v":""},{"$f":"+IFERROR(IF(COUNT(U16),ROUND(SUM(U16)/SUM(K16)*100,2),\"\"),0)","v":""},{"$f":"+IFERROR(IF(COUNT(W14:W15),ROUND(SUM(W14:W15),0),\"\"),\"\")","v":""},null,{"$f":"+IFERROR(IF(COUNT(Y14:Y15),ROUND(SUM(Y14:Y15),0),\"\"),\"\")","v":""},{"$f":"+IFERROR(IF(COUNT(Z14:Z15),ROUND(SUM(Z14:Z15),0),\"\"),\"\")","v":""},{"$f":"+IFERROR(IF(COUNT(AA14:AA15),ROUND(SUM(AA14:AA15),0),\"\"),\"\")","v":""}]

{"sheet":"State Government_Governor","index":33,"n_rows":16,"n_cols":29,"rows_kept":16,"hidden":true,"merged":[[8,4,10,4],[8,5,10,5],[8,6,10,6],[8,7,10,7],[8,8,10,8],[8,9,10,9],[8,10,10,10],[8,11,10,11],[8,12,8,15],[8,16,10,16],[8,17,10,17],[8,18,10,18],[8,19,10,19],[8,20,9,21],[8,22,10,22],[8,23,10,23],[8,24,8,26],[9,12,9,14],[9,15,10,15],[9,24,9,26]]}
[{"$nulls":8},0]
[{"$nulls":5},"Name of shareholder","Permanent account number of shareholder","Number of fully paid up equity shares","Number of partly paid-up equity shares","Number of shares underlying outstanding depository receipts","Total number of shares","Shareholding as a percentage of total number of shares held by promoters and public shareholders and custodians or DR holders","Number of voting rights held by same class of securities","Number of voting rights held by differential voting rights","Total Number of voting rights","Percentage of total number of voting rights","Number of shares underlying outstanding convertible securities","Number of warrant","Number of warrant and convertible securities","Total shareholding as a percentage assuming full conversion of convertible securities","Number of the locked-in-shares ","Locked-in-shares as a percentage of total number of shares","Number of equity shares held in dematerialized form","Reason for not providing PAN","Number of share under sub category one","Number of share under sub category two","Number of share under sub category three"]
[]
[]
[]
[]
[]
[]
[{"$nulls":4},"Searial No.","Name\nof the \nShareholders\n     (I)","PAN \n(II)","No. of fully paid up equity shares held\n(IV)","No. Of Partly paid-up equity shares held\n(V)","No. Of shares underlying Depository Receipts\n(VI)","Total nos. shares\nheld\n(VII) = (IV)+(V)+ (VI)","Shareholding as a % of total no. of shares (calculated as per SCRR, 1957)\n(VIII)\nAs a % of (A+B+C2)","Number of Voting Rights held in each class of securities\n(IX)",{"$nulls":3},"No. Of Shares Underlying Outstanding convertible securities\n(X)","No. of Shares Underlying Outstanding Warrants (Xi)","No. Of Shares Underlying Outstanding convertible securities and No. Of Warrants\n(Xi) (a)","Shareholding , as a % assuming full conversion of convertible securities (as a percentage of diluted share capital)\n(XI)= (VII)+(X)\nAs a % of (A+B+C2)","Number of Locked in shares\n(XII)",null,"Number of equity shares held in dematerialized form \n(XIV)","Reason for not providing PAN","Sub-categorization of shares"]
[{"$nulls":12},"No of Voting (XIV)\nRights",null,null,"Total as\na % of\nTotal\nVoting\nrights",{"$nulls":8},"Shareholding (No. of shares) under"]
[{"$nulls":12},"Class\neg:\nX","Class\neg:y","Total",{"$nulls":5},"No.\n(a)","As a % of total Shares held\n(b)",null,null,"Sub-category (i)","Sub-category (ii)","Sub-category (iii)"]
[{"$nulls":4},"B3(b)","State Government / Governor"]
[{"$nulls":10},{"$f":"+IFERROR(IF(COUNT(H13:J13),ROUND(SUM(H13:J13),0),\"\"),\"\")","v":""},{"$f":"+IFERROR(IF(COUNT(K13),ROUND(K13/'Shareholding Pattern'!$L$78*100,2),\"\"),\"\")","v":""},{"$f":"IF(H13=\"\",\"\",H13)","v":""},null,{"$f":"+IFERROR(IF(COUNT(M13:N13),ROUND(SUM(M13,N13),2),\"\"),\"\")","v":""},{"$f":"+IFERROR(IF(COUNT(O13),ROUND(O13/('Shareholding Pattern'!$P$79)*100,2),\"\"),\"\")","v":""},null,null,{"$f":"+IFERROR(IF(COUNT(Q13:R13),ROUND(SUM(Q13:R13),0),\"\"),\"\")","v":""},{"$f":"+IFERROR(IF(COUNT(K13,S13),ROUND(SUM(S13,K13)/SUM('Shareholding Pattern'!$L$78,'Shareholding Pattern'!$T$78)*100,2),\"\"),\"\")","v":""},null,{"$f":"+IFERROR(IF(COUNT(U13),ROUND(SUM(U13)/SUM(K13)*100,2),\"\"),0)","v":""},{"$nulls":6},{"$f":"SUM(#REF!)","v":{"$error":"#REF!"}}]
[{"$nulls":6},"Disclosure of shareholder holding more than 1% of total number of shares"]
[]
[{"$nulls":5},"Click here to go back","Total",{"$f":"+IFERROR(IF(COUNT(H14:H15),ROUND(SUM(H14:H15),0),\"\"),\"\")","v":""},{"$f":"+IFERROR(IF(COUNT(I14:I15),ROUND(SUM(I14:I15),0),\"\"),\"\")","v":""},{"$f":"+IFERROR(IF(COUNT(J14:J15),ROUND(SUM(J14:J15),0),\"\"),\"\")","v":""},{"$f":"+IFERROR(IF(COUNT(K14:K15),ROUND(SUM(K14:K15),0),\"\"),\"\")","v":""},{"$f":"+IFERROR(IF(COUNT(K16),ROUND(K16/'Shareholding Pattern'!$L$78*100,2),\"\"),\"\")","v":""},{"$f":"+IFERROR(IF(COUNT(M14:M15),ROUND(SUM(M14:M15),0),\"\"),\"\")","v":""},{"$f":"+IFERROR(IF(COUNT(N14:N15),ROUND(SUM(N14:N15),0),\"\"),\"\")","v":""},{"$f":"+IFERROR(IF(COUNT(O14:O15),ROUND(SUM(O14:O15),0),\"\"),\"\")","v":""},{"$f":"+IFERROR(IF(COUNT(O16),ROUND(O16/('Shareholding Pattern'!$P$79)*100,2),\"\"),\"\")","v":""},{"$f":"+IFERROR(IF(COUNT(Q14:Q15),ROUND(SUM(Q14:Q15),0),\"\"),\"\")","v":""},{"$f":"+IFERROR(IF(COUNT(R14:R15),ROUND(SUM(R14:R15),0),\"\"),\"\")","v":""},{"$f":"+IFERROR(IF(COUNT(S14:S15),ROUND(SUM(S14:S15),0),\"\"),\"\")","v":""},{"$f":"+IFERROR(IF(COUNT(K16,S16),ROUND(SUM(S16,K16)/SUM('Shareholding Pattern'!$L$78,'Shareholding Pattern'!$T$78)*100,2),\"\"),\"\")","v":""},{"$f":"+IFERROR(IF(COUNT(U14:U15),ROUND(SUM(U14:U15),0),\"\"),\"\")","v":""},{"$f":"+IFERROR(IF(COUNT(U16),ROUND(SUM(U16)/SUM(K16)*100,2),\"\"),0)","v":""},{"$f":"+IFERROR(IF(COUNT(W14:W15),ROUND(SUM(W14:W15),0),\"\"),\"\")","v":""},null,{"$f":"+IFERROR(IF(COUNT(Y14:Y15),ROUND(SUM(Y14:Y15),0),\"\"),\"\")","v":""},{"$f":"+IFERROR(IF(COUNT(Z14:Z15),ROUND(SUM(Z14:Z15),0),\"\"),\"\")","v":""},{"$f":"+IFERROR(IF(COUNT(AA14:AA15),ROUND(SUM(AA14:AA15),0),\"\"),\"\")","v":""}]

{"sheet":"CG&SG&PI","index":34,"n_rows":16,"n_cols":29,"rows_kept":16,"hidden":true,"merged":[[8,4,10,4],[8,5,10,5],[8,6,10,6],[8,7,10,7],[8,8,10,8],[8,9,10,9],[8,10,10,10],[8,11,10,11],[8,12,8,15],[8,16,10,16],[8,17,10,17],[8,18,10,18],[8,19,10,19],[8,20,9,21],[8,22,10,22],[8,23,10,23],[8,24,8,26],[9,12,9,14],[9,15,10,15],[9,24,9,26]]}
[{"$nulls":8},0]
[{"$nulls":5},"Name of shareholder","Permanent account number of shareholder","Number of fully paid up equity shares","Number of partly paid-up equity shares","Number of shares underlying outstanding depository receipts","Total number of shares","Shareholding as a percentage of total number of shares held by promoters and public shareholders and custodians or DR holders","Number of voting rights held by same class of securities","Number of voting rights held by differential voting rights","Total Number of voting rights","Percentage of total number of voting rights","Number of shares underlying outstanding convertible securities","Number of warrant","Number of warrant and convertible securities","Total shareholding as a percentage assuming full conversion of convertible securities","Number of the locked-in-shares ","Locked-in-shares as a percentage of total number of shares","Number of equity shares held in dematerialized form","Reason for not providing PAN","Number of share under sub category one","Number of share under sub category two","Number of share under sub category three"]
[]
[]
[]
[]
[]
[]
[{"$nulls":4},"Searial No.","Name\nof the \nShareholders\n     (I)","PAN \n(II)","No. of fully paid up equity shares held\n(IV)","No. Of Partly paid-up equity shares held\n(V)","No. Of shares underlying Depository Receipts\n(VI)","Total nos. shares\nheld\n(VII) = (IV)+(V)+ (VI)","Shareholding as a % of total no. of shares (calculated as per SCRR, 1957)\n(VIII)\nAs a % of (A+B+C2)","Number of Voting Rights held in each class of securities\n(IX)",{"$nulls":3},"No. Of Shares Underlying Outstanding convertible securities\n(X)","No. of Shares Underlying Outstanding Warrants (Xi)","No. Of Shares Underlying Outstanding convertible securities and No. Of Warrants\n(Xi) (a)","Shareholding , as a % assuming full conversion of convertible securities (as a percentage of diluted share capital)\n(XI)= (VII)+(X)\nAs a % of (A+B+C2)","Number of Locked in shares\n(XII)",null,"Number of equity shares held in dematerialized form \n(XIV)","Reason for not providing PAN","Sub-categorization of shares"]
[{"$nulls":12},"No of Voting (XIV)\nRights",null,null,"Total as\na % of\nTotal\nVoting\nrights",{"$nulls":8},"Shareholding (No. of shares) under"]
[{"$nulls":12},"Class\neg:\nX","Class\neg:y","Total",{"$nulls":5},"No.\n(a)","As a % of total Shares held\n(b)",null,null,"Sub-category (i)","Sub-category (ii)","Sub-category (iii)"]
[{"$nulls":4},"B3(a)","Central  Government / President of India"]
[{"$nulls":10},{"$f":"+IFERROR(IF(COUNT(H13:J13),ROUND(SUM(H13:J13),0),\"\"),\"\")","v":""},{"$f":"+IFERROR(IF(COUNT(K13),ROUND(K13/'Shareholding Pattern'!$L$78*100,2),\"\"),\"\")","v":""},{"$f":"IF(H13=\"\",\"\",H13)","v":""},null,{"$f":"+IFERROR(IF(COUNT(M13:N13),ROUND(SUM(M13,N13),2),\"\"),\"\")","v":""},{"$f":"+IFERROR(IF(COUNT(O13),ROUND(O13/('Shareholding Pattern'!$P$79)*100,2),\"\"),\"\")","v":""},null,null,{"$f":"+IFERROR(IF(COUNT(Q13:R13),ROUND(SUM(Q13:R13),0),\"\"),\"\")","v":""},{"$f":"+IFERROR(IF(COUNT(K13,S13),ROUND(SUM(S13,K13)/SUM('Shareholding Pattern'!$L$78,'Shareholding Pattern'!$T$78)*100,2),\"\"),\"\")","v":""},null,{"$f":"+IFERROR(IF(COUNT(U13),ROUND(SUM(U13)/SUM(K13)*100,2),\"\"),0)","v":""},{"$nulls":6},{"$f":"SUM(#REF!)","v":{"$error":"#REF!"}}]
[{"$nulls":6},"Disclosure of shareholder holding more than 1% of total number of shares"]
[]
[{"$nulls":5},"Click here to go back","Total",{"$f":"+IFERROR(IF(COUNT(H14:H15),ROUND(SUM(H14:H15),0),\"\"),\"\")","v":""},{"$f":"+IFERROR(IF(COUNT(I14:I15),ROUND(SUM(I14:I15),0),\"\"),\"\")","v":""},{"$f":"+IFERROR(IF(COUNT(J14:J15),ROUND(SUM(J14:J15),0),\"\"),\"\")","v":""},{"$f":"+IFERROR(IF(COUNT(K14:K15),ROUND(SUM(K14:K15),0),\"\"),\"\")","v":""},{"$f":"+IFERROR(IF(COUNT(K16),ROUND(K16/'Shareholding Pattern'!$L$78*100,2),\"\"),\"\")","v":""},{"$f":"+IFERROR(IF(COUNT(M14:M15),ROUND(SUM(M14:M15),0),\"\"),\"\")","v":""},{"$f":"+IFERROR(IF(COUNT(N14:N15),ROUND(SUM(N14:N15),0),\"\"),\"\")","v":""},{"$f":"+IFERROR(IF(COUNT(O14:O15),ROUND(SUM(O14:O15),0),\"\"),\"\")","v":""},{"$f":"+IFERROR(IF(COUNT(O16),ROUND(O16/('Shareholding Pattern'!$P$79)*100,2),\"\"),\"\")","v":""},{"$f":"+IFERROR(IF(COUNT(Q14:Q15),ROUND(SUM(Q14:Q15),0),\"\"),\"\")","v":""},{"$f":"+IFERROR(IF(COUNT(R14:R15),ROUND(SUM(R14:R15),0),\"\"),\"\")","v":""},{"$f":"+IFERROR(IF(COUNT(S14:S15),ROUND(SUM(S14:S15),0),\"\"),\"\")","v":""},{"$f":"+IFERROR(IF(COUNT(K16,S16),ROUND(SUM(S16,K16)/SUM('Shareholding Pattern'!$L$78,'Shareholding Pattern'!$T$78)*100,2),\"\"),\"\")","v":""},{"$f":"+IFERROR(IF(COUNT(U14:U15),ROUND(SUM(U14:U15),0),\"\"),\"\")","v":""},{"$f":"+IFERROR(IF(COUNT(U16),ROUND(SUM(U16)/SUM(K16)*100,2),\"\"),0)","v":""},{"$f":"+IFERROR(IF(COUNT(W14:W15),ROUND(SUM(W14:W15),0),\"\"),\"\")","v":""},null,{"$f":"+IFERROR(IF(COUNT(Y14:Y15),ROUND(SUM(Y14:Y15),0),\"\"),\"\")","v":""},{"$f":"+IFERROR(IF(COUNT(Z14:Z15),ROUND(SUM(Z14:Z15),0),\"\"),\"\")","v":""},{"$f":"+IFERROR(IF(COUNT(AA14:AA15),ROUND(SUM(AA14:AA15),0),\"\"),\"\")","v":""}]

{"sheet":"Other_Insti (Foreign)","index":35,"n_rows":16,"n_cols":57,"rows_kept":16,"hidden":true,"merged":[[8,3,10,3],[8,4,10,4],[8,5,10,5],[8,6,10,6],[8,7,10,7],[8,8,10,8],[8,9,10,9],[8,10,10,10],[8,11,10,11],[8,12,10,12],[8,13,10,13],[8,14,8,17],[8,18,10,18],[8,19,10,19],[8,20,10,20],[8,21,10,21],[8,22,9,23],[8,24,10,24],[8,25,10,25],[8,26,8,28],[9,14,9,16],[9,17,10,17],[9,26,9,28]]}
[{"$nulls":8},0,{"$nulls":34},"State industrial development Corporation","Provident Fund","Pension Fund","National Investment Fund","Insurance Companies","Bodies Corporate","Clearing Member","Employee Welfare Fund","Overseas Corporate Bodies","Private Equity Fund","Societies","Trust","Venture Capital Fund","Other"]
[{"$nulls":4},"Category of other institutions","Category or more than one percentage","Name of shareholder","Permanent account number of shareholder","Number of shareholders","Number of fully paid up equity shares","Number of partly paid-up equity shares","Number of shares underlying outstanding depository receipts","Total number of shares","Shareholding as a percentage of total number of shares held by promoters and public shareholders and custodians or DR holders","Number of voting rights held by same class of securities","Number of voting rights held by differential voting rights","Total Number of voting rights","Percentage of total number of voting rights","Number of shares underlying outstanding convertible securities","Number of warrant","Number of warrant and convertible securities","Total shareholding as a percentage assuming full conversion of convertible securities","Number of the locked-in-shares ","Locked-in-shares as a percentage of total number of shares","Number of equity shares held in dematerialized form","Reason for not providing PAN","Number of share under sub category one","Number of share under sub category two","Number of share under sub category three"]
[{"$nulls":8},{"$f":"+IFERROR(IF(COUNT(I13:I15),ROUND(SUMIF($F$13:I15,\"Category\",I13:I15),0),\"\"),\"\")","v":""},{"$f":"+IFERROR(IF(COUNT(J13:J15),ROUND(SUMIF($F$13:J15,\"Category\",J13:J15),0),\"\"),\"\")","v":""},{"$f":"+IFERROR(IF(COUNT(K13:K15),ROUND(SUMIF($F$13:K15,\"Category\",K13:K15),0),\"\"),\"\")","v":""},{"$f":"+IFERROR(IF(COUNT(L13:L15),ROUND(SUMIF($F$13:L15,\"Category\",L13:L15),0),\"\"),\"\")","v":""},{"$f":"+IFERROR(IF(COUNT(M13:M15),ROUND(SUMIF($F$13:M15,\"Category\",M13:M15),0),\"\"),\"\")","v":""},{"$f":"+IFERROR(IF(COUNT(N13:N15),ROUND(SUMIF($F$13:N15,\"Category\",N13:N15),2),\"\"),\"\")","v":""},{"$f":"+IFERROR(IF(COUNT(O13:O15),ROUND(SUMIF($F$13:O15,\"Category\",O13:O15),2),\"\"),\"\")","v":""},{"$f":"+IFERROR(IF(COUNT(P13:P15),ROUND(SUMIF($F$13:P15,\"Category\",P13:P15),0),\"\"),\"\")","v":""},{"$f":"+IFERROR(IF(COUNT(Q13:Q15),ROUND(SUMIF($F$13:Q15,\"Category\",Q13:Q15),0),\"\"),\"\")","v":""},{"$f":"+IFERROR(IF(COUNT(R13:R15),ROUND(SUMIF($F$13:R15,\"Category\",R13:R15),2),\"\"),\"\")","v":""},{"$f":"+IFERROR(IF(COUNT(S13:S15),ROUND(SUMIF($F$13:S15,\"Category\",S13:S15),0),\"\"),\"\")","v":""},{"$f":"+IFERROR(IF(COUNT(T13:T15),ROUND(SUMIF($F$13:T15,\"Category\",T13:T15),0),\"\"),\"\")","v":""},{"$f":"+IFERROR(IF(COUNT(U13:U15),ROUND(SUMIF($F$13:U15,\"Category\",U13:U15),0),\"\"),\"\")","v":""},{"$f":"+IFERROR(IF(COUNT(V13:V15),ROUND(SUMIF($F$13:V15,\"Category\",V13:V15),2),\"\"),\"\")","v":""},{"$f":"+IFERROR(IF(COUNT(W13:W15),ROUND(SUMIF($F$13:W15,\"Category\",W13:W15),0),\"\"),\"\")","v":""},{"$f":"+IFERROR(IF(COUNT(X13:X15),ROUND(SUMIF($F$13:X15,\"Category\",X13:X15),2),\"\"),\"\")","v":""},{"$f":"+IFERROR(IF(COUNT(Y13:Y15),ROUND(SUMIF($F$13:Y15,\"Category\",Y13:Y15),0),\"\"),\"\")","v":""}]
[{"$nulls":31},"NRI"]
[{"$nulls":31},"Trusts"]
[{"$nulls":31},"Market Maker"]
[{"$nulls":31},"HUF"]
[{"$nulls":31},"Clearing Members"]
[{"$nulls":3},"Searial No.","Category","Category / More than 1 percentage","Name\nof the \nShareholders\n     (I)","PAN \n(II)","No.\nof the \nShareholders\n     (I)","No. of fully paid up equity shares held\n(IV)","No. Of Partly paid-up equity shares held\n(V)","No. Of shares underlying Depository Receipts\n(VI)","Total nos. shares\nheld\n(VII) = (IV)+(V)+ (VI)","Shareholding as a % of total no. of shares (calculated as per SCRR, 1957)\n(VIII)\nAs a % of (A+B+C2)","Number of Voting Rights held in each class of securities\n(IX)",{"$nulls":3},"No. Of Shares Underlying Outstanding convertible securities\n(X)","No. of Shares Underlying Outstanding Warrants (Xi)","No. Of Shares Underlying Outstanding convertible securities and Warrants\n(X)","Shareholding , as a % assuming full conversion of convertible securities (as a percentage of diluted share capital)\n(XI)= (VII)+(X)\nAs a % of (A+B+C2)","Number of Locked in shares\n(XII)",null,"Number of equity shares held in dematerialized form \n(XIV)","Reason for not providing PAN","Sub-categorization of shares",{"$nulls":5},"NSDL or CDSL transit",{"$nulls":14},"Category"]
[{"$nulls":14},"No of Voting (XIV)\nRights",null,null,"Total as\na % of\nTotal\nVoting\nrights",{"$nulls":8},"Shareholding (No. of shares) under",{"$nulls":5},"Employee welfare fund",{"$nulls":14},"More than 1 percentage of shareholding"]
[{"$nulls":14},"Class\neg:\nX","Class\neg:y","Total",{"$nulls":5},"No.\n(a)","As a % of total Shares held\n(b)",null,null,"Sub-category (i)","Sub-category (ii)","Sub-category (iii)",{"$nulls":3},"Overseas corporate bodies"]
[{"$nulls":3},"B2(g)","Any Other (specify)",{"$nulls":26},"Private equity fund"]
[{"$nulls":12},{"$f":"+IFERROR(IF(COUNT(J13:L13),ROUND(SUM(J13:L13),0),\"\"),\"\")","v":""},{"$f":"+IFERROR(IF(COUNT(M13),ROUND(M13/'Shareholding Pattern'!$L$78*100,2),\"\"),\"\")","v":""},{"$f":"IF(J13=\"\",\"\",J13)","v":""},null,{"$f":"+IFERROR(IF(COUNT(O13:P13),ROUND(SUM(O13,P13),2),\"\"),\"\")","v":""},{"$f":"+IFERROR(IF(COUNT(Q13),ROUND(Q13/('Shareholding Pattern'!$P$79)*100,2),\"\"),\"\")","v":""},null,null,{"$f":"+IFERROR(IF(COUNT(S13:T13),ROUND(SUM(S13:T13),0),\"\"),\"\")","v":""},{"$f":"+IFERROR(IF(COUNT(M13,U13),ROUND(SUM(U13,M13)/SUM('Shareholding Pattern'!$L$78,'Shareholding Pattern'!$T$78)*100,2),\"\"),\"\")","v":""},null,{"$f":"+IFERROR(IF(COUNT(W13),ROUND(SUM(W13)/SUM(M13)*100,2),\"\"),0)","v":""},{"$nulls":5},{"$f":"IF(SUM(H13:Y13)>0,1,0)","v":0},{"$f":"SUM(AC15:AC65535)","v":0},"Other"]
[]
[]
[{"$nulls":5},"Click here to go back",null,"Total",{"$f":"+IFERROR(IF(COUNT(I13:I15),ROUND(SUMIF($F$13:I15,\"Category\",I13:I15),0),\"\"),\"\")","v":""},{"$f":"+IFERROR(IF(COUNT(J13:J15),ROUND(SUMIF($F$13:J15,\"Category\",J13:J15),0),\"\"),\"\")","v":""},{"$f":"+IFERROR(IF(COUNT(K13:K15),ROUND(SUMIF($F$13:K15,\"Category\",K13:K15),0),\"\"),\"\")","v":""},{"$f":"+IFERROR(IF(COUNT(L13:L15),ROUND(SUMIF($F$13:L15,\"Category\",L13:L15),0),\"\"),\"\")","v":""},{"$f":"+IFERROR(IF(COUNT(M13:M15),ROUND(SUMIF($F$13:M15,\"Category\",M13:M15),0),\"\"),\"\")","v":""},{"$f":"+IFERROR(IF(COUNT(N13:N15),ROUND(SUMIF($F$13:N15,\"Category\",N13:N15),2),\"\"),\"\")","v":""},{"$f":"+IFERROR(IF(COUNT(O13:O15),ROUND(SUMIF($F$13:O15,\"Category\",O13:O15),0),\"\"),\"\")","v":""},{"$f":"+IFERROR(IF(COUNT(P13:P15),ROUND(SUMIF($F$13:P15,\"Category\",P13:P15),0),\"\"),\"\")","v":""},{"$f":"+IFERROR(IF(COUNT(Q13:Q15),ROUND(SUMIF($F$13:Q15,\"Category\",Q13:Q15),0),\"\"),\"\")","v":""},{"$f":"+IFERROR(IF(COUNT(R13:R15),ROUND(SUMIF($F$13:R15,\"Category\",R13:R15),2),\"\"),\"\")","v":""},{"$f":"+IFERROR(IF(COUNT(S13:S15),ROUND(SUMIF($F$13:S15,\"Category\",S13:S15),0),\"\"),\"\")","v":""},{"$f":"+IFERROR(IF(COUNT(T13:T15),ROUND(SUMIF($F$13:T15,\"Category\",T13:T15),0),\"\"),\"\")","v":""},{"$f":"+IFERROR(IF(COUNT(U13:U15),ROUND(SUMIF($F$13:U15,\"Category\",U13:U15),0),\"\"),\"\")","v":""},{"$f":"+IFERROR(IF(COUNT(V13:V15),ROUND(SUMIF($F$13:V15,\"Category\",V13:V15),2),\"\"),\"\")","v":""},{"$f":"+IFERROR(IF(COUNT(W13:W15),ROUND(SUMIF($F$13:W15,\"Category\",W13:W15),0),\"\"),\"\")","v":""},{"$f":"+IFERROR(IF(COUNT(W16),ROUND(SUM(W16)/SUM(M16)*100,2),\"\"),0)","v":""},{"$f":"+IFERROR(IF(COUNT(Y13:Y15),ROUND(SUMIF($F$13:Y15,\"Category\",Y13:Y15),0),\"\"),\"\")","v":""},null,{"$f":"+IFERROR(IF(COUNT(AA13:AA15),ROUND(SUMIF($F$13:AA15,\"Category\",AA13:AA15),0),\"\"),\"\")","v":""},{"$f":"+IFERROR(IF(COUNT(AB13:AB15),ROUND(SUMIF($F$13:AB15,\"Category\",AB13:AB15),0),\"\"),\"\")","v":""},{"$f":"+IFERROR(IF(COUNT(AC13:AC15),ROUND(SUMIF($F$13:AC15,\"Category\",AC13:AC15),0),\"\"),\"\")","v":""}]

{"sheet":"Other_Insti","index":36,"n_rows":16,"n_cols":57,"rows_kept":16,"hidden":true,"merged":[[8,3,10,3],[8,4,10,4],[8,5,10,5],[8,6,10,6],[8,7,10,7],[8,8,10,8],[8,9,10,9],[8,10,10,10],[8,11,10,11],[8,12,10,12],[8,13,10,13],[8,14,8,17],[8,18,10,18],[8,19,10,19],[8,20,10,20],[8,21,10,21],[8,22,9,23],[8,24,10,24],[8,25,10,25],[8,26,8,28],[9,14,9,16],[9,17,10,17],[9,26,9,28]]}
[{"$nulls":8},0,{"$nulls":34},"State industrial development Corporation","Provident Fund","Pension Fund","National Investment Fund","Insurance Companies","Bodies Corporate","Clearing Member","Employee Welfare Fund","Overseas Corporate Bodies","Private Equity Fund","Societies","Trust","Venture Capital Fund","Other"]
[{"$nulls":4},"Category of other institutions","Category or more than one percentage","Name of shareholder","Permanent account number of shareholder","Number of shareholders","Number of fully paid up equity shares","Number of partly paid-up equity shares","Number of shares underlying outstanding depository receipts","Total number of shares","Shareholding as a percentage of total number of shares held by promoters and public shareholders and custodians or DR holders","Number of voting rights held by same class of securities","Number of voting rights held by differential voting rights","Total Number of voting rights","Percentage of total number of voting rights","Number of shares underlying outstanding convertible securities","Number of warrant","Number of warrant and convertible securities","Total shareholding as a percentage assuming full conversion of convertible securities","Number of the locked-in-shares ","Locked-in-shares as a percentage of total number of shares","Number of equity shares held in dematerialized form","Reason for not providing PAN","Number of share under sub category one","Number of share under sub category two","Number of share under sub category three"]
[{"$nulls":8},{"$f":"+IFERROR(IF(COUNT(I13:I15),ROUND(SUMIF($F$13:I15,\"Category\",I13:I15),0),\"\"),\"\")","v":""},{"$f":"+IFERROR(IF(COUNT(J13:J15),ROUND(SUMIF($F$13:J15,\"Category\",J13:J15),0),\"\"),\"\")","v":""},{"$f":"+IFERROR(IF(COUNT(K13:K15),ROUND(SUMIF($F$13:K15,\"Category\",K13:K15),0),\"\"),\"\")","v":""},{"$f":"+IFERROR(IF(COUNT(L13:L15),ROUND(SUMIF($F$13:L15,\"Category\",L13:L15),0),\"\"),\"\")","v":""},{"$f":"+IFERROR(IF(COUNT(M13:M15),ROUND(SUMIF($F$13:M15,\"Category\",M13:M15),0),\"\"),\"\")","v":""},{"$f":"+IFERROR(IF(COUNT(N13:N15),ROUND(SUMIF($F$13:N15,\"Category\",N13:N15),2),\"\"),\"\")","v":""},{"$f":"+IFERROR(IF(COUNT(O13:O15),ROUND(SUMIF($F$13:O15,\"Category\",O13:O15),2),\"\"),\"\")","v":""},{"$f":"+IFERROR(IF(COUNT(P13:P15),ROUND(SUMIF($F$13:P15,\"Category\",P13:P15),0),\"\"),\"\")","v":""},{"$f":"+IFERROR(IF(COUNT(Q13:Q15),ROUND(SUMIF($F$13:Q15,\"Category\",Q13:Q15),0),\"\"),\"\")","v":""},{"$f":"+IFERROR(IF(COUNT(R13:R15),ROUND(SUMIF($F$13:R15,\"Category\",R13:R15),2),\"\"),\"\")","v":""},{"$f":"+IFERROR(IF(COUNT(S13:S15),ROUND(SUMIF($F$13:S15,\"Category\",S13:S15),0),\"\"),\"\")","v":""},{"$f":"+IFERROR(IF(COUNT(T13:T15),ROUND(SUMIF($F$13:T15,\"Category\",T13:T15),0),\"\"),\"\")","v":""},{"$f":"+IFERROR(IF(COUNT(U13:U15),ROUND(SUMIF($F$13:U15,\"Category\",U13:U15),0),\"\"),\"\")","v":""},{"$f":"+IFERROR(IF(COUNT(V13:V15),ROUND(SUMIF($F$13:V15,\"Category\",V13:V15),2),\"\"),\"\")","v":""},{"$f":"+IFERROR(IF(COUNT(W13:W15),ROUND(SUMIF($F$13:W15,\"Category\",W13:W15),0),\"\"),\"\")","v":""},{"$f":"+IFERROR(IF(COUNT(X13:X15),ROUND(SUMIF($F$13:X15,\"Category\",X13:X15),2),\"\"),\"\")","v":""},{"$f":"+IFERROR(IF(COUNT(Y13:Y15),ROUND(SUMIF($F$13:Y15,\"Category\",Y13:Y15),0),\"\"),\"\")","v":""}]
[{"$nulls":31},"NRI"]
[{"$nulls":31},"Trusts"]
[{"$nulls":31},"Market Maker"]
[{"$nulls":31},"HUF"]
[{"$nulls":31},"Clearing Members"]
[{"$nulls":3},"Searial No.","Category","Category / More than 1 percentage","Name\nof the \nShareholders\n     (I)","PAN \n(II)","No.\nof the \nShareholders\n     (I)","No. of fully paid up equity shares held\n(IV)","No. Of Partly paid-up equity shares held\n(V)","No. Of shares underlying Depository Receipts\n(VI)","Total nos. shares\nheld\n(VII) = (IV)+(V)+ (VI)","Shareholding as a % of total no. of shares (calculated as per SCRR, 1957)\n(VIII)\nAs a % of (A+B+C2)","Number of Voting Rights held in each class of securities\n(IX)",{"$nulls":3},"No. Of Shares Underlying Outstanding convertible securities\n(X)","No. of Shares Underlying Outstanding Warrants (Xi)","No. Of Shares Underlying Outstanding convertible securities and Warrants\n(X)","Shareholding , as a % assuming full conversion of convertible securities (as a percentage of diluted share capital)\n(XI)= (VII)+(X)\nAs a % of (A+B+C2)","Number of Locked in shares\n(XII)",null,"Number of equity shares held in dematerialized form \n(XIV)","Reason for not providing PAN","Sub-categorization of shares",{"$nulls":5},"NSDL or CDSL transit",{"$nulls":14},"Category"]
[{"$nulls":14},"No of Voting (XIV)\nRights",null,null,"Total as\na % of\nTotal\nVoting\nrights",{"$nulls":8},"Shareholding (No. of shares) under",{"$nulls":5},"Employee welfare fund",{"$nulls":14},"More than 1 percentage of shareholding"]
[{"$nulls":14},"Class\neg:\nX","Class\neg:y","Total",{"$nulls":5},"No.\n(a)","As a % of total Shares held\n(b)",null,null,"Sub-category (i)","Sub-category (ii)","Sub-category (iii)",{"$nulls":3},"Overseas corporate bodies"]
[{"$nulls":3},"B1(k)","Any Other (specify)",{"$nulls":26},"Private equity fund"]
[{"$nulls":12},{"$f":"+IFERROR(IF(COUNT(J13:L13),ROUND(SUM(J13:L13),0),\"\"),\"\")","v":""},{"$f":"+IFERROR(IF(COUNT(M13),ROUND(M13/'Shareholding Pattern'!$L$78*100,2),\"\"),\"\")","v":""},{"$f":"IF(J13=\"\",\"\",J13)","v":""},null,{"$f":"+IFERROR(IF(COUNT(O13:P13),ROUND(SUM(O13,P13),2),\"\"),\"\")","v":""},{"$f":"+IFERROR(IF(COUNT(Q13),ROUND(Q13/('Shareholding Pattern'!$P$79)*100,2),\"\"),\"\")","v":""},null,null,{"$f":"+IFERROR(IF(COUNT(S13:T13),ROUND(SUM(S13:T13),0),\"\"),\"\")","v":""},{"$f":"+IFERROR(IF(COUNT(M13,U13),ROUND(SUM(U13,M13)/SUM('Shareholding Pattern'!$L$78,'Shareholding Pattern'!$T$78)*100,2),\"\"),\"\")","v":""},null,{"$f":"+IFERROR(IF(COUNT(W13),ROUND(SUM(W13)/SUM(M13)*100,2),\"\"),0)","v":""},{"$nulls":5},{"$f":"IF(SUM(H13:Y13)>0,1,0)","v":0},{"$f":"SUM(AC15:AC65535)","v":0},"Other"]
[]
[]
[{"$nulls":5},"Click here to go back",null,"Total",{"$f":"+IFERROR(IF(COUNT(I13:I15),ROUND(SUMIF($F$13:I15,\"Category\",I13:I15),0),\"\"),\"\")","v":""},{"$f":"+IFERROR(IF(COUNT(J13:J15),ROUND(SUMIF($F$13:J15,\"Category\",J13:J15),0),\"\"),\"\")","v":""},{"$f":"+IFERROR(IF(COUNT(K13:K15),ROUND(SUMIF($F$13:K15,\"Category\",K13:K15),0),\"\"),\"\")","v":""},{"$f":"+IFERROR(IF(COUNT(L13:L15),ROUND(SUMIF($F$13:L15,\"Category\",L13:L15),0),\"\"),\"\")","v":""},{"$f":"+IFERROR(IF(COUNT(M13:M15),ROUND(SUMIF($F$13:M15,\"Category\",M13:M15),0),\"\"),\"\")","v":""},{"$f":"+IFERROR(IF(COUNT(N13:N15),ROUND(SUMIF($F$13:N15,\"Category\",N13:N15),2),\"\"),\"\")","v":""},{"$f":"+IFERROR(IF(COUNT(O13:O15),ROUND(SUMIF($F$13:O15,\"Category\",O13:O15),0),\"\"),\"\")","v":""},{"$f":"+IFERROR(IF(COUNT(P13:P15),ROUND(SUMIF($F$13:P15,\"Category\",P13:P15),0),\"\"),\"\")","v":""},{"$f":"+IFERROR(IF(COUNT(Q13:Q15),ROUND(SUMIF($F$13:Q15,\"Category\",Q13:Q15),0),\"\"),\"\")","v":""},{"$f":"+IFERROR(IF(COUNT(R13:R15),ROUND(SUMIF($F$13:R15,\"Category\",R13:R15),2),\"\"),\"\")","v":""},{"$f":"+IFERROR(IF(COUNT(S13:S15),ROUND(SUMIF($F$13:S15,\"Category\",S13:S15),0),\"\"),\"\")","v":""},{"$f":"+IFERROR(IF(COUNT(T13:T15),ROUND(SUMIF($F$13:T15,\"Category\",T13:T15),0),\"\"),\"\")","v":""},{"$f":"+IFERROR(IF(COUNT(U13:U15),ROUND(SUMIF($F$13:U15,\"Category\",U13:U15),0),\"\"),\"\")","v":""},{"$f":"+IFERROR(IF(COUNT(V13:V15),ROUND(SUMIF($F$13:V15,\"Category\",V13:V15),2),\"\"),\"\")","v":""},{"$f":"+IFERROR(IF(COUNT(W13:W15),ROUND(SUMIF($F$13:W15,\"Category\",W13:W15),0),\"\"),\"\")","v":""},{"$f":"+IFERROR(IF(COUNT(W16),ROUND(SUM(W16)/SUM(M16)*100,2),\"\"),0)","v":""},{"$f":"+IFERROR(IF(COUNT(Y13:Y15),ROUND(SUMIF($F$13:Y15,\"Category\",Y13:Y15),0),\"\"),\"\")","v":""},null,{"$f":"+IFERROR(IF(COUNT(AA13:AA15),ROUND(SUMIF($F$13:AA15,\"Category\",AA13:AA15),0),\"\"),\"\")","v":""},{"$f":"+IFERROR(IF(COUNT(AB13:AB15),ROUND(SUMIF($F$13:AB15,\"Category\",AB13:AB15),0),\"\"),\"\")","v":""},{"$f":"+IFERROR(IF(COUNT(AC13:AC15),ROUND(SUMIF($F$13:AC15,\"Category\",AC13:AC15),0),\"\"),\"\")","v":""}]

{"sheet":"Foreign Portfolio Category II","index":37,"n_rows":16,"n_cols":43,"rows_kept":16,"hidden":true,"merged":[[8,4,10,4],[8,5,10,5],[8,6,10,6],[8,7,10,7],[8,8,10,8],[8,9,10,9],[8,10,10,10],[8,11,10,11],[8,12,8,15],[8,16,10,16],[8,17,10,17],[8,18,10,18],[8,19,10,19],[8,20,9,21],[8,22,10,22],[8,23,10,23],[8,24,8,26],[9,12,9,14],[9,15,10,15],[9,24,9,26]]}
[{"$nulls":8},0]
[{"$nulls":5},"Name of shareholder","Permanent account number of shareholder","Number of fully paid up equity shares","Number of partly paid-up equity shares","Number of shares underlying outstanding depository receipts","Total number of shares","Shareholding as a percentage of total number of shares held by promoters and public shareholders and custodians or DR holders","Number of voting rights held by same class of securities","Number of voting rights held by differential voting rights","Total Number of voting rights","Percentage of total number of voting rights","Number of shares underlying outstanding convertible securities","Number of warrant","Number of warrant and convertible securities","Total shareholding as a percentage assuming full conversion of convertible securities","Number of the locked-in-shares ","Locked-in-shares as a percentage of total number of shares","Number of equity shares held in dematerialized form","Reason for not providing PAN","Number of share under sub category one","Number of share under sub category two","Number of share under sub category three"]
[]
[]
[]
[]
[{"$nulls":42},"NRI"]
[{"$nulls":42},"Trusts"]
[{"$nulls":4},"Searial No.","Name\nof the \nShareholders\n     (I)","PAN \n(II)","No. of fully paid up equity shares held\n(IV)","No. Of Partly paid-up equity shares held\n(V)","No. Of shares underlying Depository Receipts\n(VI)","Total nos. shares\nheld\n(VII) = (IV)+(V)+ (VI)","Shareholding as a % of total no. of shares (calculated as per SCRR, 1957)\n(VIII)\nAs a % of (A+B+C2)","Number of Voting Rights held in each class of securities\n(IX)",{"$nulls":3},"No. of Shares Underlying Outstanding Warrants (Xi)","No. Of Warrants\n(Xi)","No. Of Shares Underlying Outstanding convertible securities and No. Of Warrants\n(Xi) (a)","Shareholding , as a % assuming full conversion of convertible securities (as a percentage of diluted share capital)\n(XI)= (VII)+(X)\nAs a % of (A+B+C2)","Number of Locked in shares\n(XII)",null,"Number of equity shares held in dematerialized form \n(XIV)","Reason for not providing PAN","Sub-categorization of shares",{"$nulls":17},"Market Maker"]
[{"$nulls":12},"No of Voting (XIV)\nRights",null,null,"Total as\na % of\nTotal\nVoting\nrights",{"$nulls":8},"Shareholding (No. of shares) under",{"$nulls":17},"HUF"]
[{"$nulls":12},"Class\neg:\nX","Class\neg:y","Total",{"$nulls":5},"No.\n(a)","As a % of total Shares held\n(b)",null,null,"Sub-category (i)","Sub-category (ii)","Sub-category (iii)",{"$nulls":15},"Clearing Members"]
[{"$nulls":4},"B2(e)","Foreign Portfolio Category II",{"$nulls":36},"NSDL or CDSL transit"]
[{"$nulls":10},{"$f":"+IFERROR(IF(COUNT(H13:J13),ROUND(SUM(H13:J13),0),\"\"),\"\")","v":""},{"$f":"+IFERROR(IF(COUNT(K13),ROUND(K13/'Shareholding Pattern'!$L$78*100,2),\"\"),\"\")","v":""},{"$f":"IF(H13=\"\",\"\",H13)","v":""},null,{"$f":"+IFERROR(IF(COUNT(M13:N13),ROUND(SUM(M13,N13),2),\"\"),\"\")","v":""},{"$f":"+IFERROR(IF(COUNT(O13),ROUND(O13/('Shareholding Pattern'!$P$79)*100,2),\"\"),\"\")","v":""},null,null,{"$f":"+IFERROR(IF(COUNT(Q13:R13),ROUND(SUM(Q13:R13),0),\"\"),\"\")","v":""},{"$f":"+IFERROR(IF(COUNT(K13,S13),ROUND(SUM(S13,K13)/SUM('Shareholding Pattern'!$L$78,'Shareholding Pattern'!$T$78)*100,2),\"\"),\"\")","v":""},null,{"$f":"+IFERROR(IF(COUNT(U13),ROUND(SUM(U13)/SUM(K13)*100,2),\"\"),0)","v":""},{"$nulls":6},{"$f":"SUM(#REF!)","v":{"$error":"#REF!"}},{"$nulls":13},"Employee welfare fund"]
[{"$nulls":6},"Disclosure of shareholder holding more than 1% of total number of shares",{"$nulls":35},"Overseas corporate bodies"]
[{"$nulls":42},"Private equity fund"]
[{"$nulls":5},"Click here to go back","Total",{"$f":"+IFERROR(IF(COUNT(H14:H15),ROUND(SUM(H14:H15),0),\"\"),\"\")","v":""},{"$f":"+IFERROR(IF(COUNT(I14:I15),ROUND(SUM(I14:I15),0),\"\"),\"\")","v":""},{"$f":"+IFERROR(IF(COUNT(J14:J15),ROUND(SUM(J14:J15),0),\"\"),\"\")","v":""},{"$f":"+IFERROR(IF(COUNT(K14:K15),ROUND(SUM(K14:K15),0),\"\"),\"\")","v":""},{"$f":"+IFERROR(IF(COUNT(K16),ROUND(K16/'Shareholding Pattern'!$L$78*100,2),\"\"),\"\")","v":""},{"$f":"+IFERROR(IF(COUNT(M14:M15),ROUND(SUM(M14:M15),0),\"\"),\"\")","v":""},{"$f":"+IFERROR(IF(COUNT(N14:N15),ROUND(SUM(N14:N15),0),\"\"),\"\")","v":""},{"$f":"+IFERROR(IF(COUNT(O14:O15),ROUND(SUM(O14:O15),0),\"\"),\"\")","v":""},{"$f":"+IFERROR(IF(COUNT(O16),ROUND(O16/('Shareholding Pattern'!$P$79)*100,2),\"\"),\"\")","v":""},{"$f":"+IFERROR(IF(COUNT(Q14:Q15),ROUND(SUM(Q14:Q15),0),\"\"),\"\")","v":""},{"$f":"+IFERROR(IF(COUNT(R14:R15),ROUND(SUM(R14:R15),0),\"\"),\"\")","v":""},{"$f":"+IFERROR(IF(COUNT(S14:S15),ROUND(SUM(S14:S15),0),\"\"),\"\")","v":""},{"$f":"+IFERROR(IF(COUNT(K16,S16),ROUND(SUM(S16,K16)/SUM('Shareholding Pattern'!$L$78,'Shareholding Pattern'!$T$78)*100,2),\"\"),\"\")","v":""},{"$f":"+IFERROR(IF(COUNT(U14:U15),ROUND(SUM(U14:U15),0),\"\"),\"\")","v":""},{"$f":"+IFERROR(IF(COUNT(U16),ROUND(SUM(U16)/SUM(K16)*100,2),\"\"),0)","v":""},{"$f":"+IFERROR(IF(COUNT(W14:W15),ROUND(SUM(W14:W15),0),\"\"),\"\")","v":""},null,{"$f":"+IFERROR(IF(COUNT(Y14:Y15),ROUND(SUM(Y14:Y15),0),\"\"),\"\")","v":""},{"$f":"+IFERROR(IF(COUNT(Z14:Z15),ROUND(SUM(Z14:Z15),0),\"\"),\"\")","v":""},{"$f":"+IFERROR(IF(COUNT(AA14:AA15),ROUND(SUM(AA14:AA15),0),\"\"),\"\")","v":""},{"$nulls":15},"Other"]

{"sheet":"Sovereign Wealth(Foreign)","index":38,"n_rows":16,"n_cols":43,"rows_kept":16,"hidden":true,"merged":[[8,4,10,4],[8,5,10,5],[8,6,10,6],[8,7,10,7],[8,8,10,8],[8,9,10,9],[8,10,10,10],[8,11,10,11],[8,12,8,15],[8,16,10,16],[8,17,10,17],[8,18,10,18],[8,19,10,19],[8,20,9,21],[8,22,10,22],[8,23,10,23],[8,24,8,26],[9,12,9,14],[9,15,10,15],[9,24,9,26]]}
[{"$nulls":8},0]
[{"$nulls":5},"Name of shareholder","Permanent account number of shareholder","Number of fully paid up equity shares","Number of partly paid-up equity shares","Number of shares underlying outstanding depository receipts","Total number of shares","Shareholding as a percentage of total number of shares held by promoters and public shareholders and custodians or DR holders","Number of voting rights held by same class of securities","Number of voting rights held by differential voting rights","Total Number of voting rights","Percentage of total number of voting rights","Number of shares underlying outstanding convertible securities","Number of warrant","Number of warrant and convertible securities","Total shareholding as a percentage assuming full conversion of convertible securities","Number of the locked-in-shares ","Locked-in-shares as a percentage of total number of shares","Number of equity shares held in dematerialized form","Reason for not providing PAN","Number of share under sub category one","Number of share under sub category two","Number of share under sub category three"]
[]
[]
[]
[]
[{"$nulls":42},"NRI"]
[{"$nulls":42},"Trusts"]
[{"$nulls":4},"Searial No.","Name\nof the \nShareholders\n     (I)","PAN \n(II)","No. of fully paid up equity shares held\n(IV)","No. Of Partly paid-up equity shares held\n(V)","No. Of shares underlying Depository Receipts\n(VI)","Total nos. shares\nheld\n(VII) = (IV)+(V)+ (VI)","Shareholding as a % of total no. of shares (calculated as per SCRR, 1957)\n(VIII)\nAs a % of (A+B+C2)","Number of Voting Rights held in each class of securities\n(IX)",{"$nulls":3},"No. of Shares Underlying Outstanding Warrants (Xi)","No. Of Warrants\n(Xi)","No. Of Shares Underlying Outstanding convertible securities and No. Of Warrants\n(Xi) (a)","Shareholding , as a % assuming full conversion of convertible securities (as a percentage of diluted share capital)\n(XI)= (VII)+(X)\nAs a % of (A+B+C2)","Number of Locked in shares\n(XII)",null,"Number of equity shares held in dematerialized form \n(XIV)","Reason for not providing PAN","Sub-categorization of shares",{"$nulls":17},"Market Maker"]
[{"$nulls":12},"No of Voting (XIV)\nRights",null,null,"Total as\na % of\nTotal\nVoting\nrights",{"$nulls":8},"Shareholding (No. of shares) under",{"$nulls":17},"HUF"]
[{"$nulls":12},"Class\neg:\nX","Class\neg:y","Total",{"$nulls":5},"No.\n(a)","As a % of total Shares held\n(b)",null,null,"Sub-category (i)","Sub-category (ii)","Sub-category (iii)",{"$nulls":15},"Clearing Members"]
[{"$nulls":4},"B2(c)","Sovereign Wealth(Foreign)",{"$nulls":36},"NSDL or CDSL transit"]
[{"$nulls":10},{"$f":"+IFERROR(IF(COUNT(H13:J13),ROUND(SUM(H13:J13),0),\"\"),\"\")","v":""},{"$f":"+IFERROR(IF(COUNT(K13),ROUND(K13/'Shareholding Pattern'!$L$78*100,2),\"\"),\"\")","v":""},{"$f":"IF(H13=\"\",\"\",H13)","v":""},null,{"$f":"+IFERROR(IF(COUNT(M13:N13),ROUND(SUM(M13,N13),2),\"\"),\"\")","v":""},{"$f":"+IFERROR(IF(COUNT(O13),ROUND(O13/('Shareholding Pattern'!$P$79)*100,2),\"\"),\"\")","v":""},null,null,{"$f":"+IFERROR(IF(COUNT(Q13:R13),ROUND(SUM(Q13:R13),0),\"\"),\"\")","v":""},{"$f":"+IFERROR(IF(COUNT(K13,S13),ROUND(SUM(S13,K13)/SUM('Shareholding Pattern'!$L$78,'Shareholding Pattern'!$T$78)*100,2),\"\"),\"\")","v":""},null,{"$f":"+IFERROR(IF(COUNT(U13),ROUND(SUM(U13)/SUM(K13)*100,2),\"\"),0)","v":""},{"$nulls":6},{"$f":"SUM(#REF!)","v":{"$error":"#REF!"}},{"$nulls":13},"Employee welfare fund"]
[{"$nulls":6},"Disclosure of shareholder holding more than 1% of total number of shares",{"$nulls":35},"Overseas corporate bodies"]
[{"$nulls":42},"Private equity fund"]
[{"$nulls":5},"Click here to go back","Total",{"$f":"+IFERROR(IF(COUNT(H14:H15),ROUND(SUM(H14:H15),0),\"\"),\"\")","v":""},{"$f":"+IFERROR(IF(COUNT(I14:I15),ROUND(SUM(I14:I15),0),\"\"),\"\")","v":""},{"$f":"+IFERROR(IF(COUNT(J14:J15),ROUND(SUM(J14:J15),0),\"\"),\"\")","v":""},{"$f":"+IFERROR(IF(COUNT(K14:K15),ROUND(SUM(K14:K15),0),\"\"),\"\")","v":""},{"$f":"+IFERROR(IF(COUNT(K16),ROUND(K16/'Shareholding Pattern'!$L$78*100,2),\"\"),\"\")","v":""},{"$f":"+IFERROR(IF(COUNT(M14:M15),ROUND(SUM(M14:M15),0),\"\"),\"\")","v":""},{"$f":"+IFERROR(IF(COUNT(N14:N15),ROUND(SUM(N14:N15),0),\"\"),\"\")","v":""},{"$f":"+IFERROR(IF(COUNT(O14:O15),ROUND(SUM(O14:O15),0),\"\"),\"\")","v":""},{"$f":"+IFERROR(IF(COUNT(O16),ROUND(O16/('Shareholding Pattern'!$P$79)*100,2),\"\"),\"\")","v":""},{"$f":"+IFERROR(IF(COUNT(Q14:Q15),ROUND(SUM(Q14:Q15),0),\"\"),\"\")","v":""},{"$f":"+IFERROR(IF(COUNT(R14:R15),ROUND(SUM(R14:R15),0),\"\"),\"\")","v":""},{"$f":"+IFERROR(IF(COUNT(S14:S15),ROUND(SUM(S14:S15),0),\"\"),\"\")","v":""},{"$f":"+IFERROR(IF(COUNT(K16,S16),ROUND(SUM(S16,K16)/SUM('Shareholding Pattern'!$L$78,'Shareholding Pattern'!$T$78)*100,2),\"\"),\"\")","v":""},{"$f":"+IFERROR(IF(COUNT(U14:U15),ROUND(SUM(U14:U15),0),\"\"),\"\")","v":""},{"$f":"+IFERROR(IF(COUNT(U16),ROUND(SUM(U16)/SUM(K16)*100,2),\"\"),0)","v":""},{"$f":"+IFERROR(IF(COUNT(W14:W15),ROUND(SUM(W14:W15),0),\"\"),\"\")","v":""},null,{"$f":"+IFERROR(IF(COUNT(Y14:Y15),ROUND(SUM(Y14:Y15),0),\"\"),\"\")","v":""},{"$f":"+IFERROR(IF(COUNT(Z14:Z15),ROUND(SUM(Z14:Z15),0),\"\"),\"\")","v":""},{"$f":"+IFERROR(IF(COUNT(AA14:AA15),ROUND(SUM(AA14:AA15),0),\"\"),\"\")","v":""},{"$nulls":15},"Other"]

{"sheet":"Foreign Direct Investment","index":39,"n_rows":16,"n_cols":43,"rows_kept":16,"hidden":true,"merged":[[8,4,10,4],[8,5,10,5],[8,6,10,6],[8,7,10,7],[8,8,10,8],[8,9,10,9],[8,10,10,10],[8,11,10,11],[8,12,8,15],[8,16,10,16],[8,17,10,17],[8,18,10,18],[8,19,10,19],[8,20,9,21],[8,22,10,22],[8,23,10,23],[8,24,8,26],[9,12,9,14],[9,15,10,15],[9,24,9,26]]}
[{"$nulls":8},0]
[{"$nulls":5},"Name of shareholder","Permanent account number of shareholder","Number of fully paid up equity shares","Number of partly paid-up equity shares","Number of shares underlying outstanding depository receipts","Total number of shares","Shareholding as a percentage of total number of shares held by promoters and public shareholders and custodians or DR holders","Number of voting rights held by same class of securities","Number of voting rights held by differential voting rights","Total Number of voting rights","Percentage of total number of voting rights","Number of shares underlying outstanding convertible securities","Number of warrant","Number of warrant and convertible securities","Total shareholding as a percentage assuming full conversion of convertible securities","Number of the locked-in-shares ","Locked-in-shares as a percentage of total number of shares","Number of equity shares held in dematerialized form","Reason for not providing PAN","Number of share under sub category one","Number of share under sub category two","Number of share under sub category three"]
[]
[]
[]
[]
[{"$nulls":42},"NRI"]
[{"$nulls":42},"Trusts"]
[{"$nulls":4},"Searial No.","Name\nof the \nShareholders\n     (I)","PAN \n(II)","No. of fully paid up equity shares held\n(IV)","No. Of Partly paid-up equity shares held\n(V)","No. Of shares underlying Depository Receipts\n(VI)","Total nos. shares\nheld\n(VII) = (IV)+(V)+ (VI)","Shareholding as a % of total no. of shares (calculated as per SCRR, 1957)\n(VIII)\nAs a % of (A+B+C2)","Number of Voting Rights held in each class of securities\n(IX)",{"$nulls":3},"No. of Shares Underlying Outstanding Warrants (Xi)","No. Of Warrants\n(Xi)","No. Of Shares Underlying Outstanding convertible securities and No. Of Warrants\n(Xi) (a)","Shareholding , as a % assuming full conversion of convertible securities (as a percentage of diluted share capital)\n(XI)= (VII)+(X)\nAs a % of (A+B+C2)","Number of Locked in shares\n(XII)",null,"Number of equity shares held in dematerialized form \n(XIV)","Reason for not providing PAN","Sub-categorization of shares",{"$nulls":17},"Market Maker"]
[{"$nulls":12},"No of Voting (XIV)\nRights",null,null,"Total as\na % of\nTotal\nVoting\nrights",{"$nulls":8},"Shareholding (No. of shares) under",{"$nulls":17},"HUF"]
[{"$nulls":12},"Class\neg:\nX","Class\neg:y","Total",{"$nulls":5},"No.\n(a)","As a % of total Shares held\n(b)",null,null,"Sub-category (i)","Sub-category (ii)","Sub-category (iii)",{"$nulls":15},"Clearing Members"]
[{"$nulls":4},"B2(a)","Foreign Direct Investment",{"$nulls":36},"NSDL or CDSL transit"]
[{"$nulls":10},{"$f":"+IFERROR(IF(COUNT(H13:J13),ROUND(SUM(H13:J13),0),\"\"),\"\")","v":""},{"$f":"+IFERROR(IF(COUNT(K13),ROUND(K13/'Shareholding Pattern'!$L$78*100,2),\"\"),\"\")","v":""},{"$f":"IF(H13=\"\",\"\",H13)","v":""},null,{"$f":"+IFERROR(IF(COUNT(M13:N13),ROUND(SUM(M13,N13),2),\"\"),\"\")","v":""},{"$f":"+IFERROR(IF(COUNT(O13),ROUND(O13/('Shareholding Pattern'!$P$79)*100,2),\"\"),\"\")","v":""},null,null,{"$f":"+IFERROR(IF(COUNT(Q13:R13),ROUND(SUM(Q13:R13),0),\"\"),\"\")","v":""},{"$f":"+IFERROR(IF(COUNT(K13,S13),ROUND(SUM(S13,K13)/SUM('Shareholding Pattern'!$L$78,'Shareholding Pattern'!$T$78)*100,2),\"\"),\"\")","v":""},null,{"$f":"+IFERROR(IF(COUNT(U13),ROUND(SUM(U13)/SUM(K13)*100,2),\"\"),0)","v":""},{"$nulls":6},{"$f":"SUM(#REF!)","v":{"$error":"#REF!"}},{"$nulls":13},"Employee welfare fund"]
[{"$nulls":6},"Disclosure of shareholder holding more than 1% of total number of shares",{"$nulls":35},"Overseas corporate bodies"]
[{"$nulls":42},"Private equity fund"]
[{"$nulls":5},"Click here to go back","Total",{"$f":"+IFERROR(IF(COUNT(H14:H15),ROUND(SUM(H14:H15),0),\"\"),\"\")","v":""},{"$f":"+IFERROR(IF(COUNT(I14:I15),ROUND(SUM(I14:I15),0),\"\"),\"\")","v":""},{"$f":"+IFERROR(IF(COUNT(J14:J15),ROUND(SUM(J14:J15),0),\"\"),\"\")","v":""},{"$f":"+IFERROR(IF(COUNT(K14:K15),ROUND(SUM(K14:K15),0),\"\"),\"\")","v":""},{"$f":"+IFERROR(IF(COUNT(K16),ROUND(K16/'Shareholding Pattern'!$L$78*100,2),\"\"),\"\")","v":""},{"$f":"+IFERROR(IF(COUNT(M14:M15),ROUND(SUM(M14:M15),0),\"\"),\"\")","v":""},{"$f":"+IFERROR(IF(COUNT(N14:N15),ROUND(SUM(N14:N15),0),\"\"),\"\")","v":""},{"$f":"+IFERROR(IF(COUNT(O14:O15),ROUND(SUM(O14:O15),0),\"\"),\"\")","v":""},{"$f":"+IFERROR(IF(COUNT(O16),ROUND(O16/('Shareholding Pattern'!$P$79)*100,2),\"\"),\"\")","v":""},{"$f":"+IFERROR(IF(COUNT(Q14:Q15),ROUND(SUM(Q14:Q15),0),\"\"),\"\")","v":""},{"$f":"+IFERROR(IF(COUNT(R14:R15),ROUND(SUM(R14:R15),0),\"\"),\"\")","v":""},{"$f":"+IFERROR(IF(COUNT(S14:S15),ROUND(SUM(S14:S15),0),\"\"),\"\")","v":""},{"$f":"+IFERROR(IF(COUNT(K16,S16),ROUND(SUM(S16,K16)/SUM('Shareholding Pattern'!$L$78,'Shareholding Pattern'!$T$78)*100,2),\"\"),\"\")","v":""},{"$f":"+IFERROR(IF(COUNT(U14:U15),ROUND(SUM(U14:U15),0),\"\"),\"\")","v":""},{"$f":"+IFERROR(IF(COUNT(U16),ROUND(SUM(U16)/SUM(K16)*100,2),\"\"),0)","v":""},{"$f":"+IFERROR(IF(COUNT(W14:W15),ROUND(SUM(W14:W15),0),\"\"),\"\")","v":""},null,{"$f":"+IFERROR(IF(COUNT(Y14:Y15),ROUND(SUM(Y14:Y15),0),\"\"),\"\")","v":""},{"$f":"+IFERROR(IF(COUNT(Z14:Z15),ROUND(SUM(Z14:Z15),0),\"\"),\"\")","v":""},{"$f":"+IFERROR(IF(COUNT(AA14:AA15),ROUND(SUM(AA14:AA15),0),\"\"),\"\")","v":""},{"$nulls":15},"Other"]

{"sheet":"Other Financial Institutions","index":40,"n_rows":16,"n_cols":44,"rows_kept":16,"hidden":true,"merged":[[8,4,10,4],[8,5,10,5],[8,6,10,6],[8,7,10,7],[8,8,10,8],[8,9,10,9],[8,10,10,10],[8,11,10,11],[8,12,8,15],[8,16,10,16],[8,17,10,17],[8,18,10,18],[8,19,10,19],[8,20,9,21],[8,22,10,22],[8,23,10,23],[8,24,8,26],[9,12,9,14],[9,15,10,15],[9,24,9,26]]}
[{"$nulls":8},0]
[{"$nulls":5},"Name of shareholder","Permanent account number of shareholder","Number of fully paid up equity shares","Number of partly paid-up equity shares","Number of shares underlying outstanding depository receipts","Total number of shares","Shareholding as a percentage of total number of shares held by promoters and public shareholders and custodians or DR holders","Number of voting rights held by same class of securities","Number of voting rights held by differential voting rights","Total Number of voting rights","Percentage of total number of voting rights","Number of shares underlying outstanding convertible securities","Number of warrant","Number of warrant and convertible securities","Total shareholding as a percentage assuming full conversion of convertible securities","Number of the locked-in-shares ","Locked-in-shares as a percentage of total number of shares","Number of equity shares held in dematerialized form","Reason for not providing PAN","Number of share under sub category one","Number of share under sub category two","Number of share under sub category three"]
[]
[]
[]
[]
[{"$nulls":43},"NRI"]
[{"$nulls":43},"Trusts"]
[{"$nulls":4},"Searial No.","Name\nof the \nShareholders\n     (I)","PAN \n(II)","No. of fully paid up equity shares held\n(IV)","No. Of Partly paid-up equity shares held\n(V)","No. Of shares underlying Depository Receipts\n(VI)","Total nos. shares\nheld\n(VII) = (IV)+(V)+ (VI)","Shareholding as a % of total no. of shares (calculated as per SCRR, 1957)\n(VIII)\nAs a % of (A+B+C2)","Number of Voting Rights held in each class of securities\n(IX)",{"$nulls":3},"No. of Shares Underlying Outstanding Warrants (Xi)","No. Of Warrants\n(Xi)","No. Of Shares Underlying Outstanding convertible securities and No. Of Warrants\n(Xi) (a)","Shareholding , as a % assuming full conversion of convertible securities (as a percentage of diluted share capital)\n(XI)= (VII)+(X)\nAs a % of (A+B+C2)","Number of Locked in shares\n(XII)",null,"Number of equity shares held in dematerialized form \n(XIV)","Reason for not providing PAN","Sub-categorization of shares",{"$nulls":18},"Market Maker"]
[{"$nulls":12},"No of Voting (XIV)\nRights",null,null,"Total as\na % of\nTotal\nVoting\nrights",{"$nulls":8},"Shareholding (No. of shares) under",{"$nulls":18},"HUF"]
[{"$nulls":12},"Class\neg:\nX","Class\neg:y","Total",{"$nulls":5},"No.\n(a)","As a % of total Shares held\n(b)",null,null,"Sub-category (i)","Sub-category (ii)","Sub-category (iii)",{"$nulls":16},"Clearing Members"]
[{"$nulls":4},"B1(j)","Other Financial Institutions",{"$nulls":37},"NSDL or CDSL transit"]
[{"$nulls":10},{"$f":"+IFERROR(IF(COUNT(H13:J13),ROUND(SUM(H13:J13),0),\"\"),\"\")","v":""},{"$f":"+IFERROR(IF(COUNT(K13),ROUND(K13/'Shareholding Pattern'!$L$78*100,2),\"\"),\"\")","v":""},{"$f":"IF(H13=\"\",\"\",H13)","v":""},null,{"$f":"+IFERROR(IF(COUNT(M13:N13),ROUND(SUM(M13,N13),2),\"\"),\"\")","v":""},{"$f":"+IFERROR(IF(COUNT(O13),ROUND(O13/('Shareholding Pattern'!$P$79)*100,2),\"\"),\"\")","v":""},null,null,{"$f":"+IFERROR(IF(COUNT(Q13:R13),ROUND(SUM(Q13:R13),0),\"\"),\"\")","v":""},{"$f":"+IFERROR(IF(COUNT(K13,S13),ROUND(SUM(S13,K13)/SUM('Shareholding Pattern'!$L$78,'Shareholding Pattern'!$T$78)*100,2),\"\"),\"\")","v":""},null,{"$f":"+IFERROR(IF(COUNT(U13),ROUND(SUM(U13)/SUM(K13)*100,2),\"\"),0)","v":""},{"$nulls":6},{"$f":"IF(SUM(H13:W13)>0,1,0)","v":0},{"$f":"SUM(AC15:AC65535)","v":0},{"$nulls":13},"Employee welfare fund"]
[{"$nulls":6},"Disclosure of shareholder holding more than 1% of total number of shares",{"$nulls":36},"Overseas corporate bodies"]
[{"$nulls":43},"Private equity fund"]
[{"$nulls":5},"Click here to go back","Total",{"$f":"+IFERROR(IF(COUNT(H14:H15),ROUND(SUM(H14:H15),0),\"\"),\"\")","v":""},{"$f":"+IFERROR(IF(COUNT(I14:I15),ROUND(SUM(I14:I15),0),\"\"),\"\")","v":""},{"$f":"+IFERROR(IF(COUNT(J14:J15),ROUND(SUM(J14:J15),0),\"\"),\"\")","v":""},{"$f":"+IFERROR(IF(COUNT(K14:K15),ROUND(SUM(K14:K15),0),\"\"),\"\")","v":""},{"$f":"+IFERROR(IF(COUNT(K16),ROUND(K16/'Shareholding Pattern'!$L$78*100,2),\"\"),\"\")","v":""},{"$f":"+IFERROR(IF(COUNT(M14:M15),ROUND(SUM(M14:M15),0),\"\"),\"\")","v":""},{"$f":"+IFERROR(IF(COUNT(N14:N15),ROUND(SUM(N14:N15),0),\"\"),\"\")","v":""},{"$f":"+IFERROR(IF(COUNT(O14:O15),ROUND(SUM(O14:O15),0),\"\"),\"\")","v":""},{"$f":"+IFERROR(IF(COUNT(O16),ROUND(O16/('Shareholding Pattern'!$P$79)*100,2),\"\"),\"\")","v":""},{"$f":"+IFERROR(IF(COUNT(Q14:Q15),ROUND(SUM(Q14:Q15),0),\"\"),\"\")","v":""},{"$f":"+IFERROR(IF(COUNT(R14:R15),ROUND(SUM(R14:R15),0),\"\"),\"\")","v":""},{"$f":"+IFERROR(IF(COUNT(S14:S15),ROUND(SUM(S14:S15),0),\"\"),\"\")","v":""},{"$f":"+IFERROR(IF(COUNT(K16,S16),ROUND(SUM(S16,K16)/SUM('Shareholding Pattern'!$L$78,'Shareholding Pattern'!$T$78)*100,2),\"\"),\"\")","v":""},{"$f":"+IFERROR(IF(COUNT(U14:U15),ROUND(SUM(U14:U15),0),\"\"),\"\")","v":""},{"$f":"+IFERROR(IF(COUNT(U16),ROUND(SUM(U16)/SUM(K16)*100,2),\"\"),0)","v":""},{"$f":"+IFERROR(IF(COUNT(W14:W15),ROUND(SUM(W14:W15),0),\"\"),\"\")","v":""},null,{"$f":"+IFERROR(IF(COUNT(Y14:Y15),ROUND(SUM(Y14:Y15),0),\"\"),\"\")","v":""},{"$f":"+IFERROR(IF(COUNT(Z14:Z15),ROUND(SUM(Z14:Z15),0),\"\"),\"\")","v":""},{"$f":"+IFERROR(IF(COUNT(AA14:AA15),ROUND(SUM(AA14:AA15),0),\"\"),\"\")","v":""},{"$nulls":16},"Other"]

{"sheet":"Sovereign Wealth(Domestic)","index":41,"n_rows":16,"n_cols":44,"rows_kept":16,"hidden":true,"merged":[[8,4,10,4],[8,5,10,5],[8,6,10,6],[8,7,10,7],[8,8,10,8],[8,9,10,9],[8,10,10,10],[8,11,10,11],[8,12,8,15],[8,16,10,16],[8,17,10,17],[8,18,10,18],[8,19,10,19],[8,20,9,21],[8,22,10,22],[8,23,10,23],[8,24,8,26],[9,12,9,14],[9,15,10,15],[9,24,9,26]]}
[{"$nulls":8},0]
[{"$nulls":5},"Name of shareholder","Permanent account number of shareholder","Number of fully paid up equity shares","Number of partly paid-up equity shares","Number of shares underlying outstanding depository receipts","Total number of shares","Shareholding as a percentage of total number of shares held by promoters and public shareholders and custodians or DR holders","Number of voting rights held by same class of securities","Number of voting rights held by differential voting rights","Total Number of voting rights","Percentage of total number of voting rights","Number of shares underlying outstanding convertible securities","Number of warrant","Number of warrant and convertible securities","Total shareholding as a percentage assuming full conversion of convertible securities","Number of the locked-in-shares ","Locked-in-shares as a percentage of total number of shares","Number of equity shares held in dematerialized form","Reason for not providing PAN","Number of share under sub category one","Number of share under sub category two","Number of share under sub category three"]
[]
[]
[]
[]
[{"$nulls":43},"NRI"]
[{"$nulls":43},"Trusts"]
[{"$nulls":4},"Searial No.","Name\nof the \nShareholders\n     (I)","PAN \n(II)","No. of fully paid up equity shares held\n(IV)","No. Of Partly paid-up equity shares held\n(V)","No. Of shares underlying Depository Receipts\n(VI)","Total nos. shares\nheld\n(VII) = (IV)+(V)+ (VI)","Shareholding as a % of total no. of shares (calculated as per SCRR, 1957)\n(VIII)\nAs a % of (A+B+C2)","Number of Voting Rights held in each class of securities\n(IX)",{"$nulls":3},"No. of Shares Underlying Outstanding Warrants (Xi)","No. Of Warrants\n(Xi)","No. Of Shares Underlying Outstanding convertible securities and No. Of Warrants\n(Xi) (a)","Shareholding , as a % assuming full conversion of convertible securities (as a percentage of diluted share capital)\n(XI)= (VII)+(X)\nAs a % of (A+B+C2)","Number of Locked in shares\n(XII)",null,"Number of equity shares held in dematerialized form \n(XIV)","Reason for not providing PAN","Sub-categorization of shares",{"$nulls":18},"Market Maker"]
[{"$nulls":12},"No of Voting (XIV)\nRights",null,null,"Total as\na % of\nTotal\nVoting\nrights",{"$nulls":8},"Shareholding (No. of shares) under",{"$nulls":18},"HUF"]
[{"$nulls":12},"Class\neg:\nX","Class\neg:y","Total",{"$nulls":5},"No.\n(a)","As a % of total Shares held\n(b)",null,null,"Sub-category (i)","Sub-category (ii)","Sub-category (iii)",{"$nulls":16},"Clearing Members"]
[{"$nulls":4},"B1(h)","Sovereign Wealth Funds",{"$nulls":37},"NSDL or CDSL transit"]
[{"$nulls":10},{"$f":"+IFERROR(IF(COUNT(H13:J13),ROUND(SUM(H13:J13),0),\"\"),\"\")","v":""},{"$f":"+IFERROR(IF(COUNT(K13),ROUND(K13/'Shareholding Pattern'!$L$78*100,2),\"\"),\"\")","v":""},{"$f":"IF(H13=\"\",\"\",H13)","v":""},null,{"$f":"+IFERROR(IF(COUNT(M13:N13),ROUND(SUM(M13,N13),2),\"\"),\"\")","v":""},{"$f":"+IFERROR(IF(COUNT(O13),ROUND(O13/('Shareholding Pattern'!$P$79)*100,2),\"\"),\"\")","v":""},null,null,{"$f":"+IFERROR(IF(COUNT(Q13:R13),ROUND(SUM(Q13:R13),0),\"\"),\"\")","v":""},{"$f":"+IFERROR(IF(COUNT(K13,S13),ROUND(SUM(S13,K13)/SUM('Shareholding Pattern'!$L$78,'Shareholding Pattern'!$T$78)*100,2),\"\"),\"\")","v":""},null,{"$f":"+IFERROR(IF(COUNT(U13),ROUND(SUM(U13)/SUM(K13)*100,2),\"\"),0)","v":""},{"$nulls":6},{"$f":"IF(SUM(H13:W13)>0,1,0)","v":0},{"$f":"SUM(AC15:AC65535)","v":0},{"$nulls":13},"Employee welfare fund"]
[{"$nulls":6},"Disclosure of shareholder holding more than 1% of total number of shares",{"$nulls":36},"Overseas corporate bodies"]
[{"$nulls":43},"Private equity fund"]
[{"$nulls":5},"Click here to go back","Total",{"$f":"+IFERROR(IF(COUNT(H14:H15),ROUND(SUM(H14:H15),0),\"\"),\"\")","v":""},{"$f":"+IFERROR(IF(COUNT(I14:I15),ROUND(SUM(I14:I15),0),\"\"),\"\")","v":""},{"$f":"+IFERROR(IF(COUNT(J14:J15),ROUND(SUM(J14:J15),0),\"\"),\"\")","v":""},{"$f":"+IFERROR(IF(COUNT(K14:K15),ROUND(SUM(K14:K15),0),\"\"),\"\")","v":""},{"$f":"+IFERROR(IF(COUNT(K16),ROUND(K16/'Shareholding Pattern'!$L$78*100,2),\"\"),\"\")","v":""},{"$f":"+IFERROR(IF(COUNT(M14:M15),ROUND(SUM(M14:M15),0),\"\"),\"\")","v":""},{"$f":"+IFERROR(IF(COUNT(N14:N15),ROUND(SUM(N14:N15),0),\"\"),\"\")","v":""},{"$f":"+IFERROR(IF(COUNT(O14:O15),ROUND(SUM(O14:O15),0),\"\"),\"\")","v":""},{"$f":"+IFERROR(IF(COUNT(O16),ROUND(O16/('Shareholding Pattern'!$P$79)*100,2),\"\"),\"\")","v":""},{"$f":"+IFERROR(IF(COUNT(Q14:Q15),ROUND(SUM(Q14:Q15),0),\"\"),\"\")","v":""},{"$f":"+IFERROR(IF(COUNT(R14:R15),ROUND(SUM(R14:R15),0),\"\"),\"\")","v":""},{"$f":"+IFERROR(IF(COUNT(S14:S15),ROUND(SUM(S14:S15),0),\"\"),\"\")","v":""},{"$f":"+IFERROR(IF(COUNT(K16,S16),ROUND(SUM(S16,K16)/SUM('Shareholding Pattern'!$L$78,'Shareholding Pattern'!$T$78)*100,2),\"\"),\"\")","v":""},{"$f":"+IFERROR(IF(COUNT(U14:U15),ROUND(SUM(U14:U15),0),\"\"),\"\")","v":""},{"$f":"+IFERROR(IF(COUNT(U16),ROUND(SUM(U16)/SUM(K16)*100,2),\"\"),0)","v":""},{"$f":"+IFERROR(IF(COUNT(W14:W15),ROUND(SUM(W14:W15),0),\"\"),\"\")","v":""},null,{"$f":"+IFERROR(IF(COUNT(Y14:Y15),ROUND(SUM(Y14:Y15),0),\"\"),\"\")","v":""},{"$f":"+IFERROR(IF(COUNT(Z14:Z15),ROUND(SUM(Z14:Z15),0),\"\"),\"\")","v":""},{"$f":"+IFERROR(IF(COUNT(AA14:AA15),ROUND(SUM(AA14:AA15),0),\"\"),\"\")","v":""},{"$nulls":16},"Other"]

{"sheet":"AssetReconstruct","index":42,"n_rows":16,"n_cols":44,"rows_kept":16,"hidden":true,"merged":[[8,4,10,4],[8,5,10,5],[8,6,10,6],[8,7,10,7],[8,8,10,8],[8,9,10,9],[8,10,10,10],[8,11,10,11],[8,12,8,15],[8,16,10,16],[8,17,10,17],[8,18,10,18],[8,19,10,19],[8,20,9,21],[8,22,10,22],[8,23,10,23],[8,24,8,26],[9,12,9,14],[9,15,10,15],[9,24,9,26]]}
[{"$nulls":8},0]
[{"$nulls":5},"Name of shareholder","Permanent account number of shareholder","Number of fully paid up equity shares","Number of partly paid-up equity shares","Number of shares underlying outstanding depository receipts","Total number of shares","Shareholding as a percentage of total number of shares held by promoters and public shareholders and custodians or DR holders","Number of voting rights held by same class of securities","Number of voting rights held by differential voting rights","Total Number of voting rights","Percentage of total number of voting rights","Number of shares underlying outstanding convertible securities","Number of warrant","Number of warrant and convertible securities","Total shareholding as a percentage assuming full conversion of convertible securities","Number of the locked-in-shares ","Locked-in-shares as a percentage of total number of shares","Number of equity shares held in dematerialized form","Reason for not providing PAN","Number of share under sub category one","Number of share under sub category two","Number of share under sub category three"]
[]
[]
[]
[]
[{"$nulls":43},"NRI"]
[{"$nulls":43},"Trusts"]
[{"$nulls":4},"Searial No.","Name\nof the \nShareholders\n     (I)","PAN \n(II)","No. of fully paid up equity shares held\n(IV)","No. Of Partly paid-up equity shares held\n(V)","No. Of shares underlying Depository Receipts\n(VI)","Total nos. shares\nheld\n(VII) = (IV)+(V)+ (VI)","Shareholding as a % of total no. of shares (calculated as per SCRR, 1957)\n(VIII)\nAs a % of (A+B+C2)","Number of Voting Rights held in each class of securities\n(IX)",{"$nulls":3},"No. of Shares Underlying Outstanding Warrants (Xi)","No. Of Warrants\n(Xi)","No. Of Shares Underlying Outstanding convertible securities and No. Of Warrants\n(Xi) (a)","Shareholding , as a % assuming full conversion of convertible securities (as a percentage of diluted share capital)\n(XI)= (VII)+(X)\nAs a % of (A+B+C2)","Number of Locked in shares\n(XII)",null,"Number of equity shares held in dematerialized form \n(XIV)","Reason for not providing PAN","Sub-categorization of shares",{"$nulls":18},"Market Maker"]
[{"$nulls":12},"No of Voting (XIV)\nRights",null,null,"Total as\na % of\nTotal\nVoting\nrights",{"$nulls":8},"Shareholding (No. of shares) under",{"$nulls":18},"HUF"]
[{"$nulls":12},"Class\neg:\nX","Class\neg:y","Total",{"$nulls":5},"No.\n(a)","As a % of total Shares held\n(b)",null,null,"Sub-category (i)","Sub-category (ii)","Sub-category (iii)",{"$nulls":16},"Clearing Members"]
[{"$nulls":4},"B1(g)","Asset reconstruction companies",{"$nulls":37},"NSDL or CDSL transit"]
[{"$nulls":10},{"$f":"+IFERROR(IF(COUNT(H13:J13),ROUND(SUM(H13:J13),0),\"\"),\"\")","v":""},{"$f":"+IFERROR(IF(COUNT(K13),ROUND(K13/'Shareholding Pattern'!$L$78*100,2),\"\"),\"\")","v":""},{"$f":"IF(H13=\"\",\"\",H13)","v":""},null,{"$f":"+IFERROR(IF(COUNT(M13:N13),ROUND(SUM(M13,N13),2),\"\"),\"\")","v":""},{"$f":"+IFERROR(IF(COUNT(O13),ROUND(O13/('Shareholding Pattern'!$P$79)*100,2),\"\"),\"\")","v":""},null,null,{"$f":"+IFERROR(IF(COUNT(Q13:R13),ROUND(SUM(Q13:R13),0),\"\"),\"\")","v":""},{"$f":"+IFERROR(IF(COUNT(K13,S13),ROUND(SUM(S13,K13)/SUM('Shareholding Pattern'!$L$78,'Shareholding Pattern'!$T$78)*100,2),\"\"),\"\")","v":""},null,{"$f":"+IFERROR(IF(COUNT(U13),ROUND(SUM(U13)/SUM(K13)*100,2),\"\"),0)","v":""},{"$nulls":6},{"$f":"IF(SUM(H13:W13)>0,1,0)","v":0},{"$f":"SUM(AC15:AC65535)","v":0},{"$nulls":13},"Employee welfare fund"]
[{"$nulls":6},"Disclosure of shareholder holding more than 1% of total number of shares",{"$nulls":36},"Overseas corporate bodies"]
[{"$nulls":43},"Private equity fund"]
[{"$nulls":5},"Click here to go back","Total",{"$f":"+IFERROR(IF(COUNT(H14:H15),ROUND(SUM(H14:H15),0),\"\"),\"\")","v":""},{"$f":"+IFERROR(IF(COUNT(I14:I15),ROUND(SUM(I14:I15),0),\"\"),\"\")","v":""},{"$f":"+IFERROR(IF(COUNT(J14:J15),ROUND(SUM(J14:J15),0),\"\"),\"\")","v":""},{"$f":"+IFERROR(IF(COUNT(K14:K15),ROUND(SUM(K14:K15),0),\"\"),\"\")","v":""},{"$f":"+IFERROR(IF(COUNT(K16),ROUND(K16/'Shareholding Pattern'!$L$78*100,2),\"\"),\"\")","v":""},{"$f":"+IFERROR(IF(COUNT(M14:M15),ROUND(SUM(M14:M15),0),\"\"),\"\")","v":""},{"$f":"+IFERROR(IF(COUNT(N14:N15),ROUND(SUM(N14:N15),0),\"\"),\"\")","v":""},{"$f":"+IFERROR(IF(COUNT(O14:O15),ROUND(SUM(O14:O15),0),\"\"),\"\")","v":""},{"$f":"+IFERROR(IF(COUNT(O16),ROUND(O16/('Shareholding Pattern'!$P$79)*100,2),\"\"),\"\")","v":""},{"$f":"+IFERROR(IF(COUNT(Q14:Q15),ROUND(SUM(Q14:Q15),0),\"\"),\"\")","v":""},{"$f":"+IFERROR(IF(COUNT(R14:R15),ROUND(SUM(R14:R15),0),\"\"),\"\")","v":""},{"$f":"+IFERROR(IF(COUNT(S14:S15),ROUND(SUM(S14:S15),0),\"\"),\"\")","v":""},{"$f":"+IFERROR(IF(COUNT(K16,S16),ROUND(SUM(S16,K16)/SUM('Shareholding Pattern'!$L$78,'Shareholding Pattern'!$T$78)*100,2),\"\"),\"\")","v":""},{"$f":"+IFERROR(IF(COUNT(U14:U15),ROUND(SUM(U14:U15),0),\"\"),\"\")","v":""},{"$f":"+IFERROR(IF(COUNT(U16),ROUND(SUM(U16)/SUM(K16)*100,2),\"\"),0)","v":""},{"$f":"+IFERROR(IF(COUNT(W14:W15),ROUND(SUM(W14:W15),0),\"\"),\"\")","v":""},null,{"$f":"+IFERROR(IF(COUNT(Y14:Y15),ROUND(SUM(Y14:Y15),0),\"\"),\"\")","v":""},{"$f":"+IFERROR(IF(COUNT(Z14:Z15),ROUND(SUM(Z14:Z15),0),\"\"),\"\")","v":""},{"$f":"+IFERROR(IF(COUNT(AA14:AA15),ROUND(SUM(AA14:AA15),0),\"\"),\"\")","v":""},{"$nulls":16},"Other"]

{"sheet":"Pension","index":43,"n_rows":16,"n_cols":44,"rows_kept":16,"hidden":true,"merged":[[8,4,10,4],[8,5,10,5],[8,6,10,6],[8,7,10,7],[8,8,10,8],[8,9,10,9],[8,10,10,10],[8,11,10,11],[8,12,8,15],[8,16,10,16],[8,17,10,17],[8,18,10,18],[8,19,10,19],[8,20,9,21],[8,22,10,22],[8,23,10,23],[8,24,8,26],[9,12,9,14],[9,15,10,15],[9,24,9,26]]}
[{"$nulls":8},0]
[{"$nulls":5},"Name of shareholder","Permanent account number of shareholder","Number of fully paid up equity shares","Number of partly paid-up equity shares","Number of shares underlying outstanding depository receipts","Total number of shares","Shareholding as a percentage of total number of shares held by promoters and public shareholders and custodians or DR holders","Number of voting rights held by same class of securities","Number of voting rights held by differential voting rights","Total Number of voting rights","Percentage of total number of voting rights","Number of shares underlying outstanding convertible securities","Number of warrant","Number of warrant and convertible securities","Total shareholding as a percentage assuming full conversion of convertible securities","Number of the locked-in-shares ","Locked-in-shares as a percentage of total number of shares","Number of equity shares held in dematerialized form","Reason for not providing PAN","Number of share under sub category one","Number of share under sub category two","Number of share under sub category three"]
[]
[]
[]
[]
[{"$nulls":43},"NRI"]
[{"$nulls":43},"Trusts"]
[{"$nulls":4},"Searial No.","Name\nof the \nShareholders\n     (I)","PAN \n(II)","No. of fully paid up equity shares held\n(IV)","No. Of Partly paid-up equity shares held\n(V)","No. Of shares underlying Depository Receipts\n(VI)","Total nos. shares\nheld\n(VII) = (IV)+(V)+ (VI)","Shareholding as a % of total no. of shares (calculated as per SCRR, 1957)\n(VIII)\nAs a % of (A+B+C2)","Number of Voting Rights held in each class of securities\n(IX)",{"$nulls":3},"No. of Shares Underlying Outstanding Warrants (Xi)","No. Of Warrants\n(Xi)","No. Of Shares Underlying Outstanding convertible securities and No. Of Warrants\n(Xi) (a)","Shareholding , as a % assuming full conversion of convertible securities (as a percentage of diluted share capital)\n(XI)= (VII)+(X)\nAs a % of (A+B+C2)","Number of Locked in shares\n(XII)",null,"Number of equity shares held in dematerialized form \n(XIV)","Reason for not providing PAN","Sub-categorization of shares",{"$nulls":18},"Market Maker"]
[{"$nulls":12},"No of Voting (XIV)\nRights",null,null,"Total as\na % of\nTotal\nVoting\nrights",{"$nulls":8},"Shareholding (No. of shares) under",{"$nulls":18},"HUF"]
[{"$nulls":12},"Class\neg:\nX","Class\neg:y","Total",{"$nulls":5},"No.\n(a)","As a % of total Shares held\n(b)",null,null,"Sub-category (i)","Sub-category (ii)","Sub-category (iii)",{"$nulls":16},"Clearing Members"]
[{"$nulls":4},"B1(f)","Provident Funds/ Pension Funds",{"$nulls":37},"NSDL or CDSL transit"]
[{"$nulls":10},{"$f":"+IFERROR(IF(COUNT(H13:J13),ROUND(SUM(H13:J13),0),\"\"),\"\")","v":""},{"$f":"+IFERROR(IF(COUNT(K13),ROUND(K13/'Shareholding Pattern'!$L$78*100,2),\"\"),\"\")","v":""},{"$f":"IF(H13=\"\",\"\",H13)","v":""},null,{"$f":"+IFERROR(IF(COUNT(M13:N13),ROUND(SUM(M13,N13),2),\"\"),\"\")","v":""},{"$f":"+IFERROR(IF(COUNT(O13),ROUND(O13/('Shareholding Pattern'!$P$79)*100,2),\"\"),\"\")","v":""},null,null,{"$f":"+IFERROR(IF(COUNT(Q13:R13),ROUND(SUM(Q13:R13),0),\"\"),\"\")","v":""},{"$f":"+IFERROR(IF(COUNT(K13,S13),ROUND(SUM(S13,K13)/SUM('Shareholding Pattern'!$L$78,'Shareholding Pattern'!$T$78)*100,2),\"\"),\"\")","v":""},null,{"$f":"+IFERROR(IF(COUNT(U13),ROUND(SUM(U13)/SUM(K13)*100,2),\"\"),0)","v":""},{"$nulls":6},{"$f":"IF(SUM(H13:W13)>0,1,0)","v":0},{"$f":"SUM(AC15:AC65535)","v":0},{"$nulls":13},"Employee welfare fund"]
[{"$nulls":6},"Disclosure of shareholder holding more than 1% of total number of shares",{"$nulls":36},"Overseas corporate bodies"]
[{"$nulls":43},"Private equity fund"]
[{"$nulls":5},"Click here to go back","Total",{"$f":"+IFERROR(IF(COUNT(H14:H15),ROUND(SUM(H14:H15),0),\"\"),\"\")","v":""},{"$f":"+IFERROR(IF(COUNT(I14:I15),ROUND(SUM(I14:I15),0),\"\"),\"\")","v":""},{"$f":"+IFERROR(IF(COUNT(J14:J15),ROUND(SUM(J14:J15),0),\"\"),\"\")","v":""},{"$f":"+IFERROR(IF(COUNT(K14:K15),ROUND(SUM(K14:K15),0),\"\"),\"\")","v":""},{"$f":"+IFERROR(IF(COUNT(K16),ROUND(K16/'Shareholding Pattern'!$L$78*100,2),\"\"),\"\")","v":""},{"$f":"+IFERROR(IF(COUNT(M14:M15),ROUND(SUM(M14:M15),0),\"\"),\"\")","v":""},{"$f":"+IFERROR(IF(COUNT(N14:N15),ROUND(SUM(N14:N15),0),\"\"),\"\")","v":""},{"$f":"+IFERROR(IF(COUNT(O14:O15),ROUND(SUM(O14:O15),0),\"\"),\"\")","v":""},{"$f":"+IFERROR(IF(COUNT(O16),ROUND(O16/('Shareholding Pattern'!$P$79)*100,2),\"\"),\"\")","v":""},{"$f":"+IFERROR(IF(COUNT(Q14:Q15),ROUND(SUM(Q14:Q15),0),\"\"),\"\")","v":""},{"$f":"+IFERROR(IF(COUNT(R14:R15),ROUND(SUM(R14:R15),0),\"\"),\"\")","v":""},{"$f":"+IFERROR(IF(COUNT(S14:S15),ROUND(SUM(S14:S15),0),\"\"),\"\")","v":""},{"$f":"+IFERROR(IF(COUNT(K16,S16),ROUND(SUM(S16,K16)/SUM('Shareholding Pattern'!$L$78,'Shareholding Pattern'!$T$78)*100,2),\"\"),\"\")","v":""},{"$f":"+IFERROR(IF(COUNT(U14:U15),ROUND(SUM(U14:U15),0),\"\"),\"\")","v":""},{"$f":"+IFERROR(IF(COUNT(U16),ROUND(SUM(U16)/SUM(K16)*100,2),\"\"),0)","v":""},{"$f":"+IFERROR(IF(COUNT(W14:W15),ROUND(SUM(W14:W15),0),\"\"),\"\")","v":""},null,{"$f":"+IFERROR(IF(COUNT(Y14:Y15),ROUND(SUM(Y14:Y15),0),\"\"),\"\")","v":""},{"$f":"+IFERROR(IF(COUNT(Z14:Z15),ROUND(SUM(Z14:Z15),0),\"\"),\"\")","v":""},{"$f":"+IFERROR(IF(COUNT(AA14:AA15),ROUND(SUM(AA14:AA15),0),\"\"),\"\")","v":""},{"$nulls":16},"Other"]

{"sheet":"Indivisual(aI)","index":44,"n_rows":16,"n_cols":29,"rows_kept":16,"hidden":true,"merged":[[8,4,10,4],[8,5,10,5],[8,6,10,6],[8,7,10,7],[8,8,10,8],[8,9,10,9],[8,10,10,10],[8,11,10,11],[8,12,8,15],[8,16,10,16],[8,17,10,17],[8,18,10,18],[8,19,10,19],[8,20,9,21],[8,22,10,22],[8,23,10,23],[8,24,8,26],[9,12,9,14],[9,15,10,15],[9,24,9,26]]}
[{"$nulls":8},0]
[{"$nulls":5},"Name of shareholder","Permanent account number of shareholder","Number of fully paid up equity shares","Number of partly paid-up equity shares","Number of shares underlying outstanding depository receipts","Total number of shares","Shareholding as a percentage of total number of shares held by promoters and public shareholders and custodians or DR holders","Number of voting rights held by same class of securities","Number of voting rights held by differential voting rights","Total Number of voting rights","Percentage of total number of voting rights","Number of shares underlying outstanding convertible securities","Number of warrant","Number of warrant and convertible securities","Total shareholding as a percentage assuming full conversion of convertible securities","Number of the locked-in-shares ","Locked-in-shares as a percentage of total number of shares","Number of equity shares held in dematerialized form","Reason for not providing PAN","Number of share under sub category one","Number of share under sub category two","Number of share under sub category three"]
[]
[]
[]
[]
[]
[]
[{"$nulls":4},"Searial No.","Name\nof the \nShareholders\n     (I)","PAN \n(II)","No. of fully paid up equity shares held\n(IV)","No. Of Partly paid-up equity shares held\n(V)","No. Of shares underlying Depository Receipts\n(VI)","Total nos. shares\nheld\n(VII) = (IV)+(V)+ (VI)","Shareholding as a % of total no. of shares (calculated as per SCRR, 1957)\n(VIII)\nAs a % of (A+B+C2)","Number of Voting Rights held in each class of securities\n(IX)",{"$nulls":3},"No. Of Shares Underlying Outstanding convertible securities\n(X)","No. of Shares Underlying Outstanding Warrants (Xi)","No. Of Shares Underlying Outstanding convertible securities and No. Of Warrants\n(Xi) (a)","Shareholding , as a % assuming full conversion of convertible securities (as a percentage of diluted share capital)\n(XI)= (VII)+(X)\nAs a % of (A+B+C2)","Number of Locked in shares\n(XII)",null,"Number of equity shares held in dematerialized form \n(XIV)","Reason for not providing PAN","Sub-categorization of shares"]
[{"$nulls":12},"No of Voting (XIV)\nRights",null,null,"Total as\na % of\nTotal\nVoting\nrights",{"$nulls":8},"Shareholding (No. of shares) under"]
[{"$nulls":12},"Class\neg:\nX","Class\neg:y","Total",{"$nulls":5},"No.\n(a)","As a % of total Shares held\n(b)",null,null,"Sub-category (i)","Sub-category (ii)","Sub-category (iii)"]
[{"$nulls":4},"B4(g)","Individuals -  i.Individual shareholders holding nominal share capital up to Rs. 2 lakhs. "]
[{"$nulls":10},{"$f":"+IFERROR(IF(COUNT(H13:J13),ROUND(SUM(H13:J13),0),\"\"),\"\")","v":""},{"$f":"+IFERROR(IF(COUNT(K13),ROUND(K13/'Shareholding Pattern'!$L$78*100,2),\"\"),\"\")","v":""},{"$f":"IF(H13=\"\",\"\",H13)","v":""},null,{"$f":"+IFERROR(IF(COUNT(M13:N13),ROUND(SUM(M13,N13),2),\"\"),\"\")","v":""},{"$f":"+IFERROR(IF(COUNT(O13),ROUND(O13/('Shareholding Pattern'!$P$79)*100,2),\"\"),\"\")","v":""},null,null,{"$f":"+IFERROR(IF(COUNT(Q13:R13),ROUND(SUM(Q13:R13),0),\"\"),\"\")","v":""},{"$f":"+IFERROR(IF(COUNT(K13,S13),ROUND(SUM(S13,K13)/SUM('Shareholding Pattern'!$L$78,'Shareholding Pattern'!$T$78)*100,2),\"\"),\"\")","v":""},null,{"$f":"+IFERROR(IF(COUNT(U13),ROUND(SUM(U13)/SUM(K13)*100,2),\"\"),0)","v":""},{"$nulls":6},{"$f":"SUM(#REF!)","v":{"$error":"#REF!"}}]
[{"$nulls":6},"Disclosure of shareholder holding more than 1% of total number of shares"]
[]
[{"$nulls":5},"Click here to go back","Total",{"$f":"+IFERROR(IF(COUNT(H13:H15),ROUND(SUM(H13:H15),0),\"\"),\"\")","v":""},{"$f":"+IFERROR(IF(COUNT(I13:I15),ROUND(SUM(I13:I15),0),\"\"),\"\")","v":""},{"$f":"+IFERROR(IF(COUNT(J13:J15),ROUND(SUM(J13:J15),0),\"\"),\"\")","v":""},{"$f":"+IFERROR(IF(COUNT(K13:K15),ROUND(SUM(K13:K15),0),\"\"),\"\")","v":""},{"$f":"+IFERROR(IF(COUNT(K16),ROUND(K16/'Shareholding Pattern'!$L$78*100,2),\"\"),\"\")","v":""},{"$f":"+IFERROR(IF(COUNT(M13:M15),ROUND(SUM(M13:M15),0),\"\"),\"\")","v":""},{"$f":"+IFERROR(IF(COUNT(N13:N15),ROUND(SUM(N13:N15),0),\"\"),\"\")","v":""},{"$f":"+IFERROR(IF(COUNT(O13:O15),ROUND(SUM(O13:O15),0),\"\"),\"\")","v":""},{"$f":"+IFERROR(IF(COUNT(O16),ROUND(O16/('Shareholding Pattern'!$P$79)*100,2),\"\"),\"\")","v":""},{"$f":"+IFERROR(IF(COUNT(Q13:Q15),ROUND(SUM(Q13:Q15),0),\"\"),\"\")","v":""},{"$f":"+IFERROR(IF(COUNT(R13:R15),ROUND(SUM(R13:R15),0),\"\"),\"\")","v":""},{"$f":"+IFERROR(IF(COUNT(S13:S15),ROUND(SUM(S13:S15),0),\"\"),\"\")","v":""},{"$f":"+IFERROR(IF(COUNT(K16,S16),ROUND(SUM(S16,K16)/SUM('Shareholding Pattern'!$L$78,'Shareholding Pattern'!$T$78)*100,2),\"\"),\"\")","v":""},{"$f":"+IFERROR(IF(COUNT(U13:U15),ROUND(SUM(U13:U15),0),\"\"),\"\")","v":""},{"$f":"+IFERROR(IF(COUNT(U16),ROUND(SUM(U16)/SUM(K16)*100,2),\"\"),0)","v":""},{"$f":"+IFERROR(IF(COUNT(W13:W15),ROUND(SUM(W13:W15),0),\"\"),\"\")","v":""},null,{"$f":"+IFERROR(IF(COUNT(Y13:Y15),ROUND(SUM(Y13:Y15),0),\"\"),\"\")","v":""},{"$f":"+IFERROR(IF(COUNT(Z13:Z15),ROUND(SUM(Z13:Z15),0),\"\"),\"\")","v":""},{"$f":"+IFERROR(IF(COUNT(AA13:AA15),ROUND(SUM(AA13:AA15),0),\"\"),\"\")","v":""}]

{"sheet":"Indivisual(aII)","index":45,"n_rows":19,"n_cols":29,"rows_kept":19,"hidden":true,"merged":[[8,4,10,4],[8,5,10,5],[8,6,10,6],[8,7,10,7],[8,8,10,8],[8,9,10,9],[8,10,10,10],[8,11,10,11],[8,12,8,15],[8,16,10,16],[8,17,10,17],[8,18,10,18],[8,19,10,19],[8,20,9,21],[8,22,10,22],[8,23,10,23],[8,24,8,26],[9,12,9,14],[9,15,10,15],[9,24,9,26]]}
[{"$nulls":8},3]
[{"$nulls":5},"Name of shareholder","Permanent account number of shareholder","Number of fully paid up equity shares","Number of partly paid-up equity shares","Number of shares underlying outstanding depository receipts","Total number of shares","Shareholding as a percentage of total number of shares held by promoters and public shareholders and custodians or DR holders","Number of voting rights held by same class of securities","Number of voting rights held by differential voting rights","Total Number of voting rights","Percentage of total number of voting rights","Number of shares underlying outstanding convertible securities","Number of warrant","Number of warrant and convertible securities","Total shareholding as a percentage assuming full conversion of convertible securities","Number of the locked-in-shares ","Locked-in-shares as a percentage of total number of shares","Number of equity shares held in dematerialized form","Reason for not providing PAN","Number of share under sub category one","Number of share under sub category two","Number of share under sub category three"]
[]
[]
[]
[]
[]
[]
[{"$nulls":4},"Searial No.","Name\nof the \nShareholders\n     (I)","PAN \n(II)","No. of fully paid up equity shares held\n(IV)","No. Of Partly paid-up equity shares held\n(V)","No. Of shares underlying Depository Receipts\n(VI)","Total nos. shares\nheld\n(VII) = (IV)+(V)+ (VI)","Shareholding as a % of total no. of shares (calculated as per SCRR, 1957)\n(VIII)\nAs a % of (A+B+C2)","Number of Voting Rights held in each class of securities\n(IX)",{"$nulls":3},"No. Of Shares Underlying Outstanding convertible securities\n(X)","No. of Shares Underlying Outstanding Warrants (Xi)","No. Of Shares Underlying Outstanding convertible securities and No. Of Warrants\n(Xi) (a)","Shareholding , as a % assuming full conversion of convertible securities (as a percentage of diluted share capital)\n(XI)= (VII)+(X)\nAs a % of (A+B+C2)","Number of Locked in shares\n(XII)",null,"Number of equity shares held in dematerialized form \n(XIV)","Reason for not providing PAN","Sub-categorization of shares"]
[{"$nulls":12},"No of Voting (XIV)\nRights",null,null,"Total as\na % of\nTotal\nVoting\nrights",{"$nulls":8},"Shareholding (No. of shares) under"]
[{"$nulls":12},"Class\neg:\nX","Class\neg:y","Total",{"$nulls":5},"No.\n(a)","As a % of total Shares held\n(b)",null,null,"Sub-category (i)","Sub-category (ii)","Sub-category (iii)"]
[{"$nulls":4},"B4(h)","Individuals - ii. Individual shareholders holding nominal share capital in excess of Rs. 2 lakhs."]
[{"$nulls":10},{"$f":"+IFERROR(IF(COUNT(H13:J13),ROUND(SUM(H13:J13),0),\"\"),\"\")","v":""},{"$f":"+IFERROR(IF(COUNT(K13),ROUND(K13/'Shareholding Pattern'!$L$78*100,2),\"\"),\"\")","v":""},{"$f":"IF(H13=\"\",\"\",H13)","v":""},null,{"$f":"+IFERROR(IF(COUNT(M13:N13),ROUND(SUM(M13,N13),2),\"\"),\"\")","v":""},{"$f":"+IFERROR(IF(COUNT(O13),ROUND(O13/('Shareholding Pattern'!$P$79)*100,2),\"\"),\"\")","v":""},null,null,{"$f":"+IFERROR(IF(COUNT(Q13:R13),ROUND(SUM(Q13:R13),0),\"\"),\"\")","v":""},{"$f":"+IFERROR(IF(COUNT(K13,S13),ROUND(SUM(S13,K13)/SUM('Shareholding Pattern'!$L$78,'Shareholding Pattern'!$T$78)*100,2),\"\"),\"\")","v":""},null,{"$f":"+IFERROR(IF(COUNT(U13),ROUND(SUM(U13)/SUM(K13)*100,2),\"\"),0)","v":""},{"$nulls":6},{"$f":"SUM(#REF!)","v":{"$error":"#REF!"}}]
[{"$nulls":6},"\nDisclosure of shareholder holding more than 1% of total number of shares\n"]
[{"$nulls":4},1,"VASANT MEGHJI RAJYAGOR","AABPR3789E",135587,null,null,{"$f":"+IFERROR(IF(COUNT(H15:J15),ROUND(SUM(H15:J15),0),\"\"),\"\")","v":135587},{"$f":"+IFERROR(IF(COUNT(K15),ROUND(K15/'Shareholding Pattern'!$L$78*100,2),\"\"),\"\")","v":{"v":2.6,"d":"2.60"}},{"$f":"IF(H15=\"\",\"\",H15)","v":{"v":135587,"d":"135587.00"}},null,{"$f":"+IFERROR(IF(COUNT(M15:N15),ROUND(SUM(M15,N15),2),\"\"),\"\")","v":{"v":135587,"d":"135587.00"}},{"$f":"+IFERROR(IF(COUNT(O15),ROUND(O15/('Shareholding Pattern'!$P$79)*100,2),\"\"),\"\")","v":{"v":2.6,"d":"2.60"}},null,null,{"$f":"+IFERROR(IF(COUNT(Q15:R15),ROUND(SUM(Q15:R15),0),\"\"),\"\")","v":""},{"$f":"+IFERROR(IF(COUNT(K15,S15),ROUND(SUM(S15,K15)/SUM('Shareholding Pattern'!$L$78,'Shareholding Pattern'!$T$78)*100,2),\"\"),\"\")","v":{"v":2.6,"d":"2.60"}},null,{"$f":"+IFERROR(IF(COUNT(U15),ROUND(SUM(U15)/SUM(K15)*100,2),\"\"),0)","v":""},135587,null,0,0,0,null,{"$f":"SUM(#REF!)","v":{"$error":"#REF!"}}]
[{"$nulls":4},2,"MACHHINDRA NARAYAN KOLI","AMJPK7954Q",133002,null,null,{"$f":"+IFERROR(IF(COUNT(H16:J16),ROUND(SUM(H16:J16),0),\"\"),\"\")","v":133002},{"$f":"+IFERROR(IF(COUNT(K16),ROUND(K16/'Shareholding Pattern'!$L$78*100,2),\"\"),\"\")","v":2.55},{"$f":"IF(H16=\"\",\"\",H16)","v":{"v":133002,"d":"133002.00"}},null,{"$f":"+IFERROR(IF(COUNT(M16:N16),ROUND(SUM(M16,N16),2),\"\"),\"\")","v":{"v":133002,"d":"133002.00"}},{"$f":"+IFERROR(IF(COUNT(O16),ROUND(O16/('Shareholding Pattern'!$P$79)*100,2),\"\"),\"\")","v":2.55},null,null,{"$f":"+IFERROR(IF(COUNT(Q16:R16),ROUND(SUM(Q16:R16),0),\"\"),\"\")","v":""},{"$f":"+IFERROR(IF(COUNT(K16,S16),ROUND(SUM(S16,K16)/SUM('Shareholding Pattern'!$L$78,'Shareholding Pattern'!$T$78)*100,2),\"\"),\"\")","v":2.55},null,{"$f":"+IFERROR(IF(COUNT(U16),ROUND(SUM(U16)/SUM(K16)*100,2),\"\"),0)","v":""},133002,null,0,0,0,null,{"$f":"SUM(#REF!)","v":{"$error":"#REF!"}}]
[{"$nulls":4},3,"SWATI PRAGNESH JOSHI","AKBPJ1939N",72955,null,null,{"$f":"+IFERROR(IF(COUNT(H17:J17),ROUND(SUM(H17:J17),0),\"\"),\"\")","v":72955},{"$f":"+IFERROR(IF(COUNT(K17),ROUND(K17/'Shareholding Pattern'!$L$78*100,2),\"\"),\"\")","v":{"v":1.4,"d":"1.40"}},{"$f":"IF(H17=\"\",\"\",H17)","v":{"v":72955,"d":"72955.00"}},null,{"$f":"+IFERROR(IF(COUNT(M17:N17),ROUND(SUM(M17,N17),2),\"\"),\"\")","v":{"v":72955,"d":"72955.00"}},{"$f":"+IFERROR(IF(COUNT(O17),ROUND(O17/('Shareholding Pattern'!$P$79)*100,2),\"\"),\"\")","v":{"v":1.4,"d":"1.40"}},null,null,{"$f":"+IFERROR(IF(COUNT(Q17:R17),ROUND(SUM(Q17:R17),0),\"\"),\"\")","v":""},{"$f":"+IFERROR(IF(COUNT(K17,S17),ROUND(SUM(S17,K17)/SUM('Shareholding Pattern'!$L$78,'Shareholding Pattern'!$T$78)*100,2),\"\"),\"\")","v":{"v":1.4,"d":"1.40"}},null,{"$f":"+IFERROR(IF(COUNT(U17),ROUND(SUM(U17)/SUM(K17)*100,2),\"\"),0)","v":""},72955,null,0,0,0,null,{"$f":"SUM(#REF!)","v":{"$error":"#REF!"}}]
[]
[{"$nulls":5},"Click here to go back","Total",{"$f":"+IFERROR(IF(COUNT(H14:H18),ROUND(SUM(H14:H18),0),\"\"),\"\")","v":341544},{"$f":"+IFERROR(IF(COUNT(I14:I18),ROUND(SUM(I14:I18),0),\"\"),\"\")","v":""},{"$f":"+IFERROR(IF(COUNT(J14:J18),ROUND(SUM(J14:J18),0),\"\"),\"\")","v":""},{"$f":"+IFERROR(IF(COUNT(K14:K18),ROUND(SUM(K14:K18),0),\"\"),\"\")","v":341544},{"$f":"+IFERROR(IF(COUNT(K19),ROUND(K19/'Shareholding Pattern'!$L$78*100,2),\"\"),\"\")","v":6.54},{"$f":"+IFERROR(IF(COUNT(M14:M18),ROUND(SUM(M14:M18),0),\"\"),\"\")","v":{"v":341544,"d":"341544.00"}},{"$f":"+IFERROR(IF(COUNT(N14:N18),ROUND(SUM(N14:N18),0),\"\"),\"\")","v":""},{"$f":"+IFERROR(IF(COUNT(O14:O18),ROUND(SUM(O14:O18),0),\"\"),\"\")","v":{"v":341544,"d":"341544.00"}},{"$f":"+IFERROR(IF(COUNT(O19),ROUND(O19/('Shareholding Pattern'!$P$79)*100,2),\"\"),\"\")","v":6.54},{"$f":"+IFERROR(IF(COUNT(Q14:Q18),ROUND(SUM(Q14:Q18),0),\"\"),\"\")","v":""},{"$f":"+IFERROR(IF(COUNT(R14:R18),ROUND(SUM(R14:R18),0),\"\"),\"\")","v":""},{"$f":"+IFERROR(IF(COUNT(S14:S18),ROUND(SUM(S14:S18),0),\"\"),\"\")","v":""},{"$f":"+IFERROR(IF(COUNT(K19,S19),ROUND(SUM(S19,K19)/SUM('Shareholding Pattern'!$L$78,'Shareholding Pattern'!$T$78)*100,2),\"\"),\"\")","v":6.54},{"$f":"+IFERROR(IF(COUNT(U14:U18),ROUND(SUM(U14:U18),0),\"\"),\"\")","v":""},{"$f":"+IFERROR(IF(COUNT(U19),ROUND(SUM(U19)/SUM(K19)*100,2),\"\"),0)","v":""},{"$f":"+IFERROR(IF(COUNT(W14:W18),ROUND(SUM(W14:W18),0),\"\"),\"\")","v":341544},null,{"$f":"+IFERROR(IF(COUNT(Y14:Y18),ROUND(SUM(Y14:Y18),0),\"\"),\"\")","v":0},{"$f":"+IFERROR(IF(COUNT(Z14:Z18),ROUND(SUM(Z14:Z18),0),\"\"),\"\")","v":0},{"$f":"+IFERROR(IF(COUNT(AA14:AA18),ROUND(SUM(AA14:AA18),0),\"\"),\"\")","v":0}]

{"sheet":"NBFC","index":46,"n_rows":16,"n_cols":30,"rows_kept":16,"hidden":true,"merged":[[8,4,10,4],[8,5,10,5],[8,6,10,6],[8,7,10,7],[8,8,10,8],[8,9,10,9],[8,10,10,10],[8,11,10,11],[8,12,8,15],[8,16,10,16],[8,17,10,17],[8,18,10,18],[8,19,10,19],[8,20,9,21],[8,22,10,22],[8,23,10,23],[8,24,8,26],[9,12,9,14],[9,15,10,15],[9,24,9,26]]}
[{"$nulls":8},0]
[{"$nulls":5},"Name of shareholder","Permanent account number of shareholder","Number of fully paid up equity shares","Number of partly paid-up equity shares","Number of shares underlying outstanding depository receipts","Total number of shares","Shareholding as a percentage of total number of shares held by promoters and public shareholders and custodians or DR holders","Number of voting rights held by same class of securities","Number of voting rights held by differential voting rights","Total Number of voting rights","Percentage of total number of voting rights","Number of shares underlying outstanding convertible securities","Number of warrant","Number of warrant and convertible securities","Total shareholding as a percentage assuming full conversion of convertible securities","Number of the locked-in-shares ","Locked-in-shares as a percentage of total number of shares","Number of equity shares held in dematerialized form","Reason for not providing PAN","Number of share under sub category one","Number of share under sub category two","Number of share under sub category three"]
[]
[]
[]
[]
[]
[]
[{"$nulls":4},"Searial No.","Name\nof the \nShareholders\n     (I)","PAN \n(II)","No. of fully paid up equity shares held\n(IV)","No. Of Partly paid-up equity shares held\n(V)","No. Of shares underlying Depository Receipts\n(VI)","Total nos. shares\nheld\n(VII) = (IV)+(V)+ (VI)","Shareholding as a % of total no. of shares (calculated as per SCRR, 1957)\n(VIII)\nAs a % of (A+B+C2)","Number of Voting Rights held in each class of securities\n(IX)",{"$nulls":3},"No. Of Shares Underlying Outstanding convertible securities\n(X)","No. of Shares Underlying Outstanding Warrants (Xi)","No. Of Shares Underlying Outstanding convertible securities and No. Of Warrants\n(Xi) (a)","Shareholding , as a % assuming full conversion of convertible securities (as a percentage of diluted share capital)\n(XI)= (VII)+(X)\nAs a % of (A+B+C2)","Number of Locked in shares\n(XII)",null,"Number of equity shares held in dematerialized form \n(XIV)","Reason for not providing PAN","Sub-categorization of shares"]
[{"$nulls":12},"No of Voting (XIV)\nRights",null,null,"Total as\na % of\nTotal\nVoting\nrights",{"$nulls":8},"Shareholding (No. of shares) under"]
[{"$nulls":12},"Class\neg:\nX","Class\neg:y","Total",{"$nulls":5},"No.\n(a)","As a % of total Shares held\n(b)",null,null,"Sub-category (i)","Sub-category (ii)","Sub-category (iii)"]
[{"$nulls":4},"B3(i)","NBFCs registered with RBI"]
[{"$nulls":10},{"$f":"+IFERROR(IF(COUNT(H13:J13),ROUND(SUM(H13:J13),0),\"\"),\"\")","v":""},{"$f":"+IFERROR(IF(COUNT(K13),ROUND(K13/'Shareholding Pattern'!$L$78*100,2),\"\"),\"\")","v":""},{"$f":"IF(H13=\"\",\"\",H13)","v":""},null,{"$f":"+IFERROR(IF(COUNT(M13:N13),ROUND(SUM(M13,N13),2),\"\"),\"\")","v":""},{"$f":"+IFERROR(IF(COUNT(O13),ROUND(O13/('Shareholding Pattern'!$P$79)*100,2),\"\"),\"\")","v":""},null,null,{"$f":"+IFERROR(IF(COUNT(Q13:R13),ROUND(SUM(Q13:R13),0),\"\"),\"\")","v":""},{"$f":"+IFERROR(IF(COUNT(K13,S13),ROUND(SUM(S13,K13)/SUM('Shareholding Pattern'!$L$78,'Shareholding Pattern'!$T$78)*100,2),\"\"),\"\")","v":""},null,{"$f":"+IFERROR(IF(COUNT(U13),ROUND(SUM(U13)/SUM(K13)*100,2),\"\"),0)","v":""},{"$nulls":6},{"$f":"IF(SUM(H13:W13)>0,1,0)","v":0},{"$f":"SUM(AC15:AC65535)","v":0}]
[{"$nulls":6},"\nDisclosure of shareholder holding more than 1% of total number of shares\n"]
[]
[{"$nulls":5},"Click here to go back","Total",{"$f":"+IFERROR(IF(COUNT(H13:H15),ROUND(SUM(H13:H15),0),\"\"),\"\")","v":""},{"$f":"+IFERROR(IF(COUNT(I13:I15),ROUND(SUM(I13:I15),0),\"\"),\"\")","v":""},{"$f":"+IFERROR(IF(COUNT(J13:J15),ROUND(SUM(J13:J15),0),\"\"),\"\")","v":""},{"$f":"+IFERROR(IF(COUNT(K13:K15),ROUND(SUM(K13:K15),0),\"\"),\"\")","v":""},{"$f":"+IFERROR(IF(COUNT(K16),ROUND(K16/'Shareholding Pattern'!$L$78*100,2),\"\"),\"\")","v":""},{"$f":"+IFERROR(IF(COUNT(M13:M15),ROUND(SUM(M13:M15),0),\"\"),\"\")","v":""},{"$f":"+IFERROR(IF(COUNT(N13:N15),ROUND(SUM(N13:N15),0),\"\"),\"\")","v":""},{"$f":"+IFERROR(IF(COUNT(O13:O15),ROUND(SUM(O13:O15),0),\"\"),\"\")","v":""},{"$f":"+IFERROR(IF(COUNT(O16),ROUND(O16/('Shareholding Pattern'!$P$79)*100,2),\"\"),\"\")","v":""},{"$f":"+IFERROR(IF(COUNT(Q13:Q15),ROUND(SUM(Q13:Q15),0),\"\"),\"\")","v":""},{"$f":"+IFERROR(IF(COUNT(R13:R15),ROUND(SUM(R13:R15),0),\"\"),\"\")","v":""},{"$f":"+IFERROR(IF(COUNT(S13:S15),ROUND(SUM(S13:S15),0),\"\"),\"\")","v":""},{"$f":"+IFERROR(IF(COUNT(K16,S16),ROUND(SUM(S16,K16)/SUM('Shareholding Pattern'!$L$78,'Shareholding Pattern'!$T$78)*100,2),\"\"),\"\")","v":""},{"$f":"+IFERROR(IF(COUNT(U13:U15),ROUND(SUM(U13:U15),0),\"\"),\"\")","v":""},{"$f":"+IFERROR(IF(COUNT(U16),ROUND(SUM(U16)/SUM(K16)*100,2),\"\"),0)","v":""},{"$f":"+IFERROR(IF(COUNT(W13:W15),ROUND(SUM(W13:W15),0),\"\"),\"\")","v":""},null,{"$f":"+IFERROR(IF(COUNT(Y13:Y15),ROUND(SUM(Y13:Y15),0),\"\"),\"\")","v":""},{"$f":"+IFERROR(IF(COUNT(Z13:Z15),ROUND(SUM(Z13:Z15),0),\"\"),\"\")","v":""},{"$f":"+IFERROR(IF(COUNT(AA13:AA15),ROUND(SUM(AA13:AA15),0),\"\"),\"\")","v":""}]

{"sheet":"EmpTrust","index":47,"n_rows":16,"n_cols":30,"rows_kept":16,"hidden":true,"merged":[[8,4,10,4],[8,5,10,5],[8,6,10,6],[8,7,10,7],[8,8,10,8],[8,9,10,9],[8,10,10,10],[8,11,10,11],[8,12,8,15],[8,16,10,16],[8,17,10,17],[8,18,10,18],[8,19,10,19],[8,20,9,21],[8,22,10,22],[8,23,10,23],[9,12,9,14],[9,15,10,15]]}
[{"$nulls":8},0]
[{"$nulls":5},"Name of shareholder","Permanent account number of shareholder","Number of fully paid up equity shares","Number of partly paid-up equity shares","Number of shares underlying outstanding depository receipts","Total number of shares","Shareholding as a percentage of total number of shares held by promoters and public shareholders and custodians or DR holders","Number of voting rights held by same class of securities","Number of voting rights held by differential voting rights","Total Number of voting rights","Percentage of total number of voting rights","Number of shares underlying outstanding convertible securities","Number of warrant","Number of warrant and convertible securities","Total shareholding as a percentage assuming full conversion of convertible securities","Number of the locked-in-shares ","Locked-in-shares as a percentage of total number of shares","Number of equity shares held in dematerialized form","Reason for not providing PAN"]
[]
[]
[]
[]
[]
[]
[{"$nulls":4},"Searial No.","Name\nof the \nShareholders\n     (I)","PAN \n(II)","No. of fully paid up equity shares held\n(IV)","No. Of Partly paid-up equity shares held\n(V)","No. Of shares underlying Depository Receipts\n(VI)","Total nos. shares\nheld\n(VII) = (IV)+(V)+ (VI)","Shareholding as a % of total no. of shares (calculated as per SCRR, 1957)\n(VIII)\nAs a % of (A+B+C2)","Number of Voting Rights held in each class of securities\n(IX)",{"$nulls":3},"No. Of Shares Underlying Outstanding convertible securities\n(X)","No. of Shares Underlying Outstanding Warrants (Xi)","No. Of Shares Underlying Outstanding convertible securities and No. Of Warrants\n(Xi) (a)","Shareholding , as a % assuming full conversion of convertible securities (as a percentage of diluted share capital)\n(XI)= (VII)+(X)\nAs a % of (A+B+C2)","Number of Locked in shares\n(XII)",null,"Number of equity shares held in dematerialized form \n(XIV)","Reason for not providing PAN"]
[{"$nulls":12},"No of Voting (XIV)\nRights",null,null,"Total as\na % of\nTotal\nVoting\nrights"]
[{"$nulls":12},"Class\neg:\nX","Class\neg:y","Total",{"$nulls":5},"No.\n(a)","As a % of total Shares held\n(b)"]
[{"$nulls":4},"B3(c)","Employee Trusts"]
[{"$nulls":10},{"$f":"+IFERROR(IF(COUNT(H13:J13),ROUND(SUM(H13:J13),0),\"\"),\"\")","v":""},{"$f":"+IFERROR(IF(COUNT(K13),ROUND(K13/'Shareholding Pattern'!$L$78*100,2),\"\"),\"\")","v":""},{"$f":"IF(H13=\"\",\"\",H13)","v":""},null,{"$f":"+IFERROR(IF(COUNT(M13:N13),ROUND(SUM(M13,N13),2),\"\"),\"\")","v":""},{"$f":"+IFERROR(IF(COUNT(O13),ROUND(O13/('Shareholding Pattern'!$P$79)*100,2),\"\"),\"\")","v":""},null,null,{"$f":"+IFERROR(IF(COUNT(Q13:R13),ROUND(SUM(Q13:R13),0),\"\"),\"\")","v":""},{"$f":"+IFERROR(IF(COUNT(K13,S13),ROUND(SUM(S13,K13)/SUM('Shareholding Pattern'!$L$78,'Shareholding Pattern'!$T$78)*100,2),\"\"),\"\")","v":""},null,{"$f":"+IFERROR(IF(COUNT(U13),ROUND(SUM(U13)/SUM(K13)*100,2),\"\"),0)","v":""},{"$nulls":6},{"$f":"IF(SUM(H13:W13)>0,1,0)","v":0},{"$f":"SUM(AC15:AC65535)","v":0}]
[{"$nulls":6},"Disclosure of shareholder holding more than 1% of total number of shares"]
[]
[{"$nulls":5},"Click here to go back","Total",{"$f":"+IFERROR(IF(COUNT(H13:H15),ROUND(SUM(H13:H15),0),\"\"),\"\")","v":""},{"$f":"+IFERROR(IF(COUNT(I13:I15),ROUND(SUM(I13:I15),0),\"\"),\"\")","v":""},{"$f":"+IFERROR(IF(COUNT(J13:J15),ROUND(SUM(J13:J15),0),\"\"),\"\")","v":""},{"$f":"+IFERROR(IF(COUNT(K13:K15),ROUND(SUM(K13:K15),0),\"\"),\"\")","v":""},{"$f":"+IFERROR(IF(COUNT(K16),ROUND(K16/'Shareholding Pattern'!$L$78*100,2),\"\"),\"\")","v":""},{"$f":"+IFERROR(IF(COUNT(M13:M15),ROUND(SUM(M13:M15),0),\"\"),\"\")","v":""},{"$f":"+IFERROR(IF(COUNT(N13:N15),ROUND(SUM(N13:N15),0),\"\"),\"\")","v":""},{"$f":"+IFERROR(IF(COUNT(O13:O15),ROUND(SUM(O13:O15),0),\"\"),\"\")","v":""},{"$f":"+IFERROR(IF(COUNT(O16),ROUND(O16/('Shareholding Pattern'!$P$79)*100,2),\"\"),\"\")","v":""},{"$f":"+IFERROR(IF(COUNT(Q13:Q15),ROUND(SUM(Q13:Q15),0),\"\"),\"\")","v":""},{"$f":"+IFERROR(IF(COUNT(R13:R15),ROUND(SUM(R13:R15),0),\"\"),\"\")","v":""},{"$f":"+IFERROR(IF(COUNT(S13:S15),ROUND(SUM(S13:S15),0),\"\"),\"\")","v":""},{"$f":"+IFERROR(IF(COUNT(K16,S16),ROUND(SUM(S16,K16)/SUM('Shareholding Pattern'!$L$78,'Shareholding Pattern'!$T$78)*100,2),\"\"),\"\")","v":""},{"$f":"+IFERROR(IF(COUNT(U13:U15),ROUND(SUM(U13:U15),0),\"\"),\"\")","v":""},{"$f":"+IFERROR(IF(COUNT(U16),ROUND(SUM(U16)/SUM(K16)*100,2),\"\"),0)","v":""},{"$f":"+IFERROR(IF(COUNT(W13:W15),ROUND(SUM(W13:W15),0),\"\"),\"\")","v":""}]

{"sheet":"OD","index":48,"n_rows":16,"n_cols":29,"rows_kept":16,"hidden":true,"merged":[[8,4,10,4],[8,5,10,5],[8,6,10,6],[8,7,10,7],[8,8,10,8],[8,9,10,9],[8,10,10,10],[8,11,10,11],[8,12,8,15],[8,16,10,16],[8,17,10,17],[8,18,10,18],[8,19,10,19],[8,20,9,21],[8,22,10,22],[8,23,10,23],[8,24,8,26],[9,12,9,14],[9,15,10,15],[9,24,9,26]]}
[{"$nulls":8},0]
[{"$nulls":5},"Name of shareholder","Permanent account number of shareholder","Number of fully paid up equity shares","Number of partly paid-up equity shares","Number of shares underlying outstanding depository receipts","Total number of shares","Shareholding as a percentage of total number of shares held by promoters and public shareholders and custodians or DR holders","Number of voting rights held by same class of securities","Number of voting rights held by differential voting rights","Total Number of voting rights","Percentage of total number of voting rights","Number of shares underlying outstanding convertible securities","Number of warrant","Number of warrant and convertible securities","Total shareholding as a percentage assuming full conversion of convertible securities","Number of the locked-in-shares ","Locked-in-shares as a percentage of total number of shares","Number of equity shares held in dematerialized form","Reason for not providing PAN","Number of share under sub category one","Number of share under sub category two","Number of share under sub category three"]
[]
[]
[]
[]
[]
[]
[{"$nulls":4},"Searial No.","Name\nof the \nShareholders\n     (I)","PAN \n(II)","No. of fully paid up equity shares held\n(IV)","No. Of Partly paid-up equity shares held\n(V)","No. Of shares underlying Depository Receipts\n(VI)","Total nos. shares\nheld\n(VII) = (IV)+(V)+ (VI)","Shareholding as a % of total no. of shares (calculated as per SCRR, 1957)\n(VIII)\nAs a % of (A+B+C2)","Number of Voting Rights held in each class of securities\n(IX)",{"$nulls":3},"No. Of Shares Underlying Outstanding convertible securities\n(X)","No. of Shares Underlying Outstanding Warrants (Xi)","No. Of Shares Underlying Outstanding convertible securities and No. Of Warrants\n(Xi) (a)","Shareholding , as a % assuming full conversion of convertible securities (as a percentage of diluted share capital)\n(XI)= (VII)+(X)\nAs a % of (A+B+C2)","Number of Locked in shares\n(XII)",null,"Number of equity shares held in dematerialized form \n(XIV)","Reason for not providing PAN","Sub-categorization of shares"]
[{"$nulls":12},"No of Voting (XIV)\nRights",null,null,"Total as\na % of\nTotal\nVoting\nrights",{"$nulls":8},"Shareholding (No. of shares) under"]
[{"$nulls":12},"Class\neg:\nX","Class\neg:y","Total",{"$nulls":5},"No.\n(a)","As a % of total Shares held\n(b)",null,null,"Sub-category (i)","Sub-category (ii)","Sub-category (iii)"]
[{"$nulls":4},"B2(f)","Overseas Depositories (holding DRs) (balancing figure)"]
[{"$nulls":10},{"$f":"+IFERROR(IF(COUNT(H13:J13),ROUND(SUM(H13:J13),0),\"\"),\"\")","v":""},{"$f":"+IFERROR(IF(COUNT(K13),ROUND(K13/'Shareholding Pattern'!$L$78*100,2),\"\"),\"\")","v":""},{"$f":"IF(H13=\"\",\"\",H13)","v":""},null,{"$f":"+IFERROR(IF(COUNT(M13:N13),ROUND(SUM(M13,N13),2),\"\"),\"\")","v":""},{"$f":"+IFERROR(IF(COUNT(O13),ROUND(O13/('Shareholding Pattern'!$P$79)*100,2),\"\"),\"\")","v":""},null,null,{"$f":"+IFERROR(IF(COUNT(Q13:R13),ROUND(SUM(Q13:R13),0),\"\"),\"\")","v":""},{"$f":"+IFERROR(IF(COUNT(K13,S13),ROUND(SUM(S13,K13)/SUM('Shareholding Pattern'!$L$78,'Shareholding Pattern'!$T$78)*100,2),\"\"),\"\")","v":""},null,{"$f":"+IFERROR(IF(COUNT(U13),ROUND(SUM(U13)/SUM(K13)*100,2),\"\"),0)","v":""},{"$nulls":6},{"$f":"SUM(#REF!)","v":{"$error":"#REF!"}}]
[{"$nulls":6},"Disclosure of shareholder holding more than 1% of total number of shares"]
[]
[{"$nulls":5},"Click here to go back","Total",{"$f":"+IFERROR(IF(COUNT(H13:H15),ROUND(SUM(H13:H15),0),\"\"),\"\")","v":""},{"$f":"+IFERROR(IF(COUNT(I13:I15),ROUND(SUM(I13:I15),0),\"\"),\"\")","v":""},{"$f":"+IFERROR(IF(COUNT(J13:J15),ROUND(SUM(J13:J15),0),\"\"),\"\")","v":""},{"$f":"+IFERROR(IF(COUNT(K13:K15),ROUND(SUM(K13:K15),0),\"\"),\"\")","v":""},{"$f":"+IFERROR(IF(COUNT(K16),ROUND(K16/'Shareholding Pattern'!$L$78*100,2),\"\"),\"\")","v":""},{"$f":"+IFERROR(IF(COUNT(M13:M15),ROUND(SUM(M13:M15),0),\"\"),\"\")","v":""},{"$f":"+IFERROR(IF(COUNT(N13:N15),ROUND(SUM(N13:N15),0),\"\"),\"\")","v":""},{"$f":"+IFERROR(IF(COUNT(O13:O15),ROUND(SUM(O13:O15),0),\"\"),\"\")","v":""},{"$f":"+IFERROR(IF(COUNT(O16),ROUND(O16/('Shareholding Pattern'!$P$79)*100,2),\"\"),\"\")","v":""},{"$f":"+IFERROR(IF(COUNT(Q13:Q15),ROUND(SUM(Q13:Q15),0),\"\"),\"\")","v":""},{"$f":"+IFERROR(IF(COUNT(R13:R15),ROUND(SUM(R13:R15),0),\"\"),\"\")","v":""},{"$f":"+IFERROR(IF(COUNT(S13:S15),ROUND(SUM(S13:S15),0),\"\"),\"\")","v":""},{"$f":"+IFERROR(IF(COUNT(K16,S16),ROUND(SUM(S16,K16)/SUM('Shareholding Pattern'!$L$78,'Shareholding Pattern'!$T$78)*100,2),\"\"),\"\")","v":""},{"$f":"+IFERROR(IF(COUNT(U13:U15),ROUND(SUM(U13:U15),0),\"\"),\"\")","v":""},{"$f":"+IFERROR(IF(COUNT(U16),ROUND(SUM(U16)/SUM(K16)*100,2),\"\"),0)","v":""},{"$f":"+IFERROR(IF(COUNT(W13:W15),ROUND(SUM(W13:W15),0),\"\"),\"\")","v":""},null,{"$f":"+IFERROR(IF(COUNT(Y13:Y15),ROUND(SUM(Y13:Y15),0),\"\"),\"\")","v":""},{"$f":"+IFERROR(IF(COUNT(Z13:Z15),ROUND(SUM(Z13:Z15),0),\"\"),\"\")","v":""},{"$f":"+IFERROR(IF(COUNT(AA13:AA15),ROUND(SUM(AA13:AA15),0),\"\"),\"\")","v":""}]

{"sheet":"Other_NonInsti","index":49,"n_rows":20,"n_cols":54,"rows_kept":20,"hidden":true,"merged":[[8,3,10,3],[8,4,10,4],[8,5,10,5],[8,6,10,6],[8,7,10,7],[8,8,10,8],[8,9,10,9],[8,10,10,10],[8,11,10,11],[8,12,10,12],[8,13,10,13],[8,14,8,17],[8,18,10,18],[8,19,10,19],[8,20,10,20],[8,21,10,21],[8,22,9,23],[8,24,10,24],[8,25,10,25],[8,26,8,28],[9,14,9,16],[9,17,10,17],[9,26,9,28]]}
[{"$nulls":8},4,0,{"$nulls":20},"Angel Investors","Bodies Corporate","Clearing Members","Director or Director's Relatives","Employee Welfare Fund","Employees","Enemy Property","ESOP or ESOS or ESPS","FCCB","Firm","Foreign Nationals","Foreign Portfolio Investor (Category - III)","HUF","IEPF","LLP","Market Maker","Non-Resident Indian (NRI)","NSDL or CDSL Transit","Others","Overseas Corporate Bodies","Private Equity Fund","Societies","Trusts","Unclaimed or Suspense or Escrow Account"]
[{"$nulls":4},"Category of other non-institutions","Category or more than one percentage","Name of shareholder","Permanent account number of shareholder","Number of shareholders","Number of fully paid up equity shares","Number of partly paid-up equity shares","Number of shares underlying outstanding depository receipts","Total number of shares","Shareholding as a percentage of total number of shares held by promoters and public shareholders and custodians or DR holders","Number of voting rights held by same class of securities","Number of voting rights held by differential voting rights","Total Number of voting rights","Percentage of total number of voting rights","Number of shares underlying outstanding convertible securities","Number of warrant","Number of warrant and convertible securities","Total shareholding as a percentage assuming full conversion of convertible securities","Number of the locked-in-shares ","Locked-in-shares as a percentage of total number of shares","Number of equity shares held in dematerialized form","Reason for not providing PAN","Number of share under sub category one","Number of share under sub category two","Number of share under sub category three"]
[{"$nulls":8},{"$f":"+IFERROR(IF(COUNT(I13:I19),ROUND(SUMIF($F$13:I19,\"Category\",I13:I19),0),\"\"),\"\")","v":41},{"$f":"+IFERROR(IF(COUNT(J13:J19),ROUND(SUMIF($F$13:J19,\"Category\",J13:J19),0),\"\"),\"\")","v":210232},{"$f":"+IFERROR(IF(COUNT(K13:K19),ROUND(SUMIF($F$13:K19,\"Category\",K13:K19),0),\"\"),\"\")","v":""},{"$f":"+IFERROR(IF(COUNT(L13:L19),ROUND(SUMIF($F$13:L19,\"Category\",L13:L19),0),\"\"),\"\")","v":""},{"$f":"+IFERROR(IF(COUNT(M13:M19),ROUND(SUMIF($F$13:M19,\"Category\",M13:M19),0),\"\"),\"\")","v":210232},{"$f":"+IFERROR(IF(COUNT(N13:N19),ROUND(SUMIF($F$13:N19,\"Category\",N13:N19),2),\"\"),\"\")","v":4.02},{"$f":"+IFERROR(IF(COUNT(O13:O19),ROUND(SUMIF($F$13:O19,\"Category\",O13:O19),0),\"\"),\"\")","v":210232},{"$f":"+IFERROR(IF(COUNT(P13:P19),ROUND(SUMIF($F$13:P19,\"Category\",P13:P19),0),\"\"),\"\")","v":""},{"$f":"+IFERROR(IF(COUNT(Q13:Q19),ROUND(SUMIF($F$13:Q19,\"Category\",Q13:Q19),0),\"\"),\"\")","v":210232},{"$f":"+IFERROR(IF(COUNT(R13:R19),ROUND(SUMIF($F$13:R19,\"Category\",R13:R19),2),\"\"),\"\")","v":4.02},{"$f":"+IFERROR(IF(COUNT(S13:S19),ROUND(SUMIF($F$13:S19,\"Category\",S13:S19),0),\"\"),\"\")","v":""},{"$f":"+IFERROR(IF(COUNT(T13:T19),ROUND(SUMIF($F$13:T19,\"Category\",T13:T19),0),\"\"),\"\")","v":""},{"$f":"+IFERROR(IF(COUNT(U13:U19),ROUND(SUMIF($F$13:U19,\"Category\",U13:U19),0),\"\"),\"\")","v":""},{"$f":"+IFERROR(IF(COUNT(V13:V19),ROUND(SUMIF($F$13:V19,\"Category\",V13:V19),2),\"\"),\"\")","v":4.02},{"$f":"+IFERROR(IF(COUNT(W13:W19),ROUND(SUMIF($F$13:W19,\"Category\",W13:W19),0),\"\"),\"\")","v":""},{"$f":"+IFERROR(IF(COUNT(X13:X19),ROUND(SUMIF($F$13:X19,\"Category\",X13:X19),2),\"\"),\"\")","v":""},{"$f":"+IFERROR(IF(COUNT(Y13:Y19),ROUND(SUMIF($F$13:Y19,\"Category\",Y13:Y19),0),\"\"),\"\")","v":208672}]
[]
[]
[]
[]
[]
[{"$nulls":3},"Searial No.","Category","Category / More than 1 percentage","Name\nof the \nShareholders\n     (I)","PAN \n(II)","No.\nof the \nShareholders\n     (I)","No. of fully paid up equity shares held\n(IV)","No. Of Partly paid-up equity shares held\n(V)","No. Of shares underlying Depository Receipts\n(VI)","Total nos. shares\nheld\n(VII) = (IV)+(V)+ (VI)","Shareholding as a % of total no. of shares (calculated as per SCRR, 1957)\n(VIII)\nAs a % of (A+B+C2)","Number of Voting Rights held in each class of securities\n(IX)",{"$nulls":3},"No. Of Shares Underlying Outstanding convertible securities\n(X)","No. of Shares Underlying Outstanding Warrants (Xi)","No. Of Shares Underlying Outstanding convertible securities and No. Of Warrants\n(Xi) (a)","Shareholding , as a % assuming full conversion of convertible securities (as a percentage of diluted share capital)\n(XI)= (VII)+(X)\nAs a % of (A+B+C2)","Number of Locked in shares\n(XII)",null,"Number of equity shares held in dematerialized form \n(XIV)","Reason for not providing PAN","Sub-categorization of shares",{"$nulls":20},"Category"]
[{"$nulls":14},"No of Voting (XIV)\nRights",null,null,"Total as\na % of\nTotal\nVoting\nrights",{"$nulls":8},"Shareholding (No. of shares) under",{"$nulls":20},"More than 1 percentage of shareholding"]
[{"$nulls":14},"Class\neg:\nX","Class\neg:y","Total",{"$nulls":5},"No.\n(a)","As a % of total Shares held\n(b)",null,null,"Sub-category (i)","Sub-category (ii)","Sub-category (iii)"]
[{"$nulls":3},"B4(m)","Any Other (specify)"]
[{"$nulls":12},{"$f":"+IFERROR(IF(COUNT(J13:L13),ROUND(SUM(J13:L13),0),\"\"),\"\")","v":""},{"$f":"+IFERROR(IF(COUNT(M13),ROUND(M13/'Shareholding Pattern'!$L$78*100,2),\"\"),\"\")","v":""},{"$f":"IF(J13=\"\",\"\",J13)","v":""},null,{"$f":"+IFERROR(IF(COUNT(O13:P13),ROUND(SUM(O13,P13),2),\"\"),\"\")","v":""},{"$f":"+IFERROR(IF(COUNT(Q13),ROUND(Q13/('Shareholding Pattern'!$P$79)*100,2),\"\"),\"\")","v":""},null,null,{"$f":"+IFERROR(IF(COUNT(S13:T13),ROUND(SUM(S13:T13),0),\"\"),\"\")","v":""},{"$f":"+IFERROR(IF(COUNT(M13,U13),ROUND(SUM(U13,M13)/SUM('Shareholding Pattern'!$L$78,'Shareholding Pattern'!$T$78)*100,2),\"\"),\"\")","v":""},null,{"$f":"+IFERROR(IF(COUNT(W13),ROUND(SUM(W13)/SUM(M13)*100,2),\"\"),0)","v":""},{"$nulls":5},{"$f":"IF(SUM(H13:Y13)>0,1,0)","v":0}]
[]
[{"$nulls":3},1,"Bodies Corporate","Category",null,null,6,20886,null,null,{"$f":"+IFERROR(IF(COUNT(J15:L15),ROUND(SUM(J15:L15),0),\"\"),\"\")","v":20886},{"$f":"+IFERROR(IF(COUNT(M15),ROUND(M15/'Shareholding Pattern'!$L$78*100,2),\"\"),\"\")","v":{"v":0.4,"d":"0.40"}},{"$f":"IF(J15=\"\",\"\",J15)","v":20886},null,{"$f":"+IFERROR(IF(COUNT(O15:P15),ROUND(SUM(O15,P15),2),\"\"),\"\")","v":20886},{"$f":"+IFERROR(IF(COUNT(Q15),ROUND(Q15/('Shareholding Pattern'!$P$79)*100,2),\"\"),\"\")","v":{"v":0.4,"d":"0.40"}},null,null,{"$f":"+IFERROR(IF(COUNT(S15:T15),ROUND(SUM(S15:T15),0),\"\"),\"\")","v":""},{"$f":"+IFERROR(IF(COUNT(M15,U15),ROUND(SUM(U15,M15)/SUM('Shareholding Pattern'!$L$78,'Shareholding Pattern'!$T$78)*100,2),\"\"),\"\")","v":{"v":0.4,"d":"0.40"}},null,{"$f":"+IFERROR(IF(COUNT(W15),ROUND(SUM(W15)/SUM(M15)*100,2),\"\"),0)","v":""},19326,null,0,0,0]
[{"$nulls":3},2,"Clearing Members","Category",null,null,1,200,null,null,{"$f":"+IFERROR(IF(COUNT(J16:L16),ROUND(SUM(J16:L16),0),\"\"),\"\")","v":200},{"$f":"+IFERROR(IF(COUNT(M16),ROUND(M16/'Shareholding Pattern'!$L$78*100,2),\"\"),\"\")","v":{"v":0,"d":"0.00"}},{"$f":"IF(J16=\"\",\"\",J16)","v":200},null,{"$f":"+IFERROR(IF(COUNT(O16:P16),ROUND(SUM(O16,P16),2),\"\"),\"\")","v":200},{"$f":"+IFERROR(IF(COUNT(Q16),ROUND(Q16/('Shareholding Pattern'!$P$79)*100,2),\"\"),\"\")","v":{"v":0,"d":"0.00"}},null,null,{"$f":"+IFERROR(IF(COUNT(S16:T16),ROUND(SUM(S16:T16),0),\"\"),\"\")","v":""},{"$f":"+IFERROR(IF(COUNT(M16,U16),ROUND(SUM(U16,M16)/SUM('Shareholding Pattern'!$L$78,'Shareholding Pattern'!$T$78)*100,2),\"\"),\"\")","v":{"v":0,"d":"0.00"}},null,{"$f":"+IFERROR(IF(COUNT(W16),ROUND(SUM(W16)/SUM(M16)*100,2),\"\"),0)","v":""},200,null,0,0,0]
[{"$nulls":3},3,"HUF","Category",null,null,34,189146,null,null,{"$f":"+IFERROR(IF(COUNT(J17:L17),ROUND(SUM(J17:L17),0),\"\"),\"\")","v":189146},{"$f":"+IFERROR(IF(COUNT(M17),ROUND(M17/'Shareholding Pattern'!$L$78*100,2),\"\"),\"\")","v":3.62},{"$f":"IF(J17=\"\",\"\",J17)","v":189146},null,{"$f":"+IFERROR(IF(COUNT(O17:P17),ROUND(SUM(O17,P17),2),\"\"),\"\")","v":189146},{"$f":"+IFERROR(IF(COUNT(Q17),ROUND(Q17/('Shareholding Pattern'!$P$79)*100,2),\"\"),\"\")","v":3.62},null,null,{"$f":"+IFERROR(IF(COUNT(S17:T17),ROUND(SUM(S17:T17),0),\"\"),\"\")","v":""},{"$f":"+IFERROR(IF(COUNT(M17,U17),ROUND(SUM(U17,M17)/SUM('Shareholding Pattern'!$L$78,'Shareholding Pattern'!$T$78)*100,2),\"\"),\"\")","v":3.62},null,{"$f":"+IFERROR(IF(COUNT(W17),ROUND(SUM(W17)/SUM(M17)*100,2),\"\"),0)","v":""},189146,null,0,0,0]
[{"$nulls":3},4,"HUF","More than 1 percentage of shareholding","PRAGNESH MANIKANTBHAI JOSHI","AAJHP9902P",1,170578,null,null,{"$f":"+IFERROR(IF(COUNT(J18:L18),ROUND(SUM(J18:L18),0),\"\"),\"\")","v":170578},{"$f":"+IFERROR(IF(COUNT(M18),ROUND(M18/'Shareholding Pattern'!$L$78*100,2),\"\"),\"\")","v":3.27},{"$f":"IF(J18=\"\",\"\",J18)","v":170578},null,{"$f":"+IFERROR(IF(COUNT(O18:P18),ROUND(SUM(O18,P18),2),\"\"),\"\")","v":170578},{"$f":"+IFERROR(IF(COUNT(Q18),ROUND(Q18/('Shareholding Pattern'!$P$79)*100,2),\"\"),\"\")","v":3.27},null,null,{"$f":"+IFERROR(IF(COUNT(S18:T18),ROUND(SUM(S18:T18),0),\"\"),\"\")","v":""},{"$f":"+IFERROR(IF(COUNT(M18,U18),ROUND(SUM(U18,M18)/SUM('Shareholding Pattern'!$L$78,'Shareholding Pattern'!$T$78)*100,2),\"\"),\"\")","v":3.27},null,{"$f":"+IFERROR(IF(COUNT(W18),ROUND(SUM(W18)/SUM(M18)*100,2),\"\"),0)","v":""},170578,null,0,0,0]
[]
[{"$nulls":6},"Click here to go back","Total",{"$f":"+IFERROR(IF(COUNT(I13:I19),ROUND(SUMIF($F$13:I19,\"Category\",I13:I19),0),\"\"),\"\")","v":41},{"$f":"+IFERROR(IF(COUNT(J13:J19),ROUND(SUMIF($F$13:J19,\"Category\",J13:J19),0),\"\"),\"\")","v":210232},{"$f":"+IFERROR(IF(COUNT(K13:K19),ROUND(SUMIF($F$13:K19,\"Category\",K13:K19),0),\"\"),\"\")","v":""},{"$f":"+IFERROR(IF(COUNT(L13:L19),ROUND(SUMIF($F$13:L19,\"Category\",L13:L19),0),\"\"),\"\")","v":""},{"$f":"+IFERROR(IF(COUNT(M13:M19),ROUND(SUMIF($F$13:M19,\"Category\",M13:M19),0),\"\"),\"\")","v":210232},{"$f":"+IFERROR(IF(COUNT(N13:N19),ROUND(SUMIF($F$13:N19,\"Category\",N13:N19),2),\"\"),\"\")","v":4.02},{"$f":"+IFERROR(IF(COUNT(O13:O19),ROUND(SUMIF($F$13:O19,\"Category\",O13:O19),0),\"\"),\"\")","v":{"v":210232,"d":"210232.00"}},{"$f":"+IFERROR(IF(COUNT(P13:P19),ROUND(SUMIF($F$13:P19,\"Category\",P13:P19),0),\"\"),\"\")","v":""},{"$f":"+IFERROR(IF(COUNT(Q13:Q19),ROUND(SUMIF($F$13:Q19,\"Category\",Q13:Q19),0),\"\"),\"\")","v":{"v":210232,"d":"210232.00"}},{"$f":"+IFERROR(IF(COUNT(R13:R19),ROUND(SUMIF($F$13:R19,\"Category\",R13:R19),2),\"\"),\"\")","v":4.02},{"$f":"+IFERROR(IF(COUNT(S13:S19),ROUND(SUMIF($F$13:S19,\"Category\",S13:S19),0),\"\"),\"\")","v":""},{"$f":"+IFERROR(IF(COUNT(T13:T19),ROUND(SUMIF($F$13:T19,\"Category\",T13:T19),0),\"\"),\"\")","v":""},{"$f":"+IFERROR(IF(COUNT(U13:U19),ROUND(SUMIF($F$13:U19,\"Category\",U13:U19),0),\"\"),\"\")","v":""},{"$f":"+IFERROR(IF(COUNT(V13:V19),ROUND(SUMIF($F$13:V19,\"Category\",V13:V19),2),\"\"),\"\")","v":4.02},{"$f":"+IFERROR(IF(COUNT(W13:W19),ROUND(SUMIF($F$13:W19,\"Category\",W13:W19),0),\"\"),\"\")","v":""},{"$f":"+IFERROR(IF(COUNT(W20),ROUND(SUM(W20)/SUM(M20)*100,2),\"\"),0)","v":""},{"$f":"+IFERROR(IF(COUNT(Y13:Y19),ROUND(SUMIF($F$13:Y19,\"Category\",Y13:Y19),0),\"\"),\"\")","v":208672},null,{"$f":"+IFERROR(IF(COUNT(AA13:AA19),ROUND(SUMIF($F$13:AA19,\"Category\",AA13:AA19),0),\"\"),\"\")","v":0},{"$f":"+IFERROR(IF(COUNT(AB13:AB19),ROUND(SUMIF($F$13:AB19,\"Category\",AB13:AB19),0),\"\"),\"\")","v":0},{"$f":"+IFERROR(IF(COUNT(AC13:AC19),ROUND(SUMIF($F$13:AC19,\"Category\",AC13:AC19),0),\"\"),\"\")","v":0}]

{"sheet":"Annexure B","index":50,"n_rows":15,"n_cols":14,"rows_kept":15,"merged":[[7,3,7,5],[14,3,14,5],[15,3,15,4]]}
[]
[{"$nulls":4},"Board approved limits (%)","Limits utilized (%)","Limit set by government (%)"]
[]
[]
[]
[]
[]
[{"$nulls":3},"Table VI - Statement showing foreign ownership limits"]
[{"$nulls":3},"Particular","Approved limits (%)","Limits utilized (%)"]
[{"$nulls":3},"As on shareholding date",{"v":0,"d":"0.00"},{"v":0,"d":"0.00"},{"$nulls":4},0,0,0,0]
[{"$nulls":3},"As on the end of previous 1st quarter",{"v":0,"d":"0.00"},{"v":0,"d":"0.00"},{"$nulls":4},0,0,0,0]
[{"$nulls":3},"As on the end of previous 2nd quarter",{"v":0,"d":"0.00"},{"v":0,"d":"0.00"},{"$nulls":4},0,0,0,0]
[{"$nulls":3},"As on the end of previous 3rd quarter",{"v":0,"d":"0.00"},{"v":0,"d":"0.00"},{"$nulls":4},0,0,0,0]
[{"$nulls":3},"As on the end of previous 4th quarter",{"v":0,"d":"0.00"},{"v":0,"d":"0.00"},{"$nulls":4},0,0,0,0]
[{"$nulls":3},"Notes :-\n 1) \"Approved Limits (%)\" means the limit approved by Board of Directors / shareholders of the Listed entity. In case the listed entity has no Board approved limit,  provide details of sectoral / statutory cap prescribed by Government / Regulatory Authorities\n2) Details of Foreign ownership includes foreign ownership / investments as specified in Rule 2(s) of the Foreign Exchange Management (Non-debt Instruments) Rules, 2019, made under the Foreign Exchange Management Act, 1999."]

{"sheet":"Taxonomy","index":51,"n_rows":238,"n_cols":5,"rows_kept":238,"hidden":true}
["element","label","type","periodType","Validation"]
["General Information"]
["ScripCode","Scrip code","in-bse-shp-types:ScripCode","duration","This is a mandatory field. Should be valid SCRIP CODE  as per BSE Scrip Code Format. "]
["Symbol","NSE Symbol","xbrli:stringItemType","duration"]
["MSEISymbol","MSEI Symbol","xbrli:stringItemType","duration"]
["ISIN","ISIN","in-bse-shp-types:ISIN","duration"]
["NameOfTheCompany","Name of the company","xbrli:stringItemType","duration","This is a mandatory field. Please enter company name."]
["WhetherCompanyIsSME","Whether company is SME","xbrli:booleanItemType","instant","This is a mandatory field. Value must be \"Yes\" or \"No\", Select from drop down list."]
["ClassOfSecurity","Class of Security","in-bse-shp-types:ClassOfSecurity","duration"]
["TypeOfReport","Type of report","in-bse-shp-types:TypeOfReport","duration","This is a mandatory field. Please select value from the drop-down."]
["DateOfReport","Quarter Ended / Half year ended/Date of Report (For Prelisting / Allotment)","xbrli:dateItemType","instant","This is a mandatory field if you select type of report as \"Quarterly\". Please enter date in \"dd-mm-yyyy\" format."]
["DateOfAllotment","DateOfAllotment","xbrli:dateItemType","instant","This is a mandatory field if you select type of report as \"Pre-listing\" or \"Capital Restructuring\". Please enter date in \"dd-mm-yyyy\" format."]
["DateOfListing","DateOfListing","xbrli:dateItemType","instant"]
["DateOfAllotmentOrListing","Date of allotment / extinguishment (in case Capital Restructuring selected) / Listing Date","xbrli:dateItemType","instant"]
["ShareholdingPatternFiledUnder","Shareholding pattern filed under","in-bse-shp-types:TypeOfShareholdingPattern","duration"]
["Declaration"]
["WhetherTheListedEntityHasIssuedAnyPartlyPaidUpShares","Partly Paid Up Shares","xbrli:booleanItemType","instant"]
["WhetherTheListedEntityHasIssuedAnyPartlyPaidUpSharesForPromoterAndPromoterGroup","Partly Paid Up Shares PPG","xbrli:booleanItemType","instant"]
["WhetherTheListedEntityHasIssuedAnyPartlyPaidUpSharesForPublicShareHolder","Partly Paid Up Shares Public","xbrli:booleanItemType","instant"]
["WhetherTheListedEntityHasIssuedAnyPartlyPaidUpSharesForNonPromoterNonPublic","Partly Paid Up Shares NPNP","xbrli:booleanItemType","instant"]
["WhetherTheListedEntityHasIssuedAnyConvertibleSecurities","Convertible Securities","xbrli:booleanItemType","instant"]
["WhetherTheListedEntityHasIssuedAnyConvertibleSecuritiesForPromoterAndPromoterGroup","Convertible Securities PPG","xbrli:booleanItemType","instant"]
["WhetherTheListedEntityHasIssuedAnyConvertibleSecuritiesForPublicShareHolder","Convertible Securities Public","xbrli:booleanItemType","instant"]
["WhetherTheListedEntityHasIssuedAnyConvertibleSecuritiesForNonPromoterNonPublic","Convertible Securities NPNP","xbrli:booleanItemType","instant"]
["WhetherTheListedEntityHasIssuedAnyWarrants","Warrants","xbrli:booleanItemType","instant"]
["WhetherTheListedEntityHasIssuedAnyWarrantsForPromoterAndPromoterGroup","Warrants PPG","xbrli:booleanItemType","instant"]
["WhetherTheListedEntityHasIssuedAnyWarrantsForPublicShareHolder","Warrants Public","xbrli:booleanItemType","instant"]
["WhetherTheListedEntityHasIssuedAnyWarrantsForNonPromoterNonPublic","Warrants NPNP","xbrli:booleanItemType","instant"]
["WhetherTheListedEntityHasAnySharesAgainstWhichDepositoryReceiptsAreIssued","Depository Receipts","xbrli:booleanItemType","instant"]
["WhetherTheListedEntityHasAnySharesAgainstWhichDepositoryReceiptsAreIssuedForPromoterAndPromoterGroup","Depository Receipts PPG","xbrli:booleanItemType","instant"]
["WhetherTheListedEntityHasAnySharesAgainstWhichDepositoryReceiptsAreIssuedForPublicShareHolder","Depository Receipts Public","xbrli:booleanItemType","instant"]
["WhetherTheListedEntityHasAnySharesAgainstWhichDepositoryReceiptsAreIssuedForNonPromoterNonPublic","Depository Receipts NPNP","xbrli:booleanItemType","instant"]
["WhetherTheListedEntityHasAnySharesInLockedIn","Locked In","xbrli:booleanItemType","instant"]
["WhetherTheListedEntityHasAnySharesInLockedInForPromoterAndPromoterGroup","Locked In PPG","xbrli:booleanItemType","instant"]
["WhetherTheListedEntityHasAnySharesInLockedInForPublicShareHolder","Locked In Public","xbrli:booleanItemType","instant"]
["WhetherTheListedEntityHasAnySharesInLockedInForNonPromoterNonPublic","Locked In NPNP","xbrli:booleanItemType","instant"]
["WhetherAnySharesHeldByPromotersArePledgeOrOtherwiseEncumbered","Pledge Or Otherwise Encumbered","xbrli:booleanItemType","instant"]
["WhetherAnySharesHeldByPromotersArePledgeOrOtherwiseEncumberedForPromoterAndPromoterGroup","Pledge Or Otherwise Encumbered PPG","xbrli:booleanItemType","instant"]
["WhetherAnySharesHeldByPromotersArePledgeOrOtherwiseEncumberedForPublicShareHolder","Pledge Or Otherwise Encumbered Public","xbrli:booleanItemType","instant"]
["WhetherAnySharesHeldByPromotersArePledgeOrOtherwiseEncumberedForNonPromoterNonPublic","Pledge Or Otherwise Encumbered NPNP","xbrli:booleanItemType","instant"]
["WhetherCompanyHasEquitySharesWithDifferentialVotingRights","Voting Rights","xbrli:booleanItemType","instant"]
["WhetherCompanyHasEquitySharesWithDifferentialVotingRightsForPromoterAndPromoterGroup","Voting Rights PPG","xbrli:booleanItemType","instant"]
["WhetherCompanyHasEquitySharesWithDifferentialVotingRightsForPublicShareHolder","Voting Rights Public","xbrli:booleanItemType","instant"]
["WhetherCompanyHasEquitySharesWithDifferentialVotingRightsForNonPromoterNonPublic","Voting Rights NPNP","xbrli:booleanItemType","instant"]
["Shareholding Pattern"]
["IndividualsOrHinduUndividedFamilyMember","Individuals or Hindu undivided family [Member]","nonnum:domainItemType","duration"]
["CentralGovernmentOrStateGovernmentSMember","Central government or State government(s) [Member]","nonnum:domainItemType","duration"]
["IndianFinancialInstitutionsOrBanksMember","Indian - financial institutions or banks [Member]","nonnum:domainItemType","duration"]
["OtherIndianShareholdersMember","Other Indian shareholders [Member]","nonnum:domainItemType","duration"]
["IndianMember","Indian [Member]","nonnum:domainItemType","duration"]
["NonResidentIndividualsOrForeignIndividualsMember","Non-resident individuals or foreign individuals [Member]","nonnum:domainItemType","duration"]
["ForeignGovernmentMember","Foreign - Government [Member]","nonnum:domainItemType","duration"]
["ForeignInstitutionsMember","Foreign - institutions [Member]","nonnum:domainItemType","duration"]
["ForeignPortfolioInvestorMember","Foreign portfolio investor [Member]","nonnum:domainItemType","duration"]
["OtherForeignShareholdersMember","Other foreign shareholders [Member]","nonnum:domainItemType","duration"]
["ForeignMember","Foreign [Member]","nonnum:domainItemType","duration"]
["ShareholdingOfPromoterAndPromoterGroupMember","Shareholding of promoter and promoter group [Member]","nonnum:domainItemType","duration"]
["MutualFundsOrUtiMember","Mutual funds or UTI [Member]","nonnum:domainItemType","duration"]
["VentureCapitalFundsMember","Venture capital funds [Member]","nonnum:domainItemType","duration"]
["AlternativeInvestmentFundsMember","Alternative investment funds [Member]","nonnum:domainItemType","duration"]
["BanksMember","Banks [Member]","nonnum:domainItemType","duration"]
["InsuranceCompaniesMember","Insurance Companies [Member]","nonnum:domainItemType","duration"]
["ProvidentFundsOrPensionFundsMember","Provident Funds or pension funds [Member]","nonnum:domainItemType","duration"]
["AssetReconstructionCompaniesMember","Asset reconstruction companies [Member]","nonnum:domainItemType","duration"]
["SovereignWealthFundsDomesticMember","Sovereign wealth funds domestic [Member]","nonnum:domainItemType","duration"]
["NBFCsRegisteredWithRbiMember","NBFCs registered with RBI [Member]","nonnum:domainItemType","duration"]
["OtherFinancialInstitutionsMember","Other financial institutions [Member]","nonnum:domainItemType","duration"]
["OtherInstitutionsDomesticMember","Other institutions domestic [Member]","nonnum:domainItemType","duration"]
["InstitutionsDomesticMember","Institutions domestic [Member]","nonnum:domainItemType","duration"]
["ForeignDirectInvestmentMember","Foreign direct investment [Member]","nonnum:domainItemType","duration"]
["ForeignVentureCapitalInvestorsMember","Foreign venture capital investors [Member]","nonnum:domainItemType","duration"]
["SovereignWealthFundsForeignMember","Sovereign wealth funds foreign [Member]","nonnum:domainItemType","duration"]
["InstitutionsForeignPortfolioInvestorCatergoryOneMember","Institutions foreign portfolio investor catergory one [Member]","nonnum:domainItemType","duration"]
["InstitutionsForeignPortfolioInvestorCatergoryTwoMember","Institutions foreign portfolio investor catergory two [Member]","nonnum:domainItemType","duration"]
["OverseasDepositoriesMember","Overseas Depositories [Member]","nonnum:domainItemType","duration"]
["OtherInstitutionsForeignMember","Other institutions foreign [Member]","nonnum:domainItemType","duration"]
["InstitutionsForeignMember","Institutions foreign [Member]","nonnum:domainItemType","duration"]
["CentralGovernmentOrPresidentOfIndiaMember","Central government or president of india [Member]","nonnum:domainItemType","duration"]
["StateGovernmentsOrGovernorsMember","State governments or governors [Member]","nonnum:domainItemType","duration"]
["ShareholdingByCompaniesOrBodiesCorporatewhereCentralOrStateGovernmentIsPromoterMember","Shareholding by companies or bodies corporatewhere central or state government is promoter [Member]","nonnum:domainItemType","duration"]
["GovermentsMember","Goverments [Member]","nonnum:domainItemType","duration"]
["AssociateCompaniesOrSubsidiariesMember","Associate companies or subsidiaries [Member]","nonnum:domainItemType","duration"]
["DirectorsAndDirectorsRelativesMember","Directors and directors relatives [Member]","nonnum:domainItemType","duration"]
["KeyManagerialPersonnelMember","Key managerial personnel [Member]","nonnum:domainItemType","duration"]
["RelativesOfPromotersOtherThanPromoterGroupMember","Relatives of promoters other than promoter group [Member]","nonnum:domainItemType","duration"]
["TrustsWhereAnyPersonBelongingToPromoterAndPromoterGroupIsisTrusteeOrBeneficiaryOrAuthorOfTrustMember","Trusts where any person belonging to promoter and promoter group isis trustee or beneficiary or author of trust [Member]","nonnum:domainItemType","duration"]
["InvestorEducationAndProtectionFundMember","Investor education and protection fund [Member]","nonnum:domainItemType","duration"]
["ResidentIndividualShareholdersHoldingNominalShareCapitalUpToRsTwoLakhMember","Resident individual shareholders holding nominal share capital up to rs two lakh [Member]","nonnum:domainItemType","duration"]
["ResidentIndividualShareholdersHoldingNominalShareCapitalInExcessOfRsTwoLakhMember","Resident individual shareholders holding nominal share capital in excess of rs two lakh [Member]","nonnum:domainItemType","duration"]
["NonResidentIndiansMember","Non resident indians [Member]","nonnum:domainItemType","duration"]
["ForeignNationalsMember","Foreign nationals [Member]","nonnum:domainItemType","duration"]
["ForeignCompaniesMember","Foreign companies [Member]","nonnum:domainItemType","duration"]
["BodiesCorporateMember","Bodies corporate [Member]","nonnum:domainItemType","duration"]
["OtherNonInstitutionsMember","Other non-institutions [Member]","nonnum:domainItemType","duration"]
["NonInstitutionsMember","Non-institutions [Member]","nonnum:domainItemType","duration"]
["PublicShareholdingMember","Public shareholding [Member]","nonnum:domainItemType","duration"]
["CustodianOrDRHolderMember","Custodian or DR holder [Member]","nonnum:domainItemType","duration"]
["EmployeeBenefitsTrustsMember","Employee benefits trusts [Member]","nonnum:domainItemType","duration"]
["SharesHeldByNonPromoterNonPublicShareholdersMember","Shares held by non-promoter non-public shareholders [Member]","nonnum:domainItemType","duration"]
["ShareholdingPatternMember","Shareholding pattern [Member]","nonnum:domainItemType","duration"]
["NumberOfShareholders","Number of shareholders","xbrli:decimalItemType","instant"]
["NumberOfFullyPaidUpEquityShares","Number of fully paid up equity shares","xbrli:sharesItemType","instant"]
["NumberOfPartlyPaidUpEquityShares","Number of partly paid-up equity shares","xbrli:sharesItemType","instant"]
["NumberOfSharesUnderlyingOutstandingDepositoryReceipts","Number of shares underlying outstanding depository receipts","xbrli:sharesItemType","instant"]
["NumberOfShares","Total number of shares","xbrli:sharesItemType","instant"]
["ShareholdingAsAPercentageOfTotalNumberOfShares","Shareholding as a percentage of total number of shares held by promoters and public shareholders and custodians or DR holders","num:percentItemType","instant","In case of public share holding percentage can not be less than one percentage."]
["NumberOfVotingRightsHeldBySameClassOfSecurities","Number of voting rights held by same class of securities","xbrli:decimalItemType","instant","Value must be equal to Fully paid up shares"]
["NumberOfVotingRightsHeldByDifferentialVotingRights","Number of voting rights held by differential voting rights","xbrli:decimalItemType","instant"]
["NumberOfVotingRights","Total Number of voting rights","xbrli:decimalItemType","instant"]
["PercentageOfTotalVotingRights","Percentage of total number of voting rights","num:percentItemType","instant","Percentage of total number of voting rights"]
["NumberOfSharesUnderlyingOutstandingConvertibleSecurities","Number of shares underlying outstanding convertible securities","xbrli:sharesItemType","instant"]
["NumberOfWarrants","Number of warrant","xbrli:sharesItemType","instant"]
["NumberOfConvertibleSecuritiesAndWarrants","Number of warrant and convertible securities","xbrli:sharesItemType","instant"]
["ShareholdingAsAPercentageAssumingFullConversionOfConvertibleSecuritiesAndWarrants","Total shareholding as a percentage assuming full conversion of convertible securities","num:percentItemType","instant","Total shareholding as a percentage assuming full conversion of convertible securities"]
["NumberOfTheLockedInShares","Number of the locked-in-shares ","xbrli:sharesItemType","instant","Value should be less than or equal to fully paid up shares"]
["LockedInSharesAsAPercentageOfTotalNumberOfShares","Locked-in-shares as a percentage of total number of shares","num:percentItemType","instant","Locked-in-shares as a percentage of total number of shares"]
["PledgedOrEncumberedNumberOfShares","Pledged or encumbered - number of shares","xbrli:sharesItemType","instant","Value should be less than or equal to fully paid up shares"]
["PledgedOrEncumberedSharesHeldAsPercentageOfTotalNumberOfShares","Pledged or encumbered shares held as percentage of total number of shares","num:percentItemType","instant","Pledged or encumbered shares held as percentage of total number of shares"]
["NumberOfEquitySharesHeldInDematerializedForm","Number of equity shares held in dematerialized form","xbrli:sharesItemType","instant","Value should be less than or equal to fully paid up shares"]
["NumberOfShareUnderSubCategoryOne","Number of share under sub category one","xbrli:sharesItemType","instant","1) This is mandatory field.\n2) Sub-category (i) should be less than or equal to total number of shares."]
["NumberOfShareUnderSubCategoryTwo","Number of share under sub category two","xbrli:sharesItemType","instant","1) This is mandatory field.\n2) Sub-category (ii) should be less than or equal to total number of shares."]
["NumberOfShareUnderSubCategoryThree","Number of share under sub category three","xbrli:sharesItemType","instant","1) This is mandatory field.\n2) Sub-category (iii) should be less than or equal to total number of shares."]
["DisclosureOfNotesOnShareholdingPatternExplanatoryTextBlock","Disclosure of notes on shareholding pattern","nonnum:textBlockItemType","instant"]
["DisclosureOfNotesInCaseOfPromoterHolidingInDematerialsedFormIsLessThan100PercentageExplanatoryTextBlock","Disclosure of notes in case of promoter holiding in dematerialsed form is less than 100 percentage","nonnum:textBlockItemType","instant","This field is mandatory if promoter holiding in dematerialsed form is less than 100 percentage."]
["DisclosureOfNotesInCaseOfPublicShareholdingIsLessThan25PercentageExplanatoryTextBlock","Disclosure of notes in case of public share holding is less than 25 percentage","nonnum:textBlockItemType","instant","This filed is mandatory if public share holding is less than 25 percentage."]
["DisclosureOfNotesOnShareholdingPatternForCompanyRemarksExplanatoryTextBlock","Disclosure of notes on shareholding pattern for company remarks explanatory","nonnum:textBlockItemType","instant"]
["Promoter and Promoter Group"]
["NameOfTheShareholder","Name of shareholder","xbrli:stringItemType","duration"]
["PermanentAccountNumberOfShareholder","Permanent account number of shareholder","in-bse-shp-types:PermanentAccountNumber","duration","[A-Z][A-Z][A-Z][A-Z][A-Z][0-9][0-9][0-9][0-9][A-Z]\n\nIn absence of PAN write : ZZZZZ9999Z"]
["NumberOfFullyPaidUpEquityShares","Number of fully paid up equity shares","xbrli:sharesItemType","instant"]
["NumberOfPartlyPaidUpEquityShares","Number of partly paid-up equity shares","xbrli:sharesItemType","instant"]
["NumberOfSharesUnderlyingOutstandingDepositoryReceipts","Number of shares underlying outstanding depository receipts","xbrli:sharesItemType","instant"]
["NumberOfShares","Total number of shares","xbrli:sharesItemType","instant"]
["ShareholdingAsAPercentageOfTotalNumberOfShares","Shareholding as a percentage of total number of shares held by promoters and public shareholders and custodians or DR holders","num:percentItemType","instant","In case of public share holding percentage can not be less than one percentage."]
["NumberOfVotingRightsHeldBySameClassOfSecurities","Number of voting rights held by same class of securities","xbrli:decimalItemType","instant","Value must be equal to Fully paid up shares"]
["NumberOfVotingRightsHeldByDifferentialVotingRights","Number of voting rights held by differential voting rights","xbrli:decimalItemType","instant"]
["NumberOfVotingRights","Total Number of voting rights","xbrli:decimalItemType","instant"]
["PercentageOfTotalVotingRights","Percentage of total number of voting rights","num:percentItemType","instant","Percentage of total number of voting rights"]
["NumberOfSharesUnderlyingOutstandingConvertibleSecurities","Number of shares underlying outstanding convertible securities","xbrli:sharesItemType","instant"]
["NumberOfWarrants","Number of warrant","xbrli:sharesItemType","instant"]
["NumberOfConvertibleSecuritiesAndWarrants","Number of warrant and convertible securities","xbrli:sharesItemType","instant"]
["ShareholdingAsAPercentageAssumingFullConversionOfConvertibleSecuritiesAndWarrants","Total shareholding as a percentage assuming full conversion of convertible securities","num:percentItemType","instant","Total shareholding as a percentage assuming full conversion of convertible securities"]
["NumberOfTheLockedInShares","Number of the locked-in-shares ","xbrli:sharesItemType","instant","Value should be less than or equal to fully paid up shares"]
["LockedInSharesAsAPercentageOfTotalNumberOfShares","Locked-in-shares as a percentage of total number of shares","num:percentItemType","instant","Locked-in-shares as a percentage of total number of shares"]
["PledgedOrEncumberedNumberOfShares","Pledged or encumbered - number of shares","xbrli:sharesItemType","instant","Value should be less than or equal to fully paid up shares"]
["PledgedOrEncumberedSharesHeldAsPercentageOfTotalNumberOfShares","Pledged or encumbered shares held as percentage of total number of shares","num:percentItemType","instant","Pledged or encumbered shares held as percentage of total number of shares"]
["NumberOfEquitySharesHeldInDematerializedForm","Number of equity shares held in dematerialized form","xbrli:sharesItemType","instant","Value should be less than or equal to total no of shares."]
["DisclosureOfNotesOnReasonForNotProvidingPANExplanatoryTextBlock","Reason for not providing PAN","nonnum:textBlockItemType","instant","Please enter valid PAN no or if you already added PAN no then remove reason for not providing PAN.\n\nNote: kindly mention predefined reasons (Viz.  Sikkim resident, Foreign resident, President of India / Governor/ government holding, Shareholder is Minor and PAN not applied for, Shareholder Deceased and PAN not available, Shareholder not traceable)"]
["TypeOfPromoterShareholding","Shareholder type","in-bse-shp-types:PromoterAndPromoterGroup","duration","Select value from the drop-down."]
["CategoryOfOtherIndianShareholders","Category of other indian shareholders","in-bse-shp-types:CategoryOfIndianShareholders","duration"]
["CategoryOfOtherForeignShareholders","Category of other foreign shareholders","in-bse-shp-types:CategoryOfForeignShareholders","duration"]
["WhetherACategoryOrMoreThan1PercentageOfShareHolding","Category or more than one percentage","in-bse-shp-types:TypeOfOtherShareholding","duration"]
["NumberOfShareholders","Number of shareholders","xbrli:decimalItemType","instant"]
["Public shareholder"]
["NameOfTheShareholder","Name of shareholder","xbrli:stringItemType","duration"]
["PermanentAccountNumberOfShareholder","Permanent account number of shareholder","in-bse-shp-types:PermanentAccountNumber","duration","[A-Z][A-Z][A-Z][A-Z][A-Z][0-9][0-9][0-9][0-9][A-Z]\n\nIn absence of PAN write : ZZZZZ9999Z"]
["NumberOfFullyPaidUpEquityShares","Number of fully paid up equity shares","xbrli:sharesItemType","instant"]
["NumberOfPartlyPaidUpEquityShares","Number of partly paid-up equity shares","xbrli:sharesItemType","instant"]
["NumberOfSharesUnderlyingOutstandingDepositoryReceipts","Number of shares underlying outstanding depository receipts","xbrli:sharesItemType","instant"]
["NumberOfShares","Total number of shares","xbrli:sharesItemType","instant"]
["ShareholdingAsAPercentageOfTotalNumberOfShares","Shareholding as a percentage of total number of shares held by promoters and public shareholders and custodians or DR holders","num:percentItemType","instant","In case of public share holding percentage can not be less than one percentage."]
["NumberOfVotingRightsHeldBySameClassOfSecurities","Number of voting rights held by same class of securities","xbrli:decimalItemType","instant","Value must be equal to Fully paid up shares"]
["NumberOfVotingRightsHeldByDifferentialVotingRights","Number of voting rights held by differential voting rights","xbrli:decimalItemType","instant"]
["NumberOfVotingRights","Total Number of voting rights","xbrli:decimalItemType","instant"]
["PercentageOfTotalVotingRights","Percentage of total number of voting rights","num:percentItemType","instant","Percentage of total number of voting rights"]
["NumberOfSharesUnderlyingOutstandingConvertibleSecurities","Number of shares underlying outstanding convertible securities","xbrli:sharesItemType","instant"]
["NumberOfWarrants","Number of warrant","xbrli:sharesItemType","instant"]
["NumberOfConvertibleSecuritiesAndWarrants","Number of warrant and convertible securities","xbrli:sharesItemType","instant"]
["ShareholdingAsAPercentageAssumingFullConversionOfConvertibleSecuritiesAndWarrants","Total shareholding as a percentage assuming full conversion of convertible securities","num:percentItemType","instant","Total shareholding as a percentage assuming full conversion of convertible securities"]
["NumberOfTheLockedInShares","Number of the locked-in-shares ","xbrli:sharesItemType","instant","Value should be less than or equal to fully paid up shares"]
["LockedInSharesAsAPercentageOfTotalNumberOfShares","Locked-in-shares as a percentage of total number of shares","num:percentItemType","instant","Locked-in-shares as a percentage of total number of shares"]
["NumberOfEquitySharesHeldInDematerializedForm","Number of equity shares held in dematerialized form","xbrli:sharesItemType","instant","Value should be less than or equal to total no of shares."]
["CategoryOfOtherInstitutions","Category of other institutions","in-bse-shp-types:CategoryOfInstitutionShareholders","duration"]
["CategoryOfOtherNonInstitutions","Category of other non-institutions","in-bse-shp-types:CategoryOfNonInstitutionsShareholders","duration"]
["WhetherACategoryOrMoreThan1PercentageOfShareHolding","Category or more than one percentage","in-bse-shp-types:TypeOfOtherShareholding","duration"]
["NumberOfShareholders","Number of shareholders","xbrli:decimalItemType","instant"]
["DisclosureOfNotesOnReasonForNotProvidingPANExplanatoryTextBlock","Reason for not providing PAN","nonnum:textBlockItemType","instant","Please enter valid PAN no or if you already added PAN no then remove reason for not providing PAN.\n\n\nNote: kindly mention predefined reasons (Viz.  Sikkim resident, Foreign resident, President of India / Governor/ government holding, Shareholder is Minor and PAN not applied for, Shareholder Deceased and PAN not available, Shareholder not traceable)"]
["Non Promoter- Non Public shareholder"]
["TypeOfDepositoryReceipts","Type of depository receipts","in-bse-shp-types:TypeOfDepositoryReceipts","duration"]
["NameOfTheBank","Name of the bank","xbrli:stringItemType","duration"]
["NameOfTheShareholder","Name of shareholder","xbrli:stringItemType","duration"]
["PermanentAccountNumberOfShareholder","Permanent account number of shareholder","in-bse-shp-types:PermanentAccountNumber","duration","[A-Z][A-Z][A-Z][A-Z][A-Z][0-9][0-9][0-9][0-9][A-Z]\n\nIn absence of PAN write : ZZZZZ9999Z"]
["NumberOfShareholders","Number of shareholders","xbrli:decimalItemType","instant"]
["NumberOfFullyPaidUpEquityShares","Number of fully paid up equity shares","xbrli:sharesItemType","instant"]
["NumberOfPartlyPaidUpEquityShares","Number of partly paid-up equity shares","xbrli:sharesItemType","instant"]
["NumberOfSharesUnderlyingOutstandingDepositoryReceipts","Number of shares underlying outstanding depository receipts","xbrli:sharesItemType","instant"]
["NumberOfShares","Total number of shares","xbrli:sharesItemType","instant"]
["ShareholdingAsAPercentageOfTotalNumberOfShares","Shareholding as a percentage of total number of shares held by promoters and public shareholders and custodians or DR holders","num:percentItemType","instant","In case of public share holding percentage can not be less than one percentage."]
["NumberOfVotingRightsHeldBySameClassOfSecurities","Number of voting rights held by same class of securities","xbrli:decimalItemType","instant","Value must be equal to Fully paid up shares"]
["NumberOfVotingRightsHeldByDifferentialVotingRights","Number of voting rights held by differential voting rights","xbrli:decimalItemType","instant"]
["NumberOfVotingRights","Total Number of voting rights","xbrli:decimalItemType","instant"]
["PercentageOfTotalVotingRights","Percentage of total number of voting rights","num:percentItemType","instant","Percentage of total number of voting rights"]
["NumberOfSharesUnderlyingOutstandingConvertibleSecurities","Number of shares underlying outstanding convertible securities","xbrli:sharesItemType","instant"]
["NumberOfWarrants","Number of warrant","xbrli:sharesItemType","instant"]
["NumberOfConvertibleSecuritiesAndWarrants","Number of warrant and convertible securities","xbrli:sharesItemType","instant"]
["ShareholdingAsAPercentageAssumingFullConversionOfConvertibleSecuritiesAndWarrants","Total shareholding as a percentage assuming full conversion of convertible securities","num:percentItemType","instant","Total shareholding as a percentage assuming full conversion of convertible securities"]
["NumberOfTheLockedInShares","Number of the locked-in-shares ","xbrli:sharesItemType","instant","Value should be less than or equal to fully paid up shares"]
["LockedInSharesAsAPercentageOfTotalNumberOfShares","Locked-in-shares as a percentage of total number of shares","num:percentItemType","instant","Locked-in-shares as a percentage of total number of shares"]
["NumberOfEquitySharesHeldInDematerializedForm","Number of equity shares held in dematerialized form","xbrli:sharesItemType","instant","Value should be less than or equal to total no of shares."]
["DisclosureOfNotesOnReasonForNotProvidingPANExplanatoryTextBlock","Reason for not providing PAN","nonnum:textBlockItemType","instant","Please enter valid PAN no or if you already added PAN no then remove reason for not providing PAN.\n\n\nNote: kindly mention predefined reasons (Viz.  Sikkim resident, Foreign resident, President of India / Governor/ government holding, Shareholder is Minor and PAN not applied for, Shareholder Deceased and PAN not available, Shareholder not traceable)"]
["Unclaimed Public"]
["NumberOfShareholders","Number of shareholders","xbrli:decimalItemType","instant"]
["OutstandingSharesHeldInDematOrUnclaimedSuspenseAccount","Outstanding shares held in demat or unclaimed suspense account","xbrli:sharesItemType","instant","Please enter Outstanding shares held in demat or unclaimed suspense account which allowes only numeric value."]
["VotingRightsWhichAreFrozen","voting rights which are frozen","xbrli:decimalItemType","instant"]
["DisclosureOfNotesOnSharesWhichRemainUnclaimedForPublicShareholdersExplanatoryTextBlock","Disclosure of notes on shares which remain unclaimed for public shareholders","nonnum:textBlockItemType","instant"]
["PAC Public"]
["NameOfTheShareholder","Name of Shareholder","xbrli:stringItemType","duration"]
["NameOfThePAC","Name of the PAC","xbrli:stringItemType","duration"]
["NumberOfShares","Number of shares","xbrli:sharesItemType","instant","Please eneter Number of shares which allowes only numeric value"]
["PercentageOfShareholdingByPAC","Percentage of shareholding by PAC","num:percentItemType","instant"]
["Unclaimed Prom"]
["NumberOfShareholders","Number of shareholders","xbrli:decimalItemType","instant"]
["OutstandingSharesHeldInDematOrUnclaimedSuspenseAccount","Outstanding shares held in demat or unclaimed suspense account","xbrli:sharesItemType","instant","Please enter Outstanding shares held in demat or unclaimed suspense account which allowes only numeric value."]
["VotingRightsWhichAreFrozen","Voting rights which are frozen","xbrli:decimalItemType","instant"]
["DisclosureOfNotesOnSharesWhichRemainUnclaimedForPromoterAndPromoterGroupExplanatoryTextBlock","Disclosure of notes on shares which remain unclaimed for promoter and promoter group","nonnum:textBlockItemType","instant"]
["SBO"]
["NameOfSignificantBeneficialOwners","Name of SBO","xbrli:stringItemType","duration"]
["PANOfSignificantBeneficialOwners","PAN of SBO","in-bse-shp-types:PermanentAccountNumber","duration","[A-Z][A-Z][A-Z][A-Z][A-Z][0-9][0-9][0-9][0-9][A-Z]\n\nIn absence of PAN write : ZZZZZ9999Z"]
["PassportNoOfSignificantBeneficialOwners","Passport No. in case of a foreign national of SBO","xbrli:stringItemType","duration"]
["NationalityOfSignificantBeneficialOwners","Nationality of SBO","xbrli:stringItemType","duration"]
["DescriptionOfOtherNationalityOfSignificantBeneficialOwners","Nationality (Applicable in case of Any other is selected) of SBO","xbrli:stringItemType","duration"]
["NameOfRegisteredOwner","Name of RegisteredOwner","xbrli:stringItemType","duration"]
["PANOfRegisteredOwner","PAN of RegisteredOwner","in-bse-shp-types:PermanentAccountNumber","duration","[A-Z][A-Z][A-Z][A-Z][A-Z][0-9][0-9][0-9][0-9][A-Z]\n\nIn absence of PAN write : ZZZZZ9999Z"]
["PassportNoOfRegisteredOwner","Passport No. in case of a foreign national of RegisteredOwner","xbrli:stringItemType","duration"]
["NationalityOfRegisteredOwner","Nationality of RegisteredOwner","xbrli:stringItemType","duration"]
["DescriptionOfOtherNationalityOfRegisteredOwner","Nationality (Applicable in case of Any other is selected) of RegisteredOwner","xbrli:stringItemType","duration"]
["DetailsOfHoldingExerciseOfRightOfTheSBOInTheReportingCompanyWhetherByVirtueOfShares","Shares","num:percentItemType","instant"]
["DetailsOfHoldingExerciseOfRightOfTheSBOInTheReportingCompanyWhetherByVirtueOfVotingRights","Voting rights SBO","num:percentItemType","instant"]
["DetailsOfHoldingExerciseOfRightOfTheSBOInTheReportingCompanyWhetherByVirtueOfRightsOnDistributableDividendOrAnyOtherDistribution","Rights on distributable dividend or any other distribution","num:percentItemType","instant"]
["DetailsOfHoldingExerciseOfRightOfTheSBOInTheReportingCompanyWhetherByVirtueOfExerciseOfControl","Exercise of control","xbrli:booleanItemType","instant"]
["DetailsOfHoldingExerciseOfRightOfTheSBOInTheReportingCompanyWhetherByVirtueOfExerciseOfSignificantInfluence","Exercise of significant influence","xbrli:booleanItemType","instant"]
["DateOfCreationOrAcquisitionOfSignificantBeneficialInterest","Date of creation / acquisition of significant beneficial interest","xbrli:dateItemType","instant"]
["WhetherTheListedEntityHasAnySignificantBeneficialOwner","Whether the listed entity has any significant beneficial owner?","xbrli:booleanItemType","instant"]
["WhetherTheListedEntityIsPublicSectorUndertaking","Whether the listed entity is Public Sector Undertaking (PSU)?","xbrli:booleanItemType","instant"]
["Annexure B"]
["PercentageOfBoardApprovedLimits","Board approved limits (%)","num:percentItemType","instant","1) This is a mandatory field.\n2) Please enter numeric value up to 2 decimal.\n3) Value should be less then or equal to 100."]
["PercentageOfLimitsUtilized","Limits utilized (%)","num:percentItemType","instant","1) This is a mandatory field.\n2) Please enter numeric value up to 2 decimal.\n3) Value should be less then or equal to 100."]
["PercentageOfLimitSetByGoverement","Limit set by government (%)","num:percentItemType","instant","1) This is a mandatory field.\n2) Please enter numeric value up to 2 decimal.\n3) Value should be less then or equal to 100."]

{"sheet":"DRHolder","index":52,"n_rows":16,"n_cols":30,"rows_kept":16,"hidden":true,"merged":[[8,2,10,2],[8,3,10,3],[8,4,10,4],[8,5,10,5],[8,6,10,6],[8,7,10,7],[8,8,10,8],[8,9,10,9],[8,10,10,10],[8,11,10,11],[8,12,10,12],[8,13,8,16],[8,17,10,17],[8,18,10,18],[8,19,10,19],[8,20,10,20],[8,21,9,22],[8,23,10,23],[8,24,10,24],[9,13,9,15],[9,16,10,16]]}
[{"$nulls":8},0]
[{"$nulls":3},"Type of depository receipts","Name of the bank","Name of shareholder","Permanent account number of shareholder","Number of shareholders","Number of fully paid up equity shares","Number of partly paid-up equity shares","Number of shares underlying outstanding depository receipts","Total number of shares","Shareholding as a percentage of total number of shares held by promoters and public shareholders and custodians or DR holders","Number of voting rights held by same class of securities","Number of voting rights held by differential voting rights","Total Number of voting rights","Percentage of total number of voting rights","Number of shares underlying outstanding convertible securities","Number of warrant","Number of warrant and convertible securities","Total shareholding as a percentage assuming full conversion of convertible securities","Number of the locked-in-shares ","Locked-in-shares as a percentage of total number of shares","Number of equity shares held in dematerialized form","Reason for not providing PAN",{"$nulls":3},"GDR"]
[{"$nulls":28},"GDS"]
[{"$nulls":28},"ADR"]
[{"$nulls":28},"ADS"]
[{"$nulls":28},"SDR"]
[{"$nulls":28},"Other"]
[]
[null,null,"Serial No.","Category","Bank Name","Name\nof the \nShareholders\n     (I)","PAN \n(II)","No.\nof the \nShareholders\n     (I)","No. of fully paid up equity shares held\n(IV)","No. Of Partly paid-up equity shares held\n(V)","No. Of shares underlying Depository Receipts\n(VI)","Total nos. shares\nheld\n(VII) = (IV)+(V)+ (VI)","Shareholding as a % of total no. of shares (calculated as per SCRR, 1957)\n(VIII)\nAs a % of (A+B+C2)","Number of Voting Rights held in each class of securities\n(IX)",{"$nulls":3},"No. Of Shares Underlying Outstanding convertible securities\n(X)","No. of Shares Underlying Outstanding Warrants (Xi)","No. Of Shares Underlying Outstanding convertible securities and No. Of Warrants\n(Xi) (a)","Shareholding , as a % assuming full conversion of convertible securities (as a percentage of diluted share capital)\n(XI)= (VII)+(X)\nAs a % of (A+B+C2)","Number of Locked in shares\n(XII)",null,"Number of equity shares held in dematerialized form \n(XIV)","Reason for not providing PAN"]
[{"$nulls":13},"No of Voting (XIV)\nRights",null,null,"Total as\na % of\nTotal\nVoting\nrights"]
[{"$nulls":13},"Class\neg:\nX","Class\neg:y","Total",{"$nulls":5},"No.\n(a)","As a % of total Shares held\n(b)"]
[null,null,"C1","Custodian/DR  Holder - Name of DR Holders  (If Available)"]
[{"$nulls":7},1,{"$nulls":3},{"$f":"+IFERROR(IF(COUNT(I13:K13),ROUND(SUM(I13:K13),0),\"\"),\"\")","v":""},null,{"$f":"IF(I13=\"\",\"\",I13)","v":""},null,{"$f":"+IFERROR(IF(COUNT(N13:O13),ROUND(SUM(N13,O13),2),\"\"),\"\")","v":""},{"$f":"+IFERROR(IF(COUNT(P13),ROUND(P13/('Shareholding Pattern'!$P$79)*100,2),\"\"),\"\")","v":""},null,null,{"$f":"+IFERROR(IF(COUNT(R13:S13),ROUND(SUM(R13:S13),2),\"\"),\"\")","v":""},null,null,{"$f":"+IFERROR(IF(V13=\"\",\"\",(+IF(V13=0,0,IF(COUNT(V13,L13),ROUND(SUM(V13)/SUM(L13)*100,2),\"\")))),\"\")","v":""},{"$nulls":5},{"$f":"IF(SUM(H13:X13)>0,1,0)","v":1},{"$f":"SUM(AC15:AC65535)","v":0}]
[{"$nulls":4},"Disclosure of shareholder holding more than 1% of total number of shares"]
[{"$nulls":12},{"$f":"+IFERROR(IF(COUNT(L15),ROUND(L15/('Shareholding Pattern'!$L$78)*100,2),\"\"),\"\")","v":""},{"$nulls":3},{"$f":"+IFERROR(IF(COUNT(P15),ROUND(P15/('Shareholding Pattern'!$P$79)*100,2),\"\"),\"\")","v":""},{"$nulls":3},{"$f":"+IFERROR(IF(COUNT(L15,T15),ROUND(SUM(T15,L15)/SUM('Shareholding Pattern'!$L$78,'Shareholding Pattern'!$T$78)*100,2),\"\"),\"\")","v":""}]
[{"$nulls":5},"Click here to go back","Total",{"$f":"+IFERROR(IF(COUNT(H14:H15),ROUND(SUM(H14:H15),0),\"\"),\"\")","v":""},{"$f":"+IFERROR(IF(COUNT(I13:I15),ROUND(SUM(I13:I15),0),\"\"),\"\")","v":""},{"$f":"+IFERROR(IF(COUNT(J13:J15),ROUND(SUM(J13:J15),0),\"\"),\"\")","v":""},{"$f":"+IFERROR(IF(COUNT(K13:K15),ROUND(SUM(K13:K15),0),\"\"),\"\")","v":""},{"$f":"+IFERROR(IF(COUNT(L13:L15),ROUND(SUM(L13:L15),0),\"\"),\"\")","v":""},null,{"$f":"+IFERROR(IF(COUNT(N13:N15),ROUND(SUM(N13:N15),0),\"\"),\"\")","v":""},{"$f":"+IFERROR(IF(COUNT(O13:O15),ROUND(SUM(O13:O15),0),\"\"),\"\")","v":""},{"$f":"+IFERROR(IF(COUNT(P13:P15),ROUND(SUM(P13:P15),0),\"\"),\"\")","v":""},{"$f":"+IFERROR(IF(COUNT(P16),ROUND(P16/('Shareholding Pattern'!$P$79)*100,2),\"\"),\"\")","v":""},{"$f":"+IFERROR(IF(COUNT(R13:R15),ROUND(SUM(R13:R15),0),\"\"),\"\")","v":""},{"$f":"+IFERROR(IF(COUNT(S13:S15),ROUND(SUM(S13:S15),0),\"\"),\"\")","v":""},{"$f":"+IFERROR(IF(COUNT(T13:T15),ROUND(SUM(T13:T15),0),\"\"),\"\")","v":""},null,{"$f":"+IFERROR(IF(COUNT(V13:V15),ROUND(SUM(V13:V15),0),\"\"),\"\")","v":""},{"$f":"+IFERROR(IF(V16=\"\",\"\",(+IF(V16=0,0,IF(COUNT(V16,L16),ROUND(SUM(V16)/SUM(L16)*100,2),\"\")))),\"\")","v":""},{"$f":"+IFERROR(IF(COUNT(X13:X15),ROUND(SUM(X13:X15),0),\"\"),\"\")","v":""}]

{"sheet":"EBT","index":53,"n_rows":16,"n_cols":30,"rows_kept":16,"hidden":true,"merged":[[8,3,10,3],[8,4,10,4],[8,5,10,5],[8,6,10,6],[8,7,10,7],[8,8,10,8],[8,9,10,9],[8,10,10,10],[8,11,10,11],[8,12,8,15],[8,16,10,16],[8,17,10,17],[8,18,10,18],[8,19,10,19],[8,20,9,21],[8,22,10,22],[8,23,10,23],[9,12,9,14],[9,15,10,15]]}
[{"$nulls":8},0]
[{"$nulls":4},"Name of shareholder","Permanent account number of shareholder","Number of shareholders","Number of fully paid up equity shares","Number of partly paid-up equity shares","Number of shares underlying outstanding depository receipts","Total number of shares","Shareholding as a percentage of total number of shares held by promoters and public shareholders and custodians or DR holders","Number of voting rights held by same class of securities","Number of voting rights held by differential voting rights","Total Number of voting rights","Percentage of total number of voting rights","Number of shares underlying outstanding convertible securities","Number of warrant","Number of warrant and convertible securities","Total shareholding as a percentage assuming full conversion of convertible securities","Number of the locked-in-shares ","Locked-in-shares as a percentage of total number of shares","Number of equity shares held in dematerialized form","Reason for not providing PAN"]
[]
[]
[]
[]
[]
[]
[{"$nulls":3},"Searial No.","Name\nof the \nShareholders\n     (I)","PAN \n(II)","No.\nof the \nShareholders\n     (I)","No. of fully paid up equity shares held\n(IV)","No. Of Partly paid-up equity shares held\n(V)","No. Of shares underlying Depository Receipts\n(VI)","Total nos. shares\nheld\n(VII) = (IV)+(V)+ (VI)","Shareholding as a % of total no. of shares (calculated as per SCRR, 1957)\n(VIII)\nAs a % of (A+B+C2)","Number of Voting Rights held in each class of securities\n(IX)",{"$nulls":3},"No. Of Shares Underlying Outstanding convertible securities\n(X)","No. of Shares Underlying Outstanding Warrants (Xi)","No. Of Shares Underlying Outstanding convertible securities and No. Of Warrants\n(Xi) (a)","Shareholding , as a % assuming full conversion of convertible securities (as a percentage of diluted share capital)\n(XI)= (VII)+(X)\nAs a % of (A+B+C2)","Number of Locked in shares\n(XII)",null,"Number of equity shares held in dematerialized form \n(XIV)","Reason for not providing PAN"]
[{"$nulls":12},"No of Voting (XIV)\nRights",null,null,"Total as\na % of\nTotal\nVoting\nrights"]
[{"$nulls":12},"Class\neg:\nX","Class\neg:y","Total",{"$nulls":5},"No.\n(a)","As a % of total Shares held\n(b)"]
[{"$nulls":3},"C2","Employee Benefit Trust / Employee Welfare Trust under SEBI (Share Based Employee Benefits and Sweat Equity) Regulations, 2021"]
[{"$nulls":6},1,{"$nulls":3},{"$f":"+IFERROR(IF(COUNT(H13:J13),ROUND(SUM(H13:J13),0),\"\"),\"\")","v":""},{"$f":"+IFERROR(IF(COUNT(K13),ROUND(K13/'Shareholding Pattern'!$L$78*100,2),\"\"),\"\")","v":""},{"$f":"IF(H13=\"\",\"\",H13)","v":""},null,{"$f":"+IFERROR(IF(COUNT(M13:N13),ROUND(SUM(M13,N13),0),\"\"),\"\")","v":""},{"$f":"+IFERROR(IF(COUNT(O13),ROUND(O13/('Shareholding Pattern'!$P$79)*100,2),\"\"),\"\")","v":""},null,null,{"$f":"+IFERROR(IF(COUNT(Q13:R13),ROUND(SUM(Q13:R13),0),\"\"),\"\")","v":""},{"$f":"+IFERROR(IF(COUNT(K13,S13),ROUND(SUM(S13,K13)/SUM('Shareholding Pattern'!$L$78,'Shareholding Pattern'!$T$78)*100,2),\"\"),\"\")","v":""},null,{"$f":"+IFERROR(IF(U13=\"\",\"\",(IF(COUNT(U13,K13),ROUND(SUM(U13)/SUM(K13)*100,2),\"\"))),\"\")","v":""},{"$nulls":6},{"$f":"IF(SUM(H13:W13)>0,1,0)","v":0},{"$f":"SUM(AC15:AC65535)","v":0}]
[{"$nulls":5},"Disclosure of shareholder holding more than 1% of total number of shares\n"]
[]
[{"$nulls":4},"Click here to go back","Total",{"$f":"+IFERROR(IF(COUNT(G14:G15),ROUND(SUM(G14:G15),0),\"\"),\"\")","v":""},{"$f":"+IFERROR(IF(COUNT(H13:H15),ROUND(SUM(H13:H15),0),\"\"),\"\")","v":""},{"$f":"+IFERROR(IF(COUNT(I13:I15),ROUND(SUM(I13:I15),0),\"\"),\"\")","v":""},{"$f":"+IFERROR(IF(COUNT(J13:J15),ROUND(SUM(J13:J15),0),\"\"),\"\")","v":""},{"$f":"+IFERROR(IF(COUNT(K13:K15),ROUND(SUM(K13:K15),0),\"\"),\"\")","v":""},{"$f":"+IFERROR(IF(COUNT(K16),ROUND(K16/'Shareholding Pattern'!$L$78*100,2),\"\"),\"\")","v":""},{"$f":"+IFERROR(IF(COUNT(M13:M15),ROUND(SUM(M13:M15),0),\"\"),\"\")","v":""},{"$f":"+IFERROR(IF(COUNT(N13:N15),ROUND(SUM(N13:N15),0),\"\"),\"\")","v":""},{"$f":"+IFERROR(IF(COUNT(O13:O15),ROUND(SUM(O13:O15),0),\"\"),\"\")","v":""},{"$f":"+IFERROR(IF(COUNT(O16),ROUND(O16/('Shareholding Pattern'!$P$79)*100,2),\"\"),\"\")","v":""},{"$f":"+IFERROR(IF(COUNT(Q13:Q15),ROUND(SUM(Q13:Q15),0),\"\"),\"\")","v":""},{"$f":"+IFERROR(IF(COUNT(R13:R15),ROUND(SUM(R13:R15),0),\"\"),\"\")","v":""},{"$f":"+IFERROR(IF(COUNT(S13:S15),ROUND(SUM(S13:S15),0),\"\"),\"\")","v":""},{"$f":"+IFERROR(IF(COUNT(K16,S16),ROUND(SUM(S16,K16)/SUM('Shareholding Pattern'!$L$78,'Shareholding Pattern'!$T$78)*100,2),\"\"),\"\")","v":""},{"$f":"+IFERROR(IF(COUNT(U13:U15),ROUND(SUM(U13:U15),0),\"\"),\"\")","v":""},{"$f":"+IFERROR(IF(COUNT(U16,K16),ROUND(SUM(U16)/SUM(K16)*100,2),\"\"),0)","v":""},{"$f":"+IFERROR(IF(COUNT(W13:W15),ROUND(SUM(W13:W15),0),\"\"),\"\")","v":""}]

{"sheet":"Unclaimed_Prom","index":54,"n_rows":14,"n_cols":9,"rows_kept":14,"hidden":true,"merged":[[8,4,8,8],[9,4,11,4],[9,5,11,5],[9,6,11,6],[9,7,11,7],[9,8,11,8]]}
[{"$nulls":8},0]
{"$rows_empty":7}
[{"$nulls":4},"Details of Shares which remain unclaimed for Promoter & Promoter Group                    "]
[{"$nulls":4},"Searial No.","Number of shareholders","Outstanding shares held in demat or unclaimed suspense account","Voting rights which are frozen","Disclosure of notes on shares which remain unclaimed for promoter and promoter group"]
[]
[]
[]
[{"$nulls":8},"Click here to go back "]

{"sheet":"TextBlock","index":55,"n_rows":0,"n_cols":0,"rows_kept":0,"hidden":true}

{"sheet":"PAC_Public","index":56,"n_rows":14,"n_cols":9,"rows_kept":14,"hidden":true,"merged":[[8,3,8,7],[9,3,11,3],[9,4,11,4],[9,5,11,5],[9,6,11,6],[9,7,11,7]]}
[{"$nulls":8},0]
{"$rows_empty":7}
[{"$nulls":3},"Details of the shareholders acting as persons in Concert for Public"]
[{"$nulls":3},"Searial No.","Name of Shareholder","Name of the PAC","Number of shares","Percentage of shareholding by PAC"]
[]
[]
[]
[{"$nulls":7},"Cick here to go back"]

{"sheet":"Unclaimed_Public","index":57,"n_rows":14,"n_cols":9,"rows_kept":14,"hidden":true,"merged":[[8,4,8,7],[9,4,11,4],[9,5,11,5],[9,6,11,6],[9,7,11,7],[9,8,11,8]]}
[{"$nulls":8},0]
{"$rows_empty":7}
[{"$nulls":4},"Details of Shares which remain unclaimed for Public"]
[{"$nulls":4},"Searial No.","Number of shareholders","Outstanding shares held in demat or unclaimed suspense account","voting rights which are frozen","Disclosure of notes on shares which remain unclaimed for public shareholders"]
[]
[]
[]
[{"$nulls":8},"Click here to go back"]